Workbook

Sheet QCChecks
B2: Tab | C2: Objective | D2: ='Rev Check'!D36 -> 2029 | E2: ='Rev Check'!E36 -> 2030
B3: RevCheck | C3: Revenue Check after Standard Ratemaking | D3: ='Rev Check'!D56 -> 0.2358923638 | E3: ='Rev Check'!E56 -> -13.42484182 | F3: a few thousand delta is ok, millions is not
C4: compares revenue from COSA tables to Rates*Loads
B6: ScenarioResults | C6: Delta Check Rate Tables/Rates after Link | D6: Unbifurcated PF | E6: =ScenarioResults!J6 -> -0.004567612875
D7: T1 & T2 Equivalent PF | E7: =ScenarioResults!J8 -> 0
D8: PF Exchange | E8: =ScenarioResults!J9 -> 0.004785864404
D9: IP | E9: =ScenarioResults!J10 -> 0.001062775174
D10: NR | E10: =ScenarioResults!J11 -> 0.0007092850922
B13: LRAdjust | C13: Various Checks regarding loads and resources | D13: =D2 -> 2029 | E13: =E2 -> 2030
C14: Surplus/Deficit | D14: =LR_Adjust!E80 -> 0 | E14: =LR_Adjust!F80 -> 0
C15: Load Check | D15: =LR_Adjust!E81 -> 0 | E15: =LR_Adjust!F81 -> 0
C16: Resource Check | D16: =LR_Adjust!E82-LR_Adjust!E74 -> 1.591615728e-12 | E16: =LR_Adjust!F82-LR_Adjust!F74 -> 1.591615728e-12
C17: Augmentation Check | D17: =LR_Adjust!E83 -> 0 | E17: =LR_Adjust!F83 -> 0
C18: Surplus Check | D18: =LR_Adjust!E84 -> 0 | E18: =LR_Adjust!F84 -> 0
C19: Other Augmentation Check | D19: =LR_Adjust!E85 -> 1.591615728e-12 | E19: =LR_Adjust!F85 -> 1.591615728e-12
C20: Tier 2 Check | D20: =LR_Adjust!E86 -> 0 | E20: =LR_Adjust!F86 -> 0
D22: =D13 -> 2029 | E22: =E13 -> 2030
B23: ProgAlloc | C23: Load/Resource Balance Check | D23: =ProgAlloc!C109 -> -1.000007614e-07 | E23: =ProgAlloc!D109 -> -1.000007614e-07
B28: Initial Cost Allocation | D28: =D22 -> 2029 | E28: =E22 -> 2030
C29: compares cost pool total to rate pool total | D29: =Initial_Cost_Allocation!C30 -> 0 | E29: =Initial_Cost_Allocation!D30 -> 0
B32: Cost Allocation Summary | D32: ='Cost_Allocation Summary'!C76 -> 0 | E32: ='Cost_Allocation Summary'!D76 -> 0
B34: RDS_Credits | D34: =RDS_Credits!C49 -> 390021.3383 | E34: =RDS_Credits!D49 -> 391570.227 | F34: =RDS_Credits!E49 -> 391842.9306 | G34: =RDS_Credits!F49 -> 392576.6346 | H34: =RDS_Credits!G49 -> 389032.7435 | I34: =RDS_Credits!H49 -> 389032.7435
C35: Secondary Allocated to 7b3 | D35: =Secondary!D31 -> -390021.3383 | E35: =Secondary!E31 -> -391570.227 | F35: =Secondary!F31 -> -391842.9306 | G35: =Secondary!G31 -> -392576.6346 | H35: =Secondary!H31 -> -389032.7435 | I35: =Secondary!I31 -> -389032.7435
D36: =D34+D35 -> 0 | E36: =E34+E35 -> 0 | F36: 0 | G36: 0 | H36: 0 | I36: 0
B38: NETREP | C38: CrossChecks to PF rate | D38: ='Net REP'!J51 -> PF Match | E38: ='Net REP'!J52 -> -0.0001265446805
C39: Check to IP Rate | D39: ='Net REP'!L51 -> IP Match | E39: ='Net REP'!L52 -> 0.0027
B41: Program Rev Check | D41: ='Program Rev Check'!D47 -> 1.000000041 | E41: ='Program Rev Check'!E47 -> 0.9999977152 | F41: you want 100%
B42: 7b2 Rev Check | D42: ='7b2 Rev Check'!D30 -> 0.9999442112 | E42: ='7b2 Rev Check'!E30 -> 1.000088112 | F42: ='7b2 Rev Check'!F30 -> 1.000001012 | G42: ='7b2 Rev Check'!G30 -> 1.000063808 | H42: ='7b2 Rev Check'!H30 -> 1.000059797 | I42: ='7b2 Rev Check'!I30 -> 0.9999529943
B44: Cost Proof | D44: =Cost_Proof!E24 -> -0.7609551689 | F44: at or near zero
B46: Secondary | C46: Program Case and 7b2 should match | D46: 2029 | E46: 2030 | F46: =E46+1 -> 2031 | G46: =F46+1 -> 2032 | H46: 2033 | I46: =H46+1 -> 2034
C47: PC | D47: =Secondary!D29 -> 456972.2136 | E47: =Secondary!E29 -> 458971.2456 | F47: =Secondary!F29 -> 462969.3096 | G47: =Secondary!G29 -> 463929.3926 | H47: =Secondary!H29 -> 462969.3096 | I47: =Secondary!I29 -> 462969.3096
C48: 7b2 | D48: ='7b2 Secondary'!D29 -> 456972.2136 | E48: ='7b2 Secondary'!E29 -> 458971.2456 | F48: ='7b2 Secondary'!F29 -> 462969.3096 | G48: ='7b2 Secondary'!G29 -> 463929.3926 | H48: ='7b2 Secondary'!H29 -> 462969.3096 | I48: ='7b2 Secondary'!I29 -> 462969.3096
D49: =D48-D47 -> 0 | E49: =E48-E47 -> 0 | F49: 0 | G49: 0 | H49: 0 | I49: 0

Sheet Cover
A1: 30
C13: Rate Analysis Model V1.01
C14: Public Release_ RAMmodel_RAM2029_Reference Case Updated 11/5/2025
C15: Home / Contents
C16: Start Here
C17: Scenario Builder
C18: Purpose of this Workbook:
C22: Legend:
C24: Tab Colors | H24: Font Colors | L24: Hyperlink Types
C26: Blue Tab | E26: Cover Sheet | H26: Blue Font | I26: Constant Values | L26: Cover Hyperlink | N26: Cover Page
C27: Green Tab | E27: Table of Contents | H27: Black Font | I27: Calculated Values | L27: TOC Hyperlink | N27: TOC
C28: Dark Blue Tabs | E28: Input Sheets | H28: Plum Font | I28: Hyperlinks | L28: Sheet Top Hyperlink | N28: é
C29: Rose Tabs | E29: Assumption Sheets | H29: Red Font | I29: Errors/Checks
C30: Tan Tabs | E30: Calculation/Output Sheets | H30: Black/Yellow | I30: Work in Progress
C31: Teal Tabs | E31: Lookup Sheets | H31: Black/Gold | I31: Modifiable Assumptions
C32: Reb Tabs | E32: Log/Error Sheet | H32: White/Grey | I32: Locked Data
C33: Black Tabs | E33: Locked Data Sheet
C34: Yellow Tabs | E34: REP Settlement Sheets
C35: Purple Tabs | E35: 7b2 Related Sheets

Sheet TOC
A1: 30 | B1: Table of Contents
B2: =Cover!C13 -> Rate Analysis Model V1.01
B3: =Cover!$C$14 -> Public Release_ RAMmodel_RAM2029_Reference Case Updated 11/5/2025
B4: Cover Sheet | F4: PRS | G4: 7(b)(2)
E5: Input | F5: Documentation | G5: Documentation
A6: é | B6: Section & Sheet Titles | D6: Worksheet Name | E6: Datasheet? | F6: Table Number | G6: Table Number
B8: Documentation
B9: 1 | C9: Macro Design Schematic | D9: Macro
B10: Assumption Sheets
B11: =+B9+1 -> 2 | C11: Initialize Assumptions | D11: Init | E11: INPUT
B12: Validation/Error Check/Result Summary
B13: =B11+1 -> 3 | C13: Revenue Check | D13: Rev Check
B14: =+B13+1 -> 4 | C14: Rate Design Summary | D14: RateSummary
B15: =+B14+1 -> 5 | C15: Scenario Results | D15: ScenarioResults
B16: =+B15+1 -> 6 | C16: Expanded Scenario Results | D16: ResultsDetail
B17: Loads and Resources Data
B18: =+B16+1 -> 7 | C18: Load Input Data | D18: Loads | E18: INPUT | F18: Table 2.1.1 | G18: Table 1.1.1
B19: =+B18+1 -> 8 | C19: Load Forecast with Monthly Losses Applied | D19: Loads_MthLoss
B20: 9 | C20: PF Public with Firm Slice Loads | D20: PF Public | E20: INPUT
B21: 10 | C21: PF Exchange Loads | D21: PF Exchange | E21: INPUT
B22: 11 | C22: IP Loads | D22: RAM IP | E22: INPUT
B23: 12 | C23: NR Loads | D23: RAM NR | E23: INPUT
B24: 13 | C24: Resource Input Data | D24: Resources | E24: INPUT | F24: Table 2.1.2 | G24: Table 1.1.2
B25: 14 | C25: Residential Exchange Input Data | D25: ExchangeInputs | E25: INPUT
B26: 15 | C26: Transmission Inputs | D26: TransInputs | E26: INPUT
B27: 16 | C27: Losses Inputs | D27: LossesInputs | E27: INPUT
B28: 17 | C28: REP Settlement Inputs | D28: REPSettlementSchedule
B29: 18 | C29: Calculation of Exchange Transmission Adder | D29: Exchange Trans
B30: 19 | C30: Calculation of Exchange Resource Size and Costs | D30: Exchange Summary | F30: Table 2.1.3 | G30: Table 1.1.3
B31: 20 | C31: Load Resource Evaluation - PF Loads | D31: Pre_LR_Balance
B32: 21 | C32: Load Resource Study | D32: LR_Balance | F32: Table 2.2.1 | G32: Table 1.2.1
B33: 22 | C33: Load Resource Balance | D33: LR_Adjust | F33: Table 2.2.2 | G33: Table 1.2.2
B34: 23 | C34: Program Case Energy Allocation Factors | D34: ProgAlloc | F34: Table 2.2.3 | G34: Table 1.2.3
B35: Determination of Active Residential Exchange Costs
B36: =+B34+1 -> 24 | C36: Active Exchanging Utilities | D36: Active Exchange
B37: =+B36+1 -> 25 | C37: Exchanging Utilities' ASCs | D37: Exchange ASC
B38: =+B37+1 -> 26 | C38: Exchanging Utilities' Exchange Loads | D38: Exchange Load
B39: =+B38+1 -> 27 | C39: Exchange Resource Costs | D39: Exchange Resource Cost
B40: Ratemaking Revenue Requirement Data
B41: =+B39+1 -> 28 | C41: Disaggregated Costs with TRM and COSA Flags | D41: Cost | E41: INPUT
B42: =+B41+1 -> 29 | C42: Disaggregated Costs with TRM and COSA Flags, Includes Internally Developed Costs | D42: CostPrint | F42: Table 2.3.1 | G42: Table 1.3.1
B43: =+B42+1 -> 30 | C43: Aggregated COSA Costs | D43: ProgCOSA | F43: Table 2.3.2 | G43: Table 1.3.2
B44: =+B43+1 -> 31 | C44: LDD and IRD Costs | D44: LDD_IRD | F44: Table 2.3.3 | G44: Table 1.3.3
B45: Allocation of COSA Costs to Rate Pools
B46: =+B44+1 -> 32 | C46: Allocation of FBS and LDD/IRD Costs | D46: FBS_LDD_IRD_Allocation | F46: Table 2.3.4.1 | G46: Table 1.3.4.1
B47: =+B46+1 -> 33 | C47: Allocation of New Resource and Exchange Costs | D47: NR_EX_Allocation | F47: Table 2.3.4.2 | G47: Table 1.3.4.2
B48: =+B47+1 -> 34 | C48: Allocation of Conservation, BPA Program and Transmission Costs | D48: Cons_Program_Allocation | F48: Table 2.3.4.3 | G48: Table 1.3.4.3
B49: =+B48+1 -> 35 | C49: Initial Cost Allocation | D49: Initial_Cost_Allocation | F49: Table 2.3.5 | G49: Table 1.3.5
B50: =+B49+1 -> 36 | C50: Cost Allocation Summary | D50: Cost_Allocation Summary
B51: Revenue Credits Allocation to Rate Pools
B52: =+B50+1 -> 37 | C52: Revenue Credits | D52: RDS_Credits | F52: Table 2.3.6 | G52: Table 1.3.6
B53: =+B52+1 -> 38 | C53: Revenue Credits Allocated to Loads Recovering FBS Costs | D53: Credits FBS | F53: Tables 2.3.7.1 & 2.3.7.2 | G53: Tables 1.3.7.1 & 1.3.7.2
B54: 39 | C54: Revenue Credits Allocated to Loads Recovering New Resource and Conservation Costs | D54: Credits NR-Cons | F54: Tables 2.3.7.3 & 2.3.7.4 | G54: Tables 1.3.7.3 & 1.3.7.4
B55: 40 | C55: Revenue Credits Allocated to All Loads | D55: Credits Gen-RSS | F55: Tables 2.3.7.5 & 2.3.7.6 | G55: Tables 1.3.7.5 & 1.3.7.6
B56: 41 | C56: Secondary Revenue and Balancing Purchases Input Data | D56: RevSimInputs | E56: INPUT
B57: 42 | C57: Calculation and Allocation of Secondary Revenue Credit | D57: Secondary | F57: Table 2.3.8 | G57: Table 1.3.8
B58: 43 | C58: Calculation and Allocation of FPS Revenue Deficiency | D58: FPS Revenue Deficiency | F58: Table 2.3.9 | G58: Table 1.3.9
B59: Rate Directive Ratemaking
B60: =+B58+1 -> 44 | C60: Calculation of Rates After Initial Allocation of Cost and Credits | D60: Initial Rates | F60: Table 2.3.10 | G60: Table 1.3.10
B61: =+B60+1 -> 45 | C61: Value of Reserves and Industrial Margin Computation | D61: Margin_VOR
B62: 46 | C62: Value of Reserves and Industrial Margin Computation | D62: Margin_VOR_Calc | F62: Table 2.4.1 | G62: Table 1.4.1
B63: 47 | C63: Calculate Annual Scalars Used to Calculate Monthly Rates for First IP-PF Link | D63: Calc Scalar 1 | F63: Table 2.4.2 | G63: Table 1.4.2
B64: 48 | C64: Calculate Monthly Rates Used in First IP - PF Link Calculation | D64: Calc Monthly 1 | F64: Table 2.4.3 | G64: Table 1.4.3
B65: 49 | C65: Calculation of the 7c2 IP-PF Link Amount | D65: IP_PF_Link | F65: Table 2.4.4 | G65: Table 1.4.4
B66: 50 | C66: Allocation of the 7c2 IP-PF Link Amount and Subsequant Rate Calculations | D66: Rates After Link | F66: Table 2.4.5 | G66: Table 1.4.5
B67: 51 | C67: Calculation of the DSI Floor Rate | D67: IP Floor Calc | F67: Table 2.4.6 | G67: Table 1.4.6
B68: 52 | C68: DSI Floor Rate Test 1 | D68: Floor Test 1 | F68: Table 2.4.7 | G68: Table 1.4.7
B69: =B68+1 -> 53 | C69: Calculation of IOU and COU Base Exchange Rates | D69: Base PF Exchange | F69: Table 2.4.8 | G69: Table 1.4.8
B70: REP Settlement Case Rate Directive Ratemaking
B71: =+B69+1 -> 54 | C71: Calculation of REP Adjustment Amount under Settlement | D71: Post-7b2Rates | F71: Table 2.4.9
B72: =B71+1 -> 55 | C72: Rate Analysis Model - Exchange Resource Cost | D72: Base Exchange Cost | F72: Table 2.4.10
B73: =B72+1 -> 56 | C73: Calculation of Settlement Utility Specific PF Exchange Rates | D73: Utility Specific PFx Settle | F73: Table 2.4.11
B74: =+B73+1 -> 57 | C74: 2012 REP Settlement Agreement Section 6 Reallocations | D74: IOU Reallocation Balances | F74: Table 2.4.12
B75: =+B74+1 -> 58 | C75: Allocation of Increase in the PFx Revenue Requirement under Settlement | D75: Rates After Settlement | F75: Table 2.4.13
B76: 59 | C76: Reallocation of REP Net Benefits under Settlement | D76: WP-10 Adjustment | F76: Table 2.4.14
B77: 60 | C77: Rate Computation after Reallocation of REP Benefits under Settlement | D77: Rates After WP-10 Adjustment | F77: Table 2.4.15
B78: 61 | C78: Calculate Annual Scalars Used to Calculate Monthly Rates | D78: Calc Scalar Settlement | F78: Table 2.4.16
B79: 62 | C79: Calculate Monthly Rates Used in First IP - PF Link Calculation | D79: Calc Monthly Settlement | F79: Table 2.4.17
B80: 63 | C80: Initial 7c2 IP-PF Link Calculation | D80: IP_PF_Link Settlement | F80: Table 2.4.18
B81: 64 | C81: Calculation of Rates after IP-PF Link under Settlement | D81: Rates After Link Settlement | F81: Table 2.4.19
B82: 65 | C82: Settlement Revenue Check | D82: Settlement Rev Check
B83: =+B82+1 -> 66 | C83: Net REP Ratemaking Proof Table under Settlement | D83: Net REP Settlement | F83: Table 3.1.7.1
B84: Program Case Rate Directive Ratemaking
B85: =+B83+1 -> 67 | C85: Calculation of the 7b2 Rate Test Trigger | D85: TriggerCalc | G85: Table 1.4.9
B86: =+B85+1 -> 68 | C86: Calculation and Allocation of the 7b2 Rate Protection Amount | D86: 7b2 Allocation | G86: Table 1.4.10
B87: 69 | C87: Calculation of Rates After the Allocation of the 7b2 Rate Protection Amount | D87: Rates After 7b2 | G87: Table 1.4.11
B88: 70 | C88: Calculate Annual Scalars Used to Calculate Monthly Rates for 7b2 Industrial Adjustment 7c2 Delta | D88: Calc Scalar 2 | G88: Table 1.4.12
B89: 71 | C89: Calculate Monthly Rates Used in 7b2 Industrial Adjustment 7c2 Delta | D89: Calc Monthly 2 | G89: Table 1.4.13
B90: 72 | C90: Calculation of the 7b2 Industrial Adjustment 7c2 Delta | D90: IP_PF_Link 2 | G90: Table 1.4.14
B91: 73 | C91: Allocation of the 7b2 Industrial Adjustment 7c2 Delta and Subsequant Rate Calculations | D91: Rates After Link (2) | G91: Table 1.4.15
B92: 74 | C92: DSI Floor Rate Test 2 | D92: Floor Test 2 | G92: Table 1.4.16
B93: 75 | C93: Calculation of Utility Specific PF Exchange Rates | D93: Utility Specifc PFx
B94: 76 | C94: Program Case Revenue Check | D94: Program Rev Check
B95: Rate Pool Unit Cost Tables and Net REP Ratemaking Proof
B96: =+B94+1 -> 77 | C96: PF Rate Pool Unit Cost Table | D96: PF Allocation | F96: Table 2.5.1 | G96: Table 1.5.4
B97: =+B96+1 -> 78 | C97: IP Rate Pool Unit Cost Table | D97: IP Allocation | F97: Table 2.5.2 | G97: Table 1.5.5
B98: =+B97+1 -> 79 | C98: NR Rate Pool Unit Cost Table | D98: NR Allocation | F98: Table 2.5.3 | G98: Table 1.5.6
B99: =+B98+1 -> 80 | C99: Generating Resource Component Contribution Table | D99: Cost Contribution | F99: Table 2.5.4 | G99: Table 1.5.7
B100: =+B99+1 -> 81 | C100: Net REP Ratemaking Proof Table | D100: Net REP
B101: =+B100+1 -> 82 | C101: Reconciliation of REP Benefits for Tiered Rates | D101: REP Benefits | F101: Table 2.4.20
B102: Tiered Rates Methodology (TRM)
B103: =+B101+1 -> 83 | C103: Aggregated TRM Costs | D103: Costs_TRM | F103: Table 3.1.1
B104: =+B103+1 -> 84 | C104: TRM Billing Determinants | D104: TRM_Billing | E104: INPUT
B105: 85 | C105: Unused RHWM Calculation | D105: UnusedRHWM | F105: Table 3.1.2
B106: 86 | C106: NonSlice Cost for Transmission Losses (Composite Credit) | D106: NonSliceLossAdjust | F106: Table 3.1.3
B107: 87 | C107: Balancing Augmentation Adjustment for Change in T1SFCO | D107: T1SFCO | F107: Table 3.1.4
B108: 88 | C108: TRM Market Prices and Demand Rates | D108: MarketInputs | E108: INPUT
B109: 89 | C109: TRM Demand and Load Shaping Charges | D109: LoadShapingandDemand | F109: Table 3.1.5
B110: 90 | C110: PF Load Forecast Deviation Liquidated Damages | D110: LiquidatedDamages | E110: INPUT | F110: Table 3.12
B111: 91 | C111: Tier 2 Rates Inputs | D111: Tier 2 Rates | E111: INPUT
B112: 92 | C112: Sales Calculation for Tier 2 Overhead Cost Adder | D112: Tier2OverheadSales
B113: 93 | C113: TRM Cost Allocation | D113: Cost_Allocation_TRM | F113: Table 3.1.6
B114: 94 | C114: Cost Proof | D114: Cost_Proof | F114: Table 3.1.7.2
B115: 95 | C115: Transfer Service and Unauthorized Increase Charge Inputs | D115: TransferUAIinputs | E115: INPUT
B116: 96 | C116: Transfer Service Charges and Rates | D116: TransferService | E116: INPUT | F116: Table 6.1
B117: 7b2 Case Loads
B118: =+B116+1 -> 97 | C118: 7b2 Conservation Loads | D118: 7b2 Con Load
B119: =+B118+1 -> 98 | C119: 7b2 PF Loads | D119: 7b2 PF Load | G119: Table 2.1
B120: 7b2 Case Loads/Resource Balance and Resource Stack Utilization
B121: =+B119+1 -> 99 | C121: 7b2 Resource Stack | D121: 7b2 Resource Sort | E121: INPUT | G121: Table 2.2.2
B122: =+B121+1 -> 100 | C122: List of Available Resources | D122: 7b2 Resources1 | G122: Table 2.2.3
B123: 101 | C123: Determination of Resources Selected from Resource Stack | D123: 7b2 Resources2 | G123: Table 2.2.9
B124: 102 | C124: Resources Sorted by Least Cost | D124: ConservRes1
B125: 103 | C125: Conservation Resources Selected | D125: ConservRes2 | G125: Table 2.2.4
B126: 104 | C126: Real 2010 Dollar Cost of Resources Selected | D126: ConservRes3 | G126: Table 2.2.5
B127: 105 | C127: Nominal Amortized Cost of Expensed Portion of Conservation Resources Selected | D127: ConservRes4 | G127: Table 2.2.6
B128: 106 | C128: Nominal Annual Cost of Capital Portion of Conservation Resources Selected | D128: ConservRes5 | G128: Table 2.2.7
B129: 107 | C129: Nominal Cost of Non-Conservation Resources Selected | D129: ConservRes6
B130: 108 | C130: Nominal Total Cost of Resources Selected | D130: ConservRes7 | G130: Table 2.2.8
B131: 7b2 Case Rate Directive Ratemaking
B132: =B130+1 -> 109 | C132: 7b2 Case COSA Table | D132: 7b2COSA | G132: Table 2.3.1
B133: =B132+1 -> 110 | C133: 7b2 Case Energy Allocaction Factors | D133: 7b2Alloc | G133: Table 2.2.1
B134: 111 | C134: 7b2 Case FBS and Resource Stack Cost Allocation | D134: 7b2 FBS_Stack_Allo | G134: Table 2.3.2.1
B135: 112 | C135: 7b2 Case LDD/IRD and Reserve Cost Allocation | D135: 7b2 LDD_IRD_Reserve_Allo | G135: Table 2.3.2.2
B136: 113 | C136: 7b2 Case Programs and Transmission Cost Allocation | D136: 7b2 Program_Trans_Allo | G136: Table 2.3.2.3
B137: 114 | C137: 7b2 Case Initial Net Cost Alloction | D137: 7b2 Initial_Cost_Allo | G137: Table 2.3.3
B138: 115 | C138: 7b2 Case Revenue Credit Summary | D138: 7b2 RDS_Credits | G138: Table 2.3.4
B139: 116 | C139: 7b2 Case Revenue Credits Allocated to Loads Served by FBS Resources | D139: 7b2 Credits FBS | G139: Tables 2.3.5.1 & 2.3.5.2
B140: 117 | C140: 7b2 Case Revenue Credits Allocated to All Loads | D140: 7b2 Credits Gen-RSS | G140: Tables 2.3.5.3
B141: 118 | C141: 7b2 Case Calculation and Allocation of Secondary Revenue | D141: 7b2 Secondary | G141: Table 2.3.6
B142: 119 | C142: 7b2 Case FPS Revenue Deficiency Calculation and Allocation | D142: 7b2 FPS Revenue Deficiency
B143: 120 | C143: Calculation of 7b2 Case Rates | D143: 7b2 Rates
B144: =B143+1 -> 121 | C144: 7b2 Case Revenue Check | D144: 7b2 Rev Check
B145: Rate Case Two Year Rate Period Rates Calculations
B146: =+B144+1 -> 122 | C146: Ave. Tier 1 PF Public Rate | D146: PFAveT1_RateOutput | F146: Table 3.1.8.1
B147: =+B146+1 -> 123 | C147: PF Melded Equivalent Rate | D147: PFMeldedEqv_RateOutput | F147: Table 3.1.8.2
B148: 124 | C148: IP Rate | D148: IP_RateOutput | F148: Table 3.1.8.3 | G148: Table 1.5.1
B149: 125 | C149: NR Rate | D149: NR_RateOutput | F149: Table 3.1.8.4
B150: 126 | C150: Load Shaping True-up & Tier 1 Equivalent Rates | D150: LSTUR&PFT1Eqv_RateOutput | F150: Table 3.1.8.5 | G150: Table 1.5.2
B151: 127 | C151: Unbifurcated PF Rate | D151: Unbif PF_RateOutput | G151: Table 1.5.3
B152: 128 | C152: PF Exchange Rate | D152: PF Exchange_RateOutput
B153: 129 | C153: Flat Melded Equivalent PF Public Rate | D153: FlatPFMeldedEqv_RateOutput
B154: Outputs and Checks
B155: =+B153+1 -> 130 | C155: RiskMod Output | D155: RiskMod_Out
B156: =+B155+1 -> 131 | C156: Revenue Requirement Output | D156: RROutput
B157: =+B156+1 -> 132 | C157: Rates Output New | D157: RatesOutputNew
B158: =+B157+1 -> 133 | C158: Revenue At Current Rates Output for ProForma | D158: RevenueCurrentRatesOutput
B159: =+B158+1 -> 134 | C159: Revenue Requirement Mapping | D159: RevReqMapping
B160: =+B159+1 -> 135 | C160: Summary | D160: Summary
B161: =+B160+1 -> 136 | C161: Net Revenue | D161: NetRevenue
B162: =+B161+1 -> 137 | C162: Slice True Up Calculation | D162: SliceTrueUp
B163: 137 | C163: Tables | D163: Tables

Sheet Macro
B1: Rate Analysis Model - PF Scenario Load Delta Designations | R1: Not printed in documentation.
A2: TOC | B2: =Cover!$C$14 -> Public Release_ RAMmodel_RAM2029_Reference Case Updated 11/5/2025
A3: é
I4: RAM2010 Macro Diagram

Sheet REPOutput
C1: REP-IOU | D1: Tier 1 | E1: Unbif PF | F1: PFp | G1: PFx | J1: 2yr Wtd ASCs | K1: 6yr Wtd ASCs | L1: Base PFx | M1: Un-Constrained Benefits | N1: Program Case | O1: 7b2 Case | P1: Trigger | Q1: Rate Protection | R1: NR Loads | S1: Secondary Loads | T1: IP Loads | U1: PF Exchange Loads
B2: Scenario | H2: IP | I2: NR
B3: Current Scenario | C3: =AVERAGE('Utility Specifc PFx'!K35,'Utility Specifc PFx'!K54) -> 127943.6353 | D3: =ScenarioResults!D48 -> 37.38 | E3: =ScenarioResults!C7 -> 58.87543239 | F3: =ScenarioResults!C8 -> 39.86 | G3: =ScenarioResults!C9 -> 88.61521414 | H3: =ScenarioResults!C10 -> 61.06893722 | I3: =ScenarioResults!C11 -> 148.5192907 | J3: ='Exchange Summary'!$M$9 -> 92.18088056 | K3: ='Exchange Summary'!$N$9 -> 96.47381411 | L3: ='Utility Specifc PFx'!E8 -> 65.105432 | M3: ='Utility Specifc PFx'!G17 -> 971524.1202 | N3: =TriggerCalc!J33 -> 53.29 | O3: =TriggerCalc!J34 -> 34.27 | P3: ='7b2 Allocation'!F6 -> 19.02 | Q3: =AVERAGE('7b2 Allocation'!F14:G14) -> 1240141.765 | R3: =AVERAGE('7b2 Allocation'!F29:G29) -> 5269.136052 | S3: =AVERAGE('7b2 Allocation'!F30:G30) -> 390795.7826 | T3: =AVERAGE('7b2 Allocation'!F28:G28) -> 2266.895114 | U3: =AVERAGE('7b2 Allocation'!F27:G27) -> 841809.9509

Sheet Init
B1: Initiation Sheet
A2: TOC | B2: =+Cover!C14 -> Public Release_ RAMmodel_RAM2029_Reference Case Updated 11/5/2025
A3: é | B3: Input Parameters | F3: Diurnal Hours | N3: Annual Hours
F4: date | G4: days | H4: hours | I4: #Sun | J4: #Hol | K4: HLH | L4: LLH | N4: year | O4: days | P4: hours
F5: 2022-10-01 | H5: 744 | K5: 416 | L5: 328 | N5: 2023 | O5: 365 | P5: 8760
C6: 1=Yes | F6: 2022-11-01 | H6: 721 | K6: 400 | L6: 321 | N6: 2024 | O6: 366 | P6: 8784
C7: 0=No | F7: 2022-12-01 | H7: 744 | K7: 416 | L7: 328 | N7: 2025 | O7: 365 | P7: 8760
F8: 2023-01-01 | H8: 744 | K8: 400 | L8: 344 | N8: 2026 | O8: 365 | P8: 8760
B9: Base Year | C9: 2029 | F9: 2023-02-01 | H9: 672 | K9: 384 | L9: 288 | N9: 2027 | O9: 365 | P9: 8760
F10: 2023-03-01 | H10: 743 | K10: 432 | L10: 311 | N10: 2028 | O10: 366 | P10: 8784
F11: 2023-04-01 | H11: 720 | K11: 400 | L11: 320 | N11: 2029 | O11: 365 | P11: 8760
C12: Yes or No? | F12: 2023-05-01 | H12: 744 | K12: 416 | L12: 328 | N12: 2030 | O12: 365 | P12: 8760
B13: Run an REP Settlement Scenario ? | C13: No | F13: 2023-06-01 | H13: 720 | K13: 416 | L13: 304 | N13: 2031 | O13: 365 | P13: 8760
B14: Slice RTP Changed for Tier 1 System Change | C14: No | F14: 2023-07-01 | H14: 744 | K14: 400 | L14: 344 | N14: 2032 | O14: 366 | P14: 8784
F15: 2023-08-01 | H15: 744 | K15: 432 | L15: 312 | N15: 2033 | O15: 365 | P15: 8760
B16: Years to Finance Expensed Portion of 7b2 Cons | C16: 5 | F16: 2023-09-01 | H16: 720 | K16: 400 | L16: 320 | N16: 2034 | O16: 365 | P16: 8760
C17: Yes=1, No=0 | F17: 2023-10-01 | H17: 744 | K17: 416 | L17: 328 | N17: 2035 | O17: 365 | P17: 8760
B18: 7b2 Conservation Included | C18: 1 | F18: 2023-11-01 | H18: 721 | K18: 400 | L18: 321 | N18: 2036 | O18: 366 | P18: 8784
F19: 2023-12-01 | H19: 744 | K19: 400 | L19: 344 | N19: 2037 | O19: 365 | P19: 8760
B20: Mid-C Marketer | C20: 1 | F20: 2024-01-01 | H20: 744 | K20: 416 | L20: 328 | N20: 2038 | O20: 365 | P20: 8760
F21: 2024-02-01 | H21: 696 | K21: 400 | L21: 296 | N21: 2039 | O21: 365 | P21: 8760
F22: 2024-03-01 | H22: 743 | K22: 416 | L22: 327 | N22: 2040 | O22: 366 | P22: 8784
F23: 2024-04-01 | H23: 720 | K23: 416 | L23: 304 | N23: 2041 | O23: 365 | P23: 8760
F24: 2024-05-01 | H24: 744 | K24: 416 | L24: 328 | N24: 2042 | O24: 365 | P24: 8760
F25: 2024-06-01 | H25: 720 | K25: 400 | L25: 320 | N25: 2043 | O25: 365 | P25: 8760
F26: 2024-07-01 | H26: 744 | K26: 416 | L26: 328 | N26: 2044 | O26: 366 | P26: 8784
F27: 2024-08-01 | H27: 744 | K27: 432 | L27: 312 | N27: 2045 | O27: 365 | P27: 8760
F28: 2024-09-01 | H28: 720 | K28: 384 | L28: 336 | N28: 2046 | O28: 365 | P28: 8760
F29: 2024-10-01 | H29: 744 | K29: 432 | L29: 312 | N29: 2047 | O29: 365 | P29: 8760
F30: 2024-11-01 | H30: 721 | K30: 400 | L30: 321 | N30: 2048 | O30: 366 | P30: 8784
F31: 2024-12-01 | H31: 744 | K31: 400 | L31: 344 | N31: 2049 | O31: 365 | P31: 8760
F32: 2025-01-01 | H32: 744 | K32: 416 | L32: 328 | N32: 2050 | O32: 365 | P32: 8760
C33: Settlement Concept Dials | F33: 2025-02-01 | H33: 672 | K33: 384 | L33: 288 | N33: 2051 | O33: 365 | P33: 8760
F34: 2025-03-01 | H34: 743 | K34: 416 | L34: 327 | N34: 2052 | O34: 366 | P34: 8784
B35: Single PFx (zero out any negative IOUs and rerun, might require multiple runs, perform as last adjustment) | C35: 0 | F35: 2025-04-01 | H35: 720 | K35: 416 | L35: 304 | N35: 2053 | O35: 365 | P35: 8760
F36: 2025-05-01 | H36: 744 | K36: 416 | L36: 328 | N36: 2054 | O36: 365 | P36: 8760
B37: No TS adder in PFx | C37: 0 | F37: 2025-06-01 | H37: 720 | K37: 400 | L37: 320 | N37: 2055 | O37: 365 | P37: 8760
B38: *Row 37 and 39 are intended to be used together for apples to apples comparison | F38: 2025-07-01 | H38: 744 | K38: 416 | L38: 328 | N38: 2056 | O38: 366 | P38: 8784
B39: ASCs with "Like for Like Transmission" | C39: 0 | F39: 2025-08-01 | H39: 744 | K39: 416 | L39: 328 | N39: 2057 | O39: 365 | P39: 8760
F40: 2025-09-01 | H40: 720 | K40: 400 | L40: 320 | N40: 2058 | O40: 365 | P40: 8760
F41: 2025-10-01 | H41: 744 | K41: 432 | L41: 312 | N41: 2059 | O41: 365 | P41: 8760
F42: 2025-11-01 | H42: 721 | K42: 384 | L42: 337 | N42: 2060 | O42: 366 | P42: 8784
F43: 2025-12-01 | H43: 744 | K43: 416 | L43: 328 | N43: 2061 | O43: 365 | P43: 8760
F44: 2026-01-01 | H44: 744 | K44: 416 | L44: 328 | N44: 2062 | O44: 365 | P44: 8760
F45: 2026-02-01 | H45: 672 | K45: 384 | L45: 288 | N45: 2063 | O45: 365 | P45: 8760
F46: 2026-03-01 | H46: 743 | K46: 416 | L46: 327 | N46: 2064 | O46: 366 | P46: 8784
F47: 2026-04-01 | H47: 720 | K47: 416 | L47: 304 | N47: 2065 | O47: 365 | P47: 8760
F48: 2026-05-01 | H48: 744 | K48: 400 | L48: 344 | N48: 2066 | O48: 365 | P48: 8760
F49: 2026-06-01 | H49: 720 | K49: 416 | L49: 304 | N49: 2067 | O49: 365 | P49: 8760
F50: 2026-07-01 | H50: 744 | K50: 416 | L50: 328 | N50: 2068 | O50: 366 | P50: 8784
F51: 2026-08-01 | H51: 744 | K51: 416 | L51: 328 | N51: 2069 | O51: 365 | P51: 8760
F52: 2026-09-01 | H52: 720 | K52: 400 | L52: 320 | N52: 2070 | O52: 365 | P52: 8760
F53: 2026-10-01 | H53: 744 | K53: 432 | L53: 312
F54: 2026-11-01 | H54: 721 | K54: 384 | L54: 337
F55: 2026-12-01 | H55: 744 | K55: 416 | L55: 328
F56: 2027-01-01 | H56: 744 | K56: 400 | L56: 344
F57: 2027-02-01 | H57: 672 | K57: 384 | L57: 288
F58: 2027-03-01 | H58: 743 | K58: 432 | L58: 311
F59: 2027-04-01 | H59: 720 | K59: 416 | L59: 304
F60: 2027-05-01 | H60: 744 | K60: 400 | L60: 344
F61: 2027-06-01 | H61: 720 | K61: 416 | L61: 304
F62: 2027-07-01 | H62: 744 | K62: 416 | L62: 328
F63: 2027-08-01 | H63: 744 | K63: 416 | L63: 328
F64: 2027-09-01 | H64: 720 | K64: 400 | L64: 320
F65: 2027-10-01 | H65: 744 | K65: 416 | L65: 328
F66: 2027-11-01 | H66: 721 | K66: 400 | L66: 321
F67: 2027-12-01 | H67: 744 | K67: 416 | L67: 328
F68: 2028-01-01 | H68: 744 | K68: 400 | L68: 344
F69: 2028-02-01 | H69: 696 | K69: 400 | L69: 296
F70: 2028-03-01 | H70: 743 | K70: 432 | L70: 311
F71: 2028-04-01 | H71: 720 | K71: 400 | L71: 320
F72: 2028-05-01 | H72: 744 | K72: 416 | L72: 328
F73: 2028-06-01 | H73: 720 | K73: 416 | L73: 304
F74: 2028-07-01 | H74: 744 | K74: 400 | L74: 344
F75: 2028-08-01 | H75: 744 | K75: 432 | L75: 312
F76: 2028-09-01 | H76: 720 | K76: 400 | L76: 320
F77: 2028-10-01 | H77: 744 | K77: 416 | L77: 328
F78: 2028-11-01 | H78: 721 | K78: 400 | L78: 321
F79: 2028-12-01 | H79: 744 | K79: 400 | L79: 344
F80: 2029-01-01 | H80: 744 | K80: 416 | L80: 328
F81: 2029-02-01 | H81: 672 | K81: 384 | L81: 288
F82: 2029-03-01 | H82: 743 | K82: 432 | L82: 311
F83: 2029-04-01 | H83: 720 | K83: 400 | L83: 320
F84: 2029-05-01 | H84: 744 | K84: 416 | L84: 328
F85: 2029-06-01 | H85: 720 | K85: 416 | L85: 304
F86: 2029-07-01 | H86: 744 | K86: 400 | L86: 344
F87: 2029-08-01 | H87: 744 | K87: 432 | L87: 312
F88: 2029-09-01 | H88: 720 | K88: 384 | L88: 336
F89: 2029-10-01 | H89: 744 | K89: 432 | L89: 312
F90: 2029-11-01 | H90: 721 | K90: 400 | L90: 321
F91: 2029-12-01 | H91: 744 | K91: 400 | L91: 344
F92: 2030-01-01 | H92: 744 | K92: 416 | L92: 328
F93: 2030-02-01 | H93: 672 | K93: 384 | L93: 288
F94: 2030-03-01 | H94: 743 | K94: 416 | L94: 327
F95: 2030-04-01 | H95: 720 | K95: 416 | L95: 304
F96: 2030-05-01 | H96: 744 | K96: 416 | L96: 328
F97: 2030-06-01 | H97: 720 | K97: 400 | L97: 320
F98: 2030-07-01 | H98: 744 | K98: 416 | L98: 328
F99: 2030-08-01 | H99: 744 | K99: 432 | L99: 312
F100: 2030-09-01 | H100: 720 | K100: 384 | L100: 336
F101: 2030-10-01 | H101: 744 | K101: 432 | L101: 312
F102: 2030-11-01 | H102: 721 | K102: 400 | L102: 321
F103: 2030-12-01 | H103: 744 | K103: 400 | L103: 344
F104: 2031-01-01 | H104: 744 | K104: 416 | L104: 328
F105: 2031-02-01 | H105: 672 | K105: 384 | L105: 288
F106: 2031-03-01 | H106: 743 | K106: 416 | L106: 327
F107: 2031-04-01 | H107: 720 | K107: 416 | L107: 304
F108: 2031-05-01 | H108: 744 | K108: 416 | L108: 328
F109: 2031-06-01 | H109: 720 | K109: 400 | L109: 320
F110: 2031-07-01 | H110: 744 | K110: 416 | L110: 328
F111: 2031-08-01 | H111: 744 | K111: 416 | L111: 328
F112: 2031-09-01 | H112: 720 | K112: 400 | L112: 320
F113: 2031-10-01 | H113: 744 | K113: 432 | L113: 312
F114: 2031-11-01 | H114: 721 | K114: 384 | L114: 337
F115: 2031-12-01 | H115: 744 | K115: 416 | L115: 328
F116: 2032-01-01 | H116: 744 | K116: 416 | L116: 328
F117: 2032-02-01 | H117: 696 | K117: 384 | L117: 312
F118: 2032-03-01 | H118: 743 | K118: 432 | L118: 311
F119: 2032-04-01 | H119: 720 | K119: 416 | L119: 304
F120: 2032-05-01 | H120: 744 | K120: 400 | L120: 344
F121: 2032-06-01 | H121: 720 | K121: 416 | L121: 304
F122: 2032-07-01 | H122: 744 | K122: 416 | L122: 328
F123: 2032-08-01 | H123: 744 | K123: 416 | L123: 328
F124: 2032-09-01 | H124: 720 | K124: 400 | L124: 320
F125: 2032-10-01 | H125: 744 | K125: 416 | L125: 328
F126: 2032-11-01 | H126: 721 | K126: 400 | L126: 321
F127: 2032-12-01 | H127: 744 | K127: 416 | L127: 328
F128: 2033-01-01 | H128: 744 | K128: 400 | L128: 344
F129: 2033-02-01 | H129: 672 | K129: 384 | L129: 288
F130: 2033-03-01 | H130: 743 | K130: 432 | L130: 311
F131: 2033-04-01 | H131: 720 | K131: 416 | L131: 304
F132: 2033-05-01 | H132: 744 | K132: 400 | L132: 344
F133: 2033-06-01 | H133: 720 | K133: 416 | L133: 304
F134: 2033-07-01 | H134: 744 | K134: 400 | L134: 344
F135: 2033-08-01 | H135: 744 | K135: 432 | L135: 312
F136: 2033-09-01 | H136: 720 | K136: 400 | L136: 320
F137: 2033-10-01 | H137: 744 | K137: 416 | L137: 328
F138: 2033-11-01 | H138: 721 | K138: 400 | L138: 321
F139: 2033-12-01 | H139: 744 | K139: 416 | L139: 328
F140: 2034-01-01 | H140: 744 | K140: 400 | L140: 344
F141: 2034-02-01 | H141: 672 | K141: 384 | L141: 288
F142: 2034-03-01 | H142: 743 | K142: 432 | L142: 311
F143: 2034-04-01 | H143: 720 | K143: 400 | L143: 320
F144: 2034-05-01 | H144: 744 | K144: 416 | L144: 328
F145: 2034-06-01 | H145: 720 | K145: 416 | L145: 304
F146: 2034-07-01 | H146: 744 | K146: 400 | L146: 344
F147: 2034-08-01 | H147: 744 | K147: 432 | L147: 312
F148: 2034-09-01 | H148: 720 | K148: 400 | L148: 320
F149: 2034-10-01 | H149: 744 | K149: 416 | L149: 328
F150: 2034-11-01 | H150: 721 | K150: 400 | L150: 321
F151: 2034-12-01 | H151: 744 | K151: 400 | L151: 344
F152: 2035-01-01 | H152: 744 | K152: 416 | L152: 328
F153: 2035-02-01 | H153: 672 | K153: 384 | L153: 288
F154: 2035-03-01 | H154: 743 | K154: 432 | L154: 311
F155: 2035-04-01 | H155: 720 | K155: 400 | L155: 320
F156: 2035-05-01 | H156: 744 | K156: 416 | L156: 328
F157: 2035-06-01 | H157: 720 | K157: 416 | L157: 304
F158: 2035-07-01 | H158: 744 | K158: 400 | L158: 344
F159: 2035-08-01 | H159: 744 | K159: 432 | L159: 312
F160: 2035-09-01 | H160: 720 | K160: 384 | L160: 336
F161: 2035-10-01 | H161: 744 | K161: 432 | L161: 312
F162: 2035-11-01 | H162: 721 | K162: 400 | L162: 321
F163: 2035-12-01 | H163: 744 | K163: 400 | L163: 344
F164: 2036-01-01 | H164: 744 | K164: 416 | L164: 328
F165: 2036-02-01 | H165: 696 | K165: 400 | L165: 296
F166: 2036-03-01 | H166: 743 | K166: 416 | L166: 327
F167: 2036-04-01 | H167: 720 | K167: 416 | L167: 304
F168: 2036-05-01 | H168: 744 | K168: 416 | L168: 328
F169: 2036-06-01 | H169: 720 | K169: 400 | L169: 320
F170: 2036-07-01 | H170: 744 | K170: 416 | L170: 328
F171: 2036-08-01 | H171: 744 | K171: 416 | L171: 328
F172: 2036-09-01 | H172: 720 | K172: 400 | L172: 320
F173: 2036-10-01 | H173: 744 | K173: 432 | L173: 312
F174: 2036-11-01 | H174: 721 | K174: 384 | L174: 337
F175: 2036-12-01 | H175: 744 | K175: 416 | L175: 328
F176: 2037-01-01 | H176: 744 | K176: 416 | L176: 328
F177: 2037-02-01 | H177: 672 | K177: 384 | L177: 288
F178: 2037-03-01 | H178: 743 | K178: 416 | L178: 327
F179: 2037-04-01 | H179: 720 | K179: 416 | L179: 304
F180: 2037-05-01 | H180: 744 | K180: 400 | L180: 344
F181: 2037-06-01 | H181: 720 | K181: 416 | L181: 304
F182: 2037-07-01 | H182: 744 | K182: 416 | L182: 328
F183: 2037-08-01 | H183: 744 | K183: 416 | L183: 328
F184: 2037-09-01 | H184: 720 | K184: 400 | L184: 320
F185: 2037-10-01 | H185: 744 | K185: 432 | L185: 312
F186: 2037-11-01 | H186: 721 | K186: 384 | L186: 337
F187: 2037-12-01 | H187: 744 | K187: 416 | L187: 328
F188: 2038-01-01 | H188: 744 | K188: 400 | L188: 344
F189: 2038-02-01 | H189: 672 | K189: 384 | L189: 288
F190: 2038-03-01 | H190: 743 | K190: 432 | L190: 311
F191: 2038-04-01 | H191: 720 | K191: 416 | L191: 304
F192: 2038-05-01 | H192: 744 | K192: 400 | L192: 344
F193: 2038-06-01 | H193: 720 | K193: 416 | L193: 304
F194: 2038-07-01 | H194: 744 | K194: 416 | L194: 328
F195: 2038-08-01 | H195: 744 | K195: 416 | L195: 328
F196: 2038-09-01 | H196: 720 | K196: 400 | L196: 320
F197: 2038-10-01 | H197: 744 | K197: 416 | L197: 328
F198: 2038-11-01 | H198: 721 | K198: 400 | L198: 321
F199: 2038-12-01 | H199: 744 | K199: 416 | L199: 328
F200: 2039-01-01 | H200: 744 | K200: 400 | L200: 344
... 383 more rows

Sheet Rev Check
B1: Rate Analysis Model - Modeling Steps Revenue Check | K1: Not printed in documentation.
A2: TOC | B2: =Cover!$C$14 -> Public Release_ RAMmodel_RAM2029_Reference Case Updated 11/5/2025 | K2: =IF(Init!$C$13="Yes","Results Under Settlement","Results while Running 7b2 Rate Test") -> Results while Running 7b2 Rate Test
A3: é
C4: Costs
C5: Before 7b2 Revenue Requirements | D5: =+Init!C9 -> 2029 | E5: =+D5+1 -> 2030 | F5: =+E5+1 -> 2031 | G5: =+F5+1 -> 2032 | H5: =+G5+1 -> 2033 | I5: =+H5+1 -> 2034
C6: FBS | D6: =FBS_LDD_IRD_Allocation!C5 -> 2712996.103 | E6: =FBS_LDD_IRD_Allocation!D5 -> 2817254.492 | F6: =FBS_LDD_IRD_Allocation!E5 -> 2754726.294 | G6: =FBS_LDD_IRD_Allocation!F5 -> 2821714.245 | H6: =FBS_LDD_IRD_Allocation!G5 -> 2887389.405 | I6: =FBS_LDD_IRD_Allocation!H5 -> 2942677.485
C7: NR | D7: =FBS_LDD_IRD_Allocation!C6 -> 55298.59693 | E7: =FBS_LDD_IRD_Allocation!D6 -> 55588.95305 | F7: =FBS_LDD_IRD_Allocation!E6 -> 55883.67774 | G7: =FBS_LDD_IRD_Allocation!F6 -> 54593.39729 | H7: =FBS_LDD_IRD_Allocation!G6 -> 23788.91027 | I7: =FBS_LDD_IRD_Allocation!H6 -> 23852.62572
C8: Exchange | D8: =FBS_LDD_IRD_Allocation!C7-D13 -> 3084420.59 | E8: =FBS_LDD_IRD_Allocation!D7-E13 -> 3084420.59 | F8: =FBS_LDD_IRD_Allocation!E7-F13 -> 3270250.239 | G8: =FBS_LDD_IRD_Allocation!F7-G13 -> 3270250.239 | H8: =FBS_LDD_IRD_Allocation!G7-H13 -> 3467457.878 | I8: =FBS_LDD_IRD_Allocation!H7-I13 -> 3467457.878
C9: Conservation | D9: =FBS_LDD_IRD_Allocation!C8 -> 185374.5248 | E9: =FBS_LDD_IRD_Allocation!D8 -> 190186.7149 | F9: =FBS_LDD_IRD_Allocation!E8 -> 195183.9819 | G9: =FBS_LDD_IRD_Allocation!F8 -> 199953.4619 | H9: =FBS_LDD_IRD_Allocation!G8 -> 205338.5376 | I9: =FBS_LDD_IRD_Allocation!H8 -> 210884.5617
C10: BPA Programs | D10: =FBS_LDD_IRD_Allocation!C9+FBS_LDD_IRD_Allocation!C10 -> 438268.5145 | E10: =FBS_LDD_IRD_Allocation!D9+FBS_LDD_IRD_Allocation!D10 -> 446901.5027 | F10: =FBS_LDD_IRD_Allocation!E9+FBS_LDD_IRD_Allocation!E10 -> 455596.229 | G10: =FBS_LDD_IRD_Allocation!F9+FBS_LDD_IRD_Allocation!F10 -> 464831.4943 | H10: =FBS_LDD_IRD_Allocation!G9+FBS_LDD_IRD_Allocation!G10 -> 474466.122 | I10: =FBS_LDD_IRD_Allocation!H9+FBS_LDD_IRD_Allocation!H10 -> 483781.3247
C13: Transmission to Deliver Exchange Sale | D13: =ExchangeInputs!$D$5*'PF Exchange'!D61 -> 223545.5215 | E13: =ExchangeInputs!$D$5*'PF Exchange'!E61 -> 223545.5215 | F13: =ExchangeInputs!$D$5*'PF Exchange'!F61 -> 225916.4344 | G13: =ExchangeInputs!$D$5*'PF Exchange'!G61 -> 225916.4344 | H13: =ExchangeInputs!$D$5*'PF Exchange'!H61 -> 228323.2871 | I13: =ExchangeInputs!$D$5*'PF Exchange'!I61 -> 228323.2871
C15: Sub total | D15: =SUM(D6:D13) -> 6699903.85 | E15: =SUM(E6:E13) -> 6817897.774 | F15: 6957556.856 | G15: 7037259.272 | H15: 7286764.139 | I15: 7356977.162
C17: Low Density Discount and IRD Expense | D17: =FBS_LDD_IRD_Allocation!C11 -> 64967.54709 | E17: =FBS_LDD_IRD_Allocation!D11 -> 67771.33963 | F17: =FBS_LDD_IRD_Allocation!E11 -> 66369.44336 | G17: =FBS_LDD_IRD_Allocation!F11 -> 66369.44336 | H17: =FBS_LDD_IRD_Allocation!G11 -> 66369.44336 | I17: =FBS_LDD_IRD_Allocation!H11 -> 66369.44336
C19: Annual Revenue Requirement Grand Total | D19: =SUM(D15:D17) -> 6764871.397 | E19: =SUM(E15:E17) -> 6885669.114 | F19: 7023926.299 | G19: 7103628.716 | H19: 7353133.583 | I19: 7423346.605
C22: Revenue Credits
C23: Forecast of Secondary Revenues | D23: =Secondary!D29 -> 456972.2136 | E23: =Secondary!E29 -> 458971.2456 | F23: =Secondary!F29 -> 462969.3096 | G23: =Secondary!G29 -> 463929.3926 | H23: =Secondary!H29 -> 462969.3096 | I23: =Secondary!I29 -> 462969.3096
C24: Expected Revenue from FPS Contract Sales | D24: =-('FPS Revenue Deficiency'!C12) -> 0 | E24: =-('FPS Revenue Deficiency'!D12) -> 0 | F24: =-('FPS Revenue Deficiency'!E12) -> 0 | G24: =-('FPS Revenue Deficiency'!F12) -> 0 | H24: =-('FPS Revenue Deficiency'!G12) -> 0 | I24: =-('FPS Revenue Deficiency'!H12) -> 0
C25: Other Credits (FPS Real Power Losses, PRSC, RSS, NR ESS) | D25: =-SUM(RDS_Credits!C32:C40)-SUM(+RDS_Credits!C16+RDS_Credits!C20+RDS_Credits!C22+RDS_Credits!C24+RDS_Credits!C25) -> 61727.60408 | E25: =-SUM(RDS_Credits!D32:D40)-SUM(+RDS_Credits!D16+RDS_Credits!D20+RDS_Credits!D22+RDS_Credits!D24+RDS_Credits!D25) -> 62980.65416 | F25: =-SUM(RDS_Credits!E32:E40)-SUM(+RDS_Credits!E16+RDS_Credits!E20+RDS_Credits!E22+RDS_Credits!E24+RDS_Credits!E25) -> 63874.97162 | G25: =-SUM(RDS_Credits!F32:F40)-SUM(+RDS_Credits!F16+RDS_Credits!F20+RDS_Credits!F22+RDS_Credits!F24+RDS_Credits!F25) -> 63920.92529 | H25: =-SUM(RDS_Credits!G32:G40)-SUM(+RDS_Credits!G16+RDS_Credits!G20+RDS_Credits!G22+RDS_Credits!G24+RDS_Credits!G25) -> 63897.94845 | I25: =-SUM(RDS_Credits!H32:H40)-SUM(+RDS_Credits!H16+RDS_Credits!H20+RDS_Credits!H22+RDS_Credits!H24+RDS_Credits!H25) -> 63909.43687
C26: FBS Credits (Downstream Pumping, Tiered Rates Adj, T2 Adj) | D26: =-RDS_Credits!C7 -> 353379.8647 | E26: =-RDS_Credits!D7 -> 354850.1973 | F26: =-RDS_Credits!E7 -> 355712.9684 | G26: =-RDS_Credits!F7 -> 355726.9648 | H26: =-RDS_Credits!G7 -> 340219.9995 | I26: =-RDS_Credits!H7 -> 340215.9397
C27: Gen Inputs | D27: =-RDS_Credits!C31 -> 133218.548 | E27: =-RDS_Credits!D31 -> 133218.548 | F27: =-RDS_Credits!E31 -> 133218.548 | G27: =-RDS_Credits!F31 -> 133218.548 | H27: =-RDS_Credits!G31 -> 133218.548 | I27: =-RDS_Credits!H31 -> 133218.548
C29: Total Revenue Credits | D29: =SUM(D23:D27) -> 1005298.23 | E29: =SUM(E23:E27) -> 1010020.645 | F29: 1015775.798 | G29: 1016795.831 | H29: 1000305.806 | I29: 1000313.234
C32: Revenues needed from Power Rates | D32: =D19-D29 -> 5759573.167 | E32: 5875648.469 | F32: 6008150.501 | G32: 6086832.885 | H32: 6352827.777 | I32: 6423033.371
C35: Power Revenues After Rate Design Step
D36: =+D5 -> 2029 | E36: =+E5 -> 2030
C37: PF Public | D37: =RateSummary!C32 -> 39.2748 | E37: =RateSummary!D32 -> 40.4361
D38: ='PF Public'!D77 -> 65201.98553 | E38: ='PF Public'!E77 -> 65201.98553
D39: =D37*D38 -> 2560794.941 | E39: =E37*E38 -> 2636514.007
C41: PF Exchange | D41: =RateSummary!C34 -> 88.056 | E41: =RateSummary!D34 -> 89.174
D42: ='PF Exchange'!D61 -> 35882.10618 | E42: ='PF Exchange'!E61 -> 35882.10618
D43: =D41*D42 -> 3159634.742 | E43: =E41*E42 -> 3199750.936
C45: IP | D45: =RateSummary!C35 -> 60.56 | E45: =RateSummary!D35 -> 61.578
D46: ='RAM IP'!M87 -> 96.624 | E46: ='RAM IP'!N87 -> 96.624
D47: =D45*D46 -> 5851.54944 | E47: =E45*E46 -> 5949.912672
C49: NR | D49: =RateSummary!C36 -> 148.234 | E49: =RateSummary!D36 -> 148.804
D50: ='RAM NR'!D68 -> 224.592 | E50: ='RAM NR'!E68 -> 224.592
D51: =D49*D50 -> 33292.17053 | E51: =E49*E50 -> 33420.18797
C53: Revenues from Power Rates Grand Total | D53: =D39+D43+D47+D51 -> 5759573.403 | E53: =E39+E43+E47+E51 -> 5875635.044
C56: Revenue Check after Standard Ratemaking | D56: =D53-D$32 -> 0.2358923638 | E56: =E53-E$32 -> -13.42484182

Sheet RateSummary
B1: Rate Analysis Model - Rate Design Step Summary | J1: =IF(Init!$C$13="Yes","Results Under Settlement","Results while Running 7b2 Rate Test") -> Results while Running 7b2 Rate Test
A2: TOC | B2: =Cover!$C$14 -> Public Release_ RAMmodel_RAM2029_Reference Case Updated 11/5/2025 | J2: Not printed in documentation.
A3: é
B6: Revenue Under Recovery After Rate Design Step | C6: ='Rev Check'!D56 -> 0.2358923638 | D6: ='Rev Check'!E56 -> -13.42484182
B10: Rate Design Step | C10: =+Init!C9 -> 2029 | D10: =+C10+1 -> 2030 | E10: =+D10+1 -> 2031 | F10: =+E10+1 -> 2032 | G10: =+F10+1 -> 2033 | H10: =+G10+1 -> 2034
B11: Rates After Initial Allocation
B12: UNBIFURCATED PF | C12: ='Initial Rates'!C22 -> 58.25 | D12: ='Initial Rates'!D22 -> 59.41 | E12: ='Initial Rates'!E22 -> 60.47 | F12: ='Initial Rates'!F22 -> 61.26 | G12: ='Initial Rates'!G22 -> 63.67 | H12: ='Initial Rates'!H22 -> 64.36
B13: IP | C13: ='Initial Rates'!C23 -> 100.17 | D13: ='Initial Rates'!D23 -> 100.78 | E13: ='Initial Rates'!E23 -> 101.39 | F13: ='Initial Rates'!F23 -> 99.27 | G13: ='Initial Rates'!G23 -> 73.18 | H13: ='Initial Rates'!H23 -> 73.49
B14: NR | C14: ='Initial Rates'!C24 -> 124.66 | D14: ='Initial Rates'!D24 -> 125.27 | E14: ='Initial Rates'!E24 -> 125.88 | F14: ='Initial Rates'!F24 -> 123.76 | G14: ='Initial Rates'!G24 -> 97.67 | H14: ='Initial Rates'!H24 -> 97.98
B16: Rate Design Step | C16: =+C10 -> 2029 | D16: 2030 | E16: 2031 | F16: 2032 | G16: 2033 | H16: 2034
B17: Rates After IP-PF Link Allocation
B18: UNBIFURCATED PF (average) | C18: ='Rates After Link'!C42 -> 58.295 | D18: ='Rates After Link'!D42 -> 59.456 | E18: ='Rates After Link'!E42 -> 60.516 | F18: ='Rates After Link'!F42 -> 61.302 | G18: ='Rates After Link'!G42 -> 63.679 | H18: ='Rates After Link'!H42 -> 64.367 | J18: IP Rate Check
B19: UNBIFURCATED PF (flat) | C19: =IP_PF_Link!C15 -> 55.80708538 | D19: =IP_PF_Link!D15 -> 56.86748538 | E19: =IP_PF_Link!E15 -> 57.92228538 | F19: =IP_PF_Link!F15 -> 58.92938538 | G19: =IP_PF_Link!G15 -> 61.14168538 | H19: =IP_PF_Link!H15 -> 61.70248538 | J19: =C20-C19 -> -0.2910853808 | K19: =D20-D19 -> -0.2904853808
B20: IP | C20: ='Rates After Link'!C43 -> 55.516 | D20: ='Rates After Link'!D43 -> 56.577 | E20: ='Rates After Link'!E43 -> 57.632 | F20: ='Rates After Link'!F43 -> 58.639 | G20: ='Rates After Link'!G43 -> 60.851 | H20: ='Rates After Link'!H43 -> 61.412
B21: NR | C21: ='Rates After Link'!C44 -> 124.703 | D21: ='Rates After Link'!D44 -> 125.315 | E21: ='Rates After Link'!E44 -> 125.923 | F21: ='Rates After Link'!F44 -> 123.794 | G21: ='Rates After Link'!G44 -> 97.683 | H21: ='Rates After Link'!H44 -> 97.987
B23: Rate Design Step | C23: =+C10 -> 2029 | D23: =+D10 -> 2030
B24: Rates After REP/7(b)(3) Allocation
B25: PF Public | C25: =IF(Init!$C$13="Yes",'Rates After WP-10 Adjustment'!C40,'Rates After 7b2'!C71) -> 39.27 | D25: =IF(Init!$C$13="Yes",'Rates After WP-10 Adjustment'!D40,'Rates After 7b2'!D71) -> 40.44
B26: PF Exchange | C26: =IF(Init!$C$13="Yes",'Rates After WP-10 Adjustment'!C41,'Rates After 7b2'!C72) -> 88.01 | D26: =IF(Init!$C$13="Yes",'Rates After WP-10 Adjustment'!D41,'Rates After 7b2'!D72) -> 89.13
B27: IP | C27: =IF(Init!$C$13="Yes",'Rates After WP-10 Adjustment'!C42,'Rates After 7b2'!C73) -> 79 | D27: =IF(Init!$C$13="Yes",'Rates After WP-10 Adjustment'!D42,'Rates After 7b2'!D73) -> 80.02
B28: NR | C28: =IF(Init!$C$13="Yes",'Rates After WP-10 Adjustment'!C43,'Rates After 7b2'!C74) -> 148.19 | D28: =IF(Init!$C$13="Yes",'Rates After WP-10 Adjustment'!D43,'Rates After 7b2'!D74) -> 148.75
B30: Rate Design Step | C30: =+C10 -> 2029 | D30: =+D10 -> 2030
B31: Rates After IP-PF Link #2 Allocation
B32: PF Public (average) | C32: =IF(Init!$C$13="Yes",'Rates After Link Settlement'!C47,'Rates After Link (2)'!C49) -> 39.2748 | D32: =IF(Init!$C$13="Yes",'Rates After Link Settlement'!D47,'Rates After Link (2)'!D49) -> 40.4361 | J32: IP Rate Check
B33: PF Public (flat) | C33: ='IP_PF_Link Settlement'!C13 -> 45.27042236 | D33: ='IP_PF_Link Settlement'!D13 -> 46.12719891 | J33: =C35-C33 -> 15.28957764 | K33: =D35-D33 -> 15.45080109
B34: PF Exchange | C34: =IF(Init!$C$13="Yes",'Rates After Link Settlement'!C48,'Rates After Link (2)'!C50) -> 88.056 | D34: =IF(Init!$C$13="Yes",'Rates After Link Settlement'!D48,'Rates After Link (2)'!D50) -> 89.174 | J34: ='IP_PF_Link Settlement'!C16 -> 7.942251784 | K34: ='IP_PF_Link Settlement'!D16 -> 7.942251784
B35: IP | C35: =IF(Init!$C$13="Yes",'Rates After Link Settlement'!C49,'Rates After Link (2)'!C51) -> 60.56 | D35: =IF(Init!$C$13="Yes",'Rates After Link Settlement'!D49,'Rates After Link (2)'!D51) -> 61.578 | J35: =J33-J34 -> 7.347325854 | K35: =K33-K34 -> 7.508549303 | L35: =AVERAGE(J35:K35) -> 7.427937579
B36: NR | C36: =IF(Init!$C$13="Yes",'Rates After Link Settlement'!C50,'Rates After Link (2)'!C52) -> 148.234 | D36: =IF(Init!$C$13="Yes",'Rates After Link Settlement'!D50,'Rates After Link (2)'!D52) -> 148.804

Sheet ScenarioResults
B1: Rate Analysis Model - Scenario Summary Box | G1: =IF(Init!$C$13="Yes","Results Under Settlement","Results while Running 7b2 Rate Test") -> Results while Running 7b2 Rate Test
A2: TOC | B2: =Cover!$C$14 -> Public Release_ RAMmodel_RAM2029_Reference Case Updated 11/5/2025 | G2: Not printed in documentation.
A3: é | L3: List for Expense Conservation in 7b2
L4: 1
B5: Attachment 1a | G5: From Rate Tables | L5: 2
D6: % above BP-26 | G6: =B7 -> Unbifurcated PF | H6: ='Unbif PF_RateOutput'!E52 -> 58.88 | J6: =C7-H6 -> -0.004567612875 | L6: 3
B7: Unbifurcated PF | C7: ='Rates After Link'!C47 -> 58.87543239 | D7: =C7/H23-1 -> 0.1185994694 | G7: T1 Equivalent PF | H7: =PFAveT1_RateOutput!E52 -> 37.38 | L7: 4
B8: PF Public | C8: =IF(Init!$C$13="Yes",'Rates After Link Settlement'!$C$64,ROUND((RateSummary!C32+RateSummary!D32)/2,2)) -> 39.86 | D8: =C8/H24-1 -> -0.00754318601 | G8: T1 & T2 Equivalent PF | H8: =PFMeldedEqv_RateOutput!E52 -> 39.86 | J8: =H8-C8 -> 0 | L8: 5
B9: PF Exchange | C9: =IF(Init!$C$13="Yes",'Rates After Link Settlement'!$C$68,'Rates After Link (2)'!C64) -> 88.61521414 | D9: =C9/H25-1 -> 0.166224112 | G9: =B9 -> PF Exchange | H9: ='PF Exchange_RateOutput'!E53 -> 88.62 | J9: =H9-C9 -> 0.004785864404 | L9: 6
B10: IP | C10: =IF(Init!$C$13="Yes",AVERAGE('Rates After Link Settlement'!$C$70),'Rates After Link (2)'!C66) -> 61.06893722 | D10: =C10/H26-1 -> 0.3393685356 | G10: =B10 -> IP | H10: =IP_RateOutput!E52 -> 61.07 | J10: =H10-C10 -> 0.001062775174 | L10: 7
B11: NR | C11: =IF(Init!$C$13="Yes",'Rates After Link Settlement'!$C$71,'Rates After Link (2)'!C67) -> 148.5192907 | D11: =C11/H27-1 -> 0.3347628079 | G11: =B11 -> NR | H11: =NR_RateOutput!E52 -> 148.52 | J11: =H11-C11 -> 0.0007092850922 | L11: 8
L12: 9
B13: Residential Exchange Benefits | C13: =+Init!C9 -> 2029 | D13: =C13+1 -> 2030 | L13: 10
B14: ='Active Exchange'!D10 -> Avista Corporation | C14: =IF(Init!$C$13="Yes",'Utility Specific PFx Settle'!O27,'Utility Specifc PFx'!K24) -> 2520.865662 | D14: =IF(Init!$C$13="Yes",'Utility Specific PFx Settle'!P27,'Utility Specifc PFx'!K43) -> 2520.865662 | L14: 11
B15: ='Active Exchange'!D11 -> Idaho Power Company | C15: =IF(Init!$C$13="Yes",'Utility Specific PFx Settle'!O28,'Utility Specifc PFx'!K25) -> 0 | D15: =IF(Init!$C$13="Yes",'Utility Specific PFx Settle'!P28,'Utility Specifc PFx'!K44) -> 0 | L15: 12
B16: ='Active Exchange'!D12 -> NorthWestern Energy, LLC | C16: =IF(Init!$C$13="Yes",'Utility Specific PFx Settle'!O29,'Utility Specifc PFx'!K26) -> 2857.721685 | D16: =IF(Init!$C$13="Yes",'Utility Specific PFx Settle'!P29,'Utility Specifc PFx'!K45) -> 2857.721685 | L16: Settlement Menu
B17: ='Active Exchange'!D13 -> PacifiCorp | C17: =IF(Init!$C$13="Yes",'Utility Specific PFx Settle'!O30,'Utility Specifc PFx'!K27) -> 52950.47886 | D17: =IF(Init!$C$13="Yes",'Utility Specific PFx Settle'!P30,'Utility Specifc PFx'!K46) -> 52950.47886 | G17: ="Section 7(b)(3) Load for " & RateSummary!$C$10 -> Section 7(b)(3) Load for 2029 | H17: ='Exchange Load'!D29+'RAM IP'!M83+'RAM NR'!D66 -> 4132.799336 | J17: Trigger | L17: Yes
B18: ='Active Exchange'!D14 -> Portland General Electric Company | C18: =IF(Init!$C$13="Yes",'Utility Specific PFx Settle'!O31,'Utility Specifc PFx'!K28) -> 36104.09739 | D18: =IF(Init!$C$13="Yes",'Utility Specific PFx Settle'!P31,'Utility Specifc PFx'!K47) -> 36104.09739 | G18: Section 7(b)(2) Rate Test Trigger | H18: 19.02 | J18: =ROUND(TriggerCalc!J35,2) -> 19.02 | L18: No
B19: ='Active Exchange'!D15 -> Puget Sound Energy, Inc. | C19: =IF(Init!$C$13="Yes",'Utility Specific PFx Settle'!O32,'Utility Specifc PFx'!K29) -> 33510.47167 | D19: =IF(Init!$C$13="Yes",'Utility Specific PFx Settle'!P32,'Utility Specifc PFx'!K48) -> 33510.47167
B20: Net IOU Exchange | C20: =SUM(C14:C19) -> 127943.6353 | D20: =SUM(D14:D19) -> 127943.6353 | E20: =(C20+D20)/2 -> 127943.6353
B21: Refund Amt | C21: =IF(Init!$C$13="Yes",'Utility Specific PFx Settle'!$O$41,0) -> 0 | D21: =IF(Init!$C$13="Yes",'Utility Specific PFx Settle'!$P$41,0) -> 0 | E21: =(C21+D21)/2 -> 0
G22: Previous Rates | H22: Surcharge Adj. | I22: 2 year average
B23: =ExchangeInputs!C15 -> Clark Public Utilities | C23: =IF(Init!$C$13="Yes",MAX('Utility Specific PFx Settle'!O35,0),MAX('Utility Specifc PFx'!K30,0)) -> 0 | D23: =IF(Init!$C$13="Yes",MAX('Utility Specific PFx Settle'!P35,0),MAX('Utility Specifc PFx'!K49,0)) -> 0 | G23: Unbifurcated PF | H23: 52.63316674
B24: =ExchangeInputs!C16 -> Franklin | C24: =IF(Init!$C$13="Yes",MAX('Utility Specific PFx Settle'!O36,0),MAX('Utility Specifc PFx'!K31,0)) -> 0 | D24: =IF(Init!$C$13="Yes",MAX('Utility Specific PFx Settle'!P36,0),MAX('Utility Specifc PFx'!K50,0)) -> 0 | G24: PF Public | H24: =+I24+H43 -> 40.16295665 | I24: 40.16295665
B25: =ExchangeInputs!C17 -> Snohomish PUD | C25: =IF(Init!$C$13="Yes",MAX('Utility Specific PFx Settle'!O37,0),MAX('Utility Specifc PFx'!K32,0)) -> 0 | D25: =IF(Init!$C$13="Yes",MAX('Utility Specific PFx Settle'!P37,0),MAX('Utility Specifc PFx'!K51,0)) -> 0 | G25: PF Exchange | H25: 75.98472131
B26: Net COU Exchange | C26: =SUM(C23:C25) -> 0 | D26: =SUM(D23:D25) -> 0 | E26: =(C26+D26)/2 -> 0 | G26: IP | H26: =I26+H44 -> 45.59532018 | I26: 45.59532018
D27: Total | E27: =E20+E21+E26 -> 127943.6353 | G27: NR | H27: =I27+H45 -> 111.2701746 | I27: 111.2701746
B29: Annual Average $ (1000s) | C29: ="BP-" & TEXT(RIGHT(D29, 2) - 3, "00") -> BP-26 | D29: ="BP-" & RIGHT(BaseYear[[#All],[Column1]], 2) -> BP-29 | E29: Change
B30: Composite Revenues | C30: 2448350.278 | D30: =Cost_Allocation_TRM!$E$61/2 -> 2264854.188 | E30: =(D30-C30)/C30 -> -0.07494682909
B31: Non-Slice Revenues | C31: -366991.393 | D31: =Cost_Allocation_TRM!$E$62/2 -> -193470.7756 | E31: =-(D31-C31)/C31 -> 0.4728193104 | H31: Prior | I31: Current | J31: Current Projected | K31: Current Max FRP
B32: Slice Revenues | C32: 0 | D32: =Cost_Allocation_TRM!$E$63/2 -> 0 | G32: Surcharges | H32: 0 | I32: 0 | J32: 0 | K32: 0
B33: Load Shaping Revenues | C33: 73880.20117 | D33: =-Cost_Allocation_TRM!$E$45/2 -> 75099.51983 | E33: =(D33-C33)/C33 -> 0.01650399756 | G33: Preference Load | H33: 7574.961529 | I33: =AVERAGE(ProgAlloc!C7:D7) -> 7663.763795 | J33: =AVERAGE(ProgAlloc!C7:D7) -> 7663.763795 | K33: =AVERAGE(ProgAlloc!C7:D7) -> 7663.763795
B34: Demand Revenues | C34: 148772.3332 | D34: =-Cost_Allocation_TRM!$E$47/2 -> 144924.706 | E34: =(D34-C34)/C34 -> -0.0258625188 | G34: DSI Load | H34: 11.32654628 | I34: =ProgAlloc!C9 -> 11.35756098 | J34: =I34 -> 11.35756098 | K34: =ProgAlloc!C9 -> 11.35756098
B35: Tier 1 Revenue Requirement | C35: 2304011.419 | D35: =SUM($D$30:$D$34) -> 2291407.638 | E35: =(D35-C35)/C35 -> -0.005470363971 | G35: NR Load | H35: 15.69939167 | I35: =ProgAlloc!C10 -> 26.39933963 | J35: =I35 -> 26.39933963 | K35: =ProgAlloc!C10 -> 26.39933963
B36: Tier 2 Revenue Requirement | C36: 344444.7382 | D36: =(Cost_Allocation_TRM!$H$13+Cost_Allocation_TRM!$I$13)/2 -> 363230.7956 | E36: =(D36-C36)/C36 -> 0.05454012005 | G36: Preference Allocator | H36: =H33/SUM(H$33:H$35) -> 0.9964448852 | I36: =I33/SUM(I$33:I$35) -> 0.9950974746 | J36: =J33/SUM(J$33:J$35) -> 0.9950974746 | K36: 0.9950974746
G37: DSI Allocator | H37: =H34/SUM(H$33:H$35) -> 0.001489945403 | I37: 0.001474716673 | J37: =J34/SUM(J$33:J$35) -> 0.001474716673 | K37: 0.001474716673
B38: Lookback Return (credit) | C38: 0 | D38: 0 | G38: NR Allocator | H38: =H35/SUM(H$33:H$35) -> 0.002065169371 | I38: 0.003427808698 | J38: =J35/SUM(J$33:J$35) -> 0.003427808698 | K38: 0.003427808698
B39: Spill Surcharge | C39: 0 | D39: 0 | G39: Preference Surcharge | H39: =H$32*H36 -> 0 | I39: =I$32*I36 -> 0 | J39: =J$32*J36 -> 0 | K39: =K$32*K36 -> 0
B40: FRP Surcharge | C40: 0 | D40: =I39 -> 0 | G40: DSI Surcharge | H40: =H$32*H37 -> 0 | I40: 0 | J40: =J$32*J37 -> 0 | K40: 0
B41: Value of Slice Secondary | C41: -57713.19407 | D41: =(Cost_Allocation_TRM!$H$18+Cost_Allocation_TRM!$I$18)/2 -> -55985.0941 | E41: =-(D41-C41)/C41 -> 0.02994289265 | G41: NR Surcharge | H41: =H$32*H38 -> 0 | I41: 0 | J41: =J$32*J38 -> 0 | K41: 0
B42: Net Power Cost to All PF | C42: 2590742.963 | D42: =SUM(D35:D41) -> 2598653.34 | E42: =+D42/C42-1 -> 0.00305332347 | G42: Hours | H42: 8768 | I42: =AVERAGE((VLOOKUP(ScenarioResults!$C$13,Init!N:P,3,FALSE)),(VLOOKUP(ScenarioResults!$D$13,Init!N:P,3,FALSE))) -> 8760 | J42: =I42 -> 8760 | K42: =J42 -> 8760
B43: Total PF Load w/Slice (GWh)/yr | C43: 64505.77198 | D43: =('PF Public'!$D$77+'PF Public'!$E$77)/2 -> 65201.98553 | E43: =+D43/C43-1 -> 0.0107930426 | G43: PF Melded Adder | H43: =H39*1000/(H$42*H33) -> 0 | I43: =I39*1000/(I$42*I33) -> 0 | J43: =J39*1000/(J$42*J33) -> 0 | K43: 0
B44: Average Net Cost $/MWh | C44: 40.16296346 | D44: =+D42/D43 -> 39.8554326 | E44: =(D44-C$44)/C$44 -> -0.007657075984 | G44: DSI Adder | H44: =H40*1000/(H$42*H34) -> 0 | I44: 0 | J44: =J40*1000/(J$42*J34) -> 0 | K44: 0
G45: NR Adder | H45: =H41*1000/(H$42*H35) -> 0 | I45: 0 | J45: =J41*1000/(J$42*J35) -> 0 | K45: 0
B46: Tier 1 Load | C46: 59469.15127 | D46: =+(PFAveT1_RateOutput!$E$54/2) -> 59796.05719 | E46: =((C46-D46)*C48)/D46/(C48) -> -0.005467014656
B48: Tier 1 Average Net Cost without FRP ($/MWh) | C48: 37.77 | D48: =ROUND((D35+D37+D38+D39+D41)/D46,2) -> 37.38 | E48: =(D48-C$48)/C$48 -> -0.01032565528
B49: Tier 1 Average Net Cost with max FRP ($/MWh) | C49: 37.77 | D49: =ROUND((D35+D38+K39+D41)/D46,2) -> 37.38 | E49: =(D49-C$49)/C$49 -> -0.01032565528
B50: Tier 2 Short-term ($/MWh) | C50: 68.5138512 | D50: =ResultsDetail!D32 -> 69.38943757 | E50: =(D50-C$50)/C$50 -> 0.01277969867
B51: Tier 2 Load Growth ($/MWh) | C51: 68.58666667 | D51: =Cost_Allocation_TRM!E84 -> 69.455 | E51: =(D51-C$51)/C$51 -> 0.01266038103
D54: % above BP-26
B55: Unbifurcated PF | C55: 58.87543239 | D55: 0.1185994694
B56: PF Public | C56: 58.88 | D56: 0.4660275265
B57: PF Exchange | C57: 65.10543239 | D57: -0.1431773222
B58: IP | C58: 56.04659523 | D58: 0.2292181523
B59: NR | C59: 125.0090217 | D59: 0.1234728631
B61: Residential Exchange Benefits | C61: 2029 | D61: 2030
B62: Avista Corporation | C62: 19141.88064 | D62: 19141.88064
B63: Idaho Power Company | C63: 0 | D63: 0
B64: NorthWestern Energy, LLC | C64: 21699.75506 | D64: 21699.75506
B65: PacifiCorp | C65: 402072.8916 | D65: 402072.8916
B66: Portland General Electric Company | C66: 274151.9841 | D66: 274151.9841
B67: Puget Sound Energy, Inc. | C67: 254457.6089 | D67: 254457.6089
B68: Net IOU Exchange | C68: 971524.1202 | D68: 971524.1202 | E68: 971524.1202
B69: Refund Amt | C69: 0 | D69: 0 | E69: 0
B71: Clark Public Utilities | C71: 0 | D71: 0
B72: Franklin | C72: 0 | D72: 0
B73: Snohomish PUD | C73: 0 | D73: 0
B74: Net COU Exchange | C74: 0 | D74: 0 | E74: 0
D75: Total | E75: 971524.1202
B77: Annual Average $ (1000s) | C77: BP-26 | D77: BP-29 | E77: Change
B78: Composite Revenues | C78: 2448350.278 | D78: 3094701.135 | E78: 0.2639944386
B79: Non-Slice Revenues | C79: -366991.393 | D79: -173971.7405 | E79: 0.5259514424
B80: Slice Revenues | C80: 0 | D80: 0
B81: Load Shaping Revenues | C81: 73880.20117 | D81: 75099.51983 | E81: 0.01650399756
B82: Demand Revenues | C82: 148772.3332 | D82: 144924.706 | E82: -0.0258625188
B83: Tier 1 Revenue Requirement | C83: 2304011.419 | D83: 3140753.62 | E83: 0.3631675582
B84: Tier 2 Revenue Requirement | C84: 344444.7382 | D84: 363230.7956 | E84: 0.05454012005
B86: Lookback Return (credit) | C86: 0 | D86: 0
B87: Spill Surcharge | C87: 0 | D87: 0
B88: FRP Surcharge | C88: 0 | D88: 0
B89: Value of Slice Secondary | C89: -57713.19407 | D89: -55985.0941 | E89: 0.02994289265
B90: Net Power Cost to All PF | C90: 2590742.963 | D90: 3447999.322 | E90: 0.3308920918
B91: Total PF Load w/Slice (GWh)/yr | C91: 64505.77198 | D91: 65201.98553 | E91: 0.0107930426
B92: Average Net Cost $/MWh | C92: 40.16296346 | D92: 52.88181478 | E92: 0.3166810966

Sheet ResultsDetail
B1: Rate Analysis Model - Scenario Summary | G1: =IF(Init!$C$13="Yes","Results Under Settlement","Results while Running 7b2 Rate Test") -> Results while Running 7b2 Rate Test
A2: " | B2: =Cover!$C$14 -> Public Release_ RAMmodel_RAM2029_Reference Case Updated 11/5/2025 | G2: Not printed in documentation.
A3: é
D6: % above prior rate case
B7: Unbifurcated PF | C7: =ScenarioResults!C7 -> 58.87543239 | D7: =C7/ScenarioResults!H23-1 -> 0.1185994694
B8: PF Public (Tier 1 + Tier 2) | C8: =ScenarioResults!C8 -> 39.86 | D8: =C8/ScenarioResults!H24-1 -> -0.00754318601
B9: PF Exchange (IOU) | C9: =ScenarioResults!C9 -> 88.61521414 | D9: =C9/ScenarioResults!H25-1 -> 0.166224112
B10: IP with 7(b)(3) | C10: =ScenarioResults!C10 -> 61.06893722 | D10: =C10/ScenarioResults!H26-1 -> 0.3393685356
B11: NR | C11: =ScenarioResults!C11 -> 148.5192907 | D11: =C11/ScenarioResults!H27-1 -> 0.3347628079
B14: Annual Average $ (1000s) | C14: =ScenarioResults!C29 -> BP-26 | D14: =ScenarioResults!D29 -> BP-29 | E14: Change
A15: 1 | B15: Composite Rate Revenues | C15: 2448350.278 | D15: =Cost_Allocation_TRM!$E$61/2 -> 2264854.188 | E15: =D15/C15-1 -> -0.07494682909
A16: =+A15+1 -> 2 | B16: Non-Slice Rate Revenues | C16: -366991.393 | D16: =Cost_Allocation_TRM!$E$62/2 -> -193470.7756 | E16: =-(D16/C16-1) -> 0.4728193104
A17: =+A16+1 -> 3 | B17: Slice Rate Revenues | C17: 0 | D17: =Cost_Allocation_TRM!$E$63/2 -> 0
A18: 4 | B18: Load Shaping Rate Revenues | C18: 73880.20117 | D18: =-Cost_Allocation_TRM!$E$45/2 -> 75099.51983 | E18: =D18/C18-1 -> 0.01650399756
A19: 5 | B19: Demand Rate Revenues | C19: 148772.3332 | D19: =-Cost_Allocation_TRM!$E$47/2 -> 144924.706 | E19: =D19/C19-1 -> -0.0258625188
A20: 6 | B20: Tier 1 Revenue Requirement | C20: 2304011.419 | D20: =SUM(D15:D19) -> 2291407.638 | E20: =D20/C20-1 -> -0.005470363971
A21: 7 | B21: Tier 2 Revenue Requirement | C21: 344444.7382 | D21: =(Cost_Allocation_TRM!$H$13+Cost_Allocation_TRM!$I$13)/2 -> 363230.7956
A22: 8 | B22: Value of Slice Surplus | C22: -57713.19407 | D22: =-(Secondary!D27+Secondary!E27)/2 -> -55985.0941 | E22: =-(D22/C22-1) -> 0.02994289265
A23: 9 | B23: Value of CHWM RECs (credit)
A24: 10 | B24: Lookback Return (credit) | C24: 0 | D24: 0
A25: 11 | B25: Net Power Cost to All PF | C25: 2590742.963 | D25: =SUM(D20:D24) -> 2598653.34 | E25: =D25/C25-1 -> 0.00305332347
A26: 12 | B26: Surcharges | C26: 0 | D26: =ScenarioResults!I39 -> 0
A27: 13 | B27: Annual PF Load (w/firm Slice) (GWh) | C27: 64505.77198 | D27: =('PF Public'!$D$77+'PF Public'!$E$77)/2 -> 65201.98553 | E27: =D27/C27-1 -> 0.0107930426
A28: 14 | B28: PF Average Net Cost ($/MWh) | C28: 40.16296346 | D28: =+(D25+D26)/D27 -> 39.8554326 | E28: =D28/C28-1 -> -0.007657075984
A30: =A28+1 -> 15 | B30: Tier 1 Average Net Cost without FRP ($/MWh) | C30: 37.77 | D30: =ScenarioResults!D48 -> 37.38 | E30: =D30/C30-1 -> -0.01032565528
A31: =+A30+1 -> 16 | B31: Tier 1 Average Net Cost max FRP ($/MWh) | C31: 37.77 | D31: =ScenarioResults!D49 -> 37.38 | E31: =D31/C31-1 -> -0.01032565528
A32: =+A31+1 -> 17 | B32: Tier 2 ($/MWh) | C32: 68.5138512 | D32: =+'Cost Contribution'!F31 -> 69.38943757 | E32: =D32/C32-1 -> 0.01277969867
I34: Power Rates ($/MWh) | J34: =C14 -> BP-26 | K34: =D14 -> BP-29 | L34: Change
B35: Slice Sales | C35: =C14 -> BP-26 | D35: =D14 -> BP-29 | E35: Change | I35: Tier 1 Average Net Cost of Power | J35: =C30 -> 37.77 | K35: =D30 -> 37.38 | L35: =E30 -> -0.01032565528
A36: =+A32+1 -> 18 | B36: Composite+Slice | C36: 301795.5075 | D36: =(Cost_Allocation_TRM!C70*Cost_Allocation_TRM!E73+Cost_Allocation_TRM!D70*Cost_Allocation_TRM!E73+Cost_Allocation_TRM!C70*Cost_Allocation_TRM!E75+Cost_Allocation_TRM!D70*Cost_Allocation_TRM!E75)/2 -> 279704.4906 | I36: Average Non-Slice Rate | J36: =C50 -> 38.39791302 | K36: =D50 -> 38.68243952 | L36: =E50 -> 0.007409946984
A37: 19 | B37: Surcharges | I37: Average Slice Rate | J37: =C41 -> 33.3379346 | K37: =D41 -> 30.66210296 | L37: =E41 -> -0.08026386986
A38: 20 | B38: Tier 1 Average Cost ($/MWh) | C38: 41.22067983 | D38: =D36/((Loads!E8+Loads!F8)/1000/2) -> 37.94244824 | E38: =D38/C38-1 -> -0.07952880931 | I38: Average Tier 2 Rate | J38: =C32 -> 68.5138512 | K38: =D32 -> 69.38943757 | L38: =E32 -> 0.01277969867
A39: 21 | B39: Value of Slice Surplus+Credits | C39: -57713.19407 | D39: =D22+((D23+D24)*(Cost_Allocation_TRM!E70/Cost_Allocation_TRM!E68)) -> -55985.0941
A40: 22 | B40: Net Cost of Slice Power | C40: 244082.3134 | D40: =D36+D39 -> 223719.3965 | I40: IP Rate | J40: =ScenarioResults!I26 -> 45.59532018 | K40: =C10 -> 61.06893722 | L40: =K40/J40-1 -> 0.3393685356
A41: 23 | B41: Tier 1 Average Net Cost ($/MWh) | C41: 33.3379346 | D41: =D40/((Cost_Allocation_TRM!H36+Cost_Allocation_TRM!I36)/2/1000) -> 30.66210296 | E41: =D41/C41-1 -> -0.08026386986
B44: Non-Slice Sales | C44: =C35 -> BP-26 | D44: =D35 -> BP-29 | E44: Change
A45: =+A41+1 -> 24 | B45: Composite+NonSlice+Shape+Demand | C45: 2002362.561 | D45: ='LSTUR&PFT1Eqv_RateOutput'!D52/2 -> 2011851.042
A46: 25 | B46: Tier 1 Average Cost ($/MWh) | C46: 38.39791302 | D46: =D45/(('LSTUR&PFT1Eqv_RateOutput'!E54)/2) -> 38.68243952 | E46: =D46/C46-1 -> 0.007409946984
A47: 26 | B47: Credits | C47: 0 | D47: =(D23+D24)*(Cost_Allocation_TRM!E69/Cost_Allocation_TRM!E68) -> 0
A48: 27 | B48: Net Cost of Non-Slice Power | C48: 2002362.561 | D48: =D45+D47 -> 2011851.042
A49: 28 | B49: Surcharges | C49: 0 | D49: =+ScenarioResults!K39 -> 0
A50: 29 | B50: Tier 1 Average Net Cost without FRP ($/MWh) | C50: 38.39791302 | D50: =(D48)/(('LSTUR&PFT1Eqv_RateOutput'!E54)/2) -> 38.68243952 | E50: =D50/C50-1 -> 0.007409946984
A51: 30 | B51: Tier 1 Average Net Cost max FRP ($/MWh) | C51: 38.39791302 | D51: =(D48+D49)/(('LSTUR&PFT1Eqv_RateOutput'!E54)/2) -> 38.68243952 | E51: =D51/C51-1 -> 0.007409946984
B54: Tiered PF Rate Components | C54: =C44 -> BP-26 | D54: =D44 -> BP-29 | E54: Change
A55: =+A51+1 -> 31 | B55: Composite Rate ($/ pct/month) | C55: 2141296 | D55: =+Cost_Allocation_TRM!E78 -> 1984556 | E55: =D55/C55-1 -> -0.073198661
A56: 32 | B56: Non-Slice Rate ($/ pct/month) | C56: -366092 | D56: =+Cost_Allocation_TRM!E79 -> -193413 | E56: =D56/C56-1 -> -0.4716819816
A58: =+A56+1 -> 33 | B58: NonSlice Load | C58: 52147.69251 | D58: =AVERAGE(NonSliceLossAdjust!C5:D5)/1000 -> 52009.41479
A59: 34 | B59: Slice Load | C59: 7321.458761 | D59: =AVERAGE(Cost_Allocation_TRM!H36:I36)/1000 -> 7296.283521
A60: 35 | B60: PF load w/slice | C60: 64505.77198 | D60: =D27 -> 65201.98553
B62: REP Summary Information
B63: Residential Exchange Program Benefits Crosswalk to Prior Rate Period
C64: =ScenarioResults!C29 -> BP-26 | D64: BP-22 REP Benefits | G64: Delta | H64: Change
C65: Final Proposal | D65: Preliminary | E65: Reallocations | F65: Planned | G65: BP-12 vs BP-14
B66: Avista | C66: 14578.39084 | D66: ='Utility Specific PFx Settle'!P8 -> 5637.010895 | E66: ='Utility Specific PFx Settle'!J41-'Utility Specific PFx Settle'!D47 -> 0 | F66: =AVERAGE('Utility Specific PFx Settle'!O27,'Utility Specific PFx Settle'!P27) -> 5637.08934 | G66: =+F66-C66 -> -8941.301503 | H66: =F66/C66-1 -> -0.6133256818
B67: Idaho Power | C67: 22292.12956 | D67: ='Utility Specific PFx Settle'!P9 -> 0 | E67: ='Utility Specific PFx Settle'!J42-'Utility Specific PFx Settle'!E47 -> 0 | F67: =AVERAGE('Utility Specific PFx Settle'!O28,'Utility Specific PFx Settle'!P28) -> 0 | G67: =+F67-C67 -> -22292.12956 | H67: =F67/C67-1 -> -1
B68: Northwestern | C68: 6133.64217 | D68: ='Utility Specific PFx Settle'!P10 -> 6390.268437 | E68: ='Utility Specific PFx Settle'!J43-'Utility Specific PFx Settle'!F47 -> 0 | F68: =AVERAGE('Utility Specific PFx Settle'!O29,'Utility Specific PFx Settle'!P29) -> 6390.277298 | G68: 256.6351283 | H68: 0.04184057714
B69: PacifiCorp | C69: 63717.75651 | D69: ='Utility Specific PFx Settle'!P11 -> 118404.7332 | E69: ='Utility Specific PFx Settle'!J44-'Utility Specific PFx Settle'!G47 -> 0 | F69: =AVERAGE('Utility Specific PFx Settle'!O30,'Utility Specific PFx Settle'!P30) -> 118404.6669 | G69: 54686.91036 | H69: 0.858267983
B70: PGE | C70: 58927.04834 | D70: ='Utility Specific PFx Settle'!P12 -> 80733.85004 | E70: ='Utility Specific PFx Settle'!J45-'Utility Specific PFx Settle'!H47 -> 0 | F70: =AVERAGE('Utility Specific PFx Settle'!O31,'Utility Specific PFx Settle'!P31) -> 80733.83207 | G70: 21806.78373 | H70: 0.3700640767
B71: Puget Sound | C71: 79551.48615 | D71: ='Utility Specific PFx Settle'!P13 -> 74934.1374 | E71: ='Utility Specific PFx Settle'!J46-'Utility Specific PFx Settle'!I47 -> 0 | F71: =AVERAGE('Utility Specific PFx Settle'!O32,'Utility Specific PFx Settle'!P32) -> 74934.47761 | G71: -4617.008544 | H71: -0.05803799234
B72: Clark | C72: 2087.643771 | D72: ='Utility Specific PFx Settle'!P14 -> 0 | E72: 0 | F72: =IF(SUM(('Utility Specific PFx Settle'!O35,'Utility Specific PFx Settle'!P35))=0,0,AVERAGE('Utility Specific PFx Settle'!O35,'Utility Specific PFx Settle'!P35)) -> 0 | G72: -2087.643771 | H72: -1
B73: Snohomish | C73: 2468.66142 | D73: ='Utility Specific PFx Settle'!P16 -> 0 | E73: 0 | F73: =IF(SUM(('Utility Specific PFx Settle'!O37,'Utility Specific PFx Settle'!P37))=0,0,AVERAGE('Utility Specific PFx Settle'!O37,'Utility Specific PFx Settle'!P37)) -> 0 | G73: -2468.66142 | H73: -1
B74: Total | C74: =SUM(C66:C73) -> 249756.7588 | D74: =SUM(D66:D73) -> 286100 | E74: =SUM(E66:E73) -> 0 | F74: =SUM(F66:F73) -> 286100.3432 | G74: =+SUM(G66:G73) -> 36343.58443 | H74: =F74/C74-1 -> 0.1455159196
B75: IOU Total | C75: =SUM(C66:C71) -> 245200.4536 | D75: =SUM(D66:D71) -> 286100 | E75: =SUM(E66:E71) -> 0 | F75: =SUM(F66:F71) -> 286100.3432 | G75: =SUM(G66:G71) -> 40899.88962 | H75: =F75/C75-1 -> 0.1668018514
B76: COU Total | C76: =SUM(C72:C73) -> 4556.305192 | D76: =SUM(D72:D73) -> 0 | E76: =SUM(E72:E73) -> 0 | F76: =SUM(F72:F73) -> 0 | G76: =SUM(G72:G73) -> -4556.305192 | H76: =F76/C76-1 -> -1
B81: Residential Exchange Program Cost Allocations
E83: =ScenarioResults!C13 -> 2029 | F83: =ScenarioResults!D13 -> 2030
B84: Unconstrained REP Benefits | E84: ='Rates After Settlement'!C14 -> 971524.1202 | F84: ='Rates After Settlement'!D14 -> 971524.1202
B85: 7(b)(2) Rate Protection | E85: =E84*(Loads!E5/(Loads!E5+Loads!E11+Loads!E14))-E93 -> 682063.6072 | F85: =F84*(Loads!F5/(Loads!F5+Loads!F11+Loads!F14))-F93 -> 682063.6072
B86: 7(b)(3) PFx Allocation | E86: ='Rates After Settlement'!C28 -> 685423.777 | F86: ='Rates After Settlement'!D28 -> 685423.777
B87: 7(b)(3) IP Allocation | E87: ='WP-10 Adjustment'!C55 -> 763.6318785 | F87: ='WP-10 Adjustment'!D55 -> 763.6318785
B88: 7(b)(3) NR Allocation | E88: ='WP-10 Adjustment'!C56 -> 1774.982314 | F88: ='WP-10 Adjustment'!D56 -> 1774.982314
B89: REP Benefits | E89: ='Utility Specific PFx Settle'!O39 -> 286100.3432 | F89: ='Utility Specific PFx Settle'!P39 -> 286100.3432
B90: Refund Amounts | E90: ='Utility Specific PFx Settle'!O41 -> 0 | F90: ='Utility Specific PFx Settle'!P41 -> 0
B91: Total REP Costs (Benefits + Refunds) | E91: ='Utility Specific PFx Settle'!O42 -> 286100.3432 | F91: ='Utility Specific PFx Settle'!P42 -> 286100.3432
B93: REP Benefits paid by PFp | E93: =E89*(Loads!E5/(Loads!E5+Loads!E11+Loads!E14)) -> 284697.7865 | F93: =F89*(Loads!F5/(Loads!F5+Loads!F11+Loads!F14)) -> 284697.7865
B94: REP Benefits paid by IP | E94: =E89*(Loads!E11/(Loads!E5+Loads!E11+Loads!E14)) -> 421.8987918 | F94: =F89*(Loads!F11/(Loads!F5+Loads!F11+Loads!F14)) -> 421.8987918
B95: REP Benefits paid by NR | E95: =E89*(Loads!E14/(Loads!E5+Loads!E11+Loads!E14)) -> 980.6579468 | F95: =F89*(Loads!F14/(Loads!F5+Loads!F11+Loads!F14)) -> 980.6579468

Sheet Loads
B1: Loads (MWh)
A2: TOC | B2: =Cover!$C$14 -> Public Release_ RAMmodel_RAM2029_Reference Case Updated 11/5/2025
A3: é | E3: Annual | L3: HLH | CG3: LLH
E4: =Init!$C$9 -> 2029 | F4: =E4+1 -> 2030 | G4: =F4+1 -> 2031 | H4: =G4+1 -> 2032 | I4: =H4+1 -> 2033 | J4: =I4+1 -> 2034 | L4: =DATE($E$4-1,10,1) -> 2028-10-01 | M4: =EOMONTH(L4,0)+1 -> 2028-11-01 | N4: =EOMONTH(M4,0)+1 -> 2028-12-01 | O4: 2029-01-01 | P4: 2029-02-01 | Q4: 2029-03-01 | R4: 2029-04-01 | S4: 2029-05-01 | T4: 2029-06-01 | U4: 2029-07-01 | V4: 2029-08-01 | W4: 2029-09-01 | X4: 2029-10-01 | Y4: 2029-11-01 | Z4: 2029-12-01 | AA4: 2030-01-01 | AB4: 2030-02-01 | AC4: 2030-03-01 | AD4: 2030-04-01 | AE4: 2030-05-01 | AF4: 2030-06-01 | AG4: 2030-07-01 | AH4: 2030-08-01 | AI4: 2030-09-01 | AJ4: 2030-10-01 | AK4: 2030-11-01 | AL4: 2030-12-01 | AM4: 2031-01-01 | AN4: 2031-02-01 | AO4: 2031-03-01 | AP4: 2031-04-01 | AQ4: 2031-05-01 | AR4: 2031-06-01 | AS4: 2031-07-01 | AT4: 2031-08-01 | AU4: 2031-09-01 | AV4: 2031-10-01 | AW4: 2031-11-01 | AX4: 2031-12-01 | AY4: 2032-01-01 | AZ4: 2032-02-01 | BA4: 2032-03-01 | BB4: 2032-04-01 | BC4: 2032-05-01 | BD4: 2032-06-01 | BE4: 2032-07-01 | BF4: 2032-08-01 | BG4: 2032-09-01 | BH4: 2032-10-01 | BI4: 2032-11-01 | BJ4: 2032-12-01 | BK4: 2033-01-01 | BL4: 2033-02-01 | BM4: 2033-03-01 | BN4: 2033-04-01 | BO4: 2033-05-01 | BP4: 2033-06-01 | BQ4: 2033-07-01 | BR4: 2033-08-01 | BS4: 2033-09-01 | BT4: 2033-10-01 | BU4: 2033-11-01 | BV4: 2033-12-01 | BW4: 2034-01-01 | BX4: 2034-02-01 | BY4: 2034-03-01 | BZ4: =EOMONTH(BY4,0)+1 -> 2034-04-01 | CA4: 2034-05-01 | CB4: 2034-06-01 | CC4: 2034-07-01 | CD4: 2034-08-01 | CE4: 2034-09-01 | CG4: =DATE($E$4-1,10,1) -> 2028-10-01 | CH4: =EOMONTH(CG4,0)+1 -> 2028-11-01 | CI4: =EOMONTH(CH4,0)+1 -> 2028-12-01 | CJ4: 2029-01-01 | CK4: 2029-02-01 | CL4: 2029-03-01 | CM4: 2029-04-01 | CN4: 2029-05-01 | CO4: 2029-06-01 | CP4: 2029-07-01 | CQ4: 2029-08-01 | CR4: 2029-09-01 | CS4: 2029-10-01 | CT4: 2029-11-01 | CU4: 2029-12-01 | CV4: 2030-01-01 | CW4: 2030-02-01 | CX4: 2030-03-01 | CY4: 2030-04-01 | CZ4: 2030-05-01 | DA4: 2030-06-01 | DB4: 2030-07-01 | DC4: 2030-08-01 | DD4: 2030-09-01 | DE4: 2030-10-01 | DF4: 2030-11-01 | DG4: 2030-12-01 | DH4: 2031-01-01 | DI4: 2031-02-01 | DJ4: 2031-03-01 | DK4: 2031-04-01 | DL4: 2031-05-01 | DM4: 2031-06-01 | DN4: 2031-07-01 | DO4: 2031-08-01 | DP4: 2031-09-01 | DQ4: 2031-10-01 | DR4: 2031-11-01 | DS4: 2031-12-01 | DT4: 2032-01-01 | DU4: 2032-02-01 | DV4: 2032-03-01 | DW4: 2032-04-01 | DX4: 2032-05-01 | DY4: 2032-06-01 | DZ4: 2032-07-01 | EA4: 2032-08-01 | EB4: 2032-09-01 | EC4: 2032-10-01 | ED4: 2032-11-01 | EE4: 2032-12-01 | EF4: 2033-01-01 | EG4: 2033-02-01 | EH4: 2033-03-01 | EI4: 2033-04-01 | EJ4: 2033-05-01 | EK4: 2033-06-01 | EL4: 2033-07-01 | EM4: 2033-08-01 | EN4: 2033-09-01 | EO4: 2033-10-01 | EP4: 2033-11-01 | EQ4: 2033-12-01 | ER4: 2034-01-01 | ES4: 2034-02-01 | ET4: 2034-03-01 | EU4: =EOMONTH(ET4,0)+1 -> 2034-04-01 | EV4: 2034-05-01 | EW4: 2034-06-01 | EX4: 2034-07-01 | EY4: 2034-08-01 | EZ4: 2034-09-01
A5: Preference | D5: PRE | E5: =+SUM(E6:E10) -> 65201985.53 | F5: 65201985.53 | G5: 65201985.53 | H5: 65201985.53 | I5: 65201985.53 | J5: 65201985.53 | L5: 2951149.277 | M5: 3375074.475 | N5: 4039711.25 | O5: 3973847.338 | P5: 3580631.978 | Q5: 3652101.892 | R5: 2872617.278 | S5: 2914904.848 | T5: 2931609.649 | U5: 3090057.079 | V5: 3310064.303 | W5: 2827225.112 | X5: 2951149.277 | Y5: 3375074.475 | Z5: 4039711.25 | AA5: 3973847.338 | AB5: 3580631.978 | AC5: 3652101.892 | AD5: 2872617.278 | AE5: 2914904.848 | AF5: 2931609.649 | AG5: 3090057.079 | AH5: 3310064.303 | AI5: 2827225.112 | AJ5: 2951149.277 | AK5: 3375074.475 | AL5: 4039711.25 | AM5: 3973847.338 | AN5: 3580631.978 | AO5: 3652101.892 | AP5: 2872617.278 | AQ5: 2914904.848 | AR5: 2931609.649 | AS5: 3090057.079 | AT5: 3310064.303 | AU5: 2827225.112 | AV5: 2951149.277 | AW5: 3375074.475 | AX5: 4039711.25 | AY5: 3973847.338 | AZ5: 3580631.978 | BA5: 3652101.892 | BB5: 2872617.278 | BC5: 2914904.848 | BD5: 2931609.649 | BE5: 3090057.079 | BF5: 3310064.303 | BG5: 2827225.112 | BH5: 2951149.277 | BI5: 3375074.475 | BJ5: 4039711.25 | BK5: 3973847.338 | BL5: 3580631.978 | BM5: 3652101.892 | BN5: 2872617.278 | BO5: 2914904.848 | BP5: 2931609.649 | BQ5: 3090057.079 | BR5: 3310064.303 | BS5: 2827225.112 | BT5: 2951149.277 | BU5: 3375074.475 | BV5: 4039711.25 | BW5: 3973847.338 | BX5: 3580631.978 | BY5: 3652101.892 | BZ5: 2872617.278 | CA5: 2914904.848 | CB5: 2931609.649 | CC5: 3090057.079 | CD5: 3310064.303 | CE5: 2827225.112 | CG5: 1954494.772 | CH5: 2274856.331 | CI5: 2659230.424 | CJ5: 2823742.247 | CK5: 2292025.188 | CL5: 2230762.383 | CM5: 1979749.172 | CN5: 1880388.743 | CO5: 1730014.247 | CP5: 2142235.557 | CQ5: 1883439.81 | CR5: 1832052.173 | CS5: 1954494.772 | CT5: 2274856.331 | CU5: 2659230.424 | CV5: 2823742.247 | CW5: 2292025.188 | CX5: 2230762.383 | CY5: 1979749.172 | CZ5: 1880388.743 | DA5: 1730014.247 | DB5: 2142235.557 | DC5: 1883439.81 | DD5: 1832052.173 | DE5: 1954494.772 | DF5: 2274856.331 | DG5: 2659230.424 | DH5: 2823742.247 | DI5: 2292025.188 | DJ5: 2230762.383 | DK5: 1979749.172 | DL5: 1880388.743 | DM5: 1730014.247 | DN5: 2142235.557 | DO5: 1883439.81 | DP5: 1832052.173 | DQ5: 1954494.772 | DR5: 2274856.331 | DS5: 2659230.424 | DT5: 2823742.247 | DU5: 2292025.188 | DV5: 2230762.383 | DW5: 1979749.172 | DX5: 1880388.743 | DY5: 1730014.247 | DZ5: 2142235.557 | EA5: 1883439.81 | EB5: 1832052.173 | EC5: 1954494.772 | ED5: 2274856.331 | EE5: 2659230.424 | EF5: 2823742.247 | EG5: 2292025.188 | EH5: 2230762.383 | EI5: 1979749.172 | EJ5: 1880388.743 | EK5: 1730014.247 | EL5: 2142235.557 | EM5: 1883439.81 | EN5: 1832052.173 | EO5: 1954494.772 | EP5: 2274856.331 | EQ5: 2659230.424 | ER5: 2823742.247 | ES5: 2292025.188 | ET5: 2230762.383 | EU5: 1979749.172 | EV5: 1880388.743 | EW5: 1730014.247 | EX5: 2142235.557 | EY5: 1883439.81 | EZ5: 1832052.173
B6: Block | D6: PRE_BLK | E6: =+SUM(L6:W6,CG6:CR6) -> 5169788.064 | F6: =+SUM(X6:AI6,CS6:DD6) -> 5169788.064 | G6: =+SUM(AJ6:AU6,DE6:DP6) -> 5169788.064 | H6: =+SUM(AV6:BG6,DQ6:EB6) -> 5169788.064 | I6: =+SUM(BH6:BS6,EC6:EN6) -> 5169788.064 | J6: =+SUM(BT6:CE6,EO6:EZ6) -> 5169788.064 | L6: 243488.3182 | M6: 384836.3279 | N6: 397448.0782 | O6: 434533.41 | P6: 369856.8225 | Q6: 388496.7275 | R6: 187437.7742 | S6: 68927.87232 | T6: 9247.907635 | U6: 155542.5151 | V6: 176213.1927 | W6: 280455.9766 | X6: 243488.3182 | Y6: 384836.3279 | Z6: 397448.0782 | AA6: 434533.41 | AB6: 369856.8225 | AC6: 388496.7275 | AD6: 187437.7742 | AE6: 68927.87232 | AF6: 9247.907635 | AG6: 155542.5151 | AH6: 176213.1927 | AI6: 280455.9766 | AJ6: 243488.3182 | AK6: 384836.3279 | AL6: 397448.0782 | AM6: 434533.41 | AN6: 369856.8225 | AO6: 388496.7275 | AP6: 187437.7742 | AQ6: 68927.87232 | AR6: 9247.907635 | AS6: 155542.5151 | AT6: 176213.1927 | AU6: 280455.9766 | AV6: 243488.3182 | AW6: 384836.3279 | AX6: 397448.0782 | AY6: 434533.41 | AZ6: 369856.8225 | BA6: 388496.7275 | BB6: 187437.7742 | BC6: 68927.87232 | BD6: 9247.907635 | BE6: 155542.5151 | BF6: 176213.1927 | BG6: 280455.9766 | BH6: 243488.3182 | BI6: 384836.3279 | BJ6: 397448.0782 | BK6: 434533.41 | BL6: 369856.8225 | BM6: 388496.7275 | BN6: 187437.7742 | BO6: 68927.87232 | BP6: 9247.907635 | BQ6: 155542.5151 | BR6: 176213.1927 | BS6: 280455.9766 | BT6: 243488.3182 | BU6: 384836.3279 | BV6: 397448.0782 | BW6: 434533.41 | BX6: 369856.8225 | BY6: 388496.7275 | BZ6: 187437.7742 | CA6: 68927.87232 | CB6: 9247.907635 | CC6: 155542.5151 | CD6: 176213.1927 | CE6: 280455.9766 | CG6: 162639.5528 | CH6: 258080.3028 | CI6: 266212.1793 | CJ6: 292367.2379 | CK6: 247531.4399 | CL6: 259665.3127 | CM6: 125058.9726 | CN6: 45951.91488 | CO6: 6165.271757 | CP6: 104230.6697 | CQ6: 117646.0757 | CR6: 187754.2112 | CS6: 162639.5528 | CT6: 258080.3028 | CU6: 266212.1793 | CV6: 292367.2379 | CW6: 247531.4399 | CX6: 259665.3127 | CY6: 125058.9726 | CZ6: 45951.91488 | DA6: 6165.271757 | DB6: 104230.6697 | DC6: 117646.0757 | DD6: 187754.2112 | DE6: 162639.5528 | DF6: 258080.3028 | DG6: 266212.1793 | DH6: 292367.2379 | DI6: 247531.4399 | DJ6: 259665.3127 | DK6: 125058.9726 | DL6: 45951.91488 | DM6: 6165.271757 | DN6: 104230.6697 | DO6: 117646.0757 | DP6: 187754.2112 | DQ6: 162639.5528 | DR6: 258080.3028 | DS6: 266212.1793 | DT6: 292367.2379 | DU6: 247531.4399 | DV6: 259665.3127 | DW6: 125058.9726 | DX6: 45951.91488 | DY6: 6165.271757 | DZ6: 104230.6697 | EA6: 117646.0757 | EB6: 187754.2112 | EC6: 162639.5528 | ED6: 258080.3028 | EE6: 266212.1793 | EF6: 292367.2379 | EG6: 247531.4399 | EH6: 259665.3127 | EI6: 125058.9726 | EJ6: 45951.91488 | EK6: 6165.271757 | EL6: 104230.6697 | EM6: 117646.0757 | EN6: 187754.2112 | EO6: 162639.5528 | EP6: 258080.3028 | EQ6: 266212.1793 | ER6: 292367.2379 | ES6: 247531.4399 | ET6: 259665.3127 | EU6: 125058.9726 | EV6: 45951.91488 | EW6: 6165.271757 | EX6: 104230.6697 | EY6: 117646.0757 | EZ6: 187754.2112
B7: Slice Block | D7: PRE_BLK | E7: =+SUM(L7:W7,CG7:CR7) -> 5263272.037 | F7: =+SUM(X7:AI7,CS7:DD7) -> 5263272.037 | G7: =+SUM(AJ7:AU7,DE7:DP7) -> 5263272.037 | H7: =+SUM(AV7:BG7,DQ7:EB7) -> 5263272.037 | I7: =+SUM(BH7:BS7,EC7:EN7) -> 5263272.037 | J7: =+SUM(BT7:CE7,EO7:EZ7) -> 5263272.037 | L7: 229645.8467 | M7: 243510.5561 | N7: 289639.9392 | O7: 276931.2225 | P7: 255230.1955 | Q7: 269549.588 | R7: 236024.7126 | S7: 221601.9305 | T7: 225819.9737 | U7: 232027.1906 | V7: 247921.5013 | W7: 223482.7164 | X7: 229645.8467 | Y7: 243510.5561 | Z7: 289639.9392 | AA7: 276931.2225 | AB7: 255230.1955 | AC7: 269549.588 | AD7: 236024.7126 | AE7: 221601.9305 | AF7: 225819.9737 | AG7: 232027.1906 | AH7: 247921.5013 | AI7: 223482.7164 | AJ7: 229645.8467 | AK7: 243510.5561 | AL7: 289639.9392 | AM7: 276931.2225 | AN7: 255230.1955 | AO7: 269549.588 | AP7: 236024.7126 | AQ7: 221601.9305 | AR7: 225819.9737 | AS7: 232027.1906 | AT7: 247921.5013 | AU7: 223482.7164 | AV7: 229645.8467 | AW7: 243510.5561 | AX7: 289639.9392 | AY7: 276931.2225 | AZ7: 255230.1955 | BA7: 269549.588 | BB7: 236024.7126 | BC7: 221601.9305 | BD7: 225819.9737 | BE7: 232027.1906 | BF7: 247921.5013 | BG7: 223482.7164 | BH7: 229645.8467 | BI7: 243510.5561 | BJ7: 289639.9392 | BK7: 276931.2225 | BL7: 255230.1955 | BM7: 269549.588 | BN7: 236024.7126 | BO7: 221601.9305 | BP7: 225819.9737 | BQ7: 232027.1906 | BR7: 247921.5013 | BS7: 223482.7164 | BT7: 229645.8467 | BU7: 243510.5561 | BV7: 289639.9392 | BW7: 276931.2225 | BX7: 255230.1955 | BY7: 269549.588 | BZ7: 236024.7126 | CA7: 221601.9305 | CB7: 225819.9737 | CC7: 232027.1906 | CD7: 247921.5013 | CE7: 223482.7164 | CG7: 181066.9176 | CH7: 195417.2213 | CI7: 228369.9521 | CJ7: 238160.8514 | CK7: 188870.3446 | CL7: 194050.7451 | CM7: 188819.7701 | CN7: 174724.5991 | CO7: 165022.2884 | CP7: 199543.3839 | CQ7: 179054.4176 | CR7: 178786.1731 | CS7: 181066.9176 | CT7: 195417.2213 | CU7: 228369.9521 | CV7: 238160.8514 | CW7: 188870.3446 | CX7: 194050.7451 | CY7: 188819.7701 | CZ7: 174724.5991 | DA7: 165022.2884 | DB7: 199543.3839 | DC7: 179054.4176 | DD7: 178786.1731 | DE7: 181066.9176 | DF7: 195417.2213 | DG7: 228369.9521 | DH7: 238160.8514 | DI7: 188870.3446 | DJ7: 194050.7451 | DK7: 188819.7701 | DL7: 174724.5991 | DM7: 165022.2884 | DN7: 199543.3839 | DO7: 179054.4176 | DP7: 178786.1731 | DQ7: 181066.9176 | DR7: 195417.2213 | DS7: 228369.9521 | DT7: 238160.8514 | DU7: 188870.3446 | DV7: 194050.7451 | DW7: 188819.7701 | DX7: 174724.5991 | DY7: 165022.2884 | DZ7: 199543.3839 | EA7: 179054.4176 | EB7: 178786.1731 | EC7: 181066.9176 | ED7: 195417.2213 | EE7: 228369.9521 | EF7: 238160.8514 | EG7: 188870.3446 | EH7: 194050.7451 | EI7: 188819.7701 | EJ7: 174724.5991 | EK7: 165022.2884 | EL7: 199543.3839 | EM7: 179054.4176 | EN7: 178786.1731 | EO7: 181066.9176 | EP7: 195417.2213 | EQ7: 228369.9521 | ER7: 238160.8514 | ES7: 188870.3446 | ET7: 194050.7451 | EU7: 188819.7701 | EV7: 174724.5991 | EW7: 165022.2884 | EX7: 199543.3839 | EY7: 179054.4176 | EZ7: 178786.1731
B8: Slice | D8: PRE_SNB | E8: =+SUM(L8:W8,CG8:CR8) -> 7371809.243 | F8: =+SUM(X8:AI8,CS8:DD8) -> 7371809.243 | G8: =+SUM(AJ8:AU8,DE8:DP8) -> 7371809.243 | H8: 7371809.243 | I8: 7371809.243 | J8: 7371809.243 | L8: 294924.3542 | M8: 385594.3988 | N8: 454332.2146 | O8: 464771.6584 | P8: 398014.6506 | Q8: 432751.7078 | R8: 290931.0854 | S8: 425411.7275 | T8: 438806.7648 | U8: 364737.3941 | V8: 413639.6949 | W8: 292945.4079 | X8: 294924.3542 | Y8: 385594.3988 | Z8: 454332.2146 | AA8: 464771.6584 | AB8: 398014.6506 | AC8: 432751.7078 | AD8: 290931.0854 | AE8: 425411.7275 | AF8: 438806.7648 | AG8: 364737.3941 | AH8: 413639.6949 | AI8: 292945.4079 | AJ8: 294924.3542 | AK8: 385594.3988 | AL8: 454332.2146 | AM8: 464771.6584 | AN8: 398014.6506 | AO8: 432751.7078 | AP8: 290931.0854 | AQ8: 425411.7275 | AR8: 438806.7648 | AS8: 364737.3941 | AT8: 413639.6949 | AU8: 292945.4079 | AV8: 294924.3542 | AW8: 385594.3988 | AX8: 454332.2146 | AY8: 464771.6584 | AZ8: 398014.6506 | BA8: 432751.7078 | BB8: 290931.0854 | BC8: 425411.7275 | BD8: 438806.7648 | BE8: 364737.3941 | BF8: 413639.6949 | BG8: 292945.4079 | BH8: 294924.3542 | BI8: 385594.3988 | BJ8: 454332.2146 | BK8: 464771.6584 | BL8: 398014.6506 | BM8: 432751.7078 | BN8: 290931.0854 | BO8: 425411.7275 | BP8: 438806.7648 | BQ8: 364737.3941 | BR8: 413639.6949 | BS8: 292945.4079 | BT8: 294924.3542 | BU8: 385594.3988 | BV8: 454332.2146 | BW8: 464771.6584 | BX8: 398014.6506 | BY8: 432751.7078 | BZ8: 290931.0854 | CA8: 425411.7275 | CB8: 438806.7648 | CC8: 364737.3941 | CD8: 413639.6949 | CE8: 292945.4079 | CG8: 191609.0249 | CH8: 236911.8855 | CI8: 256804.4829 | CJ8: 282435.9378 | CK8: 224563.1885 | CL8: 218689.2644 | CM8: 204323.3943 | CN8: 260553.5658 | CO8: 237877.1266 | CP8: 227409.6548 | CQ8: 194378.66 | CR8: 179391.9979 | CS8: 191609.0249 | CT8: 236911.8855 | CU8: 256804.4829 | CV8: 282435.9378 | CW8: 224563.1885 | CX8: 218689.2644 | CY8: 204323.3943 | CZ8: 260553.5658 | DA8: 237877.1266 | DB8: 227409.6548 | DC8: 194378.66 | DD8: 179391.9979 | DE8: 191609.0249 | DF8: 236911.8855 | DG8: 256804.4829 | DH8: 282435.9378 | DI8: 224563.1885 | DJ8: 218689.2644 | DK8: 204323.3943 | DL8: 260553.5658 | DM8: 237877.1266 | DN8: 227409.6548 | DO8: 194378.66 | DP8: 179391.9979 | DQ8: 191609.0249 | DR8: 236911.8855 | DS8: 256804.4829 | DT8: 282435.9378 | DU8: 224563.1885 | DV8: 218689.2644 | DW8: 204323.3943 | DX8: 260553.5658 | DY8: 237877.1266 | DZ8: 227409.6548 | EA8: 194378.66 | EB8: 179391.9979 | EC8: 191609.0249 | ED8: 236911.8855 | EE8: 256804.4829 | EF8: 282435.9378 | EG8: 224563.1885 | EH8: 218689.2644 | EI8: 204323.3943 | EJ8: 260553.5658 | EK8: 237877.1266 | EL8: 227409.6548 | EM8: 194378.66 | EN8: 179391.9979 | EO8: 191609.0249 | EP8: 236911.8855 | EQ8: 256804.4829 | ER8: 282435.9378 | ES8: 224563.1885 | ET8: 218689.2644 | EU8: 204323.3943 | EV8: 260553.5658 | EW8: 237877.1266 | EX8: 227409.6548 | EY8: 194378.66 | EZ8: 179391.9979
B9: Load Following | D9: PRE_LDF | E9: 41991187.85 | F9: 41991187.85 | G9: =+SUM(AJ9:AU9,DE9:DP9) -> 41991187.85 | H9: 41991187.85 | I9: 41991187.85 | J9: 41991187.85 | L9: 1927575.029 | M9: 2115092.812 | N9: 2642825.298 | O9: 2551686.696 | P9: 2311150.876 | Q9: 2295296.616 | R9: 1912254.346 | S9: 1942694.461 | T9: 2001131.086 | U9: 2091010.481 | V9: 2205810.576 | W9: 1784897.746 | X9: 1927575.029 | Y9: 2115092.812 | Z9: 2642825.298 | AA9: 2551686.696 | AB9: 2311150.876 | AC9: 2295296.616 | AD9: 1912254.346 | AE9: 1942694.461 | AF9: 2001131.086 | AG9: 2091010.481 | AH9: 2205810.576 | AI9: 1784897.746 | AJ9: 1927575.029 | AK9: 2115092.812 | AL9: 2642825.298 | AM9: 2551686.696 | AN9: 2311150.876 | AO9: 2295296.616 | AP9: 1912254.346 | AQ9: 1942694.461 | AR9: 2001131.086 | AS9: 2091010.481 | AT9: 2205810.576 | AU9: 1784897.746 | AV9: 1927575.029 | AW9: 2115092.812 | AX9: 2642825.298 | AY9: 2551686.696 | AZ9: 2311150.876 | BA9: 2295296.616 | BB9: 1912254.346 | BC9: 1942694.461 | BD9: 2001131.086 | BE9: 2091010.481 | BF9: 2205810.576 | BG9: 1784897.746 | BH9: 1927575.029 | BI9: 2115092.812 | BJ9: 2642825.298 | BK9: 2551686.696 | BL9: 2311150.876 | BM9: 2295296.616 | BN9: 1912254.346 | BO9: 1942694.461 | BP9: 2001131.086 | BQ9: 2091010.481 | BR9: 2205810.576 | BS9: 1784897.746 | BT9: 1927575.029 | BU9: 2115092.812 | BV9: 2642825.298 | BW9: 2551686.696 | BX9: 2311150.876 | BY9: 2295296.616 | BZ9: 1912254.346 | CA9: 1942694.461 | CB9: 2001131.086 | CC9: 2091010.481 | CD9: 2205810.576 | CE9: 1784897.746 | CG9: 1217661.307 | CH9: 1387046.037 | CI9: 1706433.86 | CJ9: 1799235.809 | CK9: 1448765.999 | CL9: 1366896.029 | CM9: 1264719.738 | CN9: 1197131.609 | CO9: 1133433.583 | CP9: 1398855.32 | CQ9: 1199903.968 | CR9: 1089678.564 | CS9: 1217661.307 | CT9: 1387046.037 | CU9: 1706433.86 | CV9: 1799235.809 | CW9: 1448765.999 | CX9: 1366896.029 | CY9: 1264719.738 | CZ9: 1197131.609 | DA9: 1133433.583 | DB9: 1398855.32 | DC9: 1199903.968 | DD9: 1089678.564 | DE9: 1217661.307 | DF9: 1387046.037 | DG9: 1706433.86 | DH9: 1799235.809 | DI9: 1448765.999 | DJ9: 1366896.029 | DK9: 1264719.738 | DL9: 1197131.609 | DM9: 1133433.583 | DN9: 1398855.32 | DO9: 1199903.968 | DP9: 1089678.564 | DQ9: 1217661.307 | DR9: 1387046.037 | DS9: 1706433.86 | DT9: 1799235.809 | DU9: 1448765.999 | DV9: 1366896.029 | DW9: 1264719.738 | DX9: 1197131.609 | DY9: 1133433.583 | DZ9: 1398855.32 | EA9: 1199903.968 | EB9: 1089678.564 | EC9: 1217661.307 | ED9: 1387046.037 | EE9: 1706433.86 | EF9: 1799235.809 | EG9: 1448765.999 | EH9: 1366896.029 | EI9: 1264719.738 | EJ9: 1197131.609 | EK9: 1133433.583 | EL9: 1398855.32 | EM9: 1199903.968 | EN9: 1089678.564 | EO9: 1217661.307 | EP9: 1387046.037 | EQ9: 1706433.86 | ER9: 1799235.809 | ES9: 1448765.999 | ET9: 1366896.029 | EU9: 1264719.738 | EV9: 1197131.609 | EW9: 1133433.583 | EX9: 1398855.32 | EY9: 1199903.968 | EZ9: 1089678.564
B10: Tier 2 | D10: PRE_T2 | E10: 5405928.336 | F10: 5405928.336 | G10: =+SUM(AJ10:AU10,DE10:DP10) -> 5405928.336 | H10: 5405928.336 | I10: 5405928.336 | J10: 5405928.336 | L10: 255515.7292 | M10: 246040.3799 | N10: 255465.7202 | O10: 245924.3514 | P10: 246379.4333 | Q10: 266007.2531 | R10: 245969.3595 | S10: 256268.8568 | T10: 256603.9171 | U10: 246739.4982 | V10: 266479.3381 | W10: 245443.2647 | X10: 255515.7292 | Y10: 246040.3799 | Z10: 255465.7202 | AA10: 245924.3514 | AB10: 246379.4333 | AC10: 266007.2531 | AD10: 245969.3595 | AE10: 256268.8568 | AF10: 256603.9171 | AG10: 246739.4982 | AH10: 266479.3381 | AI10: 245443.2647 | AJ10: 255515.7292 | AK10: 246040.3799 | AL10: 255465.7202 | AM10: 245924.3514 | AN10: 246379.4333 | AO10: 266007.2531 | AP10: 245969.3595 | AQ10: 256268.8568 | AR10: 256603.9171 | AS10: 246739.4982 | AT10: 266479.3381 | AU10: 245443.2647 | AV10: 255515.7292 | AW10: 246040.3799 | AX10: 255465.7202 | AY10: 245924.3514 | AZ10: 246379.4333 | BA10: 266007.2531 | BB10: 245969.3595 | BC10: 256268.8568 | BD10: 256603.9171 | BE10: 246739.4982 | BF10: 266479.3381 | BG10: 245443.2647 | BH10: 255515.7292 | BI10: 246040.3799 | BJ10: 255465.7202 | BK10: 245924.3514 | BL10: 246379.4333 | BM10: 266007.2531 | BN10: 245969.3595 | BO10: 256268.8568 | BP10: 256603.9171 | BQ10: 246739.4982 | BR10: 266479.3381 | BS10: 245443.2647 | BT10: 255515.7292 | BU10: 246040.3799 | BV10: 255465.7202 | BW10: 245924.3514 | BX10: 246379.4333 | BY10: 266007.2531 | BZ10: 245969.3595 | CA10: 256268.8568 | CB10: 256603.9171 | CC10: 246739.4982 | CD10: 266479.3381 | CE10: 245443.2647 | CG10: 201517.9692 | CH10: 197400.884 | CI10: 201409.9497 | CJ10: 211542.4107 | CK10: 182294.2159 | CL10: 191461.0316 | CM10: 196827.2968 | CN10: 202027.0545 | CO10: 187515.9776 | CP10: 212196.5285 | CQ10: 192456.6886 | CR10: 196441.2273 | CS10: 201517.9692 | CT10: 197400.884 | CU10: 201409.9497 | CV10: 211542.4107 | CW10: 182294.2159 | CX10: 191461.0316 | CY10: 196827.2968 | CZ10: 202027.0545 | DA10: 187515.9776 | DB10: 212196.5285 | DC10: 192456.6886 | DD10: 196441.2273 | DE10: 201517.9692 | DF10: 197400.884 | DG10: 201409.9497 | DH10: 211542.4107 | DI10: 182294.2159 | DJ10: 191461.0316 | DK10: 196827.2968 | DL10: 202027.0545 | DM10: 187515.9776 | DN10: 212196.5285 | DO10: 192456.6886 | DP10: 196441.2273 | DQ10: 201517.9692 | DR10: 197400.884 | DS10: 201409.9497 | DT10: 211542.4107 | DU10: 182294.2159 | DV10: 191461.0316 | DW10: 196827.2968 | DX10: 202027.0545 | DY10: 187515.9776 | DZ10: 212196.5285 | EA10: 192456.6886 | EB10: 196441.2273 | EC10: 201517.9692 | ED10: 197400.884 | EE10: 201409.9497 | EF10: 211542.4107 | EG10: 182294.2159 | EH10: 191461.0316 | EI10: 196827.2968 | EJ10: 202027.0545 | EK10: 187515.9776 | EL10: 212196.5285 | EM10: 192456.6886 | EN10: 196441.2273 | EO10: 201517.9692 | EP10: 197400.884 | EQ10: 201409.9497 | ER10: 211542.4107 | ES10: 182294.2159 | ET10: 191461.0316 | EU10: 196827.2968 | EV10: 202027.0545 | EW10: 187515.9776 | EX10: 212196.5285 | EY10: 192456.6886 | EZ10: 196441.2273
A11: Industrial | D11: IND | E11: =+SUM(E12:E13) -> 96624 | F11: 96624 | G11: 96624 | H11: 96624 | I11: 96624 | J11: 96624 | L11: 4660.406 | M11: 4350.871 | N11: 4408.261 | O11: 4424.143 | P11: 4303.342 | Q11: 4657.349 | R11: 4477.511 | S11: 4478.292 | T11: 4524.994 | U11: 4421.576 | V11: 4702.721 | W11: 4189.254 | X11: 4660.406 | Y11: 4350.871 | Z11: 4408.261 | AA11: 4424.143 | AB11: 4303.342 | AC11: 4657.349 | AD11: 4477.511 | AE11: 4478.292 | AF11: 4524.994 | AG11: 4421.576 | AH11: 4702.721 | AI11: 4189.254 | AJ11: 4660.406 | AK11: 4350.871 | AL11: 4408.261 | AM11: 4424.143 | AN11: 4303.342 | AO11: 4657.349 | AP11: 4477.511 | AQ11: 4478.292 | AR11: 4524.994 | AS11: 4421.576 | AT11: 4702.721 | AU11: 4189.254 | AV11: 4660.406 | AW11: 4350.871 | AX11: 4408.261 | AY11: 4424.143 | AZ11: 4303.342 | BA11: 4657.349 | BB11: 4477.511 | BC11: 4478.292 | BD11: 4524.994 | BE11: 4421.576 | BF11: 4702.721 | BG11: 4189.254 | BH11: 4660.406 | BI11: 4350.871 | BJ11: 4408.261 | BK11: 4424.143 | BL11: 4303.342 | BM11: 4657.349 | BN11: 4477.511 | BO11: 4478.292 | BP11: 4524.994 | BQ11: 4421.576 | BR11: 4702.721 | BS11: 4189.254 | BT11: 4660.406 | BU11: 4350.871 | BV11: 4408.261 | BW11: 4424.143 | BX11: 4303.342 | BY11: 4657.349 | BZ11: 4477.511 | CA11: 4478.292 | CB11: 4524.994 | CC11: 4421.576 | CD11: 4702.721 | CE11: 4189.254 | CG11: 3523.594 | CH11: 3580.129 | CI11: 3775.739 | CJ11: 3759.857 | CK11: 3352.658 | CL11: 3515.651 | CM11: 3442.489 | CN11: 3705.708 | CO11: 3395.006 | CP11: 3762.424 | CQ11: 3481.279 | CR11: 3730.746 | CS11: 3523.594 | CT11: 3580.129 | CU11: 3775.739 | CV11: 3759.857 | CW11: 3352.658 | CX11: 3515.651 | CY11: 3442.489 | CZ11: 3705.708 | DA11: 3395.006 | DB11: 3762.424 | DC11: 3481.279 | DD11: 3730.746 | DE11: 3523.594 | DF11: 3580.129 | DG11: 3775.739 | DH11: 3759.857 | DI11: 3352.658 | DJ11: 3515.651 | DK11: 3442.489 | DL11: 3705.708 | DM11: 3395.006 | DN11: 3762.424 | DO11: 3481.279 | DP11: 3730.746 | DQ11: 3523.594 | DR11: 3580.129 | DS11: 3775.739 | DT11: 3759.857 | DU11: 3352.658 | DV11: 3515.651 | DW11: 3442.489 | DX11: 3705.708 | DY11: 3395.006 | DZ11: 3762.424 | EA11: 3481.279 | EB11: 3730.746 | EC11: 3523.594 | ED11: 3580.129 | EE11: 3775.739 | EF11: 3759.857 | EG11: 3352.658 | EH11: 3515.651 | EI11: 3442.489 | EJ11: 3705.708 | EK11: 3395.006 | EL11: 3762.424 | EM11: 3481.279 | EN11: 3730.746 | EO11: 3523.594 | EP11: 3580.129 | EQ11: 3775.739 | ER11: 3759.857 | ES11: 3352.658 | ET11: 3515.651 | EU11: 3442.489 | EV11: 3705.708 | EW11: 3395.006 | EX11: 3762.424 | EY11: 3481.279 | EZ11: 3730.746
B12: Smelter | D12: IND_SMT | E12: 0 | F12: 0 | G12: =+SUM(AJ12:AU12,DE12:DP12) -> 0 | H12: 0 | I12: 0 | J12: 0 | L12: 0 | M12: 0 | N12: 0 | O12: 0 | P12: 0 | Q12: 0 | R12: 0 | S12: 0 | T12: 0 | U12: 0 | V12: 0 | W12: 0 | X12: 0 | Y12: 0 | Z12: 0 | AA12: 0 | AB12: 0 | AC12: 0 | AD12: 0 | AE12: 0 | AF12: 0 | AG12: 0 | AH12: 0 | AI12: 0 | AJ12: 0 | AK12: 0 | AL12: 0 | AM12: 0 | AN12: 0 | AO12: 0 | AP12: 0 | AQ12: 0 | AR12: 0 | AS12: 0 | AT12: 0 | AU12: 0 | AV12: 0 | AW12: 0 | AX12: 0 | AY12: 0 | AZ12: 0 | BA12: 0 | BB12: 0 | BC12: 0 | BD12: 0 | BE12: 0 | BF12: 0 | BG12: 0 | BH12: 0 | BI12: 0 | BJ12: 0 | BK12: 0 | BL12: 0 | BM12: 0 | BN12: 0 | BO12: 0 | BP12: 0 | BQ12: 0 | BR12: 0 | BS12: 0 | BT12: 0 | BU12: 0 | BV12: 0 | BW12: 0 | BX12: 0 | BY12: 0 | BZ12: 0 | CA12: 0 | CB12: 0 | CC12: 0 | CD12: 0 | CE12: 0 | CG12: 0 | CH12: 0 | CI12: 0 | CJ12: 0 | CK12: 0 | CL12: 0 | CM12: 0 | CN12: 0 | CO12: 0 | CP12: 0 | CQ12: 0 | CR12: 0 | CS12: 0 | CT12: 0 | CU12: 0 | CV12: 0 | CW12: 0 | CX12: 0 | CY12: 0 | CZ12: 0 | DA12: 0 | DB12: 0 | DC12: 0 | DD12: 0 | DE12: 0 | DF12: 0 | DG12: 0 | DH12: 0 | DI12: 0 | DJ12: 0 | DK12: 0 | DL12: 0 | DM12: 0 | DN12: 0 | DO12: 0 | DP12: 0 | DQ12: 0 | DR12: 0 | DS12: 0 | DT12: 0 | DU12: 0 | DV12: 0 | DW12: 0 | DX12: 0 | DY12: 0 | DZ12: 0 | EA12: 0 | EB12: 0 | EC12: 0 | ED12: 0 | EE12: 0 | EF12: 0 | EG12: 0 | EH12: 0 | EI12: 0 | EJ12: 0 | EK12: 0 | EL12: 0 | EM12: 0 | EN12: 0 | EO12: 0 | EP12: 0 | EQ12: 0 | ER12: 0 | ES12: 0 | ET12: 0 | EU12: 0 | EV12: 0 | EW12: 0 | EX12: 0 | EY12: 0 | EZ12: 0
B13: Other Industrial | D13: IND_OTH | E13: 96624 | F13: 96624 | G13: 96624 | H13: 96624 | I13: 96624 | J13: 96624 | L13: 4660.406 | M13: 4350.871 | N13: 4408.261 | O13: 4424.143 | P13: 4303.342 | Q13: 4657.349 | R13: 4477.511 | S13: 4478.292 | T13: 4524.994 | U13: 4421.576 | V13: 4702.721 | W13: 4189.254 | X13: 4660.406 | Y13: 4350.871 | Z13: 4408.261 | AA13: 4424.143 | AB13: 4303.342 | AC13: 4657.349 | AD13: 4477.511 | AE13: 4478.292 | AF13: 4524.994 | AG13: 4421.576 | AH13: 4702.721 | AI13: 4189.254 | AJ13: 4660.406 | AK13: 4350.871 | AL13: 4408.261 | AM13: 4424.143 | AN13: 4303.342 | AO13: 4657.349 | AP13: 4477.511 | AQ13: 4478.292 | AR13: 4524.994 | AS13: 4421.576 | AT13: 4702.721 | AU13: 4189.254 | AV13: 4660.406 | AW13: 4350.871 | AX13: 4408.261 | AY13: 4424.143 | AZ13: 4303.342 | BA13: 4657.349 | BB13: 4477.511 | BC13: 4478.292 | BD13: 4524.994 | BE13: 4421.576 | BF13: 4702.721 | BG13: 4189.254 | BH13: 4660.406 | BI13: 4350.871 | BJ13: 4408.261 | BK13: 4424.143 | BL13: 4303.342 | BM13: 4657.349 | BN13: 4477.511 | BO13: 4478.292 | BP13: 4524.994 | BQ13: 4421.576 | BR13: 4702.721 | BS13: 4189.254 | BT13: 4660.406 | BU13: 4350.871 | BV13: 4408.261 | BW13: 4424.143 | BX13: 4303.342 | BY13: 4657.349 | BZ13: 4477.511 | CA13: 4478.292 | CB13: 4524.994 | CC13: 4421.576 | CD13: 4702.721 | CE13: 4189.254 | CG13: 3523.594 | CH13: 3580.129 | CI13: 3775.739 | CJ13: 3759.857 | CK13: 3352.658 | CL13: 3515.651 | CM13: 3442.489 | CN13: 3705.708 | CO13: 3395.006 | CP13: 3762.424 | CQ13: 3481.279 | CR13: 3730.746 | CS13: 3523.594 | CT13: 3580.129 | CU13: 3775.739 | CV13: 3759.857 | CW13: 3352.658 | CX13: 3515.651 | CY13: 3442.489 | CZ13: 3705.708 | DA13: 3395.006 | DB13: 3762.424 | DC13: 3481.279 | DD13: 3730.746 | DE13: 3523.594 | DF13: 3580.129 | DG13: 3775.739 | DH13: 3759.857 | DI13: 3352.658 | DJ13: 3515.651 | DK13: 3442.489 | DL13: 3705.708 | DM13: 3395.006 | DN13: 3762.424 | DO13: 3481.279 | DP13: 3730.746 | DQ13: 3523.594 | DR13: 3580.129 | DS13: 3775.739 | DT13: 3759.857 | DU13: 3352.658 | DV13: 3515.651 | DW13: 3442.489 | DX13: 3705.708 | DY13: 3395.006 | DZ13: 3762.424 | EA13: 3481.279 | EB13: 3730.746 | EC13: 3523.594 | ED13: 3580.129 | EE13: 3775.739 | EF13: 3759.857 | EG13: 3352.658 | EH13: 3515.651 | EI13: 3442.489 | EJ13: 3705.708 | EK13: 3395.006 | EL13: 3762.424 | EM13: 3481.279 | EN13: 3730.746 | EO13: 3523.594 | EP13: 3580.129 | EQ13: 3775.739 | ER13: 3759.857 | ES13: 3352.658 | ET13: 3515.651 | EU13: 3442.489 | EV13: 3705.708 | EW13: 3395.006 | EX13: 3762.424 | EY13: 3481.279 | EZ13: 3730.746
A14: New Resource | D14: NR | E14: 224592 | F14: 224592 | G14: 224592 | H14: 224592 | I14: 224592 | J14: 224592 | L14: 9358 | M14: 9358 | N14: 9358 | O14: 9358 | P14: 9358 | Q14: 9358 | R14: 9358 | S14: 9358 | T14: 9358 | U14: 9358 | V14: 9358 | W14: 9358 | X14: 9358 | Y14: 9358 | Z14: 9358 | AA14: 9358 | AB14: 9358 | AC14: 9358 | AD14: 9358 | AE14: 9358 | AF14: 9358 | AG14: 9358 | AH14: 9358 | AI14: 9358 | AJ14: 9358 | AK14: 9358 | AL14: 9358 | AM14: 9358 | AN14: 9358 | AO14: 9358 | AP14: 9358 | AQ14: 9358 | AR14: 9358 | AS14: 9358 | AT14: 9358 | AU14: 9358 | AV14: 9358 | AW14: 9358 | AX14: 9358 | AY14: 9358 | AZ14: 9358 | BA14: 9358 | BB14: 9358 | BC14: 9358 | BD14: 9358 | BE14: 9358 | BF14: 9358 | BG14: 9358 | BH14: 9358 | BI14: 9358 | BJ14: 9358 | BK14: 9358 | BL14: 9358 | BM14: 9358 | BN14: 9358 | BO14: 9358 | BP14: 9358 | BQ14: 9358 | BR14: 9358 | BS14: 9358 | BT14: 9358 | BU14: 9358 | BV14: 9358 | BW14: 9358 | BX14: 9358 | BY14: 9358 | BZ14: 9358 | CA14: 9358 | CB14: 9358 | CC14: 9358 | CD14: 9358 | CE14: 9358 | CG14: 9358 | CH14: 9358 | CI14: 9358 | CJ14: 9358 | CK14: 9358 | CL14: 9358 | CM14: 9358 | CN14: 9358 | CO14: 9358 | CP14: 9358 | CQ14: 9358 | CR14: 9358 | CS14: 9358 | CT14: 9358 | CU14: 9358 | CV14: 9358 | CW14: 9358 | CX14: 9358 | CY14: 9358 | CZ14: 9358 | DA14: 9358 | DB14: 9358 | DC14: 9358 | DD14: 9358 | DE14: 9358 | DF14: 9358 | DG14: 9358 | DH14: 9358 | DI14: 9358 | DJ14: 9358 | DK14: 9358 | DL14: 9358 | DM14: 9358 | DN14: 9358 | DO14: 9358 | DP14: 9358 | DQ14: 9358 | DR14: 9358 | DS14: 9358 | DT14: 9358 | DU14: 9358 | DV14: 9358 | DW14: 9358 | DX14: 9358 | DY14: 9358 | DZ14: 9358 | EA14: 9358 | EB14: 9358 | EC14: 9358 | ED14: 9358 | EE14: 9358 | EF14: 9358 | EG14: 9358 | EH14: 9358 | EI14: 9358 | EJ14: 9358 | EK14: 9358 | EL14: 9358 | EM14: 9358 | EN14: 9358 | EO14: 9358 | EP14: 9358 | EQ14: 9358 | ER14: 9358 | ES14: 9358 | ET14: 9358 | EU14: 9358 | EV14: 9358 | EW14: 9358 | EX14: 9358 | EY14: 9358 | EZ14: 9358
A15: Firm Power and Services | D15: FPS | E15: =+SUM(E16,E27,E38) -> 4617352.186 | F15: 4617352.186 | G15: 4617352.186 | H15: 4617352.186 | I15: 4617352.186 | J15: 4617352.186 | L15: 274115.0136 | M15: 228438.9776 | N15: 235909.0418 | O15: 236201.4759 | P15: 223742.3962 | Q15: 244760.9108 | R15: 300318.5039 | S15: 344112.7306 | T15: 350692.7485 | U15: 384261.099 | V15: 392293.9903 | W15: 318753.069 | X15: 274115.0136 | Y15: 228438.9776 | Z15: 235909.0418 | AA15: 236201.4759 | AB15: 223742.3962 | AC15: 244760.9108 | AD15: 300318.5039 | AE15: 344112.7306 | AF15: 350692.7485 | AG15: 384261.099 | AH15: 392293.9903 | AI15: 318753.069 | AJ15: 274115.0136 | AK15: 228438.9776 | AL15: 235909.0418 | AM15: 236201.4759 | AN15: 223742.3962 | AO15: 244760.9108 | AP15: 300318.5039 | AQ15: 344112.7306 | AR15: 350692.7485 | AS15: 384261.099 | AT15: 392293.9903 | AU15: 318753.069 | AV15: 274115.0136 | AW15: 228438.9776 | AX15: 235909.0418 | AY15: 236201.4759 | AZ15: 223742.3962 | BA15: 244760.9108 | BB15: 300318.5039 | BC15: 344112.7306 | BD15: 350692.7485 | BE15: 384261.099 | BF15: 392293.9903 | BG15: 318753.069 | BH15: 274115.0136 | BI15: 228438.9776 | BJ15: 235909.0418 | BK15: 236201.4759 | BL15: 223742.3962 | BM15: 244760.9108 | BN15: 300318.5039 | BO15: 344112.7306 | BP15: 350692.7485 | BQ15: 384261.099 | BR15: 392293.9903 | BS15: 318753.069 | BT15: 274115.0136 | BU15: 228438.9776 | BV15: 235909.0418 | BW15: 236201.4759 | BX15: 223742.3962 | BY15: 244760.9108 | BZ15: 300318.5039 | CA15: 344112.7306 | CB15: 350692.7485 | CC15: 384261.099 | CD15: 392293.9903 | CE15: 318753.069 | CG15: 59985.12855 | CH15: 4901.89383 | CI15: 4874.040872 | CJ15: 8169.773185 | CK15: 8223.053793 | CL15: 32573.2449 | CM15: 112465.0956 | CN15: 150615.1895 | CO15: 158624.611 | CP15: 208447.6443 | CQ15: 201357.128 | CR15: 133515.4255 | CS15: 59985.12855 | CT15: 4901.89383 | CU15: 4874.040872 | CV15: 8169.773185 | CW15: 8223.053793 | CX15: 32573.2449 | CY15: 112465.0956 | CZ15: 150615.1895 | DA15: 158624.611 | DB15: 208447.6443 | DC15: 201357.128 | DD15: 133515.4255 | DE15: 59985.12855 | DF15: 4901.89383 | DG15: 4874.040872 | DH15: 8169.773185 | DI15: 8223.053793 | DJ15: 32573.2449 | DK15: 112465.0956 | DL15: 150615.1895 | DM15: 158624.611 | DN15: 208447.6443 | DO15: 201357.128 | DP15: 133515.4255 | DQ15: 59985.12855 | DR15: 4901.89383 | DS15: 4874.040872 | DT15: 8169.773185 | DU15: 8223.053793 | DV15: 32573.2449 | DW15: 112465.0956 | DX15: 150615.1895 | DY15: 158624.611 | DZ15: 208447.6443 | EA15: 201357.128 | EB15: 133515.4255 | EC15: 59985.12855 | ED15: 4901.89383 | EE15: 4874.040872 | EF15: 8169.773185 | EG15: 8223.053793 | EH15: 32573.2449 | EI15: 112465.0956 | EJ15: 150615.1895 | EK15: 158624.611 | EL15: 208447.6443 | EM15: 201357.128 | EN15: 133515.4255 | EO15: 59985.12855 | EP15: 4901.89383 | EQ15: 4874.040872 | ER15: 8169.773185 | ES15: 8223.053793 | ET15: 32573.2449 | EU15: 112465.0956 | EV15: 150615.1895 | EW15: 158624.611 | EX15: 208447.6443 | EY15: 201357.128 | EZ15: 133515.4255
B16: Intraregional Transfer | D16: FPS_IRT | E16: =+SUM(E17:E26) -> 13541.62612 | F16: 13541.62612 | G16: 13541.62612 | H16: 13541.62612 | I16: 13541.62612 | J16: 13541.62612 | L16: 576.9685675 | M16: 454.9175505 | N16: 639.03283 | O16: 512.823872 | P16: 563.895185 | Q16: 472.365793 | R16: 792.6458955 | S16: 638.1035565 | T16: 521.2715315 | U16: 387.590995 | V16: 578.0023055 | W16: 439.8609955 | X16: 576.9685675 | Y16: 454.9175505 | Z16: 639.03283 | AA16: 512.823872 | AB16: 563.895185 | AC16: 472.365793 | AD16: 792.6458955 | AE16: 638.1035565 | AF16: 521.2715315 | AG16: 387.590995 | AH16: 578.0023055 | AI16: 439.8609955 | AJ16: 576.9685675 | AK16: 454.9175505 | AL16: 639.03283 | AM16: 512.823872 | AN16: 563.895185 | AO16: 472.365793 | AP16: 792.6458955 | AQ16: 638.1035565 | AR16: 521.2715315 | AS16: 387.590995 | AT16: 578.0023055 | AU16: 439.8609955 | AV16: 576.9685675 | AW16: 454.9175505 | AX16: 639.03283 | AY16: 512.823872 | AZ16: 563.895185 | BA16: 472.365793 | BB16: 792.6458955 | BC16: 638.1035565 | BD16: 521.2715315 | BE16: 387.590995 | BF16: 578.0023055 | BG16: 439.8609955 | BH16: 576.9685675 | BI16: 454.9175505 | BJ16: 639.03283 | BK16: 512.823872 | BL16: 563.895185 | BM16: 472.365793 | BN16: 792.6458955 | BO16: 638.1035565 | BP16: 521.2715315 | BQ16: 387.590995 | BR16: 578.0023055 | BS16: 439.8609955 | BT16: 576.9685675 | BU16: 454.9175505 | BV16: 639.03283 | BW16: 512.823872 | BX16: 563.895185 | BY16: 472.365793 | BZ16: 792.6458955 | CA16: 638.1035565 | CB16: 521.2715315 | CC16: 387.590995 | CD16: 578.0023055 | CE16: 439.8609955 | CG16: 454.9175505 | CH16: 639.03283 | CI16: 512.823872 | CJ16: 563.895185 | CK16: 472.365793 | CL16: 792.6458955 | CM16: 638.1035565 | CN16: 521.2715315 | CO16: 387.590995 | CP16: 578.0023055 | CQ16: 439.8609955 | CR16: 963.636529 | CS16: 454.9175505 | CT16: 639.03283 | CU16: 512.823872 | CV16: 563.895185 | CW16: 472.365793 | CX16: 792.6458955 | CY16: 638.1035565 | CZ16: 521.2715315 | DA16: 387.590995 | DB16: 578.0023055 | DC16: 439.8609955 | DD16: 963.636529 | DE16: 454.9175505 | DF16: 639.03283 | DG16: 512.823872 | DH16: 563.895185 | DI16: 472.365793 | DJ16: 792.6458955 | DK16: 638.1035565 | DL16: 521.2715315 | DM16: 387.590995 | DN16: 578.0023055 | DO16: 439.8609955 | DP16: 963.636529 | DQ16: 454.9175505 | DR16: 639.03283 | DS16: 512.823872 | DT16: 563.895185 | DU16: 472.365793 | DV16: 792.6458955 | DW16: 638.1035565 | DX16: 521.2715315 | DY16: 387.590995 | DZ16: 578.0023055 | EA16: 439.8609955 | EB16: 963.636529 | EC16: 454.9175505 | ED16: 639.03283 | EE16: 512.823872 | EF16: 563.895185 | EG16: 472.365793 | EH16: 792.6458955 | EI16: 638.1035565 | EJ16: 521.2715315 | EK16: 387.590995 | EL16: 578.0023055 | EM16: 439.8609955 | EN16: 963.636529 | EO16: 454.9175505 | EP16: 639.03283 | EQ16: 512.823872 | ER16: 563.895185 | ES16: 472.365793 | ET16: 792.6458955 | EU16: 638.1035565 | EV16: 521.2715315 | EW16: 387.590995 | EX16: 578.0023055 | EY16: 439.8609955 | EZ16: 963.636529
C17: WNP#3 Settlement | D17: FPS_IRT_WNP | E17: 0 | F17: 0 | G17: 0 | H17: 0 | I17: 0 | J17: 0 | L17: 0 | M17: 0 | N17: 0 | O17: 0 | P17: 0 | Q17: 0 | R17: 0 | S17: 0 | T17: 0 | U17: 0 | V17: 0 | W17: 0 | X17: 0 | Y17: 0 | Z17: 0 | AA17: 0 | AB17: 0 | AC17: 0 | AD17: 0 | AE17: 0 | AF17: 0 | AG17: 0 | AH17: 0 | AI17: 0 | AJ17: 0 | AK17: 0 | AL17: 0 | AM17: 0 | AN17: 0 | AO17: 0 | AP17: 0 | AQ17: 0 | AR17: 0 | AS17: 0 | AT17: 0 | AU17: 0 | AV17: 0 | AW17: 0 | AX17: 0 | AY17: 0 | AZ17: 0 | BA17: 0 | BB17: 0 | BC17: 0 | BD17: 0 | BE17: 0 | BF17: 0 | BG17: 0 | BH17: 0 | BI17: 0 | BJ17: 0 | BK17: 0 | BL17: 0 | BM17: 0 | BN17: 0 | BO17: 0 | BP17: 0 | BQ17: 0 | BR17: 0 | BS17: 0 | BT17: 0 | BU17: 0 | BV17: 0 | BW17: 0 | BX17: 0 | BY17: 0 | BZ17: 0 | CA17: 0 | CB17: 0 | CC17: 0 | CD17: 0 | CE17: 0 | CG17: 0 | CH17: 0 | CI17: 0 | CJ17: 0 | CK17: 0 | CL17: 0 | CM17: 0 | CN17: 0 | CO17: 0 | CP17: 0 | CQ17: 0 | CR17: 0 | CS17: 0 | CT17: 0 | CU17: 0 | CV17: 0 | CW17: 0 | CX17: 0 | CY17: 0 | CZ17: 0 | DA17: 0 | DB17: 0 | DC17: 0 | DD17: 0 | DE17: 0 | DF17: 0 | DG17: 0 | DH17: 0 | DI17: 0 | DJ17: 0 | DK17: 0 | DL17: 0 | DM17: 0 | DN17: 0 | DO17: 0 | DP17: 0 | DQ17: 0 | DR17: 0 | DS17: 0 | DT17: 0 | DU17: 0 | DV17: 0 | DW17: 0 | DX17: 0 | DY17: 0 | DZ17: 0 | EA17: 0 | EB17: 0 | EC17: 0 | ED17: 0 | EE17: 0 | EF17: 0 | EG17: 0 | EH17: 0 | EI17: 0 | EJ17: 0 | EK17: 0 | EL17: 0 | EM17: 0 | EN17: 0 | EO17: 0 | EP17: 0 | EQ17: 0 | ER17: 0 | ES17: 0 | ET17: 0 | EU17: 0 | EV17: 0 | EW17: 0 | EX17: 0 | EY17: 0 | EZ17: 0
C18: Transfer Gen Losses | D18: FPS_IRT_TGL | E18: =+SUM(L18:W18,CG18:CR18) -> 13541.62612 | F18: =+SUM(X18:AI18,CS18:DD18) -> 13541.62612 | G18: =+SUM(AJ18:AU18,DE18:DP18) -> 13541.62612 | H18: =+SUM(AV18:BG18,DQ18:EB18) -> 13541.62612 | I18: =+SUM(BH18:BS18,EC18:EN18) -> 13541.62612 | J18: =+SUM(BT18:CE18,EO18:EZ18) -> 13541.62612 | L18: 576.9685675 | M18: 454.9175505 | N18: 639.03283 | O18: 512.823872 | P18: 563.895185 | Q18: 472.365793 | R18: 792.6458955 | S18: 638.1035565 | T18: 521.2715315 | U18: 387.590995 | V18: 578.0023055 | W18: 439.8609955 | X18: 576.9685675 | Y18: 454.9175505 | Z18: 639.03283 | AA18: 512.823872 | AB18: 563.895185 | AC18: 472.365793 | AD18: 792.6458955 | AE18: 638.1035565 | AF18: 521.2715315 | AG18: 387.590995 | AH18: 578.0023055 | AI18: 439.8609955 | AJ18: 576.9685675 | AK18: 454.9175505 | AL18: 639.03283 | AM18: 512.823872 | AN18: 563.895185 | AO18: 472.365793 | AP18: 792.6458955 | AQ18: 638.1035565 | AR18: 521.2715315 | AS18: 387.590995 | AT18: 578.0023055 | AU18: 439.8609955 | AV18: 576.9685675 | AW18: 454.9175505 | AX18: 639.03283 | AY18: 512.823872 | AZ18: 563.895185 | BA18: 472.365793 | BB18: 792.6458955 | BC18: 638.1035565 | BD18: 521.2715315 | BE18: 387.590995 | BF18: 578.0023055 | BG18: 439.8609955 | BH18: 576.9685675 | BI18: 454.9175505 | BJ18: 639.03283 | BK18: 512.823872 | BL18: 563.895185 | BM18: 472.365793 | BN18: 792.6458955 | BO18: 638.1035565 | BP18: 521.2715315 | BQ18: 387.590995 | BR18: 578.0023055 | BS18: 439.8609955 | BT18: 576.9685675 | BU18: 454.9175505 | BV18: 639.03283 | BW18: 512.823872 | BX18: 563.895185 | BY18: 472.365793 | BZ18: 792.6458955 | CA18: 638.1035565 | CB18: 521.2715315 | CC18: 387.590995 | CD18: 578.0023055 | CE18: 439.8609955 | CG18: 454.9175505 | CH18: 639.03283 | CI18: 512.823872 | CJ18: 563.895185 | CK18: 472.365793 | CL18: 792.6458955 | CM18: 638.1035565 | CN18: 521.2715315 | CO18: 387.590995 | CP18: 578.0023055 | CQ18: 439.8609955 | CR18: 963.636529 | CS18: 454.9175505 | CT18: 639.03283 | CU18: 512.823872 | CV18: 563.895185 | CW18: 472.365793 | CX18: 792.6458955 | CY18: 638.1035565 | CZ18: 521.2715315 | DA18: 387.590995 | DB18: 578.0023055 | DC18: 439.8609955 | DD18: 963.636529 | DE18: 454.9175505 | DF18: 639.03283 | DG18: 512.823872 | DH18: 563.895185 | DI18: 472.365793 | DJ18: 792.6458955 | DK18: 638.1035565 | DL18: 521.2715315 | DM18: 387.590995 | DN18: 578.0023055 | DO18: 439.8609955 | DP18: 963.636529 | DQ18: 454.9175505 | DR18: 639.03283 | DS18: 512.823872 | DT18: 563.895185 | DU18: 472.365793 | DV18: 792.6458955 | DW18: 638.1035565 | DX18: 521.2715315 | DY18: 387.590995 | DZ18: 578.0023055 | EA18: 439.8609955 | EB18: 963.636529 | EC18: 454.9175505 | ED18: 639.03283 | EE18: 512.823872 | EF18: 563.895185 | EG18: 472.365793 | EH18: 792.6458955 | EI18: 638.1035565 | EJ18: 521.2715315 | EK18: 387.590995 | EL18: 578.0023055 | EM18: 439.8609955 | EN18: 963.636529 | EO18: 454.9175505 | EP18: 639.03283 | EQ18: 512.823872 | ER18: 563.895185 | ES18: 472.365793 | ET18: 792.6458955 | EU18: 638.1035565 | EV18: 521.2715315 | EW18: 387.590995 | EX18: 578.0023055 | EY18: 439.8609955 | EZ18: 963.636529
E20: 0 | F20: 0 | G20: 0 | H20: 0 | I20: 0 | J20: 0 | L20: 0 | M20: 0 | N20: 0 | O20: 0 | P20: 0 | Q20: 0 | R20: 0 | S20: 0 | T20: 0 | U20: 0 | V20: 0 | W20: 0 | X20: 0 | Y20: 0 | Z20: 0 | AA20: 0 | AB20: 0 | AC20: 0 | AD20: 0 | AE20: 0 | AF20: 0 | AG20: 0 | AH20: 0 | AI20: 0 | AJ20: 0 | AK20: 0 | AL20: 0 | AM20: 0 | AN20: 0 | AO20: 0 | AP20: 0 | AQ20: 0 | AR20: 0 | AS20: 0 | AT20: 0 | AU20: 0 | AV20: 0 | AW20: 0 | AX20: 0 | AY20: 0 | AZ20: 0 | BA20: 0 | BB20: 0 | BC20: 0 | BD20: 0 | BE20: 0 | BF20: 0 | BG20: 0 | BH20: 0 | BI20: 0 | BJ20: 0 | BK20: 0 | BL20: 0 | BM20: 0 | BN20: 0 | BO20: 0 | BP20: 0 | BQ20: 0 | BR20: 0 | BS20: 0 | BT20: 0 | BU20: 0 | BV20: 0 | BW20: 0 | BX20: 0 | BY20: 0 | BZ20: 0 | CA20: 0 | CB20: 0 | CC20: 0 | CD20: 0 | CE20: 0 | CG20: 0 | CH20: 0 | CI20: 0 | CJ20: 0 | CK20: 0 | CL20: 0 | CM20: 0 | CN20: 0 | CO20: 0 | CP20: 0 | CQ20: 0 | CR20: 0 | CS20: 0 | CT20: 0 | CU20: 0 | CV20: 0 | CW20: 0 | CX20: 0 | CY20: 0 | CZ20: 0 | DA20: 0 | DB20: 0 | DC20: 0 | DD20: 0 | DE20: 0 | DF20: 0 | DG20: 0 | DH20: 0 | DI20: 0 | DJ20: 0 | DK20: 0 | DL20: 0 | DM20: 0 | DN20: 0 | DO20: 0 | DP20: 0 | DQ20: 0 | DR20: 0 | DS20: 0 | DT20: 0 | DU20: 0 | DV20: 0 | DW20: 0 | DX20: 0 | DY20: 0 | DZ20: 0 | EA20: 0 | EB20: 0 | EC20: 0 | ED20: 0 | EE20: 0 | EF20: 0 | EG20: 0 | EH20: 0 | EI20: 0 | EJ20: 0 | EK20: 0 | EL20: 0 | EM20: 0 | EN20: 0 | EO20: 0 | EP20: 0 | EQ20: 0 | ER20: 0 | ES20: 0 | ET20: 0 | EU20: 0 | EV20: 0 | EW20: 0 | EX20: 0 | EY20: 0 | EZ20: 0
E21: 0 | F21: 0 | G21: 0 | H21: 0 | I21: 0 | J21: 0 | L21: 0 | M21: 0 | N21: 0 | O21: 0 | P21: 0 | Q21: 0 | R21: 0 | S21: 0 | T21: 0 | U21: 0 | V21: 0 | W21: 0 | X21: 0 | Y21: 0 | Z21: 0 | AA21: 0 | AB21: 0 | AC21: 0 | AD21: 0 | AE21: 0 | AF21: 0 | AG21: 0 | AH21: 0 | AI21: 0 | AJ21: 0 | AK21: 0 | AL21: 0 | AM21: 0 | AN21: 0 | AO21: 0 | AP21: 0 | AQ21: 0 | AR21: 0 | AS21: 0 | AT21: 0 | AU21: 0 | AV21: 0 | AW21: 0 | AX21: 0 | AY21: 0 | AZ21: 0 | BA21: 0 | BB21: 0 | BC21: 0 | BD21: 0 | BE21: 0 | BF21: 0 | BG21: 0 | BH21: 0 | BI21: 0 | BJ21: 0 | BK21: 0 | BL21: 0 | BM21: 0 | BN21: 0 | BO21: 0 | BP21: 0 | BQ21: 0 | BR21: 0 | BS21: 0 | BT21: 0 | BU21: 0 | BV21: 0 | BW21: 0 | BX21: 0 | BY21: 0 | BZ21: 0 | CA21: 0 | CB21: 0 | CC21: 0 | CD21: 0 | CE21: 0 | CG21: 0 | CH21: 0 | CI21: 0 | CJ21: 0 | CK21: 0 | CL21: 0 | CM21: 0 | CN21: 0 | CO21: 0 | CP21: 0 | CQ21: 0 | CR21: 0 | CS21: 0 | CT21: 0 | CU21: 0 | CV21: 0 | CW21: 0 | CX21: 0 | CY21: 0 | CZ21: 0 | DA21: 0 | DB21: 0 | DC21: 0 | DD21: 0 | DE21: 0 | DF21: 0 | DG21: 0 | DH21: 0 | DI21: 0 | DJ21: 0 | DK21: 0 | DL21: 0 | DM21: 0 | DN21: 0 | DO21: 0 | DP21: 0 | DQ21: 0 | DR21: 0 | DS21: 0 | DT21: 0 | DU21: 0 | DV21: 0 | DW21: 0 | DX21: 0 | DY21: 0 | DZ21: 0 | EA21: 0 | EB21: 0 | EC21: 0 | ED21: 0 | EE21: 0 | EF21: 0 | EG21: 0 | EH21: 0 | EI21: 0 | EJ21: 0 | EK21: 0 | EL21: 0 | EM21: 0 | EN21: 0 | EO21: 0 | EP21: 0 | EQ21: 0 | ER21: 0 | ES21: 0 | ET21: 0 | EU21: 0 | EV21: 0 | EW21: 0 | EX21: 0 | EY21: 0 | EZ21: 0
E22: 0 | F22: 0 | G22: 0 | H22: 0 | I22: 0 | J22: 0 | L22: 0 | M22: 0 | N22: 0 | O22: 0 | P22: 0 | Q22: 0 | R22: 0 | S22: 0 | T22: 0 | U22: 0 | V22: 0 | W22: 0 | X22: 0 | Y22: 0 | Z22: 0 | AA22: 0 | AB22: 0 | AC22: 0 | AD22: 0 | AE22: 0 | AF22: 0 | AG22: 0 | AH22: 0 | AI22: 0 | AJ22: 0 | AK22: 0 | AL22: 0 | AM22: 0 | AN22: 0 | AO22: 0 | AP22: 0 | AQ22: 0 | AR22: 0 | AS22: 0 | AT22: 0 | AU22: 0 | AV22: 0 | AW22: 0 | AX22: 0 | AY22: 0 | AZ22: 0 | BA22: 0 | BB22: 0 | BC22: 0 | BD22: 0 | BE22: 0 | BF22: 0 | BG22: 0 | BH22: 0 | BI22: 0 | BJ22: 0 | BK22: 0 | BL22: 0 | BM22: 0 | BN22: 0 | BO22: 0 | BP22: 0 | BQ22: 0 | BR22: 0 | BS22: 0 | BT22: 0 | BU22: 0 | BV22: 0 | BW22: 0 | BX22: 0 | BY22: 0 | BZ22: 0 | CA22: 0 | CB22: 0 | CC22: 0 | CD22: 0 | CE22: 0 | CG22: 0 | CH22: 0 | CI22: 0 | CJ22: 0 | CK22: 0 | CL22: 0 | CM22: 0 | CN22: 0 | CO22: 0 | CP22: 0 | CQ22: 0 | CR22: 0 | CS22: 0 | CT22: 0 | CU22: 0 | CV22: 0 | CW22: 0 | CX22: 0 | CY22: 0 | CZ22: 0 | DA22: 0 | DB22: 0 | DC22: 0 | DD22: 0 | DE22: 0 | DF22: 0 | DG22: 0 | DH22: 0 | DI22: 0 | DJ22: 0 | DK22: 0 | DL22: 0 | DM22: 0 | DN22: 0 | DO22: 0 | DP22: 0 | DQ22: 0 | DR22: 0 | DS22: 0 | DT22: 0 | DU22: 0 | DV22: 0 | DW22: 0 | DX22: 0 | DY22: 0 | DZ22: 0 | EA22: 0 | EB22: 0 | EC22: 0 | ED22: 0 | EE22: 0 | EF22: 0 | EG22: 0 | EH22: 0 | EI22: 0 | EJ22: 0 | EK22: 0 | EL22: 0 | EM22: 0 | EN22: 0 | EO22: 0 | EP22: 0 | EQ22: 0 | ER22: 0 | ES22: 0 | ET22: 0 | EU22: 0 | EV22: 0 | EW22: 0 | EX22: 0 | EY22: 0 | EZ22: 0
E23: 0 | F23: 0 | G23: 0 | H23: 0 | I23: 0 | J23: 0 | L23: 0 | M23: 0 | N23: 0 | O23: 0 | P23: 0 | Q23: 0 | R23: 0 | S23: 0 | T23: 0 | U23: 0 | V23: 0 | W23: 0 | X23: 0 | Y23: 0 | Z23: 0 | AA23: 0 | AB23: 0 | AC23: 0 | AD23: 0 | AE23: 0 | AF23: 0 | AG23: 0 | AH23: 0 | AI23: 0 | AJ23: 0 | AK23: 0 | AL23: 0 | AM23: 0 | AN23: 0 | AO23: 0 | AP23: 0 | AQ23: 0 | AR23: 0 | AS23: 0 | AT23: 0 | AU23: 0 | AV23: 0 | AW23: 0 | AX23: 0 | AY23: 0 | AZ23: 0 | BA23: 0 | BB23: 0 | BC23: 0 | BD23: 0 | BE23: 0 | BF23: 0 | BG23: 0 | BH23: 0 | BI23: 0 | BJ23: 0 | BK23: 0 | BL23: 0 | BM23: 0 | BN23: 0 | BO23: 0 | BP23: 0 | BQ23: 0 | BR23: 0 | BS23: 0 | BT23: 0 | BU23: 0 | BV23: 0 | BW23: 0 | BX23: 0 | BY23: 0 | BZ23: 0 | CA23: 0 | CB23: 0 | CC23: 0 | CD23: 0 | CE23: 0 | CG23: 0 | CH23: 0 | CI23: 0 | CJ23: 0 | CK23: 0 | CL23: 0 | CM23: 0 | CN23: 0 | CO23: 0 | CP23: 0 | CQ23: 0 | CR23: 0 | CS23: 0 | CT23: 0 | CU23: 0 | CV23: 0 | CW23: 0 | CX23: 0 | CY23: 0 | CZ23: 0 | DA23: 0 | DB23: 0 | DC23: 0 | DD23: 0 | DE23: 0 | DF23: 0 | DG23: 0 | DH23: 0 | DI23: 0 | DJ23: 0 | DK23: 0 | DL23: 0 | DM23: 0 | DN23: 0 | DO23: 0 | DP23: 0 | DQ23: 0 | DR23: 0 | DS23: 0 | DT23: 0 | DU23: 0 | DV23: 0 | DW23: 0 | DX23: 0 | DY23: 0 | DZ23: 0 | EA23: 0 | EB23: 0 | EC23: 0 | ED23: 0 | EE23: 0 | EF23: 0 | EG23: 0 | EH23: 0 | EI23: 0 | EJ23: 0 | EK23: 0 | EL23: 0 | EM23: 0 | EN23: 0 | EO23: 0 | EP23: 0 | EQ23: 0 | ER23: 0 | ES23: 0 | ET23: 0 | EU23: 0 | EV23: 0 | EW23: 0 | EX23: 0 | EY23: 0 | EZ23: 0
E24: 0 | F24: 0 | G24: 0 | H24: 0 | I24: 0 | J24: 0 | L24: 0 | M24: 0 | N24: 0 | O24: 0 | P24: 0 | Q24: 0 | R24: 0 | S24: 0 | T24: 0 | U24: 0 | V24: 0 | W24: 0 | X24: 0 | Y24: 0 | Z24: 0 | AA24: 0 | AB24: 0 | AC24: 0 | AD24: 0 | AE24: 0 | AF24: 0 | AG24: 0 | AH24: 0 | AI24: 0 | AJ24: 0 | AK24: 0 | AL24: 0 | AM24: 0 | AN24: 0 | AO24: 0 | AP24: 0 | AQ24: 0 | AR24: 0 | AS24: 0 | AT24: 0 | AU24: 0 | AV24: 0 | AW24: 0 | AX24: 0 | AY24: 0 | AZ24: 0 | BA24: 0 | BB24: 0 | BC24: 0 | BD24: 0 | BE24: 0 | BF24: 0 | BG24: 0 | BH24: 0 | BI24: 0 | BJ24: 0 | BK24: 0 | BL24: 0 | BM24: 0 | BN24: 0 | BO24: 0 | BP24: 0 | BQ24: 0 | BR24: 0 | BS24: 0 | BT24: 0 | BU24: 0 | BV24: 0 | BW24: 0 | BX24: 0 | BY24: 0 | BZ24: 0 | CA24: 0 | CB24: 0 | CC24: 0 | CD24: 0 | CE24: 0 | CG24: 0 | CH24: 0 | CI24: 0 | CJ24: 0 | CK24: 0 | CL24: 0 | CM24: 0 | CN24: 0 | CO24: 0 | CP24: 0 | CQ24: 0 | CR24: 0 | CS24: 0 | CT24: 0 | CU24: 0 | CV24: 0 | CW24: 0 | CX24: 0 | CY24: 0 | CZ24: 0 | DA24: 0 | DB24: 0 | DC24: 0 | DD24: 0 | DE24: 0 | DF24: 0 | DG24: 0 | DH24: 0 | DI24: 0 | DJ24: 0 | DK24: 0 | DL24: 0 | DM24: 0 | DN24: 0 | DO24: 0 | DP24: 0 | DQ24: 0 | DR24: 0 | DS24: 0 | DT24: 0 | DU24: 0 | DV24: 0 | DW24: 0 | DX24: 0 | DY24: 0 | DZ24: 0 | EA24: 0 | EB24: 0 | EC24: 0 | ED24: 0 | EE24: 0 | EF24: 0 | EG24: 0 | EH24: 0 | EI24: 0 | EJ24: 0 | EK24: 0 | EL24: 0 | EM24: 0 | EN24: 0 | EO24: 0 | EP24: 0 | EQ24: 0 | ER24: 0 | ES24: 0 | ET24: 0 | EU24: 0 | EV24: 0 | EW24: 0 | EX24: 0 | EY24: 0 | EZ24: 0
E25: 0 | F25: 0 | G25: 0 | H25: 0 | I25: 0 | J25: 0 | L25: 0 | M25: 0 | N25: 0 | O25: 0 | P25: 0 | Q25: 0 | R25: 0 | S25: 0 | T25: 0 | U25: 0 | V25: 0 | W25: 0 | X25: 0 | Y25: 0 | Z25: 0 | AA25: 0 | AB25: 0 | AC25: 0 | AD25: 0 | AE25: 0 | AF25: 0 | AG25: 0 | AH25: 0 | AI25: 0 | AJ25: 0 | AK25: 0 | AL25: 0 | AM25: 0 | AN25: 0 | AO25: 0 | AP25: 0 | AQ25: 0 | AR25: 0 | AS25: 0 | AT25: 0 | AU25: 0 | AV25: 0 | AW25: 0 | AX25: 0 | AY25: 0 | AZ25: 0 | BA25: 0 | BB25: 0 | BC25: 0 | BD25: 0 | BE25: 0 | BF25: 0 | BG25: 0 | BH25: 0 | BI25: 0 | BJ25: 0 | BK25: 0 | BL25: 0 | BM25: 0 | BN25: 0 | BO25: 0 | BP25: 0 | BQ25: 0 | BR25: 0 | BS25: 0 | BT25: 0 | BU25: 0 | BV25: 0 | BW25: 0 | BX25: 0 | BY25: 0 | BZ25: 0 | CA25: 0 | CB25: 0 | CC25: 0 | CD25: 0 | CE25: 0 | CG25: 0 | CH25: 0 | CI25: 0 | CJ25: 0 | CK25: 0 | CL25: 0 | CM25: 0 | CN25: 0 | CO25: 0 | CP25: 0 | CQ25: 0 | CR25: 0 | CS25: 0 | CT25: 0 | CU25: 0 | CV25: 0 | CW25: 0 | CX25: 0 | CY25: 0 | CZ25: 0 | DA25: 0 | DB25: 0 | DC25: 0 | DD25: 0 | DE25: 0 | DF25: 0 | DG25: 0 | DH25: 0 | DI25: 0 | DJ25: 0 | DK25: 0 | DL25: 0 | DM25: 0 | DN25: 0 | DO25: 0 | DP25: 0 | DQ25: 0 | DR25: 0 | DS25: 0 | DT25: 0 | DU25: 0 | DV25: 0 | DW25: 0 | DX25: 0 | DY25: 0 | DZ25: 0 | EA25: 0 | EB25: 0 | EC25: 0 | ED25: 0 | EE25: 0 | EF25: 0 | EG25: 0 | EH25: 0 | EI25: 0 | EJ25: 0 | EK25: 0 | EL25: 0 | EM25: 0 | EN25: 0 | EO25: 0 | EP25: 0 | EQ25: 0 | ER25: 0 | ES25: 0 | ET25: 0 | EU25: 0 | EV25: 0 | EW25: 0 | EX25: 0 | EY25: 0 | EZ25: 0
E26: 0 | F26: 0 | G26: 0 | H26: 0 | I26: 0 | J26: 0 | L26: 0 | M26: 0 | N26: 0 | O26: 0 | P26: 0 | Q26: 0 | R26: 0 | S26: 0 | T26: 0 | U26: 0 | V26: 0 | W26: 0 | X26: 0 | Y26: 0 | Z26: 0 | AA26: 0 | AB26: 0 | AC26: 0 | AD26: 0 | AE26: 0 | AF26: 0 | AG26: 0 | AH26: 0 | AI26: 0 | AJ26: 0 | AK26: 0 | AL26: 0 | AM26: 0 | AN26: 0 | AO26: 0 | AP26: 0 | AQ26: 0 | AR26: 0 | AS26: 0 | AT26: 0 | AU26: 0 | AV26: 0 | AW26: 0 | AX26: 0 | AY26: 0 | AZ26: 0 | BA26: 0 | BB26: 0 | BC26: 0 | BD26: 0 | BE26: 0 | BF26: 0 | BG26: 0 | BH26: 0 | BI26: 0 | BJ26: 0 | BK26: 0 | BL26: 0 | BM26: 0 | BN26: 0 | BO26: 0 | BP26: 0 | BQ26: 0 | BR26: 0 | BS26: 0 | BT26: 0 | BU26: 0 | BV26: 0 | BW26: 0 | BX26: 0 | BY26: 0 | BZ26: 0 | CA26: 0 | CB26: 0 | CC26: 0 | CD26: 0 | CE26: 0 | CG26: 0 | CH26: 0 | CI26: 0 | CJ26: 0 | CK26: 0 | CL26: 0 | CM26: 0 | CN26: 0 | CO26: 0 | CP26: 0 | CQ26: 0 | CR26: 0 | CS26: 0 | CT26: 0 | CU26: 0 | CV26: 0 | CW26: 0 | CX26: 0 | CY26: 0 | CZ26: 0 | DA26: 0 | DB26: 0 | DC26: 0 | DD26: 0 | DE26: 0 | DF26: 0 | DG26: 0 | DH26: 0 | DI26: 0 | DJ26: 0 | DK26: 0 | DL26: 0 | DM26: 0 | DN26: 0 | DO26: 0 | DP26: 0 | DQ26: 0 | DR26: 0 | DS26: 0 | DT26: 0 | DU26: 0 | DV26: 0 | DW26: 0 | DX26: 0 | DY26: 0 | DZ26: 0 | EA26: 0 | EB26: 0 | EC26: 0 | ED26: 0 | EE26: 0 | EF26: 0 | EG26: 0 | EH26: 0 | EI26: 0 | EJ26: 0 | EK26: 0 | EL26: 0 | EM26: 0 | EN26: 0 | EO26: 0 | EP26: 0 | EQ26: 0 | ER26: 0 | ES26: 0 | ET26: 0 | EU26: 0 | EV26: 0 | EW26: 0 | EX26: 0 | EY26: 0 | EZ26: 0
B27: FBS Obligation | D27: FPS_FBS | E27: =+SUM(E28:E37) -> 4603810.56 | F27: 4603810.56 | G27: 4603810.56 | H27: 4603810.56 | I27: 4603810.56 | J27: 4603810.56 | L27: 273538.045 | M27: 227984.06 | N27: 235270.009 | O27: 235688.652 | P27: 223178.501 | Q27: 244288.545 | R27: 299525.858 | S27: 343474.627 | T27: 350171.477 | U27: 383873.508 | V27: 391715.988 | W27: 318313.208 | X27: 273538.045 | Y27: 227984.06 | Z27: 235270.009 | AA27: 235688.652 | AB27: 223178.501 | AC27: 244288.545 | AD27: 299525.858 | AE27: 343474.627 | AF27: 350171.477 | AG27: 383873.508 | AH27: 391715.988 | AI27: 318313.208 | AJ27: 273538.045 | AK27: 227984.06 | AL27: 235270.009 | AM27: 235688.652 | AN27: 223178.501 | AO27: 244288.545 | AP27: 299525.858 | AQ27: 343474.627 | AR27: 350171.477 | AS27: 383873.508 | AT27: 391715.988 | AU27: 318313.208 | AV27: 273538.045 | AW27: 227984.06 | AX27: 235270.009 | AY27: 235688.652 | AZ27: 223178.501 | BA27: 244288.545 | BB27: 299525.858 | BC27: 343474.627 | BD27: 350171.477 | BE27: 383873.508 | BF27: 391715.988 | BG27: 318313.208 | BH27: 273538.045 | BI27: 227984.06 | BJ27: 235270.009 | BK27: 235688.652 | BL27: 223178.501 | BM27: 244288.545 | BN27: 299525.858 | BO27: 343474.627 | BP27: 350171.477 | BQ27: 383873.508 | BR27: 391715.988 | BS27: 318313.208 | BT27: 273538.045 | BU27: 227984.06 | BV27: 235270.009 | BW27: 235688.652 | BX27: 223178.501 | BY27: 244288.545 | BZ27: 299525.858 | CA27: 343474.627 | CB27: 350171.477 | CC27: 383873.508 | CD27: 391715.988 | CE27: 318313.208 | CG27: 59530.211 | CH27: 4262.861 | CI27: 4361.217 | CJ27: 7605.878 | CK27: 7750.688 | CL27: 31780.599 | CM27: 111826.992 | CN27: 150093.918 | CO27: 158237.02 | CP27: 207869.642 | CQ27: 200917.267 | CR27: 132551.789 | CS27: 59530.211 | CT27: 4262.861 | CU27: 4361.217 | CV27: 7605.878 | CW27: 7750.688 | CX27: 31780.599 | CY27: 111826.992 | CZ27: 150093.918 | DA27: 158237.02 | DB27: 207869.642 | DC27: 200917.267 | DD27: 132551.789 | DE27: 59530.211 | DF27: 4262.861 | DG27: 4361.217 | DH27: 7605.878 | DI27: 7750.688 | DJ27: 31780.599 | DK27: 111826.992 | DL27: 150093.918 | DM27: 158237.02 | DN27: 207869.642 | DO27: 200917.267 | DP27: 132551.789 | DQ27: 59530.211 | DR27: 4262.861 | DS27: 4361.217 | DT27: 7605.878 | DU27: 7750.688 | DV27: 31780.599 | DW27: 111826.992 | DX27: 150093.918 | DY27: 158237.02 | DZ27: 207869.642 | EA27: 200917.267 | EB27: 132551.789 | EC27: 59530.211 | ED27: 4262.861 | EE27: 4361.217 | EF27: 7605.878 | EG27: 7750.688 | EH27: 31780.599 | EI27: 111826.992 | EJ27: 150093.918 | EK27: 158237.02 | EL27: 207869.642 | EM27: 200917.267 | EN27: 132551.789 | EO27: 59530.211 | EP27: 4262.861 | EQ27: 4361.217 | ER27: 7605.878 | ES27: 7750.688 | ET27: 31780.599 | EU27: 111826.992 | EV27: 150093.918 | EW27: 158237.02 | EX27: 207869.642 | EY27: 200917.267 | EZ27: 132551.789
C28: Canadian Entitlement | D28: FPS_FBS_CDN | E28: 2679120.848 | F28: 2679120.848 | G28: 2679120.848 | H28: 2679120.848 | I28: 2679120.848 | J28: 2679120.848 | L28: 226920.096 | M28: 219905.2 | N28: 226920.096 | O28: 226920 | P28: 212280 | Q28: 226615.104 | R28: 219600 | S28: 226920.096 | T28: 219600.16 | U28: 226920 | V28: 226920.096 | W28: 219600 | X28: 226920.096 | Y28: 219905.2 | Z28: 226920.096 | AA28: 226920 | AB28: 212280 | AC28: 226615.104 | AD28: 219600 | AE28: 226920.096 | AF28: 219600.16 | AG28: 226920 | AH28: 226920.096 | AI28: 219600 | AJ28: 226920.096 | AK28: 219905.2 | AL28: 226920.096 | AM28: 226920 | AN28: 212280 | AO28: 226615.104 | AP28: 219600 | AQ28: 226920.096 | AR28: 219600.16 | AS28: 226920 | AT28: 226920.096 | AU28: 219600 | AV28: 226920.096 | AW28: 219905.2 | AX28: 226920.096 | AY28: 226920 | AZ28: 212280 | BA28: 226615.104 | BB28: 219600 | BC28: 226920.096 | BD28: 219600.16 | BE28: 226920 | BF28: 226920.096 | BG28: 219600 | BH28: 226920.096 | BI28: 219905.2 | BJ28: 226920.096 | BK28: 226920 | BL28: 212280 | BM28: 226615.104 | BN28: 219600 | BO28: 226920.096 | BP28: 219600.16 | BQ28: 226920 | BR28: 226920.096 | BS28: 219600 | BT28: 226920.096 | BU28: 219905.2 | BV28: 226920.096 | BW28: 226920 | BX28: 212280 | BY28: 226615.104 | BZ28: 219600 | CA28: 226920.096 | CB28: 219600.16 | CC28: 226920 | CD28: 226920.096 | CE28: 219600 | CG28: 0 | CH28: 0 | CI28: 0 | CJ28: 0 | CK28: 0 | CL28: 0 | CM28: 0 | CN28: 0 | CO28: 0 | CP28: 0 | CQ28: 0 | CR28: 0 | CS28: 0 | CT28: 0 | CU28: 0 | CV28: 0 | CW28: 0 | CX28: 0 | CY28: 0 | CZ28: 0 | DA28: 0 | DB28: 0 | DC28: 0 | DD28: 0 | DE28: 0 | DF28: 0 | DG28: 0 | DH28: 0 | DI28: 0 | DJ28: 0 | DK28: 0 | DL28: 0 | DM28: 0 | DN28: 0 | DO28: 0 | DP28: 0 | DQ28: 0 | DR28: 0 | DS28: 0 | DT28: 0 | DU28: 0 | DV28: 0 | DW28: 0 | DX28: 0 | DY28: 0 | DZ28: 0 | EA28: 0 | EB28: 0 | EC28: 0 | ED28: 0 | EE28: 0 | EF28: 0 | EG28: 0 | EH28: 0 | EI28: 0 | EJ28: 0 | EK28: 0 | EL28: 0 | EM28: 0 | EN28: 0 | EO28: 0 | EP28: 0 | EQ28: 0 | ER28: 0 | ES28: 0 | ET28: 0 | EU28: 0 | EV28: 0 | EW28: 0 | EX28: 0 | EY28: 0 | EZ28: 0
C29: USBR Pump Load | D29: FPS_FBS_UBR | E29: 1720518.37 | F29: 1720518.37 | G29: 1720518.37 | H29: 1720518.37 | I29: 1720518.37 | J29: 1720518.37 | L29: 42692.157 | M29: 1504.06 | N29: 1512.121 | O29: 2193.852 | P29: 4323.701 | Q29: 13596.657 | R29: 76151.058 | S29: 112628.739 | T29: 126645.525 | U29: 143818.708 | V29: 106935.108 | W29: 94938.408 | X29: 42692.157 | Y29: 1504.06 | Z29: 1512.121 | AA29: 2193.852 | AB29: 4323.701 | AC29: 13596.657 | AD29: 76151.058 | AE29: 112628.739 | AF29: 126645.525 | AG29: 143818.708 | AH29: 106935.108 | AI29: 94938.408 | AJ29: 42692.157 | AK29: 1504.06 | AL29: 1512.121 | AM29: 2193.852 | AN29: 4323.701 | AO29: 13596.657 | AP29: 76151.058 | AQ29: 112628.739 | AR29: 126645.525 | AS29: 143818.708 | AT29: 106935.108 | AU29: 94938.408 | AV29: 42692.157 | AW29: 1504.06 | AX29: 1512.121 | AY29: 2193.852 | AZ29: 4323.701 | BA29: 13596.657 | BB29: 76151.058 | BC29: 112628.739 | BD29: 126645.525 | BE29: 143818.708 | BF29: 106935.108 | BG29: 94938.408 | BH29: 42692.157 | BI29: 1504.06 | BJ29: 1512.121 | BK29: 2193.852 | BL29: 4323.701 | BM29: 13596.657 | BN29: 76151.058 | BO29: 112628.739 | BP29: 126645.525 | BQ29: 143818.708 | BR29: 106935.108 | BS29: 94938.408 | BT29: 42692.157 | BU29: 1504.06 | BV29: 1512.121 | BW29: 2193.852 | BX29: 4323.701 | BY29: 13596.657 | BZ29: 76151.058 | CA29: 112628.739 | CB29: 126645.525 | CC29: 143818.708 | CD29: 106935.108 | CE29: 94938.408 | CG29: 56434.875 | CH29: 1226.522 | CI29: 1258.993 | CJ29: 4352.67 | CK29: 4950.232 | CL29: 28845.692 | CM29: 108807.152 | CN29: 146998.582 | CO29: 155368.172 | CP29: 196573.714 | CQ29: 159229.723 | CR29: 129531.949 | CS29: 56434.875 | CT29: 1226.522 | CU29: 1258.993 | CV29: 4352.67 | CW29: 4950.232 | CX29: 28845.692 | CY29: 108807.152 | CZ29: 146998.582 | DA29: 155368.172 | DB29: 196573.714 | DC29: 159229.723 | DD29: 129531.949 | DE29: 56434.875 | DF29: 1226.522 | DG29: 1258.993 | DH29: 4352.67 | DI29: 4950.232 | DJ29: 28845.692 | DK29: 108807.152 | DL29: 146998.582 | DM29: 155368.172 | DN29: 196573.714 | DO29: 159229.723 | DP29: 129531.949 | DQ29: 56434.875 | DR29: 1226.522 | DS29: 1258.993 | DT29: 4352.67 | DU29: 4950.232 | DV29: 28845.692 | DW29: 108807.152 | DX29: 146998.582 | DY29: 155368.172 | DZ29: 196573.714 | EA29: 159229.723 | EB29: 129531.949 | EC29: 56434.875 | ED29: 1226.522 | EE29: 1258.993 | EF29: 4352.67 | EG29: 4950.232 | EH29: 28845.692 | EI29: 108807.152 | EJ29: 146998.582 | EK29: 155368.172 | EL29: 196573.714 | EM29: 159229.723 | EN29: 129531.949 | EO29: 56434.875 | EP29: 1226.522 | EQ29: 1258.993 | ER29: 4352.67 | ES29: 4950.232 | ET29: 28845.692 | EU29: 108807.152 | EV29: 146998.582 | EW29: 155368.172 | EX29: 196573.714 | EY29: 159229.723 | EZ29: 129531.949
C30: Hungry Horse | D30: FPS_FBS_HH | E30: 0 | F30: 0 | G30: 0 | H30: 0 | I30: 0 | J30: 0 | L30: 0 | M30: 0 | N30: 0 | O30: 0 | P30: 0 | Q30: 0 | R30: 0 | S30: 0 | T30: 0 | U30: 0 | V30: 0 | W30: 0 | X30: 0 | Y30: 0 | Z30: 0 | AA30: 0 | AB30: 0 | AC30: 0 | AD30: 0 | AE30: 0 | AF30: 0 | AG30: 0 | AH30: 0 | AI30: 0 | AJ30: 0 | AK30: 0 | AL30: 0 | AM30: 0 | AN30: 0 | AO30: 0 | AP30: 0 | AQ30: 0 | AR30: 0 | AS30: 0 | AT30: 0 | AU30: 0 | AV30: 0 | AW30: 0 | AX30: 0 | AY30: 0 | AZ30: 0 | BA30: 0 | BB30: 0 | BC30: 0 | BD30: 0 | BE30: 0 | BF30: 0 | BG30: 0 | BH30: 0 | BI30: 0 | BJ30: 0 | BK30: 0 | BL30: 0 | BM30: 0 | BN30: 0 | BO30: 0 | BP30: 0 | BQ30: 0 | BR30: 0 | BS30: 0 | BT30: 0 | BU30: 0 | BV30: 0 | BW30: 0 | BX30: 0 | BY30: 0 | BZ30: 0 | CA30: 0 | CB30: 0 | CC30: 0 | CD30: 0 | CE30: 0 | CG30: 0 | CH30: 0 | CI30: 0 | CJ30: 0 | CK30: 0 | CL30: 0 | CM30: 0 | CN30: 0 | CO30: 0 | CP30: 0 | CQ30: 0 | CR30: 0 | CS30: 0 | CT30: 0 | CU30: 0 | CV30: 0 | CW30: 0 | CX30: 0 | CY30: 0 | CZ30: 0 | DA30: 0 | DB30: 0 | DC30: 0 | DD30: 0 | DE30: 0 | DF30: 0 | DG30: 0 | DH30: 0 | DI30: 0 | DJ30: 0 | DK30: 0 | DL30: 0 | DM30: 0 | DN30: 0 | DO30: 0 | DP30: 0 | DQ30: 0 | DR30: 0 | DS30: 0 | DT30: 0 | DU30: 0 | DV30: 0 | DW30: 0 | DX30: 0 | DY30: 0 | DZ30: 0 | EA30: 0 | EB30: 0 | EC30: 0 | ED30: 0 | EE30: 0 | EF30: 0 | EG30: 0 | EH30: 0 | EI30: 0 | EJ30: 0 | EK30: 0 | EL30: 0 | EM30: 0 | EN30: 0 | EO30: 0 | EP30: 0 | EQ30: 0 | ER30: 0 | ES30: 0 | ET30: 0 | EU30: 0 | EV30: 0 | EW30: 0 | EX30: 0 | EY30: 0 | EZ30: 0
C31: Upper Baker | D31: FPS_FBS_UPB | E31: 11339.934 | F31: 11339.934 | G31: 11339.934 | H31: 11339.934 | I31: 11339.934 | J31: 11339.934 | L31: 0 | M31: 2800 | N31: 2912 | O31: 2800 | P31: 2800 | Q31: 0 | R31: 0 | S31: 0 | T31: 0 | U31: 0 | V31: 0 | W31: 0 | X31: 0 | Y31: 2800 | Z31: 2912 | AA31: 2800 | AB31: 2800 | AC31: 0 | AD31: 0 | AE31: 0 | AF31: 0 | AG31: 0 | AH31: 0 | AI31: 0 | AJ31: 0 | AK31: 2800 | AL31: 2912 | AM31: 2800 | AN31: 2800 | AO31: 0 | AP31: 0 | AQ31: 0 | AR31: 0 | AS31: 0 | AT31: 0 | AU31: 0 | AV31: 0 | AW31: 2800 | AX31: 2912 | AY31: 2800 | AZ31: 2800 | BA31: 0 | BB31: 0 | BC31: 0 | BD31: 0 | BE31: 0 | BF31: 0 | BG31: 0 | BH31: 0 | BI31: 2800 | BJ31: 2912 | BK31: 2800 | BL31: 2800 | BM31: 0 | BN31: 0 | BO31: 0 | BP31: 0 | BQ31: 0 | BR31: 0 | BS31: 0 | BT31: 0 | BU31: 2800 | BV31: 2912 | BW31: 2800 | BX31: 2800 | BY31: 0 | BZ31: 0 | CA31: 0 | CB31: 0 | CC31: 0 | CD31: 0 | CE31: 0 | CG31: 0 | CH31: 7.062 | CI31: 6.888 | CJ31: 6.88 | CK31: 7.104 | CL31: 0 | CM31: 0 | CN31: 0 | CO31: 0 | CP31: 0 | CQ31: 0 | CR31: 0 | CS31: 0 | CT31: 7.062 | CU31: 6.888 | CV31: 6.88 | CW31: 7.104 | CX31: 0 | CY31: 0 | CZ31: 0 | DA31: 0 | DB31: 0 | DC31: 0 | DD31: 0 | DE31: 0 | DF31: 7.062 | DG31: 6.888 | DH31: 6.88 | DI31: 7.104 | DJ31: 0 | DK31: 0 | DL31: 0 | DM31: 0 | DN31: 0 | DO31: 0 | DP31: 0 | DQ31: 0 | DR31: 7.062 | DS31: 6.888 | DT31: 6.88 | DU31: 7.104 | DV31: 0 | DW31: 0 | DX31: 0 | DY31: 0 | DZ31: 0 | EA31: 0 | EB31: 0 | EC31: 0 | ED31: 7.062 | EE31: 6.888 | EF31: 6.88 | EG31: 7.104 | EH31: 0 | EI31: 0 | EJ31: 0 | EK31: 0 | EL31: 0 | EM31: 0 | EN31: 0 | EO31: 0 | EP31: 7.062 | EQ31: 6.888 | ER31: 6.88 | ES31: 7.104 | ET31: 0 | EU31: 0 | EV31: 0 | EW31: 0 | EX31: 0 | EY31: 0 | EZ31: 0
C32: Non-Treaty Storage | D32: FPS_FBS_NTS | E32: 109936.8 | F32: 109936.8 | G32: 109936.8 | H32: 109936.8 | I32: 109936.8 | J32: 109936.8 | L32: 0 | M32: 0 | N32: 0 | O32: 0 | P32: 0 | Q32: 0 | R32: 0 | S32: 0 | T32: 0 | U32: 9360 | V32: 53784 | W32: 0 | X32: 0 | Y32: 0 | Z32: 0 | AA32: 0 | AB32: 0 | AC32: 0 | AD32: 0 | AE32: 0 | AF32: 0 | AG32: 9360 | AH32: 53784 | AI32: 0 | AJ32: 0 | AK32: 0 | AL32: 0 | AM32: 0 | AN32: 0 | AO32: 0 | AP32: 0 | AQ32: 0 | AR32: 0 | AS32: 9360 | AT32: 53784 | AU32: 0 | AV32: 0 | AW32: 0 | AX32: 0 | AY32: 0 | AZ32: 0 | BA32: 0 | BB32: 0 | BC32: 0 | BD32: 0 | BE32: 9360 | BF32: 53784 | BG32: 0 | BH32: 0 | BI32: 0 | BJ32: 0 | BK32: 0 | BL32: 0 | BM32: 0 | BN32: 0 | BO32: 0 | BP32: 0 | BQ32: 9360 | BR32: 53784 | BS32: 0 | BT32: 0 | BU32: 0 | BV32: 0 | BW32: 0 | BX32: 0 | BY32: 0 | BZ32: 0 | CA32: 0 | CB32: 0 | CC32: 9360 | CD32: 53784 | CE32: 0 | CG32: 0 | CH32: 0 | CI32: 0 | CJ32: 0 | CK32: 0 | CL32: 0 | CM32: 0 | CN32: 0 | CO32: 0 | CP32: 8049.6 | CQ32: 38743.2 | CR32: 0 | CS32: 0 | CT32: 0 | CU32: 0 | CV32: 0 | CW32: 0 | CX32: 0 | CY32: 0 | CZ32: 0 | DA32: 0 | DB32: 8049.6 | DC32: 38743.2 | DD32: 0 | DE32: 0 | DF32: 0 | DG32: 0 | DH32: 0 | DI32: 0 | DJ32: 0 | DK32: 0 | DL32: 0 | DM32: 0 | DN32: 8049.6 | DO32: 38743.2 | DP32: 0 | DQ32: 0 | DR32: 0 | DS32: 0 | DT32: 0 | DU32: 0 | DV32: 0 | DW32: 0 | DX32: 0 | DY32: 0 | DZ32: 8049.6 | EA32: 38743.2 | EB32: 0 | EC32: 0 | ED32: 0 | EE32: 0 | EF32: 0 | EG32: 0 | EH32: 0 | EI32: 0 | EJ32: 0 | EK32: 0 | EL32: 8049.6 | EM32: 38743.2 | EN32: 0 | EO32: 0 | EP32: 0 | EQ32: 0 | ER32: 0 | ES32: 0 | ET32: 0 | EU32: 0 | EV32: 0 | EW32: 0 | EX32: 8049.6 | EY32: 38743.2 | EZ32: 0
C33: Libby Coordination | D33: FPS_FBS_LCA | E33: 0 | F33: 0 | G33: 0 | H33: 0 | I33: 0 | J33: 0 | L33: 0 | M33: 0 | N33: 0 | O33: 0 | P33: 0 | Q33: 0 | R33: 0 | S33: 0 | T33: 0 | U33: 0 | V33: 0 | W33: 0 | X33: 0 | Y33: 0 | Z33: 0 | AA33: 0 | AB33: 0 | AC33: 0 | AD33: 0 | AE33: 0 | AF33: 0 | AG33: 0 | AH33: 0 | AI33: 0 | AJ33: 0 | AK33: 0 | AL33: 0 | AM33: 0 | AN33: 0 | AO33: 0 | AP33: 0 | AQ33: 0 | AR33: 0 | AS33: 0 | AT33: 0 | AU33: 0 | AV33: 0 | AW33: 0 | AX33: 0 | AY33: 0 | AZ33: 0 | BA33: 0 | BB33: 0 | BC33: 0 | BD33: 0 | BE33: 0 | BF33: 0 | BG33: 0 | BH33: 0 | BI33: 0 | BJ33: 0 | BK33: 0 | BL33: 0 | BM33: 0 | BN33: 0 | BO33: 0 | BP33: 0 | BQ33: 0 | BR33: 0 | BS33: 0 | BT33: 0 | BU33: 0 | BV33: 0 | BW33: 0 | BX33: 0 | BY33: 0 | BZ33: 0 | CA33: 0 | CB33: 0 | CC33: 0 | CD33: 0 | CE33: 0 | CG33: 0 | CH33: 0 | CI33: 0 | CJ33: 0 | CK33: 0 | CL33: 0 | CM33: 0 | CN33: 0 | CO33: 0 | CP33: 0 | CQ33: 0 | CR33: 0 | CS33: 0 | CT33: 0 | CU33: 0 | CV33: 0 | CW33: 0 | CX33: 0 | CY33: 0 | CZ33: 0 | DA33: 0 | DB33: 0 | DC33: 0 | DD33: 0 | DE33: 0 | DF33: 0 | DG33: 0 | DH33: 0 | DI33: 0 | DJ33: 0 | DK33: 0 | DL33: 0 | DM33: 0 | DN33: 0 | DO33: 0 | DP33: 0 | DQ33: 0 | DR33: 0 | DS33: 0 | DT33: 0 | DU33: 0 | DV33: 0 | DW33: 0 | DX33: 0 | DY33: 0 | DZ33: 0 | EA33: 0 | EB33: 0 | EC33: 0 | ED33: 0 | EE33: 0 | EF33: 0 | EG33: 0 | EH33: 0 | EI33: 0 | EJ33: 0 | EK33: 0 | EL33: 0 | EM33: 0 | EN33: 0 | EO33: 0 | EP33: 0 | EQ33: 0 | ER33: 0 | ES33: 0 | ET33: 0 | EU33: 0 | EV33: 0 | EW33: 0 | EX33: 0 | EY33: 0 | EZ33: 0
C34: Dittmer Station Service | D34: FPS_IRT_DIT | E34: 82894.608 | F34: 82894.608 | G34: 82894.608 | H34: 82894.608 | I34: 82894.608 | J34: 82894.608 | L34: 3925.792 | M34: 3774.8 | N34: 3925.792 | O34: 3774.8 | P34: 3774.8 | Q34: 4076.784 | R34: 3774.8 | S34: 3925.792 | T34: 3925.792 | U34: 3774.8 | V34: 4076.784 | W34: 3774.8 | X34: 3925.792 | Y34: 3774.8 | Z34: 3925.792 | AA34: 3774.8 | AB34: 3774.8 | AC34: 4076.784 | AD34: 3774.8 | AE34: 3925.792 | AF34: 3925.792 | AG34: 3774.8 | AH34: 4076.784 | AI34: 3774.8 | AJ34: 3925.792 | AK34: 3774.8 | AL34: 3925.792 | AM34: 3774.8 | AN34: 3774.8 | AO34: 4076.784 | AP34: 3774.8 | AQ34: 3925.792 | AR34: 3925.792 | AS34: 3774.8 | AT34: 4076.784 | AU34: 3774.8 | AV34: 3925.792 | AW34: 3774.8 | AX34: 3925.792 | AY34: 3774.8 | AZ34: 3774.8 | BA34: 4076.784 | BB34: 3774.8 | BC34: 3925.792 | BD34: 3925.792 | BE34: 3774.8 | BF34: 4076.784 | BG34: 3774.8 | BH34: 3925.792 | BI34: 3774.8 | BJ34: 3925.792 | BK34: 3774.8 | BL34: 3774.8 | BM34: 4076.784 | BN34: 3774.8 | BO34: 3925.792 | BP34: 3925.792 | BQ34: 3774.8 | BR34: 4076.784 | BS34: 3774.8 | BT34: 3925.792 | BU34: 3774.8 | BV34: 3925.792 | BW34: 3774.8 | BX34: 3774.8 | BY34: 4076.784 | BZ34: 3774.8 | CA34: 3925.792 | CB34: 3925.792 | CC34: 3774.8 | CD34: 4076.784 | CE34: 3774.8 | CG34: 3095.336 | CH34: 3029.277 | CI34: 3095.336 | CJ34: 3246.328 | CK34: 2793.352 | CL34: 2934.907 | CM34: 3019.84 | CN34: 3095.336 | CO34: 2868.848 | CP34: 3246.328 | CQ34: 2944.344 | CR34: 3019.84 | CS34: 3095.336 | CT34: 3029.277 | CU34: 3095.336 | CV34: 3246.328 | CW34: 2793.352 | CX34: 2934.907 | CY34: 3019.84 | CZ34: 3095.336 | DA34: 2868.848 | DB34: 3246.328 | DC34: 2944.344 | DD34: 3019.84 | DE34: 3095.336 | DF34: 3029.277 | DG34: 3095.336 | DH34: 3246.328 | DI34: 2793.352 | DJ34: 2934.907 | DK34: 3019.84 | DL34: 3095.336 | DM34: 2868.848 | DN34: 3246.328 | DO34: 2944.344 | DP34: 3019.84 | DQ34: 3095.336 | DR34: 3029.277 | DS34: 3095.336 | DT34: 3246.328 | DU34: 2793.352 | DV34: 2934.907 | DW34: 3019.84 | DX34: 3095.336 | DY34: 2868.848 | DZ34: 3246.328 | EA34: 2944.344 | EB34: 3019.84 | EC34: 3095.336 | ED34: 3029.277 | EE34: 3095.336 | EF34: 3246.328 | EG34: 2793.352 | EH34: 2934.907 | EI34: 3019.84 | EJ34: 3095.336 | EK34: 2868.848 | EL34: 3246.328 | EM34: 2944.344 | EN34: 3019.84 | EO34: 3095.336 | EP34: 3029.277 | EQ34: 3095.336 | ER34: 3246.328 | ES34: 2793.352 | ET34: 2934.907 | EU34: 3019.84 | EV34: 3095.336 | EW34: 2868.848 | EX34: 3246.328 | EY34: 2944.344 | EZ34: 3019.84
E35: 0 | F35: 0 | G35: 0 | H35: 0 | I35: 0 | J35: 0 | L35: 0 | M35: 0 | N35: 0 | O35: 0 | P35: 0 | Q35: 0 | R35: 0 | S35: 0 | T35: 0 | U35: 0 | V35: 0 | W35: 0 | X35: 0 | Y35: 0 | Z35: 0 | AA35: 0 | AB35: 0 | AC35: 0 | AD35: 0 | AE35: 0 | AF35: 0 | AG35: 0 | AH35: 0 | AI35: 0 | AJ35: 0 | AK35: 0 | AL35: 0 | AM35: 0 | AN35: 0 | AO35: 0 | AP35: 0 | AQ35: 0 | AR35: 0 | AS35: 0 | AT35: 0 | AU35: 0 | AV35: 0 | AW35: 0 | AX35: 0 | AY35: 0 | AZ35: 0 | BA35: 0 | BB35: 0 | BC35: 0 | BD35: 0 | BE35: 0 | BF35: 0 | BG35: 0 | BH35: 0 | BI35: 0 | BJ35: 0 | BK35: 0 | BL35: 0 | BM35: 0 | BN35: 0 | BO35: 0 | BP35: 0 | BQ35: 0 | BR35: 0 | BS35: 0 | BT35: 0 | BU35: 0 | BV35: 0 | BW35: 0 | BX35: 0 | BY35: 0 | BZ35: 0 | CA35: 0 | CB35: 0 | CC35: 0 | CD35: 0 | CE35: 0 | CG35: 0 | CH35: 0 | CI35: 0 | CJ35: 0 | CK35: 0 | CL35: 0 | CM35: 0 | CN35: 0 | CO35: 0 | CP35: 0 | CQ35: 0 | CR35: 0 | CS35: 0 | CT35: 0 | CU35: 0 | CV35: 0 | CW35: 0 | CX35: 0 | CY35: 0 | CZ35: 0 | DA35: 0 | DB35: 0 | DC35: 0 | DD35: 0 | DE35: 0 | DF35: 0 | DG35: 0 | DH35: 0 | DI35: 0 | DJ35: 0 | DK35: 0 | DL35: 0 | DM35: 0 | DN35: 0 | DO35: 0 | DP35: 0 | DQ35: 0 | DR35: 0 | DS35: 0 | DT35: 0 | DU35: 0 | DV35: 0 | DW35: 0 | DX35: 0 | DY35: 0 | DZ35: 0 | EA35: 0 | EB35: 0 | EC35: 0 | ED35: 0 | EE35: 0 | EF35: 0 | EG35: 0 | EH35: 0 | EI35: 0 | EJ35: 0 | EK35: 0 | EL35: 0 | EM35: 0 | EN35: 0 | EO35: 0 | EP35: 0 | EQ35: 0 | ER35: 0 | ES35: 0 | ET35: 0 | EU35: 0 | EV35: 0 | EW35: 0 | EX35: 0 | EY35: 0 | EZ35: 0
E36: 0 | F36: 0 | G36: 0 | H36: 0 | I36: 0 | J36: 0 | L36: 0 | M36: 0 | N36: 0 | O36: 0 | P36: 0 | Q36: 0 | R36: 0 | S36: 0 | T36: 0 | U36: 0 | V36: 0 | W36: 0 | X36: 0 | Y36: 0 | Z36: 0 | AA36: 0 | AB36: 0 | AC36: 0 | AD36: 0 | AE36: 0 | AF36: 0 | AG36: 0 | AH36: 0 | AI36: 0 | AJ36: 0 | AK36: 0 | AL36: 0 | AM36: 0 | AN36: 0 | AO36: 0 | AP36: 0 | AQ36: 0 | AR36: 0 | AS36: 0 | AT36: 0 | AU36: 0 | AV36: 0 | AW36: 0 | AX36: 0 | AY36: 0 | AZ36: 0 | BA36: 0 | BB36: 0 | BC36: 0 | BD36: 0 | BE36: 0 | BF36: 0 | BG36: 0 | BH36: 0 | BI36: 0 | BJ36: 0 | BK36: 0 | BL36: 0 | BM36: 0 | BN36: 0 | BO36: 0 | BP36: 0 | BQ36: 0 | BR36: 0 | BS36: 0 | BT36: 0 | BU36: 0 | BV36: 0 | BW36: 0 | BX36: 0 | BY36: 0 | BZ36: 0 | CA36: 0 | CB36: 0 | CC36: 0 | CD36: 0 | CE36: 0 | CG36: 0 | CH36: 0 | CI36: 0 | CJ36: 0 | CK36: 0 | CL36: 0 | CM36: 0 | CN36: 0 | CO36: 0 | CP36: 0 | CQ36: 0 | CR36: 0 | CS36: 0 | CT36: 0 | CU36: 0 | CV36: 0 | CW36: 0 | CX36: 0 | CY36: 0 | CZ36: 0 | DA36: 0 | DB36: 0 | DC36: 0 | DD36: 0 | DE36: 0 | DF36: 0 | DG36: 0 | DH36: 0 | DI36: 0 | DJ36: 0 | DK36: 0 | DL36: 0 | DM36: 0 | DN36: 0 | DO36: 0 | DP36: 0 | DQ36: 0 | DR36: 0 | DS36: 0 | DT36: 0 | DU36: 0 | DV36: 0 | DW36: 0 | DX36: 0 | DY36: 0 | DZ36: 0 | EA36: 0 | EB36: 0 | EC36: 0 | ED36: 0 | EE36: 0 | EF36: 0 | EG36: 0 | EH36: 0 | EI36: 0 | EJ36: 0 | EK36: 0 | EL36: 0 | EM36: 0 | EN36: 0 | EO36: 0 | EP36: 0 | EQ36: 0 | ER36: 0 | ES36: 0 | ET36: 0 | EU36: 0 | EV36: 0 | EW36: 0 | EX36: 0 | EY36: 0 | EZ36: 0
E37: 0 | F37: 0 | G37: 0 | H37: 0 | I37: 0 | J37: 0 | L37: 0 | M37: 0 | N37: 0 | O37: 0 | P37: 0 | Q37: 0 | R37: 0 | S37: 0 | T37: 0 | U37: 0 | V37: 0 | W37: 0 | X37: 0 | Y37: 0 | Z37: 0 | AA37: 0 | AB37: 0 | AC37: 0 | AD37: 0 | AE37: 0 | AF37: 0 | AG37: 0 | AH37: 0 | AI37: 0 | AJ37: 0 | AK37: 0 | AL37: 0 | AM37: 0 | AN37: 0 | AO37: 0 | AP37: 0 | AQ37: 0 | AR37: 0 | AS37: 0 | AT37: 0 | AU37: 0 | AV37: 0 | AW37: 0 | AX37: 0 | AY37: 0 | AZ37: 0 | BA37: 0 | BB37: 0 | BC37: 0 | BD37: 0 | BE37: 0 | BF37: 0 | BG37: 0 | BH37: 0 | BI37: 0 | BJ37: 0 | BK37: 0 | BL37: 0 | BM37: 0 | BN37: 0 | BO37: 0 | BP37: 0 | BQ37: 0 | BR37: 0 | BS37: 0 | BT37: 0 | BU37: 0 | BV37: 0 | BW37: 0 | BX37: 0 | BY37: 0 | BZ37: 0 | CA37: 0 | CB37: 0 | CC37: 0 | CD37: 0 | CE37: 0 | CG37: 0 | CH37: 0 | CI37: 0 | CJ37: 0 | CK37: 0 | CL37: 0 | CM37: 0 | CN37: 0 | CO37: 0 | CP37: 0 | CQ37: 0 | CR37: 0 | CS37: 0 | CT37: 0 | CU37: 0 | CV37: 0 | CW37: 0 | CX37: 0 | CY37: 0 | CZ37: 0 | DA37: 0 | DB37: 0 | DC37: 0 | DD37: 0 | DE37: 0 | DF37: 0 | DG37: 0 | DH37: 0 | DI37: 0 | DJ37: 0 | DK37: 0 | DL37: 0 | DM37: 0 | DN37: 0 | DO37: 0 | DP37: 0 | DQ37: 0 | DR37: 0 | DS37: 0 | DT37: 0 | DU37: 0 | DV37: 0 | DW37: 0 | DX37: 0 | DY37: 0 | DZ37: 0 | EA37: 0 | EB37: 0 | EC37: 0 | ED37: 0 | EE37: 0 | EF37: 0 | EG37: 0 | EH37: 0 | EI37: 0 | EJ37: 0 | EK37: 0 | EL37: 0 | EM37: 0 | EN37: 0 | EO37: 0 | EP37: 0 | EQ37: 0 | ER37: 0 | ES37: 0 | ET37: 0 | EU37: 0 | EV37: 0 | EW37: 0 | EX37: 0 | EY37: 0 | EZ37: 0
B38: Seasonal or Capacity Exchange | D38: FPS_EXS | E38: =+SUM(E39:E48) -> 0 | F38: 0 | G38: 0 | H38: 0 | I38: 0 | J38: 0 | L38: 0 | M38: 0 | N38: 0 | O38: 0 | P38: 0 | Q38: 0 | R38: 0 | S38: 0 | T38: 0 | U38: 0 | V38: 0 | W38: 0 | X38: 0 | Y38: 0 | Z38: 0 | AA38: 0 | AB38: 0 | AC38: 0 | AD38: 0 | AE38: 0 | AF38: 0 | AG38: 0 | AH38: 0 | AI38: 0 | AJ38: 0 | AK38: 0 | AL38: 0 | AM38: 0 | AN38: 0 | AO38: 0 | AP38: 0 | AQ38: 0 | AR38: 0 | AS38: 0 | AT38: 0 | AU38: 0 | AV38: 0 | AW38: 0 | AX38: 0 | AY38: 0 | AZ38: 0 | BA38: 0 | BB38: 0 | BC38: 0 | BD38: 0 | BE38: 0 | BF38: 0 | BG38: 0 | BH38: 0 | BI38: 0 | BJ38: 0 | BK38: 0 | BL38: 0 | BM38: 0 | BN38: 0 | BO38: 0 | BP38: 0 | BQ38: 0 | BR38: 0 | BS38: 0 | BT38: 0 | BU38: 0 | BV38: 0 | BW38: 0 | BX38: 0 | BY38: 0 | BZ38: 0 | CA38: 0 | CB38: 0 | CC38: 0 | CD38: 0 | CE38: 0 | CG38: 0 | CH38: 0 | CI38: 0 | CJ38: 0 | CK38: 0 | CL38: 0 | CM38: 0 | CN38: 0 | CO38: 0 | CP38: 0 | CQ38: 0 | CR38: 0 | CS38: 0 | CT38: 0 | CU38: 0 | CV38: 0 | CW38: 0 | CX38: 0 | CY38: 0 | CZ38: 0 | DA38: 0 | DB38: 0 | DC38: 0 | DD38: 0 | DE38: 0 | DF38: 0 | DG38: 0 | DH38: 0 | DI38: 0 | DJ38: 0 | DK38: 0 | DL38: 0 | DM38: 0 | DN38: 0 | DO38: 0 | DP38: 0 | DQ38: 0 | DR38: 0 | DS38: 0 | DT38: 0 | DU38: 0 | DV38: 0 | DW38: 0 | DX38: 0 | DY38: 0 | DZ38: 0 | EA38: 0 | EB38: 0 | EC38: 0 | ED38: 0 | EE38: 0 | EF38: 0 | EG38: 0 | EH38: 0 | EI38: 0 | EJ38: 0 | EK38: 0 | EL38: 0 | EM38: 0 | EN38: 0 | EO38: 0 | EP38: 0 | EQ38: 0 | ER38: 0 | ES38: 0 | ET38: 0 | EU38: 0 | EV38: 0 | EW38: 0 | EX38: 0 | EY38: 0 | EZ38: 0
C39: Riverside Capacity | D39: FPS_EXS_RVC | E39: 0 | F39: 0 | G39: 0 | H39: 0 | I39: 0 | J39: 0 | L39: 0 | M39: 0 | N39: 0 | O39: 0 | P39: 0 | Q39: 0 | R39: 0 | S39: 0 | T39: 0 | U39: 0 | V39: 0 | W39: 0 | X39: 0 | Y39: 0 | Z39: 0 | AA39: 0 | AB39: 0 | AC39: 0 | AD39: 0 | AE39: 0 | AF39: 0 | AG39: 0 | AH39: 0 | AI39: 0 | AJ39: 0 | AK39: 0 | AL39: 0 | AM39: 0 | AN39: 0 | AO39: 0 | AP39: 0 | AQ39: 0 | AR39: 0 | AS39: 0 | AT39: 0 | AU39: 0 | AV39: 0 | AW39: 0 | AX39: 0 | AY39: 0 | AZ39: 0 | BA39: 0 | BB39: 0 | BC39: 0 | BD39: 0 | BE39: 0 | BF39: 0 | BG39: 0 | BH39: 0 | BI39: 0 | BJ39: 0 | BK39: 0 | BL39: 0 | BM39: 0 | BN39: 0 | BO39: 0 | BP39: 0 | BQ39: 0 | BR39: 0 | BS39: 0 | BT39: 0 | BU39: 0 | BV39: 0 | BW39: 0 | BX39: 0 | BY39: 0 | BZ39: 0 | CA39: 0 | CB39: 0 | CC39: 0 | CD39: 0 | CE39: 0 | CG39: 0 | CH39: 0 | CI39: 0 | CJ39: 0 | CK39: 0 | CL39: 0 | CM39: 0 | CN39: 0 | CO39: 0 | CP39: 0 | CQ39: 0 | CR39: 0 | CS39: 0 | CT39: 0 | CU39: 0 | CV39: 0 | CW39: 0 | CX39: 0 | CY39: 0 | CZ39: 0 | DA39: 0 | DB39: 0 | DC39: 0 | DD39: 0 | DE39: 0 | DF39: 0 | DG39: 0 | DH39: 0 | DI39: 0 | DJ39: 0 | DK39: 0 | DL39: 0 | DM39: 0 | DN39: 0 | DO39: 0 | DP39: 0 | DQ39: 0 | DR39: 0 | DS39: 0 | DT39: 0 | DU39: 0 | DV39: 0 | DW39: 0 | DX39: 0 | DY39: 0 | DZ39: 0 | EA39: 0 | EB39: 0 | EC39: 0 | ED39: 0 | EE39: 0 | EF39: 0 | EG39: 0 | EH39: 0 | EI39: 0 | EJ39: 0 | EK39: 0 | EL39: 0 | EM39: 0 | EN39: 0 | EO39: 0 | EP39: 0 | EQ39: 0 | ER39: 0 | ES39: 0 | ET39: 0 | EU39: 0 | EV39: 0 | EW39: 0 | EX39: 0 | EY39: 0 | EZ39: 0
C40: Riverside Seasonal | D40: FPS_EXS_RVS | E40: 0 | F40: 0 | G40: 0 | H40: 0 | I40: 0 | J40: 0 | L40: 0 | M40: 0 | N40: 0 | O40: 0 | P40: 0 | Q40: 0 | R40: 0 | S40: 0 | T40: 0 | U40: 0 | V40: 0 | W40: 0 | X40: 0 | Y40: 0 | Z40: 0 | AA40: 0 | AB40: 0 | AC40: 0 | AD40: 0 | AE40: 0 | AF40: 0 | AG40: 0 | AH40: 0 | AI40: 0 | AJ40: 0 | AK40: 0 | AL40: 0 | AM40: 0 | AN40: 0 | AO40: 0 | AP40: 0 | AQ40: 0 | AR40: 0 | AS40: 0 | AT40: 0 | AU40: 0 | AV40: 0 | AW40: 0 | AX40: 0 | AY40: 0 | AZ40: 0 | BA40: 0 | BB40: 0 | BC40: 0 | BD40: 0 | BE40: 0 | BF40: 0 | BG40: 0 | BH40: 0 | BI40: 0 | BJ40: 0 | BK40: 0 | BL40: 0 | BM40: 0 | BN40: 0 | BO40: 0 | BP40: 0 | BQ40: 0 | BR40: 0 | BS40: 0 | BT40: 0 | BU40: 0 | BV40: 0 | BW40: 0 | BX40: 0 | BY40: 0 | BZ40: 0 | CA40: 0 | CB40: 0 | CC40: 0 | CD40: 0 | CE40: 0 | CG40: 0 | CH40: 0 | CI40: 0 | CJ40: 0 | CK40: 0 | CL40: 0 | CM40: 0 | CN40: 0 | CO40: 0 | CP40: 0 | CQ40: 0 | CR40: 0 | CS40: 0 | CT40: 0 | CU40: 0 | CV40: 0 | CW40: 0 | CX40: 0 | CY40: 0 | CZ40: 0 | DA40: 0 | DB40: 0 | DC40: 0 | DD40: 0 | DE40: 0 | DF40: 0 | DG40: 0 | DH40: 0 | DI40: 0 | DJ40: 0 | DK40: 0 | DL40: 0 | DM40: 0 | DN40: 0 | DO40: 0 | DP40: 0 | DQ40: 0 | DR40: 0 | DS40: 0 | DT40: 0 | DU40: 0 | DV40: 0 | DW40: 0 | DX40: 0 | DY40: 0 | DZ40: 0 | EA40: 0 | EB40: 0 | EC40: 0 | ED40: 0 | EE40: 0 | EF40: 0 | EG40: 0 | EH40: 0 | EI40: 0 | EJ40: 0 | EK40: 0 | EL40: 0 | EM40: 0 | EN40: 0 | EO40: 0 | EP40: 0 | EQ40: 0 | ER40: 0 | ES40: 0 | ET40: 0 | EU40: 0 | EV40: 0 | EW40: 0 | EX40: 0 | EY40: 0 | EZ40: 0
C41: Pasadena Capacity | D41: FPS_EXS_PAC | E41: 0 | F41: 0 | G41: 0 | H41: 0 | I41: 0 | J41: 0 | L41: 0 | M41: 0 | N41: 0 | O41: 0 | P41: 0 | Q41: 0 | R41: 0 | S41: 0 | T41: 0 | U41: 0 | V41: 0 | W41: 0 | X41: 0 | Y41: 0 | Z41: 0 | AA41: 0 | AB41: 0 | AC41: 0 | AD41: 0 | AE41: 0 | AF41: 0 | AG41: 0 | AH41: 0 | AI41: 0 | AJ41: 0 | AK41: 0 | AL41: 0 | AM41: 0 | AN41: 0 | AO41: 0 | AP41: 0 | AQ41: 0 | AR41: 0 | AS41: 0 | AT41: 0 | AU41: 0 | AV41: 0 | AW41: 0 | AX41: 0 | AY41: 0 | AZ41: 0 | BA41: 0 | BB41: 0 | BC41: 0 | BD41: 0 | BE41: 0 | BF41: 0 | BG41: 0 | BH41: 0 | BI41: 0 | BJ41: 0 | BK41: 0 | BL41: 0 | BM41: 0 | BN41: 0 | BO41: 0 | BP41: 0 | BQ41: 0 | BR41: 0 | BS41: 0 | BT41: 0 | BU41: 0 | BV41: 0 | BW41: 0 | BX41: 0 | BY41: 0 | BZ41: 0 | CA41: 0 | CB41: 0 | CC41: 0 | CD41: 0 | CE41: 0 | CG41: 0 | CH41: 0 | CI41: 0 | CJ41: 0 | CK41: 0 | CL41: 0 | CM41: 0 | CN41: 0 | CO41: 0 | CP41: 0 | CQ41: 0 | CR41: 0 | CS41: 0 | CT41: 0 | CU41: 0 | CV41: 0 | CW41: 0 | CX41: 0 | CY41: 0 | CZ41: 0 | DA41: 0 | DB41: 0 | DC41: 0 | DD41: 0 | DE41: 0 | DF41: 0 | DG41: 0 | DH41: 0 | DI41: 0 | DJ41: 0 | DK41: 0 | DL41: 0 | DM41: 0 | DN41: 0 | DO41: 0 | DP41: 0 | DQ41: 0 | DR41: 0 | DS41: 0 | DT41: 0 | DU41: 0 | DV41: 0 | DW41: 0 | DX41: 0 | DY41: 0 | DZ41: 0 | EA41: 0 | EB41: 0 | EC41: 0 | ED41: 0 | EE41: 0 | EF41: 0 | EG41: 0 | EH41: 0 | EI41: 0 | EJ41: 0 | EK41: 0 | EL41: 0 | EM41: 0 | EN41: 0 | EO41: 0 | EP41: 0 | EQ41: 0 | ER41: 0 | ES41: 0 | ET41: 0 | EU41: 0 | EV41: 0 | EW41: 0 | EX41: 0 | EY41: 0 | EZ41: 0
C42: Pasadena Seasonal | D42: FPS_EXS_PAS | E42: 0 | F42: 0 | G42: 0 | H42: 0 | I42: 0 | J42: 0 | L42: 0 | M42: 0 | N42: 0 | O42: 0 | P42: 0 | Q42: 0 | R42: 0 | S42: 0 | T42: 0 | U42: 0 | V42: 0 | W42: 0 | X42: 0 | Y42: 0 | Z42: 0 | AA42: 0 | AB42: 0 | AC42: 0 | AD42: 0 | AE42: 0 | AF42: 0 | AG42: 0 | AH42: 0 | AI42: 0 | AJ42: 0 | AK42: 0 | AL42: 0 | AM42: 0 | AN42: 0 | AO42: 0 | AP42: 0 | AQ42: 0 | AR42: 0 | AS42: 0 | AT42: 0 | AU42: 0 | AV42: 0 | AW42: 0 | AX42: 0 | AY42: 0 | AZ42: 0 | BA42: 0 | BB42: 0 | BC42: 0 | BD42: 0 | BE42: 0 | BF42: 0 | BG42: 0 | BH42: 0 | BI42: 0 | BJ42: 0 | BK42: 0 | BL42: 0 | BM42: 0 | BN42: 0 | BO42: 0 | BP42: 0 | BQ42: 0 | BR42: 0 | BS42: 0 | BT42: 0 | BU42: 0 | BV42: 0 | BW42: 0 | BX42: 0 | BY42: 0 | BZ42: 0 | CA42: 0 | CB42: 0 | CC42: 0 | CD42: 0 | CE42: 0 | CG42: 0 | CH42: 0 | CI42: 0 | CJ42: 0 | CK42: 0 | CL42: 0 | CM42: 0 | CN42: 0 | CO42: 0 | CP42: 0 | CQ42: 0 | CR42: 0 | CS42: 0 | CT42: 0 | CU42: 0 | CV42: 0 | CW42: 0 | CX42: 0 | CY42: 0 | CZ42: 0 | DA42: 0 | DB42: 0 | DC42: 0 | DD42: 0 | DE42: 0 | DF42: 0 | DG42: 0 | DH42: 0 | DI42: 0 | DJ42: 0 | DK42: 0 | DL42: 0 | DM42: 0 | DN42: 0 | DO42: 0 | DP42: 0 | DQ42: 0 | DR42: 0 | DS42: 0 | DT42: 0 | DU42: 0 | DV42: 0 | DW42: 0 | DX42: 0 | DY42: 0 | DZ42: 0 | EA42: 0 | EB42: 0 | EC42: 0 | ED42: 0 | EE42: 0 | EF42: 0 | EG42: 0 | EH42: 0 | EI42: 0 | EJ42: 0 | EK42: 0 | EL42: 0 | EM42: 0 | EN42: 0 | EO42: 0 | EP42: 0 | EQ42: 0 | ER42: 0 | ES42: 0 | ET42: 0 | EU42: 0 | EV42: 0 | EW42: 0 | EX42: 0 | EY42: 0 | EZ42: 0
C43: PG&E | D43: FPS_EXS_PGE | E43: 0 | F43: 0 | G43: 0 | H43: 0 | I43: 0 | J43: 0 | L43: 0 | M43: 0 | N43: 0 | O43: 0 | P43: 0 | Q43: 0 | R43: 0 | S43: 0 | T43: 0 | U43: 0 | V43: 0 | W43: 0 | X43: 0 | Y43: 0 | Z43: 0 | AA43: 0 | AB43: 0 | AC43: 0 | AD43: 0 | AE43: 0 | AF43: 0 | AG43: 0 | AH43: 0 | AI43: 0 | AJ43: 0 | AK43: 0 | AL43: 0 | AM43: 0 | AN43: 0 | AO43: 0 | AP43: 0 | AQ43: 0 | AR43: 0 | AS43: 0 | AT43: 0 | AU43: 0 | AV43: 0 | AW43: 0 | AX43: 0 | AY43: 0 | AZ43: 0 | BA43: 0 | BB43: 0 | BC43: 0 | BD43: 0 | BE43: 0 | BF43: 0 | BG43: 0 | BH43: 0 | BI43: 0 | BJ43: 0 | BK43: 0 | BL43: 0 | BM43: 0 | BN43: 0 | BO43: 0 | BP43: 0 | BQ43: 0 | BR43: 0 | BS43: 0 | BT43: 0 | BU43: 0 | BV43: 0 | BW43: 0 | BX43: 0 | BY43: 0 | BZ43: 0 | CA43: 0 | CB43: 0 | CC43: 0 | CD43: 0 | CE43: 0 | CG43: 0 | CH43: 0 | CI43: 0 | CJ43: 0 | CK43: 0 | CL43: 0 | CM43: 0 | CN43: 0 | CO43: 0 | CP43: 0 | CQ43: 0 | CR43: 0 | CS43: 0 | CT43: 0 | CU43: 0 | CV43: 0 | CW43: 0 | CX43: 0 | CY43: 0 | CZ43: 0 | DA43: 0 | DB43: 0 | DC43: 0 | DD43: 0 | DE43: 0 | DF43: 0 | DG43: 0 | DH43: 0 | DI43: 0 | DJ43: 0 | DK43: 0 | DL43: 0 | DM43: 0 | DN43: 0 | DO43: 0 | DP43: 0 | DQ43: 0 | DR43: 0 | DS43: 0 | DT43: 0 | DU43: 0 | DV43: 0 | DW43: 0 | DX43: 0 | DY43: 0 | DZ43: 0 | EA43: 0 | EB43: 0 | EC43: 0 | ED43: 0 | EE43: 0 | EF43: 0 | EG43: 0 | EH43: 0 | EI43: 0 | EJ43: 0 | EK43: 0 | EL43: 0 | EM43: 0 | EN43: 0 | EO43: 0 | EP43: 0 | EQ43: 0 | ER43: 0 | ES43: 0 | ET43: 0 | EU43: 0 | EV43: 0 | EW43: 0 | EX43: 0 | EY43: 0 | EZ43: 0
C44: Intertie Losses | D44: FPS_EXS_LSS | E44: 0 | F44: 0 | G44: 0 | H44: 0 | I44: 0 | J44: 0 | L44: 0 | M44: 0 | N44: 0 | O44: 0 | P44: 0 | Q44: 0 | R44: 0 | S44: 0 | T44: 0 | U44: 0 | V44: 0 | W44: 0 | X44: 0 | Y44: 0 | Z44: 0 | AA44: 0 | AB44: 0 | AC44: 0 | AD44: 0 | AE44: 0 | AF44: 0 | AG44: 0 | AH44: 0 | AI44: 0 | AJ44: 0 | AK44: 0 | AL44: 0 | AM44: 0 | AN44: 0 | AO44: 0 | AP44: 0 | AQ44: 0 | AR44: 0 | AS44: 0 | AT44: 0 | AU44: 0 | AV44: 0 | AW44: 0 | AX44: 0 | AY44: 0 | AZ44: 0 | BA44: 0 | BB44: 0 | BC44: 0 | BD44: 0 | BE44: 0 | BF44: 0 | BG44: 0 | BH44: 0 | BI44: 0 | BJ44: 0 | BK44: 0 | BL44: 0 | BM44: 0 | BN44: 0 | BO44: 0 | BP44: 0 | BQ44: 0 | BR44: 0 | BS44: 0 | BT44: 0 | BU44: 0 | BV44: 0 | BW44: 0 | BX44: 0 | BY44: 0 | BZ44: 0 | CA44: 0 | CB44: 0 | CC44: 0 | CD44: 0 | CE44: 0 | CG44: 0 | CH44: 0 | CI44: 0 | CJ44: 0 | CK44: 0 | CL44: 0 | CM44: 0 | CN44: 0 | CO44: 0 | CP44: 0 | CQ44: 0 | CR44: 0 | CS44: 0 | CT44: 0 | CU44: 0 | CV44: 0 | CW44: 0 | CX44: 0 | CY44: 0 | CZ44: 0 | DA44: 0 | DB44: 0 | DC44: 0 | DD44: 0 | DE44: 0 | DF44: 0 | DG44: 0 | DH44: 0 | DI44: 0 | DJ44: 0 | DK44: 0 | DL44: 0 | DM44: 0 | DN44: 0 | DO44: 0 | DP44: 0 | DQ44: 0 | DR44: 0 | DS44: 0 | DT44: 0 | DU44: 0 | DV44: 0 | DW44: 0 | DX44: 0 | DY44: 0 | DZ44: 0 | EA44: 0 | EB44: 0 | EC44: 0 | ED44: 0 | EE44: 0 | EF44: 0 | EG44: 0 | EH44: 0 | EI44: 0 | EJ44: 0 | EK44: 0 | EL44: 0 | EM44: 0 | EN44: 0 | EO44: 0 | EP44: 0 | EQ44: 0 | ER44: 0 | ES44: 0 | ET44: 0 | EU44: 0 | EV44: 0 | EW44: 0 | EX44: 0 | EY44: 0 | EZ44: 0
C45: PacifiCorp | D45: FPS_EXS_PPL | E45: 0 | F45: 0 | G45: 0 | H45: 0 | I45: 0 | J45: 0 | L45: 0 | M45: 0 | N45: 0 | O45: 0 | P45: 0 | Q45: 0 | R45: 0 | S45: 0 | T45: 0 | U45: 0 | V45: 0 | W45: 0 | X45: 0 | Y45: 0 | Z45: 0 | AA45: 0 | AB45: 0 | AC45: 0 | AD45: 0 | AE45: 0 | AF45: 0 | AG45: 0 | AH45: 0 | AI45: 0 | AJ45: 0 | AK45: 0 | AL45: 0 | AM45: 0 | AN45: 0 | AO45: 0 | AP45: 0 | AQ45: 0 | AR45: 0 | AS45: 0 | AT45: 0 | AU45: 0 | AV45: 0 | AW45: 0 | AX45: 0 | AY45: 0 | AZ45: 0 | BA45: 0 | BB45: 0 | BC45: 0 | BD45: 0 | BE45: 0 | BF45: 0 | BG45: 0 | BH45: 0 | BI45: 0 | BJ45: 0 | BK45: 0 | BL45: 0 | BM45: 0 | BN45: 0 | BO45: 0 | BP45: 0 | BQ45: 0 | BR45: 0 | BS45: 0 | BT45: 0 | BU45: 0 | BV45: 0 | BW45: 0 | BX45: 0 | BY45: 0 | BZ45: 0 | CA45: 0 | CB45: 0 | CC45: 0 | CD45: 0 | CE45: 0 | CG45: 0 | CH45: 0 | CI45: 0 | CJ45: 0 | CK45: 0 | CL45: 0 | CM45: 0 | CN45: 0 | CO45: 0 | CP45: 0 | CQ45: 0 | CR45: 0 | CS45: 0 | CT45: 0 | CU45: 0 | CV45: 0 | CW45: 0 | CX45: 0 | CY45: 0 | CZ45: 0 | DA45: 0 | DB45: 0 | DC45: 0 | DD45: 0 | DE45: 0 | DF45: 0 | DG45: 0 | DH45: 0 | DI45: 0 | DJ45: 0 | DK45: 0 | DL45: 0 | DM45: 0 | DN45: 0 | DO45: 0 | DP45: 0 | DQ45: 0 | DR45: 0 | DS45: 0 | DT45: 0 | DU45: 0 | DV45: 0 | DW45: 0 | DX45: 0 | DY45: 0 | DZ45: 0 | EA45: 0 | EB45: 0 | EC45: 0 | ED45: 0 | EE45: 0 | EF45: 0 | EG45: 0 | EH45: 0 | EI45: 0 | EJ45: 0 | EK45: 0 | EL45: 0 | EM45: 0 | EN45: 0 | EO45: 0 | EP45: 0 | EQ45: 0 | ER45: 0 | ES45: 0 | ET45: 0 | EU45: 0 | EV45: 0 | EW45: 0 | EX45: 0 | EY45: 0 | EZ45: 0
E46: 0 | F46: 0 | G46: 0 | H46: 0 | I46: 0 | J46: 0 | L46: 0 | M46: 0 | N46: 0 | O46: 0 | P46: 0 | Q46: 0 | R46: 0 | S46: 0 | T46: 0 | U46: 0 | V46: 0 | W46: 0 | X46: 0 | Y46: 0 | Z46: 0 | AA46: 0 | AB46: 0 | AC46: 0 | AD46: 0 | AE46: 0 | AF46: 0 | AG46: 0 | AH46: 0 | AI46: 0 | AJ46: 0 | AK46: 0 | AL46: 0 | AM46: 0 | AN46: 0 | AO46: 0 | AP46: 0 | AQ46: 0 | AR46: 0 | AS46: 0 | AT46: 0 | AU46: 0 | AV46: 0 | AW46: 0 | AX46: 0 | AY46: 0 | AZ46: 0 | BA46: 0 | BB46: 0 | BC46: 0 | BD46: 0 | BE46: 0 | BF46: 0 | BG46: 0 | BH46: 0 | BI46: 0 | BJ46: 0 | BK46: 0 | BL46: 0 | BM46: 0 | BN46: 0 | BO46: 0 | BP46: 0 | BQ46: 0 | BR46: 0 | BS46: 0 | BT46: 0 | BU46: 0 | BV46: 0 | BW46: 0 | BX46: 0 | BY46: 0 | BZ46: 0 | CA46: 0 | CB46: 0 | CC46: 0 | CD46: 0 | CE46: 0 | CG46: 0 | CH46: 0 | CI46: 0 | CJ46: 0 | CK46: 0 | CL46: 0 | CM46: 0 | CN46: 0 | CO46: 0 | CP46: 0 | CQ46: 0 | CR46: 0 | CS46: 0 | CT46: 0 | CU46: 0 | CV46: 0 | CW46: 0 | CX46: 0 | CY46: 0 | CZ46: 0 | DA46: 0 | DB46: 0 | DC46: 0 | DD46: 0 | DE46: 0 | DF46: 0 | DG46: 0 | DH46: 0 | DI46: 0 | DJ46: 0 | DK46: 0 | DL46: 0 | DM46: 0 | DN46: 0 | DO46: 0 | DP46: 0 | DQ46: 0 | DR46: 0 | DS46: 0 | DT46: 0 | DU46: 0 | DV46: 0 | DW46: 0 | DX46: 0 | DY46: 0 | DZ46: 0 | EA46: 0 | EB46: 0 | EC46: 0 | ED46: 0 | EE46: 0 | EF46: 0 | EG46: 0 | EH46: 0 | EI46: 0 | EJ46: 0 | EK46: 0 | EL46: 0 | EM46: 0 | EN46: 0 | EO46: 0 | EP46: 0 | EQ46: 0 | ER46: 0 | ES46: 0 | ET46: 0 | EU46: 0 | EV46: 0 | EW46: 0 | EX46: 0 | EY46: 0 | EZ46: 0
E47: 0 | F47: 0 | G47: 0 | H47: 0 | I47: 0 | J47: 0 | L47: 0 | M47: 0 | N47: 0 | O47: 0 | P47: 0 | Q47: 0 | R47: 0 | S47: 0 | T47: 0 | U47: 0 | V47: 0 | W47: 0 | X47: 0 | Y47: 0 | Z47: 0 | AA47: 0 | AB47: 0 | AC47: 0 | AD47: 0 | AE47: 0 | AF47: 0 | AG47: 0 | AH47: 0 | AI47: 0 | AJ47: 0 | AK47: 0 | AL47: 0 | AM47: 0 | AN47: 0 | AO47: 0 | AP47: 0 | AQ47: 0 | AR47: 0 | AS47: 0 | AT47: 0 | AU47: 0 | AV47: 0 | AW47: 0 | AX47: 0 | AY47: 0 | AZ47: 0 | BA47: 0 | BB47: 0 | BC47: 0 | BD47: 0 | BE47: 0 | BF47: 0 | BG47: 0 | BH47: 0 | BI47: 0 | BJ47: 0 | BK47: 0 | BL47: 0 | BM47: 0 | BN47: 0 | BO47: 0 | BP47: 0 | BQ47: 0 | BR47: 0 | BS47: 0 | BT47: 0 | BU47: 0 | BV47: 0 | BW47: 0 | BX47: 0 | BY47: 0 | BZ47: 0 | CA47: 0 | CB47: 0 | CC47: 0 | CD47: 0 | CE47: 0 | CG47: 0 | CH47: 0 | CI47: 0 | CJ47: 0 | CK47: 0 | CL47: 0 | CM47: 0 | CN47: 0 | CO47: 0 | CP47: 0 | CQ47: 0 | CR47: 0 | CS47: 0 | CT47: 0 | CU47: 0 | CV47: 0 | CW47: 0 | CX47: 0 | CY47: 0 | CZ47: 0 | DA47: 0 | DB47: 0 | DC47: 0 | DD47: 0 | DE47: 0 | DF47: 0 | DG47: 0 | DH47: 0 | DI47: 0 | DJ47: 0 | DK47: 0 | DL47: 0 | DM47: 0 | DN47: 0 | DO47: 0 | DP47: 0 | DQ47: 0 | DR47: 0 | DS47: 0 | DT47: 0 | DU47: 0 | DV47: 0 | DW47: 0 | DX47: 0 | DY47: 0 | DZ47: 0 | EA47: 0 | EB47: 0 | EC47: 0 | ED47: 0 | EE47: 0 | EF47: 0 | EG47: 0 | EH47: 0 | EI47: 0 | EJ47: 0 | EK47: 0 | EL47: 0 | EM47: 0 | EN47: 0 | EO47: 0 | EP47: 0 | EQ47: 0 | ER47: 0 | ES47: 0 | ET47: 0 | EU47: 0 | EV47: 0 | EW47: 0 | EX47: 0 | EY47: 0 | EZ47: 0
E48: 0 | F48: 0 | G48: 0 | H48: 0 | I48: 0 | J48: 0 | L48: 0 | M48: 0 | N48: 0 | O48: 0 | P48: 0 | Q48: 0 | R48: 0 | S48: 0 | T48: 0 | U48: 0 | V48: 0 | W48: 0 | X48: 0 | Y48: 0 | Z48: 0 | AA48: 0 | AB48: 0 | AC48: 0 | AD48: 0 | AE48: 0 | AF48: 0 | AG48: 0 | AH48: 0 | AI48: 0 | AJ48: 0 | AK48: 0 | AL48: 0 | AM48: 0 | AN48: 0 | AO48: 0 | AP48: 0 | AQ48: 0 | AR48: 0 | AS48: 0 | AT48: 0 | AU48: 0 | AV48: 0 | AW48: 0 | AX48: 0 | AY48: 0 | AZ48: 0 | BA48: 0 | BB48: 0 | BC48: 0 | BD48: 0 | BE48: 0 | BF48: 0 | BG48: 0 | BH48: 0 | BI48: 0 | BJ48: 0 | BK48: 0 | BL48: 0 | BM48: 0 | BN48: 0 | BO48: 0 | BP48: 0 | BQ48: 0 | BR48: 0 | BS48: 0 | BT48: 0 | BU48: 0 | BV48: 0 | BW48: 0 | BX48: 0 | BY48: 0 | BZ48: 0 | CA48: 0 | CB48: 0 | CC48: 0 | CD48: 0 | CE48: 0 | CG48: 0 | CH48: 0 | CI48: 0 | CJ48: 0 | CK48: 0 | CL48: 0 | CM48: 0 | CN48: 0 | CO48: 0 | CP48: 0 | CQ48: 0 | CR48: 0 | CS48: 0 | CT48: 0 | CU48: 0 | CV48: 0 | CW48: 0 | CX48: 0 | CY48: 0 | CZ48: 0 | DA48: 0 | DB48: 0 | DC48: 0 | DD48: 0 | DE48: 0 | DF48: 0 | DG48: 0 | DH48: 0 | DI48: 0 | DJ48: 0 | DK48: 0 | DL48: 0 | DM48: 0 | DN48: 0 | DO48: 0 | DP48: 0 | DQ48: 0 | DR48: 0 | DS48: 0 | DT48: 0 | DU48: 0 | DV48: 0 | DW48: 0 | DX48: 0 | DY48: 0 | DZ48: 0 | EA48: 0 | EB48: 0 | EC48: 0 | ED48: 0 | EE48: 0 | EF48: 0 | EG48: 0 | EH48: 0 | EI48: 0 | EJ48: 0 | EK48: 0 | EL48: 0 | EM48: 0 | EN48: 0 | EO48: 0 | EP48: 0 | EQ48: 0 | ER48: 0 | ES48: 0 | ET48: 0 | EU48: 0 | EV48: 0 | EW48: 0 | EX48: 0 | EY48: 0 | EZ48: 0
A49: Firm Surplus Sale | D49: FSS | E49: =+SUM(L49:W49,CG49:CR49) -> 0 | F49: 0 | G49: 0 | H49: 0 | I49: 0 | J49: 0 | L49: 0 | M49: 0 | N49: 0 | O49: 0 | P49: 0 | Q49: 0 | R49: 0 | S49: 0 | T49: 0 | U49: 0 | V49: 0 | W49: 0 | X49: 0 | Y49: 0 | Z49: 0 | AA49: 0 | AB49: 0 | AC49: 0 | AD49: 0 | AE49: 0 | AF49: 0 | AG49: 0 | AH49: 0 | AI49: 0 | AJ49: 0 | AK49: 0 | AL49: 0 | AM49: 0 | AN49: 0 | AO49: 0 | AP49: 0 | AQ49: 0 | AR49: 0 | AS49: 0 | AT49: 0 | AU49: 0 | AV49: 0 | AW49: 0 | AX49: 0 | AY49: 0 | AZ49: 0 | BA49: 0 | BB49: 0 | BC49: 0 | BD49: 0 | BE49: 0 | BF49: 0 | BG49: 0 | BH49: 0 | BI49: 0 | BJ49: 0 | BK49: 0 | BL49: 0 | BM49: 0 | BN49: 0 | BO49: 0 | BP49: 0 | BQ49: 0 | BR49: 0 | BS49: 0 | BT49: 0 | BU49: 0 | BV49: 0 | BW49: 0 | BX49: 0 | BY49: 0 | BZ49: 0 | CA49: 0 | CB49: 0 | CC49: 0 | CD49: 0 | CE49: 0 | CG49: 0 | CH49: 0 | CI49: 0 | CJ49: 0 | CK49: 0 | CL49: 0 | CM49: 0 | CN49: 0 | CO49: 0 | CP49: 0 | CQ49: 0 | CR49: 0 | CS49: 0 | CT49: 0 | CU49: 0 | CV49: 0 | CW49: 0 | CX49: 0 | CY49: 0 | CZ49: 0 | DA49: 0 | DB49: 0 | DC49: 0 | DD49: 0 | DE49: 0 | DF49: 0 | DG49: 0 | DH49: 0 | DI49: 0 | DJ49: 0 | DK49: 0 | DL49: 0 | DM49: 0 | DN49: 0 | DO49: 0 | DP49: 0 | DQ49: 0 | DR49: 0 | DS49: 0 | DT49: 0 | DU49: 0 | DV49: 0 | DW49: 0 | DX49: 0 | DY49: 0 | DZ49: 0 | EA49: 0 | EB49: 0 | EC49: 0 | ED49: 0 | EE49: 0 | EF49: 0 | EG49: 0 | EH49: 0 | EI49: 0 | EJ49: 0 | EK49: 0 | EL49: 0 | EM49: 0 | EN49: 0 | EO49: 0 | EP49: 0 | EQ49: 0 | ER49: 0 | ES49: 0 | ET49: 0 | EU49: 0 | EV49: 0 | EW49: 0 | EX49: 0 | EY49: 0 | EZ49: 0
A50: Presale of Secondary | D50: PRS | E50: 0 | F50: 0 | G50: 0 | H50: 0 | I50: 0 | J50: 0 | L50: 0 | M50: 0 | N50: 0 | O50: 0 | P50: 0 | Q50: 0 | R50: 0 | S50: 0 | T50: 0 | U50: 0 | V50: 0 | W50: 0 | X50: 0 | Y50: 0 | Z50: 0 | AA50: 0 | AB50: 0 | AC50: 0 | AD50: 0 | AE50: 0 | AF50: 0 | AG50: 0 | AH50: 0 | AI50: 0 | AJ50: 0 | AK50: 0 | AL50: 0 | AM50: 0 | AN50: 0 | AO50: 0 | AP50: 0 | AQ50: 0 | AR50: 0 | AS50: 0 | AT50: 0 | AU50: 0 | AV50: 0 | AW50: 0 | AX50: 0 | AY50: 0 | AZ50: 0 | BA50: 0 | BB50: 0 | BC50: 0 | BD50: 0 | BE50: 0 | BF50: 0 | BG50: 0 | BH50: 0 | BI50: 0 | BJ50: 0 | BK50: 0 | BL50: 0 | BM50: 0 | BN50: 0 | BO50: 0 | BP50: 0 | BQ50: 0 | BR50: 0 | BS50: 0 | BT50: 0 | BU50: 0 | BV50: 0 | BW50: 0 | BX50: 0 | BY50: 0 | BZ50: 0 | CA50: 0 | CB50: 0 | CC50: 0 | CD50: 0 | CE50: 0 | CG50: 0 | CH50: 0 | CI50: 0 | CJ50: 0 | CK50: 0 | CL50: 0 | CM50: 0 | CN50: 0 | CO50: 0 | CP50: 0 | CQ50: 0 | CR50: 0 | CS50: 0 | CT50: 0 | CU50: 0 | CV50: 0 | CW50: 0 | CX50: 0 | CY50: 0 | CZ50: 0 | DA50: 0 | DB50: 0 | DC50: 0 | DD50: 0 | DE50: 0 | DF50: 0 | DG50: 0 | DH50: 0 | DI50: 0 | DJ50: 0 | DK50: 0 | DL50: 0 | DM50: 0 | DN50: 0 | DO50: 0 | DP50: 0 | DQ50: 0 | DR50: 0 | DS50: 0 | DT50: 0 | DU50: 0 | DV50: 0 | DW50: 0 | DX50: 0 | DY50: 0 | DZ50: 0 | EA50: 0 | EB50: 0 | EC50: 0 | ED50: 0 | EE50: 0 | EF50: 0 | EG50: 0 | EH50: 0 | EI50: 0 | EJ50: 0 | EK50: 0 | EL50: 0 | EM50: 0 | EN50: 0 | EO50: 0 | EP50: 0 | EQ50: 0 | ER50: 0 | ES50: 0 | ET50: 0 | EU50: 0 | EV50: 0 | EW50: 0 | EX50: 0 | EY50: 0 | EZ50: 0
A51: Conservation | D51: CON | E51: 0 | F51: 0 | G51: 0 | H51: 0 | I51: 0 | J51: 0 | L51: 0 | M51: 0 | N51: 0 | O51: 0 | P51: 0 | Q51: 0 | R51: 0 | S51: 0 | T51: 0 | U51: 0 | V51: 0 | W51: 0 | X51: 0 | Y51: 0 | Z51: 0 | AA51: 0 | AB51: 0 | AC51: 0 | AD51: 0 | AE51: 0 | AF51: 0 | AG51: 0 | AH51: 0 | AI51: 0 | AJ51: 0 | AK51: 0 | AL51: 0 | AM51: 0 | AN51: 0 | AO51: 0 | AP51: 0 | AQ51: 0 | AR51: 0 | AS51: 0 | AT51: 0 | AU51: 0 | AV51: 0 | AW51: 0 | AX51: 0 | AY51: 0 | AZ51: 0 | BA51: 0 | BB51: 0 | BC51: 0 | BD51: 0 | BE51: 0 | BF51: 0 | BG51: 0 | BH51: 0 | BI51: 0 | BJ51: 0 | BK51: 0 | BL51: 0 | BM51: 0 | BN51: 0 | BO51: 0 | BP51: 0 | BQ51: 0 | BR51: 0 | BS51: 0 | BT51: 0 | BU51: 0 | BV51: 0 | BW51: 0 | BX51: 0 | BY51: 0 | BZ51: 0 | CA51: 0 | CB51: 0 | CC51: 0 | CD51: 0 | CE51: 0 | CG51: 0 | CH51: 0 | CI51: 0 | CJ51: 0 | CK51: 0 | CL51: 0 | CM51: 0 | CN51: 0 | CO51: 0 | CP51: 0 | CQ51: 0 | CR51: 0 | CS51: 0 | CT51: 0 | CU51: 0 | CV51: 0 | CW51: 0 | CX51: 0 | CY51: 0 | CZ51: 0 | DA51: 0 | DB51: 0 | DC51: 0 | DD51: 0 | DE51: 0 | DF51: 0 | DG51: 0 | DH51: 0 | DI51: 0 | DJ51: 0 | DK51: 0 | DL51: 0 | DM51: 0 | DN51: 0 | DO51: 0 | DP51: 0 | DQ51: 0 | DR51: 0 | DS51: 0 | DT51: 0 | DU51: 0 | DV51: 0 | DW51: 0 | DX51: 0 | DY51: 0 | DZ51: 0 | EA51: 0 | EB51: 0 | EC51: 0 | ED51: 0 | EE51: 0 | EF51: 0 | EG51: 0 | EH51: 0 | EI51: 0 | EJ51: 0 | EK51: 0 | EL51: 0 | EM51: 0 | EN51: 0 | EO51: 0 | EP51: 0 | EQ51: 0 | ER51: 0 | ES51: 0 | ET51: 0 | EU51: 0 | EV51: 0 | EW51: 0 | EX51: 0 | EY51: 0 | EZ51: 0
A54: Loss Percentage | E54: =Loads_MthLoss!E54 -> 0.02966010311 | F54: =Loads_MthLoss!F54 -> 0.02966010311 | G54: =Loads_MthLoss!G54 -> 0.02966010311 | H54: =Loads_MthLoss!H54 -> 0.02966010311 | I54: =Loads_MthLoss!I54 -> 0.02966010311 | J54: =Loads_MthLoss!J54 -> 0.02966010311 | L54: 0.03199174407 | M54: 0.03199174407 | N54: 0.03199174407 | O54: 0.03199174407 | P54: 0.03199174407 | Q54: 0.03199174407 | R54: 0.03199174407 | S54: 0.03199174407 | T54: 0.03199174407 | U54: 0.03199174407 | V54: 0.03199174407 | W54: 0.03199174407 | X54: 0.03199174407 | Y54: 0.03199174407 | Z54: 0.03199174407 | AA54: 0.03199174407 | AB54: 0.03199174407 | AC54: 0.03199174407 | AD54: 0.03199174407 | AE54: 0.03199174407 | AF54: 0.03199174407 | AG54: 0.03199174407 | AH54: 0.03199174407 | AI54: 0.03199174407 | AJ54: 0.03199174407 | AK54: 0.03199174407 | AL54: 0.03199174407 | AM54: 0.03199174407 | AN54: 0.03199174407 | AO54: 0.03199174407 | AP54: 0.03199174407 | AQ54: 0.03199174407 | AR54: 0.03199174407 | AS54: 0.03199174407 | AT54: 0.03199174407 | AU54: 0.03199174407 | AV54: 0.03199174407 | AW54: 0.03199174407 | AX54: 0.03199174407 | AY54: 0.03199174407 | AZ54: 0.03199174407 | BA54: 0.03199174407 | BB54: 0.03199174407 | BC54: 0.03199174407 | BD54: 0.03199174407 | BE54: 0.03199174407 | BF54: 0.03199174407 | BG54: 0.03199174407 | BH54: 0.03199174407 | BI54: 0.03199174407 | BJ54: 0.03199174407 | BK54: 0.03199174407 | BL54: 0.03199174407 | BM54: 0.03199174407 | BN54: 0.03199174407 | BO54: 0.03199174407 | BP54: 0.03199174407 | BQ54: 0.03199174407 | BR54: 0.03199174407 | BS54: 0.03199174407 | BT54: 0.03199174407 | BU54: 0.03199174407 | BV54: 0.03199174407 | BW54: 0.03199174407 | BX54: 0.03199174407 | BY54: 0.03199174407 | BZ54: 0.03199174407 | CA54: 0.03199174407 | CB54: 0.03199174407 | CC54: 0.03199174407 | CD54: 0.03199174407 | CE54: 0.03199174407 | CG54: 0.03199174407 | CH54: 0.03199174407 | CI54: 0.03199174407 | CJ54: 0.03199174407 | CK54: 0.03199174407 | CL54: 0.03199174407 | CM54: 0.03199174407 | CN54: 0.03199174407 | CO54: 0.03199174407 | CP54: 0.03199174407 | CQ54: 0.03199174407 | CR54: 0.03199174407 | CS54: 0.03199174407 | CT54: 0.03199174407 | CU54: 0.03199174407 | CV54: 0.03199174407 | CW54: 0.03199174407 | CX54: 0.03199174407 | CY54: 0.03199174407 | CZ54: 0.03199174407 | DA54: 0.03199174407 | DB54: 0.03199174407 | DC54: 0.03199174407 | DD54: 0.03199174407 | DE54: 0.03199174407 | DF54: 0.03199174407 | DG54: 0.03199174407 | DH54: 0.03199174407 | DI54: 0.03199174407 | DJ54: 0.03199174407 | DK54: 0.03199174407 | DL54: 0.03199174407 | DM54: 0.03199174407 | DN54: 0.03199174407 | DO54: 0.03199174407 | DP54: 0.03199174407 | DQ54: 0.03199174407 | DR54: 0.03199174407 | DS54: 0.03199174407 | DT54: 0.03199174407 | DU54: 0.03199174407 | DV54: 0.03199174407 | DW54: 0.03199174407 | DX54: 0.03199174407 | DY54: 0.03199174407 | DZ54: 0.03199174407 | EA54: 0.03199174407 | EB54: 0.03199174407 | EC54: 0.03199174407 | ED54: 0.03199174407 | EE54: 0.03199174407 | EF54: 0.03199174407 | EG54: 0.03199174407 | EH54: 0.03199174407 | EI54: 0.03199174407 | EJ54: 0.03199174407 | EK54: 0.03199174407 | EL54: 0.03199174407 | EM54: 0.03199174407 | EN54: 0.03199174407 | EO54: 0.03199174407 | EP54: 0.03199174407 | EQ54: 0.03199174407 | ER54: 0.03199174407 | ES54: 0.03199174407 | ET54: 0.03199174407 | EU54: 0.03199174407 | EV54: 0.03199174407 | EW54: 0.03199174407 | EX54: 0.03199174407 | EY54: 0.03199174407 | EZ54: 0.03199174407

Sheet Loads_MthLoss
B1: Loads (MWh)
A2: TOC | B2: =Cover!$C$14 -> Public Release_ RAMmodel_RAM2029_Reference Case Updated 11/5/2025
A3: é | E3: Annual
E4: =Init!$C$9 -> 2029 | F4: =E4+1 -> 2030 | G4: =F4+1 -> 2031 | H4: =G4+1 -> 2032 | I4: =H4+1 -> 2033 | J4: =I4+1 -> 2034
A5: Preference | D5: PRE | E5: =+SUM(E6:E10) -> 67134570.84 | F5: 67134570.84 | G5: 67134570.84 | H5: 67134570.84 | I5: 67134570.84 | J5: 67134570.84
B6: Block | D6: PRE_BLK | E6: =+Loads!E6+((SUMPRODUCT(Loads!L6:W6,LossesInput!$C$20:$N$20)+SUMPRODUCT(Loads!CG6:CR6,LossesInput!$C$20:$N$20))) -> 5321622.442 | F6: =+Loads!F6+((SUMPRODUCT(Loads!X6:AI6,LossesInput!$O$20:$Z$20)+SUMPRODUCT(Loads!CS6:DD6,LossesInput!$O$20:$Z$20))) -> 5321622.442 | G6: =+Loads!G6+SUMPRODUCT(Loads!AJ6:AU6,LossesInput!$AA$20:$AL$20)+SUMPRODUCT(LossesInput!$AA$20:$AL$20,Loads!DE6:DP6) -> 5321622.442 | H6: =+Loads!H6+SUMPRODUCT(Loads!AV6:BG6,LossesInput!$AY$20:$BJ$20)+SUMPRODUCT(LossesInput!$AY$20:$BJ$20,Loads!DQ6:EB6) -> 5321622.442 | I6: =+Loads!I6+SUMPRODUCT(Loads!BH6:BS6,LossesInput!$AY$20:$BJ$20)+SUMPRODUCT(LossesInput!$AY$20:$BJ$20,Loads!EC6:EN6) -> 5321622.442 | J6: =+Loads!J6+SUMPRODUCT(Loads!BT6:CE6,LossesInput!$BK$20:$BV$20)+SUMPRODUCT(LossesInput!$BK$20:$BV$20,Loads!EO6:EZ6) -> 5321622.442
B7: Slice Block | D7: PRE_BLK | E7: =+Loads!E7+((SUMPRODUCT(Loads!L7:W7,LossesInput!$C$20:$N$20)+SUMPRODUCT(Loads!CG7:CR7,LossesInput!$C$20:$N$20))) -> 5419345.493 | F7: =+Loads!F7+((SUMPRODUCT(Loads!X7:AI7,LossesInput!$O$20:$Z$20)+SUMPRODUCT(Loads!CS7:DD7,LossesInput!$O$20:$Z$20))) -> 5419345.493 | G7: =+Loads!G7+SUMPRODUCT(Loads!AJ7:AU7,LossesInput!$AA$20:$AL$20)+SUMPRODUCT(LossesInput!$AA$20:$AL$20,Loads!DE7:DP7) -> 5419345.493 | H7: =+Loads!H7+SUMPRODUCT(Loads!AV7:BG7,LossesInput!$AY$20:$BJ$20)+SUMPRODUCT(LossesInput!$AY$20:$BJ$20,Loads!DQ7:EB7) -> 5419345.493 | I7: =+Loads!I7+SUMPRODUCT(Loads!BH7:BS7,LossesInput!$AY$20:$BJ$20)+SUMPRODUCT(LossesInput!$AY$20:$BJ$20,Loads!EC7:EN7) -> 5419345.493 | J7: =+Loads!J7+SUMPRODUCT(Loads!BT7:CE7,LossesInput!$BK$20:$BV$20)+SUMPRODUCT(LossesInput!$BK$20:$BV$20,Loads!EO7:EZ7) -> 5419345.493
B8: Slice | D8: PRE_SNB | E8: =+Loads!E8+((SUMPRODUCT(Loads!L8:W8,LossesInput!$C$20:$N$20)+SUMPRODUCT(Loads!CG8:CR8,LossesInput!$C$20:$N$20))) -> 7590690.749 | F8: =+Loads!F8+((SUMPRODUCT(Loads!X8:AI8,LossesInput!$O$20:$Z$20)+SUMPRODUCT(Loads!CS8:DD8,LossesInput!$O$20:$Z$20))) -> 7590690.749 | G8: =+Loads!G8+SUMPRODUCT(Loads!AJ8:AU8,LossesInput!$AA$20:$AL$20)+SUMPRODUCT(LossesInput!$AA$20:$AL$20,Loads!DE8:DP8) -> 7590690.749 | H8: =+Loads!H8+SUMPRODUCT(Loads!AV8:BG8,LossesInput!$AY$20:$BJ$20)+SUMPRODUCT(LossesInput!$AY$20:$BJ$20,Loads!DQ8:EB8) -> 7590690.749 | I8: =+Loads!I8+SUMPRODUCT(Loads!BH8:BS8,LossesInput!$AY$20:$BJ$20)+SUMPRODUCT(LossesInput!$AY$20:$BJ$20,Loads!EC8:EN8) -> 7590690.749 | J8: =+Loads!J8+SUMPRODUCT(Loads!BT8:CE8,LossesInput!$BK$20:$BV$20)+SUMPRODUCT(LossesInput!$BK$20:$BV$20,Loads!EO8:EZ8) -> 7590690.749
B9: Load Following | D9: PRE_LDF | E9: =+Loads!E9+((SUMPRODUCT(Loads!L9:W9,LossesInput!$C$20:$N$20)+SUMPRODUCT(Loads!CG9:CR9,LossesInput!$C$20:$N$20))) -> 43236504.63 | F9: =+Loads!F9+((SUMPRODUCT(Loads!X9:AI9,LossesInput!$O$20:$Z$20)+SUMPRODUCT(Loads!CS9:DD9,LossesInput!$O$20:$Z$20))) -> 43236504.63 | G9: =+Loads!G9+SUMPRODUCT(Loads!AJ9:AU9,LossesInput!$AA$20:$AL$20)+SUMPRODUCT(LossesInput!$AA$20:$AL$20,Loads!DE9:DP9) -> 43236504.63 | H9: =+Loads!H9+SUMPRODUCT(Loads!AV9:BG9,LossesInput!$AY$20:$BJ$20)+SUMPRODUCT(LossesInput!$AY$20:$BJ$20,Loads!DQ9:EB9) -> 43236504.63 | I9: =+Loads!I9+SUMPRODUCT(Loads!BH9:BS9,LossesInput!$AY$20:$BJ$20)+SUMPRODUCT(LossesInput!$AY$20:$BJ$20,Loads!EC9:EN9) -> 43236504.63 | J9: =+Loads!J9+SUMPRODUCT(Loads!BT9:CE9,LossesInput!$BK$20:$BV$20)+SUMPRODUCT(LossesInput!$BK$20:$BV$20,Loads!EO9:EZ9) -> 43236504.63
B10: Tier 2 | D10: PRE_T2 | E10: =+Loads!E10+((SUMPRODUCT(Loads!L10:W10,LossesInput!$C$20:$N$20)+SUMPRODUCT(Loads!CG10:CR10,LossesInput!$C$20:$N$20))) -> 5566407.528 | F10: =+Loads!F10+((SUMPRODUCT(Loads!X10:AI10,LossesInput!$O$20:$Z$20)+SUMPRODUCT(Loads!CS10:DD10,LossesInput!$O$20:$Z$20))) -> 5566407.528 | G10: =+Loads!G10+SUMPRODUCT(Loads!AJ10:AU10,LossesInput!$AA$20:$AL$20)+SUMPRODUCT(LossesInput!$AA$20:$AL$20,Loads!DE10:DP10) -> 5566407.528 | H10: =+Loads!H10+SUMPRODUCT(Loads!AV10:BG10,LossesInput!$AY$20:$BJ$20)+SUMPRODUCT(LossesInput!$AY$20:$BJ$20,Loads!DQ10:EB10) -> 5566407.528 | I10: =+Loads!I10+SUMPRODUCT(Loads!BH10:BS10,LossesInput!$AY$20:$BJ$20)+SUMPRODUCT(LossesInput!$AY$20:$BJ$20,Loads!EC10:EN10) -> 5566407.528 | J10: =+Loads!J10+SUMPRODUCT(Loads!BT10:CE10,LossesInput!$BK$20:$BV$20)+SUMPRODUCT(LossesInput!$BK$20:$BV$20,Loads!EO10:EZ10) -> 5566407.528
A11: Industrial | D11: IND | E11: =+SUM(E12:E13) -> 99492.23419 | F11: 99492.23419 | G11: 99492.23419 | H11: 99492.23419 | I11: 99492.23419 | J11: 99492.23419
B12: Smelter | D12: IND_SMT | E12: =+Loads!E12+((SUMPRODUCT(Loads!L12:W12,LossesInput!$C$20:$N$20)+SUMPRODUCT(Loads!CG12:CR12,LossesInput!$C$20:$N$20))) -> 0 | F12: =+Loads!F12+((SUMPRODUCT(Loads!X12:AI12,LossesInput!$O$20:$Z$20)+SUMPRODUCT(Loads!CS12:DD12,LossesInput!$O$20:$Z$20))) -> 0 | G12: =+Loads!G12+SUMPRODUCT(Loads!AJ12:AU12,LossesInput!$AA$20:$AL$20)+SUMPRODUCT(LossesInput!$AA$20:$AL$20,Loads!DE12:DP12) -> 0 | H12: =+Loads!H12+SUMPRODUCT(Loads!AV12:BG12,LossesInput!$AY$20:$BJ$20)+SUMPRODUCT(LossesInput!$AY$20:$BJ$20,Loads!DQ12:EB12) -> 0 | I12: =+Loads!I12+SUMPRODUCT(Loads!BH12:BS12,LossesInput!$AY$20:$BJ$20)+SUMPRODUCT(LossesInput!$AY$20:$BJ$20,Loads!EC12:EN12) -> 0 | J12: =+Loads!J12+SUMPRODUCT(Loads!BT12:CE12,LossesInput!$BK$20:$BV$20)+SUMPRODUCT(LossesInput!$BK$20:$BV$20,Loads!EO12:EZ12) -> 0
B13: Other Industrial | D13: IND_OTH | E13: =+Loads!E13+((SUMPRODUCT(Loads!L13:W13,LossesInput!$C$20:$N$20)+SUMPRODUCT(Loads!CG13:CR13,LossesInput!$C$20:$N$20))) -> 99492.23419 | F13: =+Loads!F13+((SUMPRODUCT(Loads!X13:AI13,LossesInput!$O$20:$Z$20)+SUMPRODUCT(Loads!CS13:DD13,LossesInput!$O$20:$Z$20))) -> 99492.23419 | G13: =+Loads!G13+SUMPRODUCT(Loads!AJ13:AU13,LossesInput!$AA$20:$AL$20)+SUMPRODUCT(LossesInput!$AA$20:$AL$20,Loads!DE13:DP13) -> 99492.23419 | H13: =+Loads!H13+SUMPRODUCT(Loads!AV13:BG13,LossesInput!$AY$20:$BJ$20)+SUMPRODUCT(LossesInput!$AY$20:$BJ$20,Loads!DQ13:EB13) -> 99492.23419 | I13: =+Loads!I13+SUMPRODUCT(Loads!BH13:BS13,LossesInput!$AY$20:$BJ$20)+SUMPRODUCT(LossesInput!$AY$20:$BJ$20,Loads!EC13:EN13) -> 99492.23419 | J13: =+Loads!J13+SUMPRODUCT(Loads!BT13:CE13,LossesInput!$BK$20:$BV$20)+SUMPRODUCT(LossesInput!$BK$20:$BV$20,Loads!EO13:EZ13) -> 99492.23419
A14: New Resource | D14: NR | E14: =+Loads!E14+((SUMPRODUCT(Loads!L14:W14,LossesInput!$C$20:$N$20)+SUMPRODUCT(Loads!CG14:CR14,LossesInput!$C$20:$N$20))) -> 231258.2152 | F14: =+Loads!F14+((SUMPRODUCT(Loads!X14:AI14,LossesInput!$O$20:$Z$20)+SUMPRODUCT(Loads!CS14:DD14,LossesInput!$O$20:$Z$20))) -> 231258.2152 | G14: =+Loads!G14+SUMPRODUCT(Loads!AJ14:AU14,LossesInput!$AA$20:$AL$20)+SUMPRODUCT(LossesInput!$AA$20:$AL$20,Loads!DE14:DP14) -> 231258.2152 | H14: =+Loads!H14+SUMPRODUCT(Loads!AV14:BG14,LossesInput!$AY$20:$BJ$20)+SUMPRODUCT(LossesInput!$AY$20:$BJ$20,Loads!DQ14:EB14) -> 231258.2152 | I14: =+Loads!I14+SUMPRODUCT(Loads!BH14:BS14,LossesInput!$AY$20:$BJ$20)+SUMPRODUCT(LossesInput!$AY$20:$BJ$20,Loads!EC14:EN14) -> 231258.2152 | J14: =+Loads!J14+SUMPRODUCT(Loads!BT14:CE14,LossesInput!$BK$20:$BV$20)+SUMPRODUCT(LossesInput!$BK$20:$BV$20,Loads!EO14:EZ14) -> 231258.2152
A15: Firm Power and Services | D15: FPS | E15: =+SUM(E16,E27,E38) -> 4755608.474 | F15: 4755608.474 | G15: 4755608.474 | H15: 4755608.474 | I15: 4755608.474 | J15: 4755608.474
B16: Intraregional Transfer | D16: FPS_IRT | E16: =+SUM(E17:E26) -> 13942.4621 | F16: 13942.4621 | G16: 13942.4621 | H16: 13942.4621 | I16: 13942.4621 | J16: 13942.4621
C17: WNP#3 Settlement | D17: FPS_IRT_WNP | E17: =+Loads!E17+((SUMPRODUCT(Loads!L17:W17,LossesInput!$C$20:$N$20)+SUMPRODUCT(Loads!CG17:CR17,LossesInput!$C$20:$N$20))) -> 0 | F17: =+Loads!F17+((SUMPRODUCT(Loads!X17:AI17,LossesInput!$O$20:$Z$20)+SUMPRODUCT(Loads!CS17:DD17,LossesInput!$O$20:$Z$20))) -> 0 | G17: =+Loads!G17+SUMPRODUCT(Loads!AJ17:AU17,LossesInput!$AA$20:$AL$20)+SUMPRODUCT(LossesInput!$AA$20:$AL$20,Loads!DE17:DP17) -> 0 | H17: =+Loads!H17+SUMPRODUCT(Loads!AV17:BG17,LossesInput!$AY$20:$BJ$20)+SUMPRODUCT(LossesInput!$AY$20:$BJ$20,Loads!DQ17:EB17) -> 0 | I17: =+Loads!I17+SUMPRODUCT(Loads!BH17:BS17,LossesInput!$AY$20:$BJ$20)+SUMPRODUCT(LossesInput!$AY$20:$BJ$20,Loads!EC17:EN17) -> 0 | J17: =+Loads!J17+SUMPRODUCT(Loads!BT17:CE17,LossesInput!$BK$20:$BV$20)+SUMPRODUCT(LossesInput!$BK$20:$BV$20,Loads!EO17:EZ17) -> 0
C18: Transfer Gen Losses | D18: FPS_IRT_TGL | E18: =+Loads!E18+((SUMPRODUCT(Loads!L18:W18,LossesInput!$C$20:$N$20)+SUMPRODUCT(Loads!CG18:CR18,LossesInput!$C$20:$N$20))) -> 13942.4621 | F18: =+Loads!F18+((SUMPRODUCT(Loads!X18:AI18,LossesInput!$O$20:$Z$20)+SUMPRODUCT(Loads!CS18:DD18,LossesInput!$O$20:$Z$20))) -> 13942.4621 | G18: =+Loads!G18+SUMPRODUCT(Loads!AJ18:AU18,LossesInput!$AA$20:$AL$20)+SUMPRODUCT(LossesInput!$AA$20:$AL$20,Loads!DE18:DP18) -> 13942.4621 | H18: =+Loads!H18+SUMPRODUCT(Loads!AV18:BG18,LossesInput!$AY$20:$BJ$20)+SUMPRODUCT(LossesInput!$AY$20:$BJ$20,Loads!DQ18:EB18) -> 13942.4621 | I18: =+Loads!I18+SUMPRODUCT(Loads!BH18:BS18,LossesInput!$AY$20:$BJ$20)+SUMPRODUCT(LossesInput!$AY$20:$BJ$20,Loads!EC18:EN18) -> 13942.4621 | J18: =+Loads!J18+SUMPRODUCT(Loads!BT18:CE18,LossesInput!$BK$20:$BV$20)+SUMPRODUCT(LossesInput!$BK$20:$BV$20,Loads!EO18:EZ18) -> 13942.4621
E20: =+SUM(L20:W20,CG20:CR20) -> 0 | F20: =+SUM(X20:AI20,CS20:DD20) -> 0 | G20: =+SUM(AJ20:AU20,DE20:DP20) -> 0 | H20: =+SUM(AV20:BG20,DQ20:EB20) -> 0 | I20: =+SUM(BH20:BS20,EC20:EN20) -> 0 | J20: =+SUM(BT20:CE20,EO20:EZ20) -> 0
E21: 0 | F21: 0 | G21: 0 | H21: 0 | I21: 0 | J21: 0
E22: 0 | F22: 0 | G22: 0 | H22: 0 | I22: 0 | J22: 0
E23: 0 | F23: 0 | G23: 0 | H23: 0 | I23: 0 | J23: 0
E24: 0 | F24: 0 | G24: 0 | H24: 0 | I24: 0 | J24: 0
E25: 0 | F25: 0 | G25: 0 | H25: 0 | I25: 0 | J25: 0
E26: 0 | F26: 0 | G26: 0 | H26: 0 | I26: 0 | J26: 0
B27: FBS Obligation | D27: FPS_FBS | E27: =+SUM(E28:E37) -> 4741666.012 | F27: 4741666.012 | G27: 4741666.012 | H27: 4741666.012 | I27: 4741666.012 | J27: 4741666.012
C28: Canadian Entitlement | D28: FPS_FBS_CDN | E28: =+Loads!E28+((SUMPRODUCT(Loads!L28:W28,LossesInput!$C$20:$N$20)+SUMPRODUCT(Loads!CG28:CR28,LossesInput!$C$20:$N$20))) -> 2758649.185 | F28: =+Loads!F28+((SUMPRODUCT(Loads!X28:AI28,LossesInput!$O$20:$Z$20)+SUMPRODUCT(Loads!CS28:DD28,LossesInput!$O$20:$Z$20))) -> 2758649.185 | G28: =+Loads!G28+SUMPRODUCT(Loads!AJ28:AU28,LossesInput!$AA$20:$AL$20)+SUMPRODUCT(LossesInput!$AA$20:$AL$20,Loads!DE28:DP28) -> 2758649.185 | H28: =+Loads!H28+SUMPRODUCT(Loads!AV28:BG28,LossesInput!$AY$20:$BJ$20)+SUMPRODUCT(LossesInput!$AY$20:$BJ$20,Loads!DQ28:EB28) -> 2758649.185 | I28: =+Loads!I28+SUMPRODUCT(Loads!BH28:BS28,LossesInput!$AY$20:$BJ$20)+SUMPRODUCT(LossesInput!$AY$20:$BJ$20,Loads!EC28:EN28) -> 2758649.185 | J28: =+Loads!J28+SUMPRODUCT(Loads!BT28:CE28,LossesInput!$BK$20:$BV$20)+SUMPRODUCT(LossesInput!$BK$20:$BV$20,Loads!EO28:EZ28) -> 2758649.185
C29: USBR Pump Load | D29: FPS_FBS_UBR | E29: =+Loads!E29+((SUMPRODUCT(Loads!L29:W29,LossesInput!$C$20:$N$20)+SUMPRODUCT(Loads!CG29:CR29,LossesInput!$C$20:$N$20))) -> 1772607.671 | F29: =+Loads!F29+((SUMPRODUCT(Loads!X29:AI29,LossesInput!$O$20:$Z$20)+SUMPRODUCT(Loads!CS29:DD29,LossesInput!$O$20:$Z$20))) -> 1772607.671 | G29: =+Loads!G29+SUMPRODUCT(Loads!AJ29:AU29,LossesInput!$AA$20:$AL$20)+SUMPRODUCT(LossesInput!$AA$20:$AL$20,Loads!DE29:DP29) -> 1772607.671 | H29: =+Loads!H29+SUMPRODUCT(Loads!AV29:BG29,LossesInput!$AY$20:$BJ$20)+SUMPRODUCT(LossesInput!$AY$20:$BJ$20,Loads!DQ29:EB29) -> 1772607.671 | I29: =+Loads!I29+SUMPRODUCT(Loads!BH29:BS29,LossesInput!$AY$20:$BJ$20)+SUMPRODUCT(LossesInput!$AY$20:$BJ$20,Loads!EC29:EN29) -> 1772607.671 | J29: =+Loads!J29+SUMPRODUCT(Loads!BT29:CE29,LossesInput!$BK$20:$BV$20)+SUMPRODUCT(LossesInput!$BK$20:$BV$20,Loads!EO29:EZ29) -> 1772607.671
C30: Hungry Horse | D30: FPS_FBS_HH | E30: =+Loads!E30+((SUMPRODUCT(Loads!L30:W30,LossesInput!$C$20:$N$20)+SUMPRODUCT(Loads!CG30:CR30,LossesInput!$C$20:$N$20))) -> 0 | F30: =+Loads!F30+((SUMPRODUCT(Loads!X30:AI30,LossesInput!$O$20:$Z$20)+SUMPRODUCT(Loads!CS30:DD30,LossesInput!$O$20:$Z$20))) -> 0 | G30: =+Loads!G30+SUMPRODUCT(Loads!AJ30:AU30,LossesInput!$AA$20:$AL$20)+SUMPRODUCT(LossesInput!$AA$20:$AL$20,Loads!DE30:DP30) -> 0 | H30: =+Loads!H30+SUMPRODUCT(Loads!AV30:BG30,LossesInput!$AY$20:$BJ$20)+SUMPRODUCT(LossesInput!$AY$20:$BJ$20,Loads!DQ30:EB30) -> 0 | I30: =+Loads!I30+SUMPRODUCT(Loads!BH30:BS30,LossesInput!$AY$20:$BJ$20)+SUMPRODUCT(LossesInput!$AY$20:$BJ$20,Loads!EC30:EN30) -> 0 | J30: =+Loads!J30+SUMPRODUCT(Loads!BT30:CE30,LossesInput!$BK$20:$BV$20)+SUMPRODUCT(LossesInput!$BK$20:$BV$20,Loads!EO30:EZ30) -> 0
C31: Upper Baker | D31: FPS_FBS_UPB | E31: =+Loads!E31+((SUMPRODUCT(Loads!L31:W31,LossesInput!$C$20:$N$20)+SUMPRODUCT(Loads!CG31:CR31,LossesInput!$C$20:$N$20))) -> 11670.20068 | F31: =+Loads!F31+((SUMPRODUCT(Loads!X31:AI31,LossesInput!$O$20:$Z$20)+SUMPRODUCT(Loads!CS31:DD31,LossesInput!$O$20:$Z$20))) -> 11670.20068 | G31: =+Loads!G31+SUMPRODUCT(Loads!AJ31:AU31,LossesInput!$AA$20:$AL$20)+SUMPRODUCT(LossesInput!$AA$20:$AL$20,Loads!DE31:DP31) -> 11670.20068 | H31: =+Loads!H31+SUMPRODUCT(Loads!AV31:BG31,LossesInput!$AY$20:$BJ$20)+SUMPRODUCT(LossesInput!$AY$20:$BJ$20,Loads!DQ31:EB31) -> 11670.20068 | I31: =+Loads!I31+SUMPRODUCT(Loads!BH31:BS31,LossesInput!$AY$20:$BJ$20)+SUMPRODUCT(LossesInput!$AY$20:$BJ$20,Loads!EC31:EN31) -> 11670.20068 | J31: =+Loads!J31+SUMPRODUCT(Loads!BT31:CE31,LossesInput!$BK$20:$BV$20)+SUMPRODUCT(LossesInput!$BK$20:$BV$20,Loads!EO31:EZ31) -> 11670.20068
C32: Non-Treaty Storage | D32: FPS_FBS_NTS | E32: =+Loads!E32+((SUMPRODUCT(Loads!L32:W32,LossesInput!$C$20:$N$20)+SUMPRODUCT(Loads!CG32:CR32,LossesInput!$C$20:$N$20))) -> 113383.6634 | F32: =+Loads!F32+((SUMPRODUCT(Loads!X32:AI32,LossesInput!$O$20:$Z$20)+SUMPRODUCT(Loads!CS32:DD32,LossesInput!$O$20:$Z$20))) -> 113383.6634 | G32: =+Loads!G32+SUMPRODUCT(Loads!AJ32:AU32,LossesInput!$AA$20:$AL$20)+SUMPRODUCT(LossesInput!$AA$20:$AL$20,Loads!DE32:DP32) -> 113383.6634 | H32: =+Loads!H32+SUMPRODUCT(Loads!AV32:BG32,LossesInput!$AY$20:$BJ$20)+SUMPRODUCT(LossesInput!$AY$20:$BJ$20,Loads!DQ32:EB32) -> 113383.6634 | I32: =+Loads!I32+SUMPRODUCT(Loads!BH32:BS32,LossesInput!$AY$20:$BJ$20)+SUMPRODUCT(LossesInput!$AY$20:$BJ$20,Loads!EC32:EN32) -> 113383.6634 | J32: =+Loads!J32+SUMPRODUCT(Loads!BT32:CE32,LossesInput!$BK$20:$BV$20)+SUMPRODUCT(LossesInput!$BK$20:$BV$20,Loads!EO32:EZ32) -> 113383.6634
C33: Libby Coordination | D33: FPS_FBS_LCA | E33: =+Loads!E33+((SUMPRODUCT(Loads!L33:W33,LossesInput!$C$20:$N$20)+SUMPRODUCT(Loads!CG33:CR33,LossesInput!$C$20:$N$20))) -> 0 | F33: =+Loads!F33+((SUMPRODUCT(Loads!X33:AI33,LossesInput!$O$20:$Z$20)+SUMPRODUCT(Loads!CS33:DD33,LossesInput!$O$20:$Z$20))) -> 0 | G33: =+Loads!G33+SUMPRODUCT(Loads!AJ33:AU33,LossesInput!$AA$20:$AL$20)+SUMPRODUCT(LossesInput!$AA$20:$AL$20,Loads!DE33:DP33) -> 0 | H33: =+Loads!H33+SUMPRODUCT(Loads!AV33:BG33,LossesInput!$AY$20:$BJ$20)+SUMPRODUCT(LossesInput!$AY$20:$BJ$20,Loads!DQ33:EB33) -> 0 | I33: =+Loads!I33+SUMPRODUCT(Loads!BH33:BS33,LossesInput!$AY$20:$BJ$20)+SUMPRODUCT(LossesInput!$AY$20:$BJ$20,Loads!EC33:EN33) -> 0 | J33: =+Loads!J33+SUMPRODUCT(Loads!BT33:CE33,LossesInput!$BK$20:$BV$20)+SUMPRODUCT(LossesInput!$BK$20:$BV$20,Loads!EO33:EZ33) -> 0
C34: Dittmer Station Service | D34: FPS_IRT_DIT | E34: =+Loads!E34+((SUMPRODUCT(Loads!L34:W34,LossesInput!$C$20:$N$20)+SUMPRODUCT(Loads!CG34:CR34,LossesInput!$C$20:$N$20))) -> 85355.29218 | F34: =+Loads!F34+((SUMPRODUCT(Loads!X34:AI34,LossesInput!$O$20:$Z$20)+SUMPRODUCT(Loads!CS34:DD34,LossesInput!$O$20:$Z$20))) -> 85355.29218 | G34: =+Loads!G34+SUMPRODUCT(Loads!AJ34:AU34,LossesInput!$AA$20:$AL$20)+SUMPRODUCT(LossesInput!$AA$20:$AL$20,Loads!DE34:DP34) -> 85355.29218 | H34: =+Loads!H34+SUMPRODUCT(Loads!AV34:BG34,LossesInput!$AY$20:$BJ$20)+SUMPRODUCT(LossesInput!$AY$20:$BJ$20,Loads!DQ34:EB34) -> 85355.29218 | I34: =+Loads!I34+SUMPRODUCT(Loads!BH34:BS34,LossesInput!$AY$20:$BJ$20)+SUMPRODUCT(LossesInput!$AY$20:$BJ$20,Loads!EC34:EN34) -> 85355.29218 | J34: =+Loads!J34+SUMPRODUCT(Loads!BT34:CE34,LossesInput!$BK$20:$BV$20)+SUMPRODUCT(LossesInput!$BK$20:$BV$20,Loads!EO34:EZ34) -> 85355.29218
E35: 0 | F35: 0 | G35: 0 | H35: 0 | I35: 0 | J35: 0
E36: 0 | F36: 0 | G36: 0 | H36: 0 | I36: 0 | J36: 0
E37: 0 | F37: 0 | G37: 0 | H37: 0 | I37: 0 | J37: 0
B38: Seasonal or Capacity Exchange | D38: FPS_EXS | E38: =+SUM(E39:E48) -> 0 | F38: 0 | G38: 0 | H38: 0 | I38: 0 | J38: 0
C39: Riverside Capacity | D39: FPS_EXS_RVC | E39: =+Loads!E39+((SUMPRODUCT(Loads!L39:W39,LossesInput!$C$20:$N$20)+SUMPRODUCT(Loads!CG39:CR39,LossesInput!$C$20:$N$20))) -> 0 | F39: =+Loads!F39+((SUMPRODUCT(Loads!X39:AI39,LossesInput!$O$20:$Z$20)+SUMPRODUCT(Loads!CS39:DD39,LossesInput!$O$20:$Z$20))) -> 0 | G39: =+Loads!G39+SUMPRODUCT(Loads!AJ39:AU39,LossesInput!$AA$20:$AL$20)+SUMPRODUCT(LossesInput!$AA$20:$AL$20,Loads!DE39:DP39) -> 0 | H39: =+Loads!H39+SUMPRODUCT(Loads!AV39:BG39,LossesInput!$AY$20:$BJ$20)+SUMPRODUCT(LossesInput!$AY$20:$BJ$20,Loads!DQ39:EB39) -> 0 | I39: =+Loads!I39+SUMPRODUCT(Loads!BH39:BS39,LossesInput!$AY$20:$BJ$20)+SUMPRODUCT(LossesInput!$AY$20:$BJ$20,Loads!EC39:EN39) -> 0 | J39: =+Loads!J39+SUMPRODUCT(Loads!BT39:CE39,LossesInput!$BK$20:$BV$20)+SUMPRODUCT(LossesInput!$BK$20:$BV$20,Loads!EO39:EZ39) -> 0
C40: Riverside Seasonal | D40: FPS_EXS_RVS | E40: =+Loads!E40+((SUMPRODUCT(Loads!L40:W40,LossesInput!$C$20:$N$20)+SUMPRODUCT(Loads!CG40:CR40,LossesInput!$C$20:$N$20))) -> 0 | F40: =+Loads!F40+((SUMPRODUCT(Loads!X40:AI40,LossesInput!$O$20:$Z$20)+SUMPRODUCT(Loads!CS40:DD40,LossesInput!$O$20:$Z$20))) -> 0 | G40: =+Loads!G40+SUMPRODUCT(Loads!AJ40:AU40,LossesInput!$AA$20:$AL$20)+SUMPRODUCT(LossesInput!$AA$20:$AL$20,Loads!DE40:DP40) -> 0 | H40: =+Loads!H40+SUMPRODUCT(Loads!AV40:BG40,LossesInput!$AY$20:$BJ$20)+SUMPRODUCT(LossesInput!$AY$20:$BJ$20,Loads!DQ40:EB40) -> 0 | I40: =+Loads!I40+SUMPRODUCT(Loads!BH40:BS40,LossesInput!$AY$20:$BJ$20)+SUMPRODUCT(LossesInput!$AY$20:$BJ$20,Loads!EC40:EN40) -> 0 | J40: =+Loads!J40+SUMPRODUCT(Loads!BT40:CE40,LossesInput!$BK$20:$BV$20)+SUMPRODUCT(LossesInput!$BK$20:$BV$20,Loads!EO40:EZ40) -> 0
C41: Pasadena Capacity | D41: FPS_EXS_PAC | E41: =+Loads!E41+((SUMPRODUCT(Loads!L41:W41,LossesInput!$C$20:$N$20)+SUMPRODUCT(Loads!CG41:CR41,LossesInput!$C$20:$N$20))) -> 0 | F41: =+Loads!F41+((SUMPRODUCT(Loads!X41:AI41,LossesInput!$O$20:$Z$20)+SUMPRODUCT(Loads!CS41:DD41,LossesInput!$O$20:$Z$20))) -> 0 | G41: =+Loads!G41+SUMPRODUCT(Loads!AJ41:AU41,LossesInput!$AA$20:$AL$20)+SUMPRODUCT(LossesInput!$AA$20:$AL$20,Loads!DE41:DP41) -> 0 | H41: =+Loads!H41+SUMPRODUCT(Loads!AV41:BG41,LossesInput!$AY$20:$BJ$20)+SUMPRODUCT(LossesInput!$AY$20:$BJ$20,Loads!DQ41:EB41) -> 0 | I41: =+Loads!I41+SUMPRODUCT(Loads!BH41:BS41,LossesInput!$AY$20:$BJ$20)+SUMPRODUCT(LossesInput!$AY$20:$BJ$20,Loads!EC41:EN41) -> 0 | J41: =+Loads!J41+SUMPRODUCT(Loads!BT41:CE41,LossesInput!$BK$20:$BV$20)+SUMPRODUCT(LossesInput!$BK$20:$BV$20,Loads!EO41:EZ41) -> 0
C42: Pasadena Seasonal | D42: FPS_EXS_PAS | E42: =+Loads!E42+((SUMPRODUCT(Loads!L42:W42,LossesInput!$C$20:$N$20)+SUMPRODUCT(Loads!CG42:CR42,LossesInput!$C$20:$N$20))) -> 0 | F42: =+Loads!F42+((SUMPRODUCT(Loads!X42:AI42,LossesInput!$O$20:$Z$20)+SUMPRODUCT(Loads!CS42:DD42,LossesInput!$O$20:$Z$20))) -> 0 | G42: =+Loads!G42+SUMPRODUCT(Loads!AJ42:AU42,LossesInput!$AA$20:$AL$20)+SUMPRODUCT(LossesInput!$AA$20:$AL$20,Loads!DE42:DP42) -> 0 | H42: =+Loads!H42+SUMPRODUCT(Loads!AV42:BG42,LossesInput!$AY$20:$BJ$20)+SUMPRODUCT(LossesInput!$AY$20:$BJ$20,Loads!DQ42:EB42) -> 0 | I42: =+Loads!I42+SUMPRODUCT(Loads!BH42:BS42,LossesInput!$AY$20:$BJ$20)+SUMPRODUCT(LossesInput!$AY$20:$BJ$20,Loads!EC42:EN42) -> 0 | J42: =+Loads!J42+SUMPRODUCT(Loads!BT42:CE42,LossesInput!$BK$20:$BV$20)+SUMPRODUCT(LossesInput!$BK$20:$BV$20,Loads!EO42:EZ42) -> 0
C43: PG&E | D43: FPS_EXS_PGE | E43: =+Loads!E43+((SUMPRODUCT(Loads!L43:W43,LossesInput!$C$20:$N$20)+SUMPRODUCT(Loads!CG43:CR43,LossesInput!$C$20:$N$20))) -> 0 | F43: =+Loads!F43+((SUMPRODUCT(Loads!X43:AI43,LossesInput!$O$20:$Z$20)+SUMPRODUCT(Loads!CS43:DD43,LossesInput!$O$20:$Z$20))) -> 0 | G43: =+Loads!G43+SUMPRODUCT(Loads!AJ43:AU43,LossesInput!$AA$20:$AL$20)+SUMPRODUCT(LossesInput!$AA$20:$AL$20,Loads!DE43:DP43) -> 0 | H43: =+Loads!H43+SUMPRODUCT(Loads!AV43:BG43,LossesInput!$AY$20:$BJ$20)+SUMPRODUCT(LossesInput!$AY$20:$BJ$20,Loads!DQ43:EB43) -> 0 | I43: =+Loads!I43+SUMPRODUCT(Loads!BH43:BS43,LossesInput!$AY$20:$BJ$20)+SUMPRODUCT(LossesInput!$AY$20:$BJ$20,Loads!EC43:EN43) -> 0 | J43: =+Loads!J43+SUMPRODUCT(Loads!BT43:CE43,LossesInput!$BK$20:$BV$20)+SUMPRODUCT(LossesInput!$BK$20:$BV$20,Loads!EO43:EZ43) -> 0
C44: Intertie Losses | D44: FPS_EXS_LSS | E44: =+Loads!E44+((SUMPRODUCT(Loads!L44:W44,LossesInput!$C$20:$N$20)+SUMPRODUCT(Loads!CG44:CR44,LossesInput!$C$20:$N$20))) -> 0 | F44: =+Loads!F44+((SUMPRODUCT(Loads!X44:AI44,LossesInput!$O$20:$Z$20)+SUMPRODUCT(Loads!CS44:DD44,LossesInput!$O$20:$Z$20))) -> 0 | G44: =+Loads!G44+SUMPRODUCT(Loads!AJ44:AU44,LossesInput!$AA$20:$AL$20)+SUMPRODUCT(LossesInput!$AA$20:$AL$20,Loads!DE44:DP44) -> 0 | H44: =+Loads!H44+SUMPRODUCT(Loads!AV44:BG44,LossesInput!$AY$20:$BJ$20)+SUMPRODUCT(LossesInput!$AY$20:$BJ$20,Loads!DQ44:EB44) -> 0 | I44: =+Loads!I44+SUMPRODUCT(Loads!BH44:BS44,LossesInput!$AY$20:$BJ$20)+SUMPRODUCT(LossesInput!$AY$20:$BJ$20,Loads!EC44:EN44) -> 0 | J44: =+Loads!J44+SUMPRODUCT(Loads!BT44:CE44,LossesInput!$BK$20:$BV$20)+SUMPRODUCT(LossesInput!$BK$20:$BV$20,Loads!EO44:EZ44) -> 0
C45: PacifiCorp | D45: FPS_EXS_PPL | E45: =+Loads!E45+((SUMPRODUCT(Loads!L45:W45,LossesInput!$C$20:$N$20)+SUMPRODUCT(Loads!CG45:CR45,LossesInput!$C$20:$N$20))) -> 0 | F45: =+Loads!F45+((SUMPRODUCT(Loads!X45:AI45,LossesInput!$O$20:$Z$20)+SUMPRODUCT(Loads!CS45:DD45,LossesInput!$O$20:$Z$20))) -> 0 | G45: =+Loads!G45+SUMPRODUCT(Loads!AJ45:AU45,LossesInput!$AA$20:$AL$20)+SUMPRODUCT(LossesInput!$AA$20:$AL$20,Loads!DE45:DP45) -> 0 | H45: =+Loads!H45+SUMPRODUCT(Loads!AV45:BG45,LossesInput!$AY$20:$BJ$20)+SUMPRODUCT(LossesInput!$AY$20:$BJ$20,Loads!DQ45:EB45) -> 0 | I45: =+Loads!I45+SUMPRODUCT(Loads!BH45:BS45,LossesInput!$AY$20:$BJ$20)+SUMPRODUCT(LossesInput!$AY$20:$BJ$20,Loads!EC45:EN45) -> 0 | J45: =+Loads!J45+SUMPRODUCT(Loads!BT45:CE45,LossesInput!$BK$20:$BV$20)+SUMPRODUCT(LossesInput!$BK$20:$BV$20,Loads!EO45:EZ45) -> 0
E46: 0 | F46: 0 | G46: 0 | H46: 0 | I46: 0 | J46: 0
E47: 0 | F47: 0 | G47: 0 | H47: 0 | I47: 0 | J47: 0
E48: 0 | F48: 0 | G48: 0 | H48: 0 | I48: 0 | J48: 0
A49: Firm Surplus Sale | D49: FSS | E49: =+Loads!E49+((SUMPRODUCT(Loads!L49:W49,LossesInput!$C$20:$N$20)+SUMPRODUCT(Loads!CG49:CR49,LossesInput!$C$20:$N$20))) -> 0 | F49: =+Loads!F49+((SUMPRODUCT(Loads!X49:AI49,LossesInput!$O$20:$Z$20)+SUMPRODUCT(Loads!CS49:DD49,LossesInput!$O$20:$Z$20))) -> 0 | G49: =+Loads!G49+SUMPRODUCT(Loads!AJ49:AU49,LossesInput!$AA$20:$AL$20)+SUMPRODUCT(LossesInput!$AA$20:$AL$20,Loads!DE49:DP49) -> 0 | H49: =+Loads!H49+SUMPRODUCT(Loads!AV49:BG49,LossesInput!$AY$20:$BJ$20)+SUMPRODUCT(LossesInput!$AY$20:$BJ$20,Loads!DQ49:EB49) -> 0 | I49: =+Loads!I49+SUMPRODUCT(Loads!BH49:BS49,LossesInput!$AY$20:$BJ$20)+SUMPRODUCT(LossesInput!$AY$20:$BJ$20,Loads!EC49:EN49) -> 0 | J49: =+Loads!J49+SUMPRODUCT(Loads!BT49:CE49,LossesInput!$BK$20:$BV$20)+SUMPRODUCT(LossesInput!$BK$20:$BV$20,Loads!EO49:EZ49) -> 0
A50: Presale of Secondary | D50: PRS | E50: =+Loads!E50+((SUMPRODUCT(Loads!L50:W50,LossesInput!$C$20:$N$20)+SUMPRODUCT(Loads!CG50:CR50,LossesInput!$C$20:$N$20))) -> 0 | F50: =+Loads!F50+((SUMPRODUCT(Loads!X50:AI50,LossesInput!$O$20:$Z$20)+SUMPRODUCT(Loads!CS50:DD50,LossesInput!$O$20:$Z$20))) -> 0 | G50: =+Loads!G50+SUMPRODUCT(Loads!AJ50:AU50,LossesInput!$AA$20:$AL$20)+SUMPRODUCT(LossesInput!$AA$20:$AL$20,Loads!DE50:DP50) -> 0 | H50: =+Loads!H50+SUMPRODUCT(Loads!AV50:BG50,LossesInput!$AY$20:$BJ$20)+SUMPRODUCT(LossesInput!$AY$20:$BJ$20,Loads!DQ50:EB50) -> 0 | I50: =+Loads!I50+SUMPRODUCT(Loads!BH50:BS50,LossesInput!$AY$20:$BJ$20)+SUMPRODUCT(LossesInput!$AY$20:$BJ$20,Loads!EC50:EN50) -> 0 | J50: =+Loads!J50+SUMPRODUCT(Loads!BT50:CE50,LossesInput!$BK$20:$BV$20)+SUMPRODUCT(LossesInput!$BK$20:$BV$20,Loads!EO50:EZ50) -> 0
A51: Conservation | D51: CON | E51: =+Loads!E51+((SUMPRODUCT(Loads!L51:W51,LossesInput!$C$20:$N$20)+SUMPRODUCT(Loads!CG51:CR51,LossesInput!$C$20:$N$20))) -> 0 | F51: =+Loads!F51+((SUMPRODUCT(Loads!X51:AI51,LossesInput!$O$20:$Z$20)+SUMPRODUCT(Loads!CS51:DD51,LossesInput!$O$20:$Z$20))) -> 0 | G51: =+Loads!G51+SUMPRODUCT(Loads!AJ51:AU51,LossesInput!$AA$20:$AL$20)+SUMPRODUCT(LossesInput!$AA$20:$AL$20,Loads!DE51:DP51) -> 0 | H51: =+Loads!H51+SUMPRODUCT(Loads!AV51:BG51,LossesInput!$AY$20:$BJ$20)+SUMPRODUCT(LossesInput!$AY$20:$BJ$20,Loads!DQ51:EB51) -> 0 | I51: =+Loads!I51+SUMPRODUCT(Loads!BH51:BS51,LossesInput!$AY$20:$BJ$20)+SUMPRODUCT(LossesInput!$AY$20:$BJ$20,Loads!EC51:EN51) -> 0 | J51: =+Loads!J51+SUMPRODUCT(Loads!BT51:CE51,LossesInput!$BK$20:$BV$20)+SUMPRODUCT(LossesInput!$BK$20:$BV$20,Loads!EO51:EZ51) -> 0
A54: Loss Percentage | E54: =(((SUM(E5,E11,E14,E15,E49,E50,E51)-SUM(Loads!E5,Loads!E11,Loads!E14,Loads!E15,Loads!E49,Loads!E50,Loads!E51))/VLOOKUP(E4,Init!$N:$P,3,0))/(SUM(Loads!E5,Loads!E11,Loads!E14,Loads!E15,Loads!E49,Loads!E50,Loads!E51)/VLOOKUP(E4,Init!$N:$P,3,0))) -> 0.02966010311 | F54: =(((SUM(F5,F11,F14,F15,F49,F50,F51)-SUM(Loads!F5,Loads!F11,Loads!F14,Loads!F15,Loads!F49,Loads!F50,Loads!F51))/VLOOKUP(F4,Init!$N:$P,3,0))/(SUM(Loads!F5,Loads!F11,Loads!F14,Loads!F15,Loads!F49,Loads!F50,Loads!F51)/VLOOKUP(F4,Init!$N:$P,3,0))) -> 0.02966010311 | G54: =(((SUM(G5,G11,G14,G15,G49,G50,G51)-SUM(Loads!G5,Loads!G11,Loads!G14,Loads!G15,Loads!G49,Loads!G50,Loads!G51))/VLOOKUP(G4,Init!$N:$P,3,0))/(SUM(Loads!G5,Loads!G11,Loads!G14,Loads!G15,Loads!G49,Loads!G50,Loads!G51)/VLOOKUP(G4,Init!$N:$P,3,0))) -> 0.02966010311 | H54: =(((SUM(H5,H11,H14,H15,H49,H50,H51)-SUM(Loads!H5,Loads!H11,Loads!H14,Loads!H15,Loads!H49,Loads!H50,Loads!H51))/VLOOKUP(H4,Init!$N:$P,3,0))/(SUM(Loads!H5,Loads!H11,Loads!H14,Loads!H15,Loads!H49,Loads!H50,Loads!H51)/VLOOKUP(H4,Init!$N:$P,3,0))) -> 0.02966010311 | I54: =(((SUM(I5,I11,I14,I15,I49,I50,I51)-SUM(Loads!I5,Loads!I11,Loads!I14,Loads!I15,Loads!I49,Loads!I50,Loads!I51))/VLOOKUP(I4,Init!$N:$P,3,0))/(SUM(Loads!I5,Loads!I11,Loads!I14,Loads!I15,Loads!I49,Loads!I50,Loads!I51)/VLOOKUP(I4,Init!$N:$P,3,0))) -> 0.02966010311 | J54: =(((SUM(J5,J11,J14,J15,J49,J50,J51)-SUM(Loads!J5,Loads!J11,Loads!J14,Loads!J15,Loads!J49,Loads!J50,Loads!J51))/VLOOKUP(J4,Init!$N:$P,3,0))/(SUM(Loads!J5,Loads!J11,Loads!J14,Loads!J15,Loads!J49,Loads!J50,Loads!J51)/VLOOKUP(J4,Init!$N:$P,3,0))) -> 0.02966010311

Sheet PF Public
B1: Billing Determinants Needed for Rates Analysis Model | O1: Not printed in documentation.
A2: TOC | B2: =Cover!$C$14 -> Public Release_ RAMmodel_RAM2029_Reference Case Updated 11/5/2025 | U2: Not printed in documentation.
A3: é
D4: =+DATE(Init!$C$9-1,10,1) -> 2028-10-01 | E4: =+EOMONTH(D4,0)+1 -> 2028-11-01 | F4: 2028-12-01 | G4: 2029-01-01 | H4: 2029-02-01 | I4: 2029-03-01 | J4: 2029-04-01 | K4: 2029-05-01 | L4: 2029-06-01 | M4: 2029-07-01 | N4: 2029-08-01 | O4: 2029-09-01 | P4: 2029-10-01 | Q4: 2029-11-01 | R4: 2029-12-01 | S4: 2030-01-01 | T4: 2030-02-01 | U4: 2030-03-01 | V4: 2030-04-01 | W4: 2030-05-01 | X4: 2030-06-01 | Y4: 2030-07-01 | Z4: 2030-08-01 | AA4: 2030-09-01 | AB4: 2030-10-01 | AC4: 2030-11-01 | AD4: 2030-12-01 | AE4: 2031-01-01 | AF4: 2031-02-01 | AG4: 2031-03-01 | AH4: 2031-04-01 | AI4: 2031-05-01 | AJ4: 2031-06-01 | AK4: =+EOMONTH(AJ4,0)+1 -> 2031-07-01 | AL4: 2031-08-01 | AM4: 2031-09-01 | AN4: 2031-10-01 | AO4: 2031-11-01 | AP4: 2031-12-01 | AQ4: 2032-01-01 | AR4: 2032-02-01 | AS4: 2032-03-01 | AT4: 2032-04-01 | AU4: 2032-05-01 | AV4: 2032-06-01 | AW4: 2032-07-01 | AX4: 2032-08-01 | AY4: 2032-09-01 | AZ4: 2032-10-01 | BA4: 2032-11-01 | BB4: 2032-12-01 | BC4: 2033-01-01 | BD4: 2033-02-01 | BE4: 2033-03-01 | BF4: 2033-04-01 | BG4: 2033-05-01 | BH4: 2033-06-01 | BI4: 2033-07-01 | BJ4: 2033-08-01 | BK4: 2033-09-01 | BL4: 2033-10-01 | BM4: 2033-11-01 | BN4: 2033-12-01 | BO4: 2034-01-01 | BP4: 2034-02-01 | BQ4: =+EOMONTH(BP4,0)+1 -> 2034-03-01 | BR4: 2034-04-01 | BS4: 2034-05-01 | BT4: 2034-06-01 | BU4: 2034-07-01 | BV4: 2034-08-01 | BW4: 2034-09-01
B5: Public without Undistributed Conservation
B6: HLH | C6: PRE | D6: =+INDEX(Loads!$L:$CE,MATCH($C6,Loads!$D:$D,0),MATCH(D$4,Loads!$L$4:$CE$4,0)) -> 2951149.277 | E6: =+INDEX(Loads!$L:$CE,MATCH($C6,Loads!$D:$D,0),MATCH(E$4,Loads!$L$4:$CE$4,0)) -> 3375074.475 | F6: =+INDEX(Loads!$L:$CE,MATCH($C6,Loads!$D:$D,0),MATCH(F$4,Loads!$L$4:$CE$4,0)) -> 4039711.25 | G6: =+INDEX(Loads!$L:$CE,MATCH($C6,Loads!$D:$D,0),MATCH(G$4,Loads!$L$4:$CE$4,0)) -> 3973847.338 | H6: =+INDEX(Loads!$L:$CE,MATCH($C6,Loads!$D:$D,0),MATCH(H$4,Loads!$L$4:$CE$4,0)) -> 3580631.978 | I6: =+INDEX(Loads!$L:$CE,MATCH($C6,Loads!$D:$D,0),MATCH(I$4,Loads!$L$4:$CE$4,0)) -> 3652101.892 | J6: =+INDEX(Loads!$L:$CE,MATCH($C6,Loads!$D:$D,0),MATCH(J$4,Loads!$L$4:$CE$4,0)) -> 2872617.278 | K6: =+INDEX(Loads!$L:$CE,MATCH($C6,Loads!$D:$D,0),MATCH(K$4,Loads!$L$4:$CE$4,0)) -> 2914904.848 | L6: =+INDEX(Loads!$L:$CE,MATCH($C6,Loads!$D:$D,0),MATCH(L$4,Loads!$L$4:$CE$4,0)) -> 2931609.649 | M6: =+INDEX(Loads!$L:$CE,MATCH($C6,Loads!$D:$D,0),MATCH(M$4,Loads!$L$4:$CE$4,0)) -> 3090057.079 | N6: =+INDEX(Loads!$L:$CE,MATCH($C6,Loads!$D:$D,0),MATCH(N$4,Loads!$L$4:$CE$4,0)) -> 3310064.303 | O6: =+INDEX(Loads!$L:$CE,MATCH($C6,Loads!$D:$D,0),MATCH(O$4,Loads!$L$4:$CE$4,0)) -> 2827225.112 | P6: =+INDEX(Loads!$L:$CE,MATCH($C6,Loads!$D:$D,0),MATCH(P$4,Loads!$L$4:$CE$4,0)) -> 2951149.277 | Q6: =+INDEX(Loads!$L:$CE,MATCH($C6,Loads!$D:$D,0),MATCH(Q$4,Loads!$L$4:$CE$4,0)) -> 3375074.475 | R6: =+INDEX(Loads!$L:$CE,MATCH($C6,Loads!$D:$D,0),MATCH(R$4,Loads!$L$4:$CE$4,0)) -> 4039711.25 | S6: =+INDEX(Loads!$L:$CE,MATCH($C6,Loads!$D:$D,0),MATCH(S$4,Loads!$L$4:$CE$4,0)) -> 3973847.338 | T6: =+INDEX(Loads!$L:$CE,MATCH($C6,Loads!$D:$D,0),MATCH(T$4,Loads!$L$4:$CE$4,0)) -> 3580631.978 | U6: =+INDEX(Loads!$L:$CE,MATCH($C6,Loads!$D:$D,0),MATCH(U$4,Loads!$L$4:$CE$4,0)) -> 3652101.892 | V6: =+INDEX(Loads!$L:$CE,MATCH($C6,Loads!$D:$D,0),MATCH(V$4,Loads!$L$4:$CE$4,0)) -> 2872617.278 | W6: =+INDEX(Loads!$L:$CE,MATCH($C6,Loads!$D:$D,0),MATCH(W$4,Loads!$L$4:$CE$4,0)) -> 2914904.848 | X6: =+INDEX(Loads!$L:$CE,MATCH($C6,Loads!$D:$D,0),MATCH(X$4,Loads!$L$4:$CE$4,0)) -> 2931609.649 | Y6: =+INDEX(Loads!$L:$CE,MATCH($C6,Loads!$D:$D,0),MATCH(Y$4,Loads!$L$4:$CE$4,0)) -> 3090057.079 | Z6: =+INDEX(Loads!$L:$CE,MATCH($C6,Loads!$D:$D,0),MATCH(Z$4,Loads!$L$4:$CE$4,0)) -> 3310064.303 | AA6: =+INDEX(Loads!$L:$CE,MATCH($C6,Loads!$D:$D,0),MATCH(AA$4,Loads!$L$4:$CE$4,0)) -> 2827225.112 | AB6: =+INDEX(Loads!$L:$CE,MATCH($C6,Loads!$D:$D,0),MATCH(AB$4,Loads!$L$4:$CE$4,0)) -> 2951149.277 | AC6: =+INDEX(Loads!$L:$CE,MATCH($C6,Loads!$D:$D,0),MATCH(AC$4,Loads!$L$4:$CE$4,0)) -> 3375074.475 | AD6: =+INDEX(Loads!$L:$CE,MATCH($C6,Loads!$D:$D,0),MATCH(AD$4,Loads!$L$4:$CE$4,0)) -> 4039711.25 | AE6: =+INDEX(Loads!$L:$CE,MATCH($C6,Loads!$D:$D,0),MATCH(AE$4,Loads!$L$4:$CE$4,0)) -> 3973847.338 | AF6: =+INDEX(Loads!$L:$CE,MATCH($C6,Loads!$D:$D,0),MATCH(AF$4,Loads!$L$4:$CE$4,0)) -> 3580631.978 | AG6: =+INDEX(Loads!$L:$CE,MATCH($C6,Loads!$D:$D,0),MATCH(AG$4,Loads!$L$4:$CE$4,0)) -> 3652101.892 | AH6: =+INDEX(Loads!$L:$CE,MATCH($C6,Loads!$D:$D,0),MATCH(AH$4,Loads!$L$4:$CE$4,0)) -> 2872617.278 | AI6: =+INDEX(Loads!$L:$CE,MATCH($C6,Loads!$D:$D,0),MATCH(AI$4,Loads!$L$4:$CE$4,0)) -> 2914904.848 | AJ6: =+INDEX(Loads!$L:$CE,MATCH($C6,Loads!$D:$D,0),MATCH(AJ$4,Loads!$L$4:$CE$4,0)) -> 2931609.649 | AK6: =+INDEX(Loads!$L:$CE,MATCH($C6,Loads!$D:$D,0),MATCH(AK$4,Loads!$L$4:$CE$4,0)) -> 3090057.079 | AL6: =+INDEX(Loads!$L:$CE,MATCH($C6,Loads!$D:$D,0),MATCH(AL$4,Loads!$L$4:$CE$4,0)) -> 3310064.303 | AM6: =+INDEX(Loads!$L:$CE,MATCH($C6,Loads!$D:$D,0),MATCH(AM$4,Loads!$L$4:$CE$4,0)) -> 2827225.112 | AN6: =+INDEX(Loads!$L:$CE,MATCH($C6,Loads!$D:$D,0),MATCH(AN$4,Loads!$L$4:$CE$4,0)) -> 2951149.277 | AO6: =+INDEX(Loads!$L:$CE,MATCH($C6,Loads!$D:$D,0),MATCH(AO$4,Loads!$L$4:$CE$4,0)) -> 3375074.475 | AP6: =+INDEX(Loads!$L:$CE,MATCH($C6,Loads!$D:$D,0),MATCH(AP$4,Loads!$L$4:$CE$4,0)) -> 4039711.25 | AQ6: =+INDEX(Loads!$L:$CE,MATCH($C6,Loads!$D:$D,0),MATCH(AQ$4,Loads!$L$4:$CE$4,0)) -> 3973847.338 | AR6: =+INDEX(Loads!$L:$CE,MATCH($C6,Loads!$D:$D,0),MATCH(AR$4,Loads!$L$4:$CE$4,0)) -> 3580631.978 | AS6: =+INDEX(Loads!$L:$CE,MATCH($C6,Loads!$D:$D,0),MATCH(AS$4,Loads!$L$4:$CE$4,0)) -> 3652101.892 | AT6: =+INDEX(Loads!$L:$CE,MATCH($C6,Loads!$D:$D,0),MATCH(AT$4,Loads!$L$4:$CE$4,0)) -> 2872617.278 | AU6: =+INDEX(Loads!$L:$CE,MATCH($C6,Loads!$D:$D,0),MATCH(AU$4,Loads!$L$4:$CE$4,0)) -> 2914904.848 | AV6: =+INDEX(Loads!$L:$CE,MATCH($C6,Loads!$D:$D,0),MATCH(AV$4,Loads!$L$4:$CE$4,0)) -> 2931609.649 | AW6: =+INDEX(Loads!$L:$CE,MATCH($C6,Loads!$D:$D,0),MATCH(AW$4,Loads!$L$4:$CE$4,0)) -> 3090057.079 | AX6: =+INDEX(Loads!$L:$CE,MATCH($C6,Loads!$D:$D,0),MATCH(AX$4,Loads!$L$4:$CE$4,0)) -> 3310064.303 | AY6: =+INDEX(Loads!$L:$CE,MATCH($C6,Loads!$D:$D,0),MATCH(AY$4,Loads!$L$4:$CE$4,0)) -> 2827225.112 | AZ6: =+INDEX(Loads!$L:$CE,MATCH($C6,Loads!$D:$D,0),MATCH(AZ$4,Loads!$L$4:$CE$4,0)) -> 2951149.277 | BA6: =+INDEX(Loads!$L:$CE,MATCH($C6,Loads!$D:$D,0),MATCH(BA$4,Loads!$L$4:$CE$4,0)) -> 3375074.475 | BB6: =+INDEX(Loads!$L:$CE,MATCH($C6,Loads!$D:$D,0),MATCH(BB$4,Loads!$L$4:$CE$4,0)) -> 4039711.25 | BC6: =+INDEX(Loads!$L:$CE,MATCH($C6,Loads!$D:$D,0),MATCH(BC$4,Loads!$L$4:$CE$4,0)) -> 3973847.338 | BD6: =+INDEX(Loads!$L:$CE,MATCH($C6,Loads!$D:$D,0),MATCH(BD$4,Loads!$L$4:$CE$4,0)) -> 3580631.978 | BE6: =+INDEX(Loads!$L:$CE,MATCH($C6,Loads!$D:$D,0),MATCH(BE$4,Loads!$L$4:$CE$4,0)) -> 3652101.892 | BF6: =+INDEX(Loads!$L:$CE,MATCH($C6,Loads!$D:$D,0),MATCH(BF$4,Loads!$L$4:$CE$4,0)) -> 2872617.278 | BG6: =+INDEX(Loads!$L:$CE,MATCH($C6,Loads!$D:$D,0),MATCH(BG$4,Loads!$L$4:$CE$4,0)) -> 2914904.848 | BH6: =+INDEX(Loads!$L:$CE,MATCH($C6,Loads!$D:$D,0),MATCH(BH$4,Loads!$L$4:$CE$4,0)) -> 2931609.649 | BI6: =+INDEX(Loads!$L:$CE,MATCH($C6,Loads!$D:$D,0),MATCH(BI$4,Loads!$L$4:$CE$4,0)) -> 3090057.079 | BJ6: =+INDEX(Loads!$L:$CE,MATCH($C6,Loads!$D:$D,0),MATCH(BJ$4,Loads!$L$4:$CE$4,0)) -> 3310064.303 | BK6: =+INDEX(Loads!$L:$CE,MATCH($C6,Loads!$D:$D,0),MATCH(BK$4,Loads!$L$4:$CE$4,0)) -> 2827225.112 | BL6: =+INDEX(Loads!$L:$CE,MATCH($C6,Loads!$D:$D,0),MATCH(BL$4,Loads!$L$4:$CE$4,0)) -> 2951149.277 | BM6: =+INDEX(Loads!$L:$CE,MATCH($C6,Loads!$D:$D,0),MATCH(BM$4,Loads!$L$4:$CE$4,0)) -> 3375074.475 | BN6: =+INDEX(Loads!$L:$CE,MATCH($C6,Loads!$D:$D,0),MATCH(BN$4,Loads!$L$4:$CE$4,0)) -> 4039711.25 | BO6: =+INDEX(Loads!$L:$CE,MATCH($C6,Loads!$D:$D,0),MATCH(BO$4,Loads!$L$4:$CE$4,0)) -> 3973847.338 | BP6: =+INDEX(Loads!$L:$CE,MATCH($C6,Loads!$D:$D,0),MATCH(BP$4,Loads!$L$4:$CE$4,0)) -> 3580631.978 | BQ6: =+INDEX(Loads!$L:$CE,MATCH($C6,Loads!$D:$D,0),MATCH(BQ$4,Loads!$L$4:$CE$4,0)) -> 3652101.892 | BR6: =+INDEX(Loads!$L:$CE,MATCH($C6,Loads!$D:$D,0),MATCH(BR$4,Loads!$L$4:$CE$4,0)) -> 2872617.278 | BS6: =+INDEX(Loads!$L:$CE,MATCH($C6,Loads!$D:$D,0),MATCH(BS$4,Loads!$L$4:$CE$4,0)) -> 2914904.848 | BT6: =+INDEX(Loads!$L:$CE,MATCH($C6,Loads!$D:$D,0),MATCH(BT$4,Loads!$L$4:$CE$4,0)) -> 2931609.649 | BU6: =+INDEX(Loads!$L:$CE,MATCH($C6,Loads!$D:$D,0),MATCH(BU$4,Loads!$L$4:$CE$4,0)) -> 3090057.079 | BV6: =+INDEX(Loads!$L:$CE,MATCH($C6,Loads!$D:$D,0),MATCH(BV$4,Loads!$L$4:$CE$4,0)) -> 3310064.303 | BW6: =+INDEX(Loads!$L:$CE,MATCH($C6,Loads!$D:$D,0),MATCH(BW$4,Loads!$L$4:$CE$4,0)) -> 2827225.112
B7: LLH | C7: PRE | D7: =+INDEX(Loads!$CG:$EZ,MATCH($C7,Loads!$D:$D,0),MATCH(D$4,Loads!$CG$4:$EZ$4,0)) -> 1954494.772 | E7: =+INDEX(Loads!$CG:$EZ,MATCH($C7,Loads!$D:$D,0),MATCH(E$4,Loads!$CG$4:$EZ$4,0)) -> 2274856.331 | F7: =+INDEX(Loads!$CG:$EZ,MATCH($C7,Loads!$D:$D,0),MATCH(F$4,Loads!$CG$4:$EZ$4,0)) -> 2659230.424 | G7: =+INDEX(Loads!$CG:$EZ,MATCH($C7,Loads!$D:$D,0),MATCH(G$4,Loads!$CG$4:$EZ$4,0)) -> 2823742.247 | H7: =+INDEX(Loads!$CG:$EZ,MATCH($C7,Loads!$D:$D,0),MATCH(H$4,Loads!$CG$4:$EZ$4,0)) -> 2292025.188 | I7: =+INDEX(Loads!$CG:$EZ,MATCH($C7,Loads!$D:$D,0),MATCH(I$4,Loads!$CG$4:$EZ$4,0)) -> 2230762.383 | J7: =+INDEX(Loads!$CG:$EZ,MATCH($C7,Loads!$D:$D,0),MATCH(J$4,Loads!$CG$4:$EZ$4,0)) -> 1979749.172 | K7: =+INDEX(Loads!$CG:$EZ,MATCH($C7,Loads!$D:$D,0),MATCH(K$4,Loads!$CG$4:$EZ$4,0)) -> 1880388.743 | L7: =+INDEX(Loads!$CG:$EZ,MATCH($C7,Loads!$D:$D,0),MATCH(L$4,Loads!$CG$4:$EZ$4,0)) -> 1730014.247 | M7: =+INDEX(Loads!$CG:$EZ,MATCH($C7,Loads!$D:$D,0),MATCH(M$4,Loads!$CG$4:$EZ$4,0)) -> 2142235.557 | N7: =+INDEX(Loads!$CG:$EZ,MATCH($C7,Loads!$D:$D,0),MATCH(N$4,Loads!$CG$4:$EZ$4,0)) -> 1883439.81 | O7: =+INDEX(Loads!$CG:$EZ,MATCH($C7,Loads!$D:$D,0),MATCH(O$4,Loads!$CG$4:$EZ$4,0)) -> 1832052.173 | P7: =+INDEX(Loads!$CG:$EZ,MATCH($C7,Loads!$D:$D,0),MATCH(P$4,Loads!$CG$4:$EZ$4,0)) -> 1954494.772 | Q7: =+INDEX(Loads!$CG:$EZ,MATCH($C7,Loads!$D:$D,0),MATCH(Q$4,Loads!$CG$4:$EZ$4,0)) -> 2274856.331 | R7: =+INDEX(Loads!$CG:$EZ,MATCH($C7,Loads!$D:$D,0),MATCH(R$4,Loads!$CG$4:$EZ$4,0)) -> 2659230.424 | S7: =+INDEX(Loads!$CG:$EZ,MATCH($C7,Loads!$D:$D,0),MATCH(S$4,Loads!$CG$4:$EZ$4,0)) -> 2823742.247 | T7: =+INDEX(Loads!$CG:$EZ,MATCH($C7,Loads!$D:$D,0),MATCH(T$4,Loads!$CG$4:$EZ$4,0)) -> 2292025.188 | U7: =+INDEX(Loads!$CG:$EZ,MATCH($C7,Loads!$D:$D,0),MATCH(U$4,Loads!$CG$4:$EZ$4,0)) -> 2230762.383 | V7: =+INDEX(Loads!$CG:$EZ,MATCH($C7,Loads!$D:$D,0),MATCH(V$4,Loads!$CG$4:$EZ$4,0)) -> 1979749.172 | W7: =+INDEX(Loads!$CG:$EZ,MATCH($C7,Loads!$D:$D,0),MATCH(W$4,Loads!$CG$4:$EZ$4,0)) -> 1880388.743 | X7: =+INDEX(Loads!$CG:$EZ,MATCH($C7,Loads!$D:$D,0),MATCH(X$4,Loads!$CG$4:$EZ$4,0)) -> 1730014.247 | Y7: =+INDEX(Loads!$CG:$EZ,MATCH($C7,Loads!$D:$D,0),MATCH(Y$4,Loads!$CG$4:$EZ$4,0)) -> 2142235.557 | Z7: =+INDEX(Loads!$CG:$EZ,MATCH($C7,Loads!$D:$D,0),MATCH(Z$4,Loads!$CG$4:$EZ$4,0)) -> 1883439.81 | AA7: =+INDEX(Loads!$CG:$EZ,MATCH($C7,Loads!$D:$D,0),MATCH(AA$4,Loads!$CG$4:$EZ$4,0)) -> 1832052.173 | AB7: =+INDEX(Loads!$CG:$EZ,MATCH($C7,Loads!$D:$D,0),MATCH(AB$4,Loads!$CG$4:$EZ$4,0)) -> 1954494.772 | AC7: =+INDEX(Loads!$CG:$EZ,MATCH($C7,Loads!$D:$D,0),MATCH(AC$4,Loads!$CG$4:$EZ$4,0)) -> 2274856.331 | AD7: =+INDEX(Loads!$CG:$EZ,MATCH($C7,Loads!$D:$D,0),MATCH(AD$4,Loads!$CG$4:$EZ$4,0)) -> 2659230.424 | AE7: =+INDEX(Loads!$CG:$EZ,MATCH($C7,Loads!$D:$D,0),MATCH(AE$4,Loads!$CG$4:$EZ$4,0)) -> 2823742.247 | AF7: =+INDEX(Loads!$CG:$EZ,MATCH($C7,Loads!$D:$D,0),MATCH(AF$4,Loads!$CG$4:$EZ$4,0)) -> 2292025.188 | AG7: =+INDEX(Loads!$CG:$EZ,MATCH($C7,Loads!$D:$D,0),MATCH(AG$4,Loads!$CG$4:$EZ$4,0)) -> 2230762.383 | AH7: =+INDEX(Loads!$CG:$EZ,MATCH($C7,Loads!$D:$D,0),MATCH(AH$4,Loads!$CG$4:$EZ$4,0)) -> 1979749.172 | AI7: =+INDEX(Loads!$CG:$EZ,MATCH($C7,Loads!$D:$D,0),MATCH(AI$4,Loads!$CG$4:$EZ$4,0)) -> 1880388.743 | AJ7: =+INDEX(Loads!$CG:$EZ,MATCH($C7,Loads!$D:$D,0),MATCH(AJ$4,Loads!$CG$4:$EZ$4,0)) -> 1730014.247 | AK7: =+INDEX(Loads!$CG:$EZ,MATCH($C7,Loads!$D:$D,0),MATCH(AK$4,Loads!$CG$4:$EZ$4,0)) -> 2142235.557 | AL7: =+INDEX(Loads!$CG:$EZ,MATCH($C7,Loads!$D:$D,0),MATCH(AL$4,Loads!$CG$4:$EZ$4,0)) -> 1883439.81 | AM7: =+INDEX(Loads!$CG:$EZ,MATCH($C7,Loads!$D:$D,0),MATCH(AM$4,Loads!$CG$4:$EZ$4,0)) -> 1832052.173 | AN7: =+INDEX(Loads!$CG:$EZ,MATCH($C7,Loads!$D:$D,0),MATCH(AN$4,Loads!$CG$4:$EZ$4,0)) -> 1954494.772 | AO7: =+INDEX(Loads!$CG:$EZ,MATCH($C7,Loads!$D:$D,0),MATCH(AO$4,Loads!$CG$4:$EZ$4,0)) -> 2274856.331 | AP7: =+INDEX(Loads!$CG:$EZ,MATCH($C7,Loads!$D:$D,0),MATCH(AP$4,Loads!$CG$4:$EZ$4,0)) -> 2659230.424 | AQ7: =+INDEX(Loads!$CG:$EZ,MATCH($C7,Loads!$D:$D,0),MATCH(AQ$4,Loads!$CG$4:$EZ$4,0)) -> 2823742.247 | AR7: =+INDEX(Loads!$CG:$EZ,MATCH($C7,Loads!$D:$D,0),MATCH(AR$4,Loads!$CG$4:$EZ$4,0)) -> 2292025.188 | AS7: =+INDEX(Loads!$CG:$EZ,MATCH($C7,Loads!$D:$D,0),MATCH(AS$4,Loads!$CG$4:$EZ$4,0)) -> 2230762.383 | AT7: =+INDEX(Loads!$CG:$EZ,MATCH($C7,Loads!$D:$D,0),MATCH(AT$4,Loads!$CG$4:$EZ$4,0)) -> 1979749.172 | AU7: =+INDEX(Loads!$CG:$EZ,MATCH($C7,Loads!$D:$D,0),MATCH(AU$4,Loads!$CG$4:$EZ$4,0)) -> 1880388.743 | AV7: =+INDEX(Loads!$CG:$EZ,MATCH($C7,Loads!$D:$D,0),MATCH(AV$4,Loads!$CG$4:$EZ$4,0)) -> 1730014.247 | AW7: =+INDEX(Loads!$CG:$EZ,MATCH($C7,Loads!$D:$D,0),MATCH(AW$4,Loads!$CG$4:$EZ$4,0)) -> 2142235.557 | AX7: =+INDEX(Loads!$CG:$EZ,MATCH($C7,Loads!$D:$D,0),MATCH(AX$4,Loads!$CG$4:$EZ$4,0)) -> 1883439.81 | AY7: =+INDEX(Loads!$CG:$EZ,MATCH($C7,Loads!$D:$D,0),MATCH(AY$4,Loads!$CG$4:$EZ$4,0)) -> 1832052.173 | AZ7: =+INDEX(Loads!$CG:$EZ,MATCH($C7,Loads!$D:$D,0),MATCH(AZ$4,Loads!$CG$4:$EZ$4,0)) -> 1954494.772 | BA7: =+INDEX(Loads!$CG:$EZ,MATCH($C7,Loads!$D:$D,0),MATCH(BA$4,Loads!$CG$4:$EZ$4,0)) -> 2274856.331 | BB7: =+INDEX(Loads!$CG:$EZ,MATCH($C7,Loads!$D:$D,0),MATCH(BB$4,Loads!$CG$4:$EZ$4,0)) -> 2659230.424 | BC7: =+INDEX(Loads!$CG:$EZ,MATCH($C7,Loads!$D:$D,0),MATCH(BC$4,Loads!$CG$4:$EZ$4,0)) -> 2823742.247 | BD7: =+INDEX(Loads!$CG:$EZ,MATCH($C7,Loads!$D:$D,0),MATCH(BD$4,Loads!$CG$4:$EZ$4,0)) -> 2292025.188 | BE7: =+INDEX(Loads!$CG:$EZ,MATCH($C7,Loads!$D:$D,0),MATCH(BE$4,Loads!$CG$4:$EZ$4,0)) -> 2230762.383 | BF7: =+INDEX(Loads!$CG:$EZ,MATCH($C7,Loads!$D:$D,0),MATCH(BF$4,Loads!$CG$4:$EZ$4,0)) -> 1979749.172 | BG7: =+INDEX(Loads!$CG:$EZ,MATCH($C7,Loads!$D:$D,0),MATCH(BG$4,Loads!$CG$4:$EZ$4,0)) -> 1880388.743 | BH7: =+INDEX(Loads!$CG:$EZ,MATCH($C7,Loads!$D:$D,0),MATCH(BH$4,Loads!$CG$4:$EZ$4,0)) -> 1730014.247 | BI7: =+INDEX(Loads!$CG:$EZ,MATCH($C7,Loads!$D:$D,0),MATCH(BI$4,Loads!$CG$4:$EZ$4,0)) -> 2142235.557 | BJ7: =+INDEX(Loads!$CG:$EZ,MATCH($C7,Loads!$D:$D,0),MATCH(BJ$4,Loads!$CG$4:$EZ$4,0)) -> 1883439.81 | BK7: =+INDEX(Loads!$CG:$EZ,MATCH($C7,Loads!$D:$D,0),MATCH(BK$4,Loads!$CG$4:$EZ$4,0)) -> 1832052.173 | BL7: =+INDEX(Loads!$CG:$EZ,MATCH($C7,Loads!$D:$D,0),MATCH(BL$4,Loads!$CG$4:$EZ$4,0)) -> 1954494.772 | BM7: =+INDEX(Loads!$CG:$EZ,MATCH($C7,Loads!$D:$D,0),MATCH(BM$4,Loads!$CG$4:$EZ$4,0)) -> 2274856.331 | BN7: =+INDEX(Loads!$CG:$EZ,MATCH($C7,Loads!$D:$D,0),MATCH(BN$4,Loads!$CG$4:$EZ$4,0)) -> 2659230.424 | BO7: =+INDEX(Loads!$CG:$EZ,MATCH($C7,Loads!$D:$D,0),MATCH(BO$4,Loads!$CG$4:$EZ$4,0)) -> 2823742.247 | BP7: =+INDEX(Loads!$CG:$EZ,MATCH($C7,Loads!$D:$D,0),MATCH(BP$4,Loads!$CG$4:$EZ$4,0)) -> 2292025.188 | BQ7: =+INDEX(Loads!$CG:$EZ,MATCH($C7,Loads!$D:$D,0),MATCH(BQ$4,Loads!$CG$4:$EZ$4,0)) -> 2230762.383 | BR7: =+INDEX(Loads!$CG:$EZ,MATCH($C7,Loads!$D:$D,0),MATCH(BR$4,Loads!$CG$4:$EZ$4,0)) -> 1979749.172 | BS7: =+INDEX(Loads!$CG:$EZ,MATCH($C7,Loads!$D:$D,0),MATCH(BS$4,Loads!$CG$4:$EZ$4,0)) -> 1880388.743 | BT7: =+INDEX(Loads!$CG:$EZ,MATCH($C7,Loads!$D:$D,0),MATCH(BT$4,Loads!$CG$4:$EZ$4,0)) -> 1730014.247 | BU7: =+INDEX(Loads!$CG:$EZ,MATCH($C7,Loads!$D:$D,0),MATCH(BU$4,Loads!$CG$4:$EZ$4,0)) -> 2142235.557 | BV7: =+INDEX(Loads!$CG:$EZ,MATCH($C7,Loads!$D:$D,0),MATCH(BV$4,Loads!$CG$4:$EZ$4,0)) -> 1883439.81 | BW7: =+INDEX(Loads!$CG:$EZ,MATCH($C7,Loads!$D:$D,0),MATCH(BW$4,Loads!$CG$4:$EZ$4,0)) -> 1832052.173
B8: Undistrubuted Conservation
B9: HLH | C9: CON | D9: =+INDEX(Loads!$L:$CE,MATCH($C9,Loads!$D:$D,0),MATCH(D$4,Loads!$L$4:$CE$4,0)) -> 0 | E9: =+INDEX(Loads!$L:$CE,MATCH($C9,Loads!$D:$D,0),MATCH(E$4,Loads!$L$4:$CE$4,0)) -> 0 | F9: =+INDEX(Loads!$L:$CE,MATCH($C9,Loads!$D:$D,0),MATCH(F$4,Loads!$L$4:$CE$4,0)) -> 0 | G9: =+INDEX(Loads!$L:$CE,MATCH($C9,Loads!$D:$D,0),MATCH(G$4,Loads!$L$4:$CE$4,0)) -> 0 | H9: =+INDEX(Loads!$L:$CE,MATCH($C9,Loads!$D:$D,0),MATCH(H$4,Loads!$L$4:$CE$4,0)) -> 0 | I9: =+INDEX(Loads!$L:$CE,MATCH($C9,Loads!$D:$D,0),MATCH(I$4,Loads!$L$4:$CE$4,0)) -> 0 | J9: =+INDEX(Loads!$L:$CE,MATCH($C9,Loads!$D:$D,0),MATCH(J$4,Loads!$L$4:$CE$4,0)) -> 0 | K9: =+INDEX(Loads!$L:$CE,MATCH($C9,Loads!$D:$D,0),MATCH(K$4,Loads!$L$4:$CE$4,0)) -> 0 | L9: =+INDEX(Loads!$L:$CE,MATCH($C9,Loads!$D:$D,0),MATCH(L$4,Loads!$L$4:$CE$4,0)) -> 0 | M9: =+INDEX(Loads!$L:$CE,MATCH($C9,Loads!$D:$D,0),MATCH(M$4,Loads!$L$4:$CE$4,0)) -> 0 | N9: =+INDEX(Loads!$L:$CE,MATCH($C9,Loads!$D:$D,0),MATCH(N$4,Loads!$L$4:$CE$4,0)) -> 0 | O9: =+INDEX(Loads!$L:$CE,MATCH($C9,Loads!$D:$D,0),MATCH(O$4,Loads!$L$4:$CE$4,0)) -> 0 | P9: =+INDEX(Loads!$L:$CE,MATCH($C9,Loads!$D:$D,0),MATCH(P$4,Loads!$L$4:$CE$4,0)) -> 0 | Q9: =+INDEX(Loads!$L:$CE,MATCH($C9,Loads!$D:$D,0),MATCH(Q$4,Loads!$L$4:$CE$4,0)) -> 0 | R9: =+INDEX(Loads!$L:$CE,MATCH($C9,Loads!$D:$D,0),MATCH(R$4,Loads!$L$4:$CE$4,0)) -> 0 | S9: =+INDEX(Loads!$L:$CE,MATCH($C9,Loads!$D:$D,0),MATCH(S$4,Loads!$L$4:$CE$4,0)) -> 0 | T9: =+INDEX(Loads!$L:$CE,MATCH($C9,Loads!$D:$D,0),MATCH(T$4,Loads!$L$4:$CE$4,0)) -> 0 | U9: =+INDEX(Loads!$L:$CE,MATCH($C9,Loads!$D:$D,0),MATCH(U$4,Loads!$L$4:$CE$4,0)) -> 0 | V9: =+INDEX(Loads!$L:$CE,MATCH($C9,Loads!$D:$D,0),MATCH(V$4,Loads!$L$4:$CE$4,0)) -> 0 | W9: =+INDEX(Loads!$L:$CE,MATCH($C9,Loads!$D:$D,0),MATCH(W$4,Loads!$L$4:$CE$4,0)) -> 0 | X9: =+INDEX(Loads!$L:$CE,MATCH($C9,Loads!$D:$D,0),MATCH(X$4,Loads!$L$4:$CE$4,0)) -> 0 | Y9: =+INDEX(Loads!$L:$CE,MATCH($C9,Loads!$D:$D,0),MATCH(Y$4,Loads!$L$4:$CE$4,0)) -> 0 | Z9: =+INDEX(Loads!$L:$CE,MATCH($C9,Loads!$D:$D,0),MATCH(Z$4,Loads!$L$4:$CE$4,0)) -> 0 | AA9: =+INDEX(Loads!$L:$CE,MATCH($C9,Loads!$D:$D,0),MATCH(AA$4,Loads!$L$4:$CE$4,0)) -> 0 | AB9: =+INDEX(Loads!$L:$CE,MATCH($C9,Loads!$D:$D,0),MATCH(AB$4,Loads!$L$4:$CE$4,0)) -> 0 | AC9: =+INDEX(Loads!$L:$CE,MATCH($C9,Loads!$D:$D,0),MATCH(AC$4,Loads!$L$4:$CE$4,0)) -> 0 | AD9: =+INDEX(Loads!$L:$CE,MATCH($C9,Loads!$D:$D,0),MATCH(AD$4,Loads!$L$4:$CE$4,0)) -> 0 | AE9: =+INDEX(Loads!$L:$CE,MATCH($C9,Loads!$D:$D,0),MATCH(AE$4,Loads!$L$4:$CE$4,0)) -> 0 | AF9: =+INDEX(Loads!$L:$CE,MATCH($C9,Loads!$D:$D,0),MATCH(AF$4,Loads!$L$4:$CE$4,0)) -> 0 | AG9: =+INDEX(Loads!$L:$CE,MATCH($C9,Loads!$D:$D,0),MATCH(AG$4,Loads!$L$4:$CE$4,0)) -> 0 | AH9: =+INDEX(Loads!$L:$CE,MATCH($C9,Loads!$D:$D,0),MATCH(AH$4,Loads!$L$4:$CE$4,0)) -> 0 | AI9: =+INDEX(Loads!$L:$CE,MATCH($C9,Loads!$D:$D,0),MATCH(AI$4,Loads!$L$4:$CE$4,0)) -> 0 | AJ9: =+INDEX(Loads!$L:$CE,MATCH($C9,Loads!$D:$D,0),MATCH(AJ$4,Loads!$L$4:$CE$4,0)) -> 0 | AK9: =+INDEX(Loads!$L:$CE,MATCH($C9,Loads!$D:$D,0),MATCH(AK$4,Loads!$L$4:$CE$4,0)) -> 0 | AL9: =+INDEX(Loads!$L:$CE,MATCH($C9,Loads!$D:$D,0),MATCH(AL$4,Loads!$L$4:$CE$4,0)) -> 0 | AM9: =+INDEX(Loads!$L:$CE,MATCH($C9,Loads!$D:$D,0),MATCH(AM$4,Loads!$L$4:$CE$4,0)) -> 0 | AN9: =+INDEX(Loads!$L:$CE,MATCH($C9,Loads!$D:$D,0),MATCH(AN$4,Loads!$L$4:$CE$4,0)) -> 0 | AO9: =+INDEX(Loads!$L:$CE,MATCH($C9,Loads!$D:$D,0),MATCH(AO$4,Loads!$L$4:$CE$4,0)) -> 0 | AP9: =+INDEX(Loads!$L:$CE,MATCH($C9,Loads!$D:$D,0),MATCH(AP$4,Loads!$L$4:$CE$4,0)) -> 0 | AQ9: =+INDEX(Loads!$L:$CE,MATCH($C9,Loads!$D:$D,0),MATCH(AQ$4,Loads!$L$4:$CE$4,0)) -> 0 | AR9: =+INDEX(Loads!$L:$CE,MATCH($C9,Loads!$D:$D,0),MATCH(AR$4,Loads!$L$4:$CE$4,0)) -> 0 | AS9: =+INDEX(Loads!$L:$CE,MATCH($C9,Loads!$D:$D,0),MATCH(AS$4,Loads!$L$4:$CE$4,0)) -> 0 | AT9: =+INDEX(Loads!$L:$CE,MATCH($C9,Loads!$D:$D,0),MATCH(AT$4,Loads!$L$4:$CE$4,0)) -> 0 | AU9: =+INDEX(Loads!$L:$CE,MATCH($C9,Loads!$D:$D,0),MATCH(AU$4,Loads!$L$4:$CE$4,0)) -> 0 | AV9: =+INDEX(Loads!$L:$CE,MATCH($C9,Loads!$D:$D,0),MATCH(AV$4,Loads!$L$4:$CE$4,0)) -> 0 | AW9: =+INDEX(Loads!$L:$CE,MATCH($C9,Loads!$D:$D,0),MATCH(AW$4,Loads!$L$4:$CE$4,0)) -> 0 | AX9: =+INDEX(Loads!$L:$CE,MATCH($C9,Loads!$D:$D,0),MATCH(AX$4,Loads!$L$4:$CE$4,0)) -> 0 | AY9: =+INDEX(Loads!$L:$CE,MATCH($C9,Loads!$D:$D,0),MATCH(AY$4,Loads!$L$4:$CE$4,0)) -> 0 | AZ9: =+INDEX(Loads!$L:$CE,MATCH($C9,Loads!$D:$D,0),MATCH(AZ$4,Loads!$L$4:$CE$4,0)) -> 0 | BA9: =+INDEX(Loads!$L:$CE,MATCH($C9,Loads!$D:$D,0),MATCH(BA$4,Loads!$L$4:$CE$4,0)) -> 0 | BB9: =+INDEX(Loads!$L:$CE,MATCH($C9,Loads!$D:$D,0),MATCH(BB$4,Loads!$L$4:$CE$4,0)) -> 0 | BC9: =+INDEX(Loads!$L:$CE,MATCH($C9,Loads!$D:$D,0),MATCH(BC$4,Loads!$L$4:$CE$4,0)) -> 0 | BD9: =+INDEX(Loads!$L:$CE,MATCH($C9,Loads!$D:$D,0),MATCH(BD$4,Loads!$L$4:$CE$4,0)) -> 0 | BE9: =+INDEX(Loads!$L:$CE,MATCH($C9,Loads!$D:$D,0),MATCH(BE$4,Loads!$L$4:$CE$4,0)) -> 0 | BF9: =+INDEX(Loads!$L:$CE,MATCH($C9,Loads!$D:$D,0),MATCH(BF$4,Loads!$L$4:$CE$4,0)) -> 0 | BG9: =+INDEX(Loads!$L:$CE,MATCH($C9,Loads!$D:$D,0),MATCH(BG$4,Loads!$L$4:$CE$4,0)) -> 0 | BH9: =+INDEX(Loads!$L:$CE,MATCH($C9,Loads!$D:$D,0),MATCH(BH$4,Loads!$L$4:$CE$4,0)) -> 0 | BI9: =+INDEX(Loads!$L:$CE,MATCH($C9,Loads!$D:$D,0),MATCH(BI$4,Loads!$L$4:$CE$4,0)) -> 0 | BJ9: =+INDEX(Loads!$L:$CE,MATCH($C9,Loads!$D:$D,0),MATCH(BJ$4,Loads!$L$4:$CE$4,0)) -> 0 | BK9: =+INDEX(Loads!$L:$CE,MATCH($C9,Loads!$D:$D,0),MATCH(BK$4,Loads!$L$4:$CE$4,0)) -> 0 | BL9: =+INDEX(Loads!$L:$CE,MATCH($C9,Loads!$D:$D,0),MATCH(BL$4,Loads!$L$4:$CE$4,0)) -> 0 | BM9: =+INDEX(Loads!$L:$CE,MATCH($C9,Loads!$D:$D,0),MATCH(BM$4,Loads!$L$4:$CE$4,0)) -> 0 | BN9: =+INDEX(Loads!$L:$CE,MATCH($C9,Loads!$D:$D,0),MATCH(BN$4,Loads!$L$4:$CE$4,0)) -> 0 | BO9: =+INDEX(Loads!$L:$CE,MATCH($C9,Loads!$D:$D,0),MATCH(BO$4,Loads!$L$4:$CE$4,0)) -> 0 | BP9: =+INDEX(Loads!$L:$CE,MATCH($C9,Loads!$D:$D,0),MATCH(BP$4,Loads!$L$4:$CE$4,0)) -> 0 | BQ9: =+INDEX(Loads!$L:$CE,MATCH($C9,Loads!$D:$D,0),MATCH(BQ$4,Loads!$L$4:$CE$4,0)) -> 0 | BR9: =+INDEX(Loads!$L:$CE,MATCH($C9,Loads!$D:$D,0),MATCH(BR$4,Loads!$L$4:$CE$4,0)) -> 0 | BS9: =+INDEX(Loads!$L:$CE,MATCH($C9,Loads!$D:$D,0),MATCH(BS$4,Loads!$L$4:$CE$4,0)) -> 0 | BT9: =+INDEX(Loads!$L:$CE,MATCH($C9,Loads!$D:$D,0),MATCH(BT$4,Loads!$L$4:$CE$4,0)) -> 0 | BU9: =+INDEX(Loads!$L:$CE,MATCH($C9,Loads!$D:$D,0),MATCH(BU$4,Loads!$L$4:$CE$4,0)) -> 0 | BV9: =+INDEX(Loads!$L:$CE,MATCH($C9,Loads!$D:$D,0),MATCH(BV$4,Loads!$L$4:$CE$4,0)) -> 0 | BW9: =+INDEX(Loads!$L:$CE,MATCH($C9,Loads!$D:$D,0),MATCH(BW$4,Loads!$L$4:$CE$4,0)) -> 0
B10: LLH | C10: CON | D10: =+INDEX(Loads!$CG:$EZ,MATCH($C10,Loads!$D:$D,0),MATCH(D$4,Loads!$CG$4:$EZ$4,0)) -> 0 | E10: =+INDEX(Loads!$CG:$EZ,MATCH($C10,Loads!$D:$D,0),MATCH(E$4,Loads!$CG$4:$EZ$4,0)) -> 0 | F10: =+INDEX(Loads!$CG:$EZ,MATCH($C10,Loads!$D:$D,0),MATCH(F$4,Loads!$CG$4:$EZ$4,0)) -> 0 | G10: =+INDEX(Loads!$CG:$EZ,MATCH($C10,Loads!$D:$D,0),MATCH(G$4,Loads!$CG$4:$EZ$4,0)) -> 0 | H10: =+INDEX(Loads!$CG:$EZ,MATCH($C10,Loads!$D:$D,0),MATCH(H$4,Loads!$CG$4:$EZ$4,0)) -> 0 | I10: =+INDEX(Loads!$CG:$EZ,MATCH($C10,Loads!$D:$D,0),MATCH(I$4,Loads!$CG$4:$EZ$4,0)) -> 0 | J10: =+INDEX(Loads!$CG:$EZ,MATCH($C10,Loads!$D:$D,0),MATCH(J$4,Loads!$CG$4:$EZ$4,0)) -> 0 | K10: =+INDEX(Loads!$CG:$EZ,MATCH($C10,Loads!$D:$D,0),MATCH(K$4,Loads!$CG$4:$EZ$4,0)) -> 0 | L10: =+INDEX(Loads!$CG:$EZ,MATCH($C10,Loads!$D:$D,0),MATCH(L$4,Loads!$CG$4:$EZ$4,0)) -> 0 | M10: =+INDEX(Loads!$CG:$EZ,MATCH($C10,Loads!$D:$D,0),MATCH(M$4,Loads!$CG$4:$EZ$4,0)) -> 0 | N10: =+INDEX(Loads!$CG:$EZ,MATCH($C10,Loads!$D:$D,0),MATCH(N$4,Loads!$CG$4:$EZ$4,0)) -> 0 | O10: =+INDEX(Loads!$CG:$EZ,MATCH($C10,Loads!$D:$D,0),MATCH(O$4,Loads!$CG$4:$EZ$4,0)) -> 0 | P10: =+INDEX(Loads!$CG:$EZ,MATCH($C10,Loads!$D:$D,0),MATCH(P$4,Loads!$CG$4:$EZ$4,0)) -> 0 | Q10: =+INDEX(Loads!$CG:$EZ,MATCH($C10,Loads!$D:$D,0),MATCH(Q$4,Loads!$CG$4:$EZ$4,0)) -> 0 | R10: =+INDEX(Loads!$CG:$EZ,MATCH($C10,Loads!$D:$D,0),MATCH(R$4,Loads!$CG$4:$EZ$4,0)) -> 0 | S10: =+INDEX(Loads!$CG:$EZ,MATCH($C10,Loads!$D:$D,0),MATCH(S$4,Loads!$CG$4:$EZ$4,0)) -> 0 | T10: =+INDEX(Loads!$CG:$EZ,MATCH($C10,Loads!$D:$D,0),MATCH(T$4,Loads!$CG$4:$EZ$4,0)) -> 0 | U10: =+INDEX(Loads!$CG:$EZ,MATCH($C10,Loads!$D:$D,0),MATCH(U$4,Loads!$CG$4:$EZ$4,0)) -> 0 | V10: =+INDEX(Loads!$CG:$EZ,MATCH($C10,Loads!$D:$D,0),MATCH(V$4,Loads!$CG$4:$EZ$4,0)) -> 0 | W10: =+INDEX(Loads!$CG:$EZ,MATCH($C10,Loads!$D:$D,0),MATCH(W$4,Loads!$CG$4:$EZ$4,0)) -> 0 | X10: =+INDEX(Loads!$CG:$EZ,MATCH($C10,Loads!$D:$D,0),MATCH(X$4,Loads!$CG$4:$EZ$4,0)) -> 0 | Y10: =+INDEX(Loads!$CG:$EZ,MATCH($C10,Loads!$D:$D,0),MATCH(Y$4,Loads!$CG$4:$EZ$4,0)) -> 0 | Z10: =+INDEX(Loads!$CG:$EZ,MATCH($C10,Loads!$D:$D,0),MATCH(Z$4,Loads!$CG$4:$EZ$4,0)) -> 0 | AA10: =+INDEX(Loads!$CG:$EZ,MATCH($C10,Loads!$D:$D,0),MATCH(AA$4,Loads!$CG$4:$EZ$4,0)) -> 0 | AB10: =+INDEX(Loads!$CG:$EZ,MATCH($C10,Loads!$D:$D,0),MATCH(AB$4,Loads!$CG$4:$EZ$4,0)) -> 0 | AC10: =+INDEX(Loads!$CG:$EZ,MATCH($C10,Loads!$D:$D,0),MATCH(AC$4,Loads!$CG$4:$EZ$4,0)) -> 0 | AD10: =+INDEX(Loads!$CG:$EZ,MATCH($C10,Loads!$D:$D,0),MATCH(AD$4,Loads!$CG$4:$EZ$4,0)) -> 0 | AE10: =+INDEX(Loads!$CG:$EZ,MATCH($C10,Loads!$D:$D,0),MATCH(AE$4,Loads!$CG$4:$EZ$4,0)) -> 0 | AF10: =+INDEX(Loads!$CG:$EZ,MATCH($C10,Loads!$D:$D,0),MATCH(AF$4,Loads!$CG$4:$EZ$4,0)) -> 0 | AG10: =+INDEX(Loads!$CG:$EZ,MATCH($C10,Loads!$D:$D,0),MATCH(AG$4,Loads!$CG$4:$EZ$4,0)) -> 0 | AH10: =+INDEX(Loads!$CG:$EZ,MATCH($C10,Loads!$D:$D,0),MATCH(AH$4,Loads!$CG$4:$EZ$4,0)) -> 0 | AI10: =+INDEX(Loads!$CG:$EZ,MATCH($C10,Loads!$D:$D,0),MATCH(AI$4,Loads!$CG$4:$EZ$4,0)) -> 0 | AJ10: =+INDEX(Loads!$CG:$EZ,MATCH($C10,Loads!$D:$D,0),MATCH(AJ$4,Loads!$CG$4:$EZ$4,0)) -> 0 | AK10: =+INDEX(Loads!$CG:$EZ,MATCH($C10,Loads!$D:$D,0),MATCH(AK$4,Loads!$CG$4:$EZ$4,0)) -> 0 | AL10: =+INDEX(Loads!$CG:$EZ,MATCH($C10,Loads!$D:$D,0),MATCH(AL$4,Loads!$CG$4:$EZ$4,0)) -> 0 | AM10: =+INDEX(Loads!$CG:$EZ,MATCH($C10,Loads!$D:$D,0),MATCH(AM$4,Loads!$CG$4:$EZ$4,0)) -> 0 | AN10: =+INDEX(Loads!$CG:$EZ,MATCH($C10,Loads!$D:$D,0),MATCH(AN$4,Loads!$CG$4:$EZ$4,0)) -> 0 | AO10: =+INDEX(Loads!$CG:$EZ,MATCH($C10,Loads!$D:$D,0),MATCH(AO$4,Loads!$CG$4:$EZ$4,0)) -> 0 | AP10: =+INDEX(Loads!$CG:$EZ,MATCH($C10,Loads!$D:$D,0),MATCH(AP$4,Loads!$CG$4:$EZ$4,0)) -> 0 | AQ10: =+INDEX(Loads!$CG:$EZ,MATCH($C10,Loads!$D:$D,0),MATCH(AQ$4,Loads!$CG$4:$EZ$4,0)) -> 0 | AR10: =+INDEX(Loads!$CG:$EZ,MATCH($C10,Loads!$D:$D,0),MATCH(AR$4,Loads!$CG$4:$EZ$4,0)) -> 0 | AS10: =+INDEX(Loads!$CG:$EZ,MATCH($C10,Loads!$D:$D,0),MATCH(AS$4,Loads!$CG$4:$EZ$4,0)) -> 0 | AT10: =+INDEX(Loads!$CG:$EZ,MATCH($C10,Loads!$D:$D,0),MATCH(AT$4,Loads!$CG$4:$EZ$4,0)) -> 0 | AU10: =+INDEX(Loads!$CG:$EZ,MATCH($C10,Loads!$D:$D,0),MATCH(AU$4,Loads!$CG$4:$EZ$4,0)) -> 0 | AV10: =+INDEX(Loads!$CG:$EZ,MATCH($C10,Loads!$D:$D,0),MATCH(AV$4,Loads!$CG$4:$EZ$4,0)) -> 0 | AW10: =+INDEX(Loads!$CG:$EZ,MATCH($C10,Loads!$D:$D,0),MATCH(AW$4,Loads!$CG$4:$EZ$4,0)) -> 0 | AX10: =+INDEX(Loads!$CG:$EZ,MATCH($C10,Loads!$D:$D,0),MATCH(AX$4,Loads!$CG$4:$EZ$4,0)) -> 0 | AY10: =+INDEX(Loads!$CG:$EZ,MATCH($C10,Loads!$D:$D,0),MATCH(AY$4,Loads!$CG$4:$EZ$4,0)) -> 0 | AZ10: =+INDEX(Loads!$CG:$EZ,MATCH($C10,Loads!$D:$D,0),MATCH(AZ$4,Loads!$CG$4:$EZ$4,0)) -> 0 | BA10: =+INDEX(Loads!$CG:$EZ,MATCH($C10,Loads!$D:$D,0),MATCH(BA$4,Loads!$CG$4:$EZ$4,0)) -> 0 | BB10: =+INDEX(Loads!$CG:$EZ,MATCH($C10,Loads!$D:$D,0),MATCH(BB$4,Loads!$CG$4:$EZ$4,0)) -> 0 | BC10: =+INDEX(Loads!$CG:$EZ,MATCH($C10,Loads!$D:$D,0),MATCH(BC$4,Loads!$CG$4:$EZ$4,0)) -> 0 | BD10: =+INDEX(Loads!$CG:$EZ,MATCH($C10,Loads!$D:$D,0),MATCH(BD$4,Loads!$CG$4:$EZ$4,0)) -> 0 | BE10: =+INDEX(Loads!$CG:$EZ,MATCH($C10,Loads!$D:$D,0),MATCH(BE$4,Loads!$CG$4:$EZ$4,0)) -> 0 | BF10: =+INDEX(Loads!$CG:$EZ,MATCH($C10,Loads!$D:$D,0),MATCH(BF$4,Loads!$CG$4:$EZ$4,0)) -> 0 | BG10: =+INDEX(Loads!$CG:$EZ,MATCH($C10,Loads!$D:$D,0),MATCH(BG$4,Loads!$CG$4:$EZ$4,0)) -> 0 | BH10: =+INDEX(Loads!$CG:$EZ,MATCH($C10,Loads!$D:$D,0),MATCH(BH$4,Loads!$CG$4:$EZ$4,0)) -> 0 | BI10: =+INDEX(Loads!$CG:$EZ,MATCH($C10,Loads!$D:$D,0),MATCH(BI$4,Loads!$CG$4:$EZ$4,0)) -> 0 | BJ10: =+INDEX(Loads!$CG:$EZ,MATCH($C10,Loads!$D:$D,0),MATCH(BJ$4,Loads!$CG$4:$EZ$4,0)) -> 0 | BK10: =+INDEX(Loads!$CG:$EZ,MATCH($C10,Loads!$D:$D,0),MATCH(BK$4,Loads!$CG$4:$EZ$4,0)) -> 0 | BL10: =+INDEX(Loads!$CG:$EZ,MATCH($C10,Loads!$D:$D,0),MATCH(BL$4,Loads!$CG$4:$EZ$4,0)) -> 0 | BM10: =+INDEX(Loads!$CG:$EZ,MATCH($C10,Loads!$D:$D,0),MATCH(BM$4,Loads!$CG$4:$EZ$4,0)) -> 0 | BN10: =+INDEX(Loads!$CG:$EZ,MATCH($C10,Loads!$D:$D,0),MATCH(BN$4,Loads!$CG$4:$EZ$4,0)) -> 0 | BO10: =+INDEX(Loads!$CG:$EZ,MATCH($C10,Loads!$D:$D,0),MATCH(BO$4,Loads!$CG$4:$EZ$4,0)) -> 0 | BP10: =+INDEX(Loads!$CG:$EZ,MATCH($C10,Loads!$D:$D,0),MATCH(BP$4,Loads!$CG$4:$EZ$4,0)) -> 0 | BQ10: =+INDEX(Loads!$CG:$EZ,MATCH($C10,Loads!$D:$D,0),MATCH(BQ$4,Loads!$CG$4:$EZ$4,0)) -> 0 | BR10: =+INDEX(Loads!$CG:$EZ,MATCH($C10,Loads!$D:$D,0),MATCH(BR$4,Loads!$CG$4:$EZ$4,0)) -> 0 | BS10: =+INDEX(Loads!$CG:$EZ,MATCH($C10,Loads!$D:$D,0),MATCH(BS$4,Loads!$CG$4:$EZ$4,0)) -> 0 | BT10: =+INDEX(Loads!$CG:$EZ,MATCH($C10,Loads!$D:$D,0),MATCH(BT$4,Loads!$CG$4:$EZ$4,0)) -> 0 | BU10: =+INDEX(Loads!$CG:$EZ,MATCH($C10,Loads!$D:$D,0),MATCH(BU$4,Loads!$CG$4:$EZ$4,0)) -> 0 | BV10: =+INDEX(Loads!$CG:$EZ,MATCH($C10,Loads!$D:$D,0),MATCH(BV$4,Loads!$CG$4:$EZ$4,0)) -> 0 | BW10: =+INDEX(Loads!$CG:$EZ,MATCH($C10,Loads!$D:$D,0),MATCH(BW$4,Loads!$CG$4:$EZ$4,0)) -> 0
B11: Public Load
B12: HLH | C12: PRE | D12: =+D6+D9 -> 2951149.277 | E12: =+E6+E9 -> 3375074.475 | F12: 4039711.25 | G12: 3973847.338 | H12: 3580631.978 | I12: 3652101.892 | J12: 2872617.278 | K12: 2914904.848 | L12: 2931609.649 | M12: 3090057.079 | N12: 3310064.303 | O12: 2827225.112 | P12: 2951149.277 | Q12: 3375074.475 | R12: 4039711.25 | S12: 3973847.338 | T12: 3580631.978 | U12: 3652101.892 | V12: 2872617.278 | W12: 2914904.848 | X12: 2931609.649 | Y12: 3090057.079 | Z12: 3310064.303 | AA12: 2827225.112 | AB12: 2951149.277 | AC12: 3375074.475 | AD12: 4039711.25 | AE12: 3973847.338 | AF12: 3580631.978 | AG12: 3652101.892 | AH12: 2872617.278 | AI12: 2914904.848 | AJ12: 2931609.649 | AK12: 3090057.079 | AL12: 3310064.303 | AM12: 2827225.112 | AN12: 2951149.277 | AO12: 3375074.475 | AP12: 4039711.25 | AQ12: 3973847.338 | AR12: 3580631.978 | AS12: 3652101.892 | AT12: 2872617.278 | AU12: 2914904.848 | AV12: 2931609.649 | AW12: 3090057.079 | AX12: 3310064.303 | AY12: 2827225.112 | AZ12: 2951149.277 | BA12: 3375074.475 | BB12: 4039711.25 | BC12: 3973847.338 | BD12: 3580631.978 | BE12: 3652101.892 | BF12: 2872617.278 | BG12: 2914904.848 | BH12: 2931609.649 | BI12: 3090057.079 | BJ12: 3310064.303 | BK12: 2827225.112 | BL12: 2951149.277 | BM12: 3375074.475 | BN12: 4039711.25 | BO12: 3973847.338 | BP12: 3580631.978 | BQ12: =+BQ6+BQ9 -> 3652101.892 | BR12: 2872617.278 | BS12: 2914904.848 | BT12: 2931609.649 | BU12: 3090057.079 | BV12: 3310064.303 | BW12: 2827225.112
B13: LLH | C13: PRE | D13: =+D7+D10 -> 1954494.772 | E13: 2274856.331 | F13: 2659230.424 | G13: 2823742.247 | H13: 2292025.188 | I13: 2230762.383 | J13: 1979749.172 | K13: 1880388.743 | L13: 1730014.247 | M13: 2142235.557 | N13: 1883439.81 | O13: 1832052.173 | P13: 1954494.772 | Q13: 2274856.331 | R13: 2659230.424 | S13: 2823742.247 | T13: 2292025.188 | U13: 2230762.383 | V13: 1979749.172 | W13: 1880388.743 | X13: 1730014.247 | Y13: 2142235.557 | Z13: 1883439.81 | AA13: 1832052.173 | AB13: 1954494.772 | AC13: 2274856.331 | AD13: 2659230.424 | AE13: 2823742.247 | AF13: 2292025.188 | AG13: 2230762.383 | AH13: 1979749.172 | AI13: 1880388.743 | AJ13: 1730014.247 | AK13: 2142235.557 | AL13: 1883439.81 | AM13: 1832052.173 | AN13: 1954494.772 | AO13: 2274856.331 | AP13: 2659230.424 | AQ13: 2823742.247 | AR13: 2292025.188 | AS13: 2230762.383 | AT13: 1979749.172 | AU13: 1880388.743 | AV13: 1730014.247 | AW13: 2142235.557 | AX13: 1883439.81 | AY13: 1832052.173 | AZ13: 1954494.772 | BA13: 2274856.331 | BB13: 2659230.424 | BC13: 2823742.247 | BD13: 2292025.188 | BE13: 2230762.383 | BF13: 1979749.172 | BG13: 1880388.743 | BH13: 1730014.247 | BI13: 2142235.557 | BJ13: 1883439.81 | BK13: 1832052.173 | BL13: 1954494.772 | BM13: 2274856.331 | BN13: 2659230.424 | BO13: 2823742.247 | BP13: =+BP7+BP10 -> 2292025.188 | BQ13: 2230762.383 | BR13: 1979749.172 | BS13: 1880388.743 | BT13: 1730014.247 | BU13: 2142235.557 | BV13: 1883439.81 | BW13: 1832052.173
B14: Tier 2 Load
B15: HLH | C15: PRE_T2 | D15: =+INDEX(Loads!$L:$CE,MATCH($C15,Loads!$D:$D,0),MATCH(D$4,Loads!$L$4:$CE$4,0)) -> 255515.7292 | E15: =+INDEX(Loads!$L:$CE,MATCH($C15,Loads!$D:$D,0),MATCH(E$4,Loads!$L$4:$CE$4,0)) -> 246040.3799 | F15: =+INDEX(Loads!$L:$CE,MATCH($C15,Loads!$D:$D,0),MATCH(F$4,Loads!$L$4:$CE$4,0)) -> 255465.7202 | G15: =+INDEX(Loads!$L:$CE,MATCH($C15,Loads!$D:$D,0),MATCH(G$4,Loads!$L$4:$CE$4,0)) -> 245924.3514 | H15: =+INDEX(Loads!$L:$CE,MATCH($C15,Loads!$D:$D,0),MATCH(H$4,Loads!$L$4:$CE$4,0)) -> 246379.4333 | I15: =+INDEX(Loads!$L:$CE,MATCH($C15,Loads!$D:$D,0),MATCH(I$4,Loads!$L$4:$CE$4,0)) -> 266007.2531 | J15: =+INDEX(Loads!$L:$CE,MATCH($C15,Loads!$D:$D,0),MATCH(J$4,Loads!$L$4:$CE$4,0)) -> 245969.3595 | K15: =+INDEX(Loads!$L:$CE,MATCH($C15,Loads!$D:$D,0),MATCH(K$4,Loads!$L$4:$CE$4,0)) -> 256268.8568 | L15: =+INDEX(Loads!$L:$CE,MATCH($C15,Loads!$D:$D,0),MATCH(L$4,Loads!$L$4:$CE$4,0)) -> 256603.9171 | M15: =+INDEX(Loads!$L:$CE,MATCH($C15,Loads!$D:$D,0),MATCH(M$4,Loads!$L$4:$CE$4,0)) -> 246739.4982 | N15: =+INDEX(Loads!$L:$CE,MATCH($C15,Loads!$D:$D,0),MATCH(N$4,Loads!$L$4:$CE$4,0)) -> 266479.3381 | O15: =+INDEX(Loads!$L:$CE,MATCH($C15,Loads!$D:$D,0),MATCH(O$4,Loads!$L$4:$CE$4,0)) -> 245443.2647 | P15: =+INDEX(Loads!$L:$CE,MATCH($C15,Loads!$D:$D,0),MATCH(P$4,Loads!$L$4:$CE$4,0)) -> 255515.7292 | Q15: =+INDEX(Loads!$L:$CE,MATCH($C15,Loads!$D:$D,0),MATCH(Q$4,Loads!$L$4:$CE$4,0)) -> 246040.3799 | R15: =+INDEX(Loads!$L:$CE,MATCH($C15,Loads!$D:$D,0),MATCH(R$4,Loads!$L$4:$CE$4,0)) -> 255465.7202 | S15: =+INDEX(Loads!$L:$CE,MATCH($C15,Loads!$D:$D,0),MATCH(S$4,Loads!$L$4:$CE$4,0)) -> 245924.3514 | T15: =+INDEX(Loads!$L:$CE,MATCH($C15,Loads!$D:$D,0),MATCH(T$4,Loads!$L$4:$CE$4,0)) -> 246379.4333 | U15: =+INDEX(Loads!$L:$CE,MATCH($C15,Loads!$D:$D,0),MATCH(U$4,Loads!$L$4:$CE$4,0)) -> 266007.2531 | V15: =+INDEX(Loads!$L:$CE,MATCH($C15,Loads!$D:$D,0),MATCH(V$4,Loads!$L$4:$CE$4,0)) -> 245969.3595 | W15: =+INDEX(Loads!$L:$CE,MATCH($C15,Loads!$D:$D,0),MATCH(W$4,Loads!$L$4:$CE$4,0)) -> 256268.8568 | X15: =+INDEX(Loads!$L:$CE,MATCH($C15,Loads!$D:$D,0),MATCH(X$4,Loads!$L$4:$CE$4,0)) -> 256603.9171 | Y15: =+INDEX(Loads!$L:$CE,MATCH($C15,Loads!$D:$D,0),MATCH(Y$4,Loads!$L$4:$CE$4,0)) -> 246739.4982 | Z15: =+INDEX(Loads!$L:$CE,MATCH($C15,Loads!$D:$D,0),MATCH(Z$4,Loads!$L$4:$CE$4,0)) -> 266479.3381 | AA15: =+INDEX(Loads!$L:$CE,MATCH($C15,Loads!$D:$D,0),MATCH(AA$4,Loads!$L$4:$CE$4,0)) -> 245443.2647 | AB15: =+INDEX(Loads!$L:$CE,MATCH($C15,Loads!$D:$D,0),MATCH(AB$4,Loads!$L$4:$CE$4,0)) -> 255515.7292 | AC15: =+INDEX(Loads!$L:$CE,MATCH($C15,Loads!$D:$D,0),MATCH(AC$4,Loads!$L$4:$CE$4,0)) -> 246040.3799 | AD15: =+INDEX(Loads!$L:$CE,MATCH($C15,Loads!$D:$D,0),MATCH(AD$4,Loads!$L$4:$CE$4,0)) -> 255465.7202 | AE15: =+INDEX(Loads!$L:$CE,MATCH($C15,Loads!$D:$D,0),MATCH(AE$4,Loads!$L$4:$CE$4,0)) -> 245924.3514 | AF15: =+INDEX(Loads!$L:$CE,MATCH($C15,Loads!$D:$D,0),MATCH(AF$4,Loads!$L$4:$CE$4,0)) -> 246379.4333 | AG15: =+INDEX(Loads!$L:$CE,MATCH($C15,Loads!$D:$D,0),MATCH(AG$4,Loads!$L$4:$CE$4,0)) -> 266007.2531 | AH15: =+INDEX(Loads!$L:$CE,MATCH($C15,Loads!$D:$D,0),MATCH(AH$4,Loads!$L$4:$CE$4,0)) -> 245969.3595 | AI15: =+INDEX(Loads!$L:$CE,MATCH($C15,Loads!$D:$D,0),MATCH(AI$4,Loads!$L$4:$CE$4,0)) -> 256268.8568 | AJ15: =+INDEX(Loads!$L:$CE,MATCH($C15,Loads!$D:$D,0),MATCH(AJ$4,Loads!$L$4:$CE$4,0)) -> 256603.9171 | AK15: =+INDEX(Loads!$L:$CE,MATCH($C15,Loads!$D:$D,0),MATCH(AK$4,Loads!$L$4:$CE$4,0)) -> 246739.4982 | AL15: =+INDEX(Loads!$L:$CE,MATCH($C15,Loads!$D:$D,0),MATCH(AL$4,Loads!$L$4:$CE$4,0)) -> 266479.3381 | AM15: =+INDEX(Loads!$L:$CE,MATCH($C15,Loads!$D:$D,0),MATCH(AM$4,Loads!$L$4:$CE$4,0)) -> 245443.2647 | AN15: =+INDEX(Loads!$L:$CE,MATCH($C15,Loads!$D:$D,0),MATCH(AN$4,Loads!$L$4:$CE$4,0)) -> 255515.7292 | AO15: =+INDEX(Loads!$L:$CE,MATCH($C15,Loads!$D:$D,0),MATCH(AO$4,Loads!$L$4:$CE$4,0)) -> 246040.3799 | AP15: =+INDEX(Loads!$L:$CE,MATCH($C15,Loads!$D:$D,0),MATCH(AP$4,Loads!$L$4:$CE$4,0)) -> 255465.7202 | AQ15: =+INDEX(Loads!$L:$CE,MATCH($C15,Loads!$D:$D,0),MATCH(AQ$4,Loads!$L$4:$CE$4,0)) -> 245924.3514 | AR15: =+INDEX(Loads!$L:$CE,MATCH($C15,Loads!$D:$D,0),MATCH(AR$4,Loads!$L$4:$CE$4,0)) -> 246379.4333 | AS15: =+INDEX(Loads!$L:$CE,MATCH($C15,Loads!$D:$D,0),MATCH(AS$4,Loads!$L$4:$CE$4,0)) -> 266007.2531 | AT15: =+INDEX(Loads!$L:$CE,MATCH($C15,Loads!$D:$D,0),MATCH(AT$4,Loads!$L$4:$CE$4,0)) -> 245969.3595 | AU15: =+INDEX(Loads!$L:$CE,MATCH($C15,Loads!$D:$D,0),MATCH(AU$4,Loads!$L$4:$CE$4,0)) -> 256268.8568 | AV15: =+INDEX(Loads!$L:$CE,MATCH($C15,Loads!$D:$D,0),MATCH(AV$4,Loads!$L$4:$CE$4,0)) -> 256603.9171 | AW15: =+INDEX(Loads!$L:$CE,MATCH($C15,Loads!$D:$D,0),MATCH(AW$4,Loads!$L$4:$CE$4,0)) -> 246739.4982 | AX15: =+INDEX(Loads!$L:$CE,MATCH($C15,Loads!$D:$D,0),MATCH(AX$4,Loads!$L$4:$CE$4,0)) -> 266479.3381 | AY15: =+INDEX(Loads!$L:$CE,MATCH($C15,Loads!$D:$D,0),MATCH(AY$4,Loads!$L$4:$CE$4,0)) -> 245443.2647 | AZ15: =+INDEX(Loads!$L:$CE,MATCH($C15,Loads!$D:$D,0),MATCH(AZ$4,Loads!$L$4:$CE$4,0)) -> 255515.7292 | BA15: =+INDEX(Loads!$L:$CE,MATCH($C15,Loads!$D:$D,0),MATCH(BA$4,Loads!$L$4:$CE$4,0)) -> 246040.3799 | BB15: =+INDEX(Loads!$L:$CE,MATCH($C15,Loads!$D:$D,0),MATCH(BB$4,Loads!$L$4:$CE$4,0)) -> 255465.7202 | BC15: =+INDEX(Loads!$L:$CE,MATCH($C15,Loads!$D:$D,0),MATCH(BC$4,Loads!$L$4:$CE$4,0)) -> 245924.3514 | BD15: =+INDEX(Loads!$L:$CE,MATCH($C15,Loads!$D:$D,0),MATCH(BD$4,Loads!$L$4:$CE$4,0)) -> 246379.4333 | BE15: =+INDEX(Loads!$L:$CE,MATCH($C15,Loads!$D:$D,0),MATCH(BE$4,Loads!$L$4:$CE$4,0)) -> 266007.2531 | BF15: =+INDEX(Loads!$L:$CE,MATCH($C15,Loads!$D:$D,0),MATCH(BF$4,Loads!$L$4:$CE$4,0)) -> 245969.3595 | BG15: =+INDEX(Loads!$L:$CE,MATCH($C15,Loads!$D:$D,0),MATCH(BG$4,Loads!$L$4:$CE$4,0)) -> 256268.8568 | BH15: =+INDEX(Loads!$L:$CE,MATCH($C15,Loads!$D:$D,0),MATCH(BH$4,Loads!$L$4:$CE$4,0)) -> 256603.9171 | BI15: =+INDEX(Loads!$L:$CE,MATCH($C15,Loads!$D:$D,0),MATCH(BI$4,Loads!$L$4:$CE$4,0)) -> 246739.4982 | BJ15: =+INDEX(Loads!$L:$CE,MATCH($C15,Loads!$D:$D,0),MATCH(BJ$4,Loads!$L$4:$CE$4,0)) -> 266479.3381 | BK15: =+INDEX(Loads!$L:$CE,MATCH($C15,Loads!$D:$D,0),MATCH(BK$4,Loads!$L$4:$CE$4,0)) -> 245443.2647 | BL15: =+INDEX(Loads!$L:$CE,MATCH($C15,Loads!$D:$D,0),MATCH(BL$4,Loads!$L$4:$CE$4,0)) -> 255515.7292 | BM15: =+INDEX(Loads!$L:$CE,MATCH($C15,Loads!$D:$D,0),MATCH(BM$4,Loads!$L$4:$CE$4,0)) -> 246040.3799 | BN15: =+INDEX(Loads!$L:$CE,MATCH($C15,Loads!$D:$D,0),MATCH(BN$4,Loads!$L$4:$CE$4,0)) -> 255465.7202 | BO15: =+INDEX(Loads!$L:$CE,MATCH($C15,Loads!$D:$D,0),MATCH(BO$4,Loads!$L$4:$CE$4,0)) -> 245924.3514 | BP15: =+INDEX(Loads!$L:$CE,MATCH($C15,Loads!$D:$D,0),MATCH(BP$4,Loads!$L$4:$CE$4,0)) -> 246379.4333 | BQ15: =+INDEX(Loads!$L:$CE,MATCH($C15,Loads!$D:$D,0),MATCH(BQ$4,Loads!$L$4:$CE$4,0)) -> 266007.2531 | BR15: =+INDEX(Loads!$L:$CE,MATCH($C15,Loads!$D:$D,0),MATCH(BR$4,Loads!$L$4:$CE$4,0)) -> 245969.3595 | BS15: =+INDEX(Loads!$L:$CE,MATCH($C15,Loads!$D:$D,0),MATCH(BS$4,Loads!$L$4:$CE$4,0)) -> 256268.8568 | BT15: =+INDEX(Loads!$L:$CE,MATCH($C15,Loads!$D:$D,0),MATCH(BT$4,Loads!$L$4:$CE$4,0)) -> 256603.9171 | BU15: =+INDEX(Loads!$L:$CE,MATCH($C15,Loads!$D:$D,0),MATCH(BU$4,Loads!$L$4:$CE$4,0)) -> 246739.4982 | BV15: =+INDEX(Loads!$L:$CE,MATCH($C15,Loads!$D:$D,0),MATCH(BV$4,Loads!$L$4:$CE$4,0)) -> 266479.3381 | BW15: =+INDEX(Loads!$L:$CE,MATCH($C15,Loads!$D:$D,0),MATCH(BW$4,Loads!$L$4:$CE$4,0)) -> 245443.2647
B16: LLH | C16: PRE_T2 | D16: =+INDEX(Loads!$CG:$EZ,MATCH($C16,Loads!$D:$D,0),MATCH(D$4,Loads!$CG$4:$EZ$4,0)) -> 201517.9692 | E16: =+INDEX(Loads!$CG:$EZ,MATCH($C16,Loads!$D:$D,0),MATCH(E$4,Loads!$CG$4:$EZ$4,0)) -> 197400.884 | F16: =+INDEX(Loads!$CG:$EZ,MATCH($C16,Loads!$D:$D,0),MATCH(F$4,Loads!$CG$4:$EZ$4,0)) -> 201409.9497 | G16: =+INDEX(Loads!$CG:$EZ,MATCH($C16,Loads!$D:$D,0),MATCH(G$4,Loads!$CG$4:$EZ$4,0)) -> 211542.4107 | H16: =+INDEX(Loads!$CG:$EZ,MATCH($C16,Loads!$D:$D,0),MATCH(H$4,Loads!$CG$4:$EZ$4,0)) -> 182294.2159 | I16: =+INDEX(Loads!$CG:$EZ,MATCH($C16,Loads!$D:$D,0),MATCH(I$4,Loads!$CG$4:$EZ$4,0)) -> 191461.0316 | J16: =+INDEX(Loads!$CG:$EZ,MATCH($C16,Loads!$D:$D,0),MATCH(J$4,Loads!$CG$4:$EZ$4,0)) -> 196827.2968 | K16: =+INDEX(Loads!$CG:$EZ,MATCH($C16,Loads!$D:$D,0),MATCH(K$4,Loads!$CG$4:$EZ$4,0)) -> 202027.0545 | L16: =+INDEX(Loads!$CG:$EZ,MATCH($C16,Loads!$D:$D,0),MATCH(L$4,Loads!$CG$4:$EZ$4,0)) -> 187515.9776 | M16: =+INDEX(Loads!$CG:$EZ,MATCH($C16,Loads!$D:$D,0),MATCH(M$4,Loads!$CG$4:$EZ$4,0)) -> 212196.5285 | N16: =+INDEX(Loads!$CG:$EZ,MATCH($C16,Loads!$D:$D,0),MATCH(N$4,Loads!$CG$4:$EZ$4,0)) -> 192456.6886 | O16: =+INDEX(Loads!$CG:$EZ,MATCH($C16,Loads!$D:$D,0),MATCH(O$4,Loads!$CG$4:$EZ$4,0)) -> 196441.2273 | P16: =+INDEX(Loads!$CG:$EZ,MATCH($C16,Loads!$D:$D,0),MATCH(P$4,Loads!$CG$4:$EZ$4,0)) -> 201517.9692 | Q16: =+INDEX(Loads!$CG:$EZ,MATCH($C16,Loads!$D:$D,0),MATCH(Q$4,Loads!$CG$4:$EZ$4,0)) -> 197400.884 | R16: =+INDEX(Loads!$CG:$EZ,MATCH($C16,Loads!$D:$D,0),MATCH(R$4,Loads!$CG$4:$EZ$4,0)) -> 201409.9497 | S16: =+INDEX(Loads!$CG:$EZ,MATCH($C16,Loads!$D:$D,0),MATCH(S$4,Loads!$CG$4:$EZ$4,0)) -> 211542.4107 | T16: =+INDEX(Loads!$CG:$EZ,MATCH($C16,Loads!$D:$D,0),MATCH(T$4,Loads!$CG$4:$EZ$4,0)) -> 182294.2159 | U16: =+INDEX(Loads!$CG:$EZ,MATCH($C16,Loads!$D:$D,0),MATCH(U$4,Loads!$CG$4:$EZ$4,0)) -> 191461.0316 | V16: =+INDEX(Loads!$CG:$EZ,MATCH($C16,Loads!$D:$D,0),MATCH(V$4,Loads!$CG$4:$EZ$4,0)) -> 196827.2968 | W16: =+INDEX(Loads!$CG:$EZ,MATCH($C16,Loads!$D:$D,0),MATCH(W$4,Loads!$CG$4:$EZ$4,0)) -> 202027.0545 | X16: =+INDEX(Loads!$CG:$EZ,MATCH($C16,Loads!$D:$D,0),MATCH(X$4,Loads!$CG$4:$EZ$4,0)) -> 187515.9776 | Y16: =+INDEX(Loads!$CG:$EZ,MATCH($C16,Loads!$D:$D,0),MATCH(Y$4,Loads!$CG$4:$EZ$4,0)) -> 212196.5285 | Z16: =+INDEX(Loads!$CG:$EZ,MATCH($C16,Loads!$D:$D,0),MATCH(Z$4,Loads!$CG$4:$EZ$4,0)) -> 192456.6886 | AA16: =+INDEX(Loads!$CG:$EZ,MATCH($C16,Loads!$D:$D,0),MATCH(AA$4,Loads!$CG$4:$EZ$4,0)) -> 196441.2273 | AB16: =+INDEX(Loads!$CG:$EZ,MATCH($C16,Loads!$D:$D,0),MATCH(AB$4,Loads!$CG$4:$EZ$4,0)) -> 201517.9692 | AC16: =+INDEX(Loads!$CG:$EZ,MATCH($C16,Loads!$D:$D,0),MATCH(AC$4,Loads!$CG$4:$EZ$4,0)) -> 197400.884 | AD16: =+INDEX(Loads!$CG:$EZ,MATCH($C16,Loads!$D:$D,0),MATCH(AD$4,Loads!$CG$4:$EZ$4,0)) -> 201409.9497 | AE16: =+INDEX(Loads!$CG:$EZ,MATCH($C16,Loads!$D:$D,0),MATCH(AE$4,Loads!$CG$4:$EZ$4,0)) -> 211542.4107 | AF16: =+INDEX(Loads!$CG:$EZ,MATCH($C16,Loads!$D:$D,0),MATCH(AF$4,Loads!$CG$4:$EZ$4,0)) -> 182294.2159 | AG16: =+INDEX(Loads!$CG:$EZ,MATCH($C16,Loads!$D:$D,0),MATCH(AG$4,Loads!$CG$4:$EZ$4,0)) -> 191461.0316 | AH16: =+INDEX(Loads!$CG:$EZ,MATCH($C16,Loads!$D:$D,0),MATCH(AH$4,Loads!$CG$4:$EZ$4,0)) -> 196827.2968 | AI16: =+INDEX(Loads!$CG:$EZ,MATCH($C16,Loads!$D:$D,0),MATCH(AI$4,Loads!$CG$4:$EZ$4,0)) -> 202027.0545 | AJ16: =+INDEX(Loads!$CG:$EZ,MATCH($C16,Loads!$D:$D,0),MATCH(AJ$4,Loads!$CG$4:$EZ$4,0)) -> 187515.9776 | AK16: =+INDEX(Loads!$CG:$EZ,MATCH($C16,Loads!$D:$D,0),MATCH(AK$4,Loads!$CG$4:$EZ$4,0)) -> 212196.5285 | AL16: =+INDEX(Loads!$CG:$EZ,MATCH($C16,Loads!$D:$D,0),MATCH(AL$4,Loads!$CG$4:$EZ$4,0)) -> 192456.6886 | AM16: =+INDEX(Loads!$CG:$EZ,MATCH($C16,Loads!$D:$D,0),MATCH(AM$4,Loads!$CG$4:$EZ$4,0)) -> 196441.2273 | AN16: =+INDEX(Loads!$CG:$EZ,MATCH($C16,Loads!$D:$D,0),MATCH(AN$4,Loads!$CG$4:$EZ$4,0)) -> 201517.9692 | AO16: =+INDEX(Loads!$CG:$EZ,MATCH($C16,Loads!$D:$D,0),MATCH(AO$4,Loads!$CG$4:$EZ$4,0)) -> 197400.884 | AP16: =+INDEX(Loads!$CG:$EZ,MATCH($C16,Loads!$D:$D,0),MATCH(AP$4,Loads!$CG$4:$EZ$4,0)) -> 201409.9497 | AQ16: =+INDEX(Loads!$CG:$EZ,MATCH($C16,Loads!$D:$D,0),MATCH(AQ$4,Loads!$CG$4:$EZ$4,0)) -> 211542.4107 | AR16: =+INDEX(Loads!$CG:$EZ,MATCH($C16,Loads!$D:$D,0),MATCH(AR$4,Loads!$CG$4:$EZ$4,0)) -> 182294.2159 | AS16: =+INDEX(Loads!$CG:$EZ,MATCH($C16,Loads!$D:$D,0),MATCH(AS$4,Loads!$CG$4:$EZ$4,0)) -> 191461.0316 | AT16: =+INDEX(Loads!$CG:$EZ,MATCH($C16,Loads!$D:$D,0),MATCH(AT$4,Loads!$CG$4:$EZ$4,0)) -> 196827.2968 | AU16: =+INDEX(Loads!$CG:$EZ,MATCH($C16,Loads!$D:$D,0),MATCH(AU$4,Loads!$CG$4:$EZ$4,0)) -> 202027.0545 | AV16: =+INDEX(Loads!$CG:$EZ,MATCH($C16,Loads!$D:$D,0),MATCH(AV$4,Loads!$CG$4:$EZ$4,0)) -> 187515.9776 | AW16: =+INDEX(Loads!$CG:$EZ,MATCH($C16,Loads!$D:$D,0),MATCH(AW$4,Loads!$CG$4:$EZ$4,0)) -> 212196.5285 | AX16: =+INDEX(Loads!$CG:$EZ,MATCH($C16,Loads!$D:$D,0),MATCH(AX$4,Loads!$CG$4:$EZ$4,0)) -> 192456.6886 | AY16: =+INDEX(Loads!$CG:$EZ,MATCH($C16,Loads!$D:$D,0),MATCH(AY$4,Loads!$CG$4:$EZ$4,0)) -> 196441.2273 | AZ16: =+INDEX(Loads!$CG:$EZ,MATCH($C16,Loads!$D:$D,0),MATCH(AZ$4,Loads!$CG$4:$EZ$4,0)) -> 201517.9692 | BA16: =+INDEX(Loads!$CG:$EZ,MATCH($C16,Loads!$D:$D,0),MATCH(BA$4,Loads!$CG$4:$EZ$4,0)) -> 197400.884 | BB16: =+INDEX(Loads!$CG:$EZ,MATCH($C16,Loads!$D:$D,0),MATCH(BB$4,Loads!$CG$4:$EZ$4,0)) -> 201409.9497 | BC16: =+INDEX(Loads!$CG:$EZ,MATCH($C16,Loads!$D:$D,0),MATCH(BC$4,Loads!$CG$4:$EZ$4,0)) -> 211542.4107 | BD16: =+INDEX(Loads!$CG:$EZ,MATCH($C16,Loads!$D:$D,0),MATCH(BD$4,Loads!$CG$4:$EZ$4,0)) -> 182294.2159 | BE16: =+INDEX(Loads!$CG:$EZ,MATCH($C16,Loads!$D:$D,0),MATCH(BE$4,Loads!$CG$4:$EZ$4,0)) -> 191461.0316 | BF16: =+INDEX(Loads!$CG:$EZ,MATCH($C16,Loads!$D:$D,0),MATCH(BF$4,Loads!$CG$4:$EZ$4,0)) -> 196827.2968 | BG16: =+INDEX(Loads!$CG:$EZ,MATCH($C16,Loads!$D:$D,0),MATCH(BG$4,Loads!$CG$4:$EZ$4,0)) -> 202027.0545 | BH16: =+INDEX(Loads!$CG:$EZ,MATCH($C16,Loads!$D:$D,0),MATCH(BH$4,Loads!$CG$4:$EZ$4,0)) -> 187515.9776 | BI16: =+INDEX(Loads!$CG:$EZ,MATCH($C16,Loads!$D:$D,0),MATCH(BI$4,Loads!$CG$4:$EZ$4,0)) -> 212196.5285 | BJ16: =+INDEX(Loads!$CG:$EZ,MATCH($C16,Loads!$D:$D,0),MATCH(BJ$4,Loads!$CG$4:$EZ$4,0)) -> 192456.6886 | BK16: =+INDEX(Loads!$CG:$EZ,MATCH($C16,Loads!$D:$D,0),MATCH(BK$4,Loads!$CG$4:$EZ$4,0)) -> 196441.2273 | BL16: =+INDEX(Loads!$CG:$EZ,MATCH($C16,Loads!$D:$D,0),MATCH(BL$4,Loads!$CG$4:$EZ$4,0)) -> 201517.9692 | BM16: =+INDEX(Loads!$CG:$EZ,MATCH($C16,Loads!$D:$D,0),MATCH(BM$4,Loads!$CG$4:$EZ$4,0)) -> 197400.884 | BN16: =+INDEX(Loads!$CG:$EZ,MATCH($C16,Loads!$D:$D,0),MATCH(BN$4,Loads!$CG$4:$EZ$4,0)) -> 201409.9497 | BO16: =+INDEX(Loads!$CG:$EZ,MATCH($C16,Loads!$D:$D,0),MATCH(BO$4,Loads!$CG$4:$EZ$4,0)) -> 211542.4107 | BP16: =+INDEX(Loads!$CG:$EZ,MATCH($C16,Loads!$D:$D,0),MATCH(BP$4,Loads!$CG$4:$EZ$4,0)) -> 182294.2159 | BQ16: =+INDEX(Loads!$CG:$EZ,MATCH($C16,Loads!$D:$D,0),MATCH(BQ$4,Loads!$CG$4:$EZ$4,0)) -> 191461.0316 | BR16: =+INDEX(Loads!$CG:$EZ,MATCH($C16,Loads!$D:$D,0),MATCH(BR$4,Loads!$CG$4:$EZ$4,0)) -> 196827.2968 | BS16: =+INDEX(Loads!$CG:$EZ,MATCH($C16,Loads!$D:$D,0),MATCH(BS$4,Loads!$CG$4:$EZ$4,0)) -> 202027.0545 | BT16: =+INDEX(Loads!$CG:$EZ,MATCH($C16,Loads!$D:$D,0),MATCH(BT$4,Loads!$CG$4:$EZ$4,0)) -> 187515.9776 | BU16: =+INDEX(Loads!$CG:$EZ,MATCH($C16,Loads!$D:$D,0),MATCH(BU$4,Loads!$CG$4:$EZ$4,0)) -> 212196.5285 | BV16: =+INDEX(Loads!$CG:$EZ,MATCH($C16,Loads!$D:$D,0),MATCH(BV$4,Loads!$CG$4:$EZ$4,0)) -> 192456.6886 | BW16: =+INDEX(Loads!$CG:$EZ,MATCH($C16,Loads!$D:$D,0),MATCH(BW$4,Loads!$CG$4:$EZ$4,0)) -> 196441.2273
B17: Demand
D18: =+INDEX(TRM_Billing!$Q$6:$Q$149,MATCH(D$4,TRM_Billing!$K$6:$K$149,0),1)/1000 -> 753.8674329 | E18: =+INDEX(TRM_Billing!$Q$6:$Q$149,MATCH(E$4,TRM_Billing!$K$6:$K$149,0),1)/1000 -> 706.9162682 | F18: =+INDEX(TRM_Billing!$Q$6:$Q$149,MATCH(F$4,TRM_Billing!$K$6:$K$149,0),1)/1000 -> 1322.782238 | G18: =+INDEX(TRM_Billing!$Q$6:$Q$149,MATCH(G$4,TRM_Billing!$K$6:$K$149,0),1)/1000 -> 1370.293413 | H18: =+INDEX(TRM_Billing!$Q$6:$Q$149,MATCH(H$4,TRM_Billing!$K$6:$K$149,0),1)/1000 -> 1094.310437 | I18: =+INDEX(TRM_Billing!$Q$6:$Q$149,MATCH(I$4,TRM_Billing!$K$6:$K$149,0),1)/1000 -> 1242.029637 | J18: =+INDEX(TRM_Billing!$Q$6:$Q$149,MATCH(J$4,TRM_Billing!$K$6:$K$149,0),1)/1000 -> 1123.925094 | K18: =+INDEX(TRM_Billing!$Q$6:$Q$149,MATCH(K$4,TRM_Billing!$K$6:$K$149,0),1)/1000 -> 652.754555 | L18: =+INDEX(TRM_Billing!$Q$6:$Q$149,MATCH(L$4,TRM_Billing!$K$6:$K$149,0),1)/1000 -> 1157.403959 | M18: =+INDEX(TRM_Billing!$Q$6:$Q$149,MATCH(M$4,TRM_Billing!$K$6:$K$149,0),1)/1000 -> 1221.946793 | N18: =+INDEX(TRM_Billing!$Q$6:$Q$149,MATCH(N$4,TRM_Billing!$K$6:$K$149,0),1)/1000 -> 1447.093719 | O18: =+INDEX(TRM_Billing!$Q$6:$Q$149,MATCH(O$4,TRM_Billing!$K$6:$K$149,0),1)/1000 -> 927.5094325 | P18: =+INDEX(TRM_Billing!$Q$6:$Q$149,MATCH(P$4,TRM_Billing!$K$6:$K$149,0),1)/1000 -> 785.3655023 | Q18: =+INDEX(TRM_Billing!$Q$6:$Q$149,MATCH(Q$4,TRM_Billing!$K$6:$K$149,0),1)/1000 -> 777.2650599 | R18: =+INDEX(TRM_Billing!$Q$6:$Q$149,MATCH(R$4,TRM_Billing!$K$6:$K$149,0),1)/1000 -> 1361.648834 | S18: =+INDEX(TRM_Billing!$Q$6:$Q$149,MATCH(S$4,TRM_Billing!$K$6:$K$149,0),1)/1000 -> 1407.518107 | T18: =+INDEX(TRM_Billing!$Q$6:$Q$149,MATCH(T$4,TRM_Billing!$K$6:$K$149,0),1)/1000 -> 1152.968956 | U18: =+INDEX(TRM_Billing!$Q$6:$Q$149,MATCH(U$4,TRM_Billing!$K$6:$K$149,0),1)/1000 -> 1337.722322 | V18: =+INDEX(TRM_Billing!$Q$6:$Q$149,MATCH(V$4,TRM_Billing!$K$6:$K$149,0),1)/1000 -> 1189.464341 | W18: =+INDEX(TRM_Billing!$Q$6:$Q$149,MATCH(W$4,TRM_Billing!$K$6:$K$149,0),1)/1000 -> 707.3903525 | X18: =+INDEX(TRM_Billing!$Q$6:$Q$149,MATCH(X$4,TRM_Billing!$K$6:$K$149,0),1)/1000 -> 1188.706387 | Y18: =+INDEX(TRM_Billing!$Q$6:$Q$149,MATCH(Y$4,TRM_Billing!$K$6:$K$149,0),1)/1000 -> 1246.35413 | Z18: =+INDEX(TRM_Billing!$Q$6:$Q$149,MATCH(Z$4,TRM_Billing!$K$6:$K$149,0),1)/1000 -> 1525.150534 | AA18: =+INDEX(TRM_Billing!$Q$6:$Q$149,MATCH(AA$4,TRM_Billing!$K$6:$K$149,0),1)/1000 -> 976.173745 | AB18: =+INDEX(TRM_Billing!$Q$6:$Q$149,MATCH(AB$4,TRM_Billing!$K$6:$K$149,0),1)/1000 -> 861.7903077 | AC18: =+INDEX(TRM_Billing!$Q$6:$Q$149,MATCH(AC$4,TRM_Billing!$K$6:$K$149,0),1)/1000 -> 829.6234475 | AD18: =+INDEX(TRM_Billing!$Q$6:$Q$149,MATCH(AD$4,TRM_Billing!$K$6:$K$149,0),1)/1000 -> 1398.10912 | AE18: =+INDEX(TRM_Billing!$Q$6:$Q$149,MATCH(AE$4,TRM_Billing!$K$6:$K$149,0),1)/1000 -> 1520.31793 | AF18: =+INDEX(TRM_Billing!$Q$6:$Q$149,MATCH(AF$4,TRM_Billing!$K$6:$K$149,0),1)/1000 -> 1227.185535 | AG18: =+INDEX(TRM_Billing!$Q$6:$Q$149,MATCH(AG$4,TRM_Billing!$K$6:$K$149,0),1)/1000 -> 1434.378644 | AH18: =+INDEX(TRM_Billing!$Q$6:$Q$149,MATCH(AH$4,TRM_Billing!$K$6:$K$149,0),1)/1000 -> 1316.168992 | AI18: =+INDEX(TRM_Billing!$Q$6:$Q$149,MATCH(AI$4,TRM_Billing!$K$6:$K$149,0),1)/1000 -> 732.5634183 | AJ18: =+INDEX(TRM_Billing!$Q$6:$Q$149,MATCH(AJ$4,TRM_Billing!$K$6:$K$149,0),1)/1000 -> 1230.683502 | AK18: =+INDEX(TRM_Billing!$Q$6:$Q$149,MATCH(AK$4,TRM_Billing!$K$6:$K$149,0),1)/1000 -> 1245.48986 | AL18: =+INDEX(TRM_Billing!$Q$6:$Q$149,MATCH(AL$4,TRM_Billing!$K$6:$K$149,0),1)/1000 -> 1597.272498 | AM18: =+INDEX(TRM_Billing!$Q$6:$Q$149,MATCH(AM$4,TRM_Billing!$K$6:$K$149,0),1)/1000 -> 1041.739618 | AN18: =+INDEX(TRM_Billing!$Q$6:$Q$149,MATCH(AN$4,TRM_Billing!$K$6:$K$149,0),1)/1000 -> 753.8674329 | AO18: =+INDEX(TRM_Billing!$Q$6:$Q$149,MATCH(AO$4,TRM_Billing!$K$6:$K$149,0),1)/1000 -> 706.9162682 | AP18: =+INDEX(TRM_Billing!$Q$6:$Q$149,MATCH(AP$4,TRM_Billing!$K$6:$K$149,0),1)/1000 -> 1322.782238 | AQ18: =+INDEX(TRM_Billing!$Q$6:$Q$149,MATCH(AQ$4,TRM_Billing!$K$6:$K$149,0),1)/1000 -> 1370.293413 | AR18: =+INDEX(TRM_Billing!$Q$6:$Q$149,MATCH(AR$4,TRM_Billing!$K$6:$K$149,0),1)/1000 -> 1094.310437 | AS18: =+INDEX(TRM_Billing!$Q$6:$Q$149,MATCH(AS$4,TRM_Billing!$K$6:$K$149,0),1)/1000 -> 1242.029637 | AT18: =+INDEX(TRM_Billing!$Q$6:$Q$149,MATCH(AT$4,TRM_Billing!$K$6:$K$149,0),1)/1000 -> 1123.925094 | AU18: =+INDEX(TRM_Billing!$Q$6:$Q$149,MATCH(AU$4,TRM_Billing!$K$6:$K$149,0),1)/1000 -> 652.754555 | AV18: =+INDEX(TRM_Billing!$Q$6:$Q$149,MATCH(AV$4,TRM_Billing!$K$6:$K$149,0),1)/1000 -> 1157.403959 | AW18: =+INDEX(TRM_Billing!$Q$6:$Q$149,MATCH(AW$4,TRM_Billing!$K$6:$K$149,0),1)/1000 -> 1221.946793 | AX18: =+INDEX(TRM_Billing!$Q$6:$Q$149,MATCH(AX$4,TRM_Billing!$K$6:$K$149,0),1)/1000 -> 1447.093719 | AY18: =+INDEX(TRM_Billing!$Q$6:$Q$149,MATCH(AY$4,TRM_Billing!$K$6:$K$149,0),1)/1000 -> 927.5094325 | AZ18: =+INDEX(TRM_Billing!$Q$6:$Q$149,MATCH(AZ$4,TRM_Billing!$K$6:$K$149,0),1)/1000 -> 785.3655023 | BA18: =+INDEX(TRM_Billing!$Q$6:$Q$149,MATCH(BA$4,TRM_Billing!$K$6:$K$149,0),1)/1000 -> 777.2650599 | BB18: =+INDEX(TRM_Billing!$Q$6:$Q$149,MATCH(BB$4,TRM_Billing!$K$6:$K$149,0),1)/1000 -> 1361.648834 | BC18: =+INDEX(TRM_Billing!$Q$6:$Q$149,MATCH(BC$4,TRM_Billing!$K$6:$K$149,0),1)/1000 -> 1407.518107 | BD18: =+INDEX(TRM_Billing!$Q$6:$Q$149,MATCH(BD$4,TRM_Billing!$K$6:$K$149,0),1)/1000 -> 1152.968956 | BE18: =+INDEX(TRM_Billing!$Q$6:$Q$149,MATCH(BE$4,TRM_Billing!$K$6:$K$149,0),1)/1000 -> 1337.722322 | BF18: =+INDEX(TRM_Billing!$Q$6:$Q$149,MATCH(BF$4,TRM_Billing!$K$6:$K$149,0),1)/1000 -> 1189.464341 | BG18: =+INDEX(TRM_Billing!$Q$6:$Q$149,MATCH(BG$4,TRM_Billing!$K$6:$K$149,0),1)/1000 -> 707.3903525 | BH18: =+INDEX(TRM_Billing!$Q$6:$Q$149,MATCH(BH$4,TRM_Billing!$K$6:$K$149,0),1)/1000 -> 1188.706387 | BI18: =+INDEX(TRM_Billing!$Q$6:$Q$149,MATCH(BI$4,TRM_Billing!$K$6:$K$149,0),1)/1000 -> 1246.35413 | BJ18: =+INDEX(TRM_Billing!$Q$6:$Q$149,MATCH(BJ$4,TRM_Billing!$K$6:$K$149,0),1)/1000 -> 1525.150534 | BK18: =+INDEX(TRM_Billing!$Q$6:$Q$149,MATCH(BK$4,TRM_Billing!$K$6:$K$149,0),1)/1000 -> 976.173745 | BL18: =+INDEX(TRM_Billing!$Q$6:$Q$149,MATCH(BL$4,TRM_Billing!$K$6:$K$149,0),1)/1000 -> 861.7903077 | BM18: =+INDEX(TRM_Billing!$Q$6:$Q$149,MATCH(BM$4,TRM_Billing!$K$6:$K$149,0),1)/1000 -> 829.6234475 | BN18: =+INDEX(TRM_Billing!$Q$6:$Q$149,MATCH(BN$4,TRM_Billing!$K$6:$K$149,0),1)/1000 -> 1398.10912 | BO18: =+INDEX(TRM_Billing!$Q$6:$Q$149,MATCH(BO$4,TRM_Billing!$K$6:$K$149,0),1)/1000 -> 1520.31793 | BP18: =+INDEX(TRM_Billing!$Q$6:$Q$149,MATCH(BP$4,TRM_Billing!$K$6:$K$149,0),1)/1000 -> 1227.185535 | BQ18: =+INDEX(TRM_Billing!$Q$6:$Q$149,MATCH(BQ$4,TRM_Billing!$K$6:$K$149,0),1)/1000 -> 1434.378644 | BR18: =+INDEX(TRM_Billing!$Q$6:$Q$149,MATCH(BR$4,TRM_Billing!$K$6:$K$149,0),1)/1000 -> 1316.168992 | BS18: =+INDEX(TRM_Billing!$Q$6:$Q$149,MATCH(BS$4,TRM_Billing!$K$6:$K$149,0),1)/1000 -> 732.5634183 | BT18: =+INDEX(TRM_Billing!$Q$6:$Q$149,MATCH(BT$4,TRM_Billing!$K$6:$K$149,0),1)/1000 -> 1230.683502 | BU18: =+INDEX(TRM_Billing!$Q$6:$Q$149,MATCH(BU$4,TRM_Billing!$K$6:$K$149,0),1)/1000 -> 1245.48986 | BV18: =+INDEX(TRM_Billing!$Q$6:$Q$149,MATCH(BV$4,TRM_Billing!$K$6:$K$149,0),1)/1000 -> 1597.272498 | BW18: =+INDEX(TRM_Billing!$Q$6:$Q$149,MATCH(BW$4,TRM_Billing!$K$6:$K$149,0),1)/1000 -> 1041.739618
B19: Load Shaping
C20: HLH | D20: =+INDEX(TRM_Billing!$R$6:$R$149,IF($C20="HLH",MATCH(D$4,TRM_Billing!$K$6:$K$149,0),MATCH(D$4,TRM_Billing!$K$6:$K$149,0)+1),1) -> 301810.8952 | E20: =+INDEX(TRM_Billing!$R$6:$R$149,IF($C20="HLH",MATCH(E$4,TRM_Billing!$K$6:$K$149,0),MATCH(E$4,TRM_Billing!$K$6:$K$149,0)+1),1) -> -51491.01077 | F20: =+INDEX(TRM_Billing!$R$6:$R$149,IF($C20="HLH",MATCH(F$4,TRM_Billing!$K$6:$K$149,0),MATCH(F$4,TRM_Billing!$K$6:$K$149,0)+1),1) -> 55249.52404 | G20: =+INDEX(TRM_Billing!$R$6:$R$149,IF($C20="HLH",MATCH(G$4,TRM_Billing!$K$6:$K$149,0),MATCH(G$4,TRM_Billing!$K$6:$K$149,0)+1),1) -> -25454.05708 | H20: =+INDEX(TRM_Billing!$R$6:$R$149,IF($C20="HLH",MATCH(H$4,TRM_Billing!$K$6:$K$149,0),MATCH(H$4,TRM_Billing!$K$6:$K$149,0)+1),1) -> 149330.0145 | I20: =+INDEX(TRM_Billing!$R$6:$R$149,IF($C20="HLH",MATCH(I$4,TRM_Billing!$K$6:$K$149,0),MATCH(I$4,TRM_Billing!$K$6:$K$149,0)+1),1) -> -171562.3315 | J20: =+INDEX(TRM_Billing!$R$6:$R$149,IF($C20="HLH",MATCH(J$4,TRM_Billing!$K$6:$K$149,0),MATCH(J$4,TRM_Billing!$K$6:$K$149,0)+1),1) -> 210072.9883 | K20: =+INDEX(TRM_Billing!$R$6:$R$149,IF($C20="HLH",MATCH(K$4,TRM_Billing!$K$6:$K$149,0),MATCH(K$4,TRM_Billing!$K$6:$K$149,0)+1),1) -> -669781.9091 | L20: =+INDEX(TRM_Billing!$R$6:$R$149,IF($C20="HLH",MATCH(L$4,TRM_Billing!$K$6:$K$149,0),MATCH(L$4,TRM_Billing!$K$6:$K$149,0)+1),1) -> -860979.5012 | M20: =+INDEX(TRM_Billing!$R$6:$R$149,IF($C20="HLH",MATCH(M$4,TRM_Billing!$K$6:$K$149,0),MATCH(M$4,TRM_Billing!$K$6:$K$149,0)+1),1) -> -117807.2402 | N20: =+INDEX(TRM_Billing!$R$6:$R$149,IF($C20="HLH",MATCH(N$4,TRM_Billing!$K$6:$K$149,0),MATCH(N$4,TRM_Billing!$K$6:$K$149,0)+1),1) -> -348485.5898 | O20: =+INDEX(TRM_Billing!$R$6:$R$149,IF($C20="HLH",MATCH(O$4,TRM_Billing!$K$6:$K$149,0),MATCH(O$4,TRM_Billing!$K$6:$K$149,0)+1),1) -> 171839.6089 | P20: =+INDEX(TRM_Billing!$R$6:$R$149,IF($C20="HLH",MATCH(P$4,TRM_Billing!$K$6:$K$149,0),MATCH(P$4,TRM_Billing!$K$6:$K$149,0)+1),1) -> 311575.8549 | Q20: =+INDEX(TRM_Billing!$R$6:$R$149,IF($C20="HLH",MATCH(Q$4,TRM_Billing!$K$6:$K$149,0),MATCH(Q$4,TRM_Billing!$K$6:$K$149,0)+1),1) -> -44689.63783 | R20: =+INDEX(TRM_Billing!$R$6:$R$149,IF($C20="HLH",MATCH(R$4,TRM_Billing!$K$6:$K$149,0),MATCH(R$4,TRM_Billing!$K$6:$K$149,0)+1),1) -> 74690.33084 | S20: =+INDEX(TRM_Billing!$R$6:$R$149,IF($C20="HLH",MATCH(S$4,TRM_Billing!$K$6:$K$149,0),MATCH(S$4,TRM_Billing!$K$6:$K$149,0)+1),1) -> -105543.287 | T20: =+INDEX(TRM_Billing!$R$6:$R$149,IF($C20="HLH",MATCH(T$4,TRM_Billing!$K$6:$K$149,0),MATCH(T$4,TRM_Billing!$K$6:$K$149,0)+1),1) -> 160159.859 | U20: =+INDEX(TRM_Billing!$R$6:$R$149,IF($C20="HLH",MATCH(U$4,TRM_Billing!$K$6:$K$149,0),MATCH(U$4,TRM_Billing!$K$6:$K$149,0)+1),1) -> -76076.62527 | V20: =+INDEX(TRM_Billing!$R$6:$R$149,IF($C20="HLH",MATCH(V$4,TRM_Billing!$K$6:$K$149,0),MATCH(V$4,TRM_Billing!$K$6:$K$149,0)+1),1) -> 217531.4635 | W20: =+INDEX(TRM_Billing!$R$6:$R$149,IF($C20="HLH",MATCH(W$4,TRM_Billing!$K$6:$K$149,0),MATCH(W$4,TRM_Billing!$K$6:$K$149,0)+1),1) -> -675756.8459 | X20: =+INDEX(TRM_Billing!$R$6:$R$149,IF($C20="HLH",MATCH(X$4,TRM_Billing!$K$6:$K$149,0),MATCH(X$4,TRM_Billing!$K$6:$K$149,0)+1),1) -> -862558.0124 | Y20: =+INDEX(TRM_Billing!$R$6:$R$149,IF($C20="HLH",MATCH(Y$4,TRM_Billing!$K$6:$K$149,0),MATCH(Y$4,TRM_Billing!$K$6:$K$149,0)+1),1) -> -108820.5333 | Z20: =+INDEX(TRM_Billing!$R$6:$R$149,IF($C20="HLH",MATCH(Z$4,TRM_Billing!$K$6:$K$149,0),MATCH(Z$4,TRM_Billing!$K$6:$K$149,0)+1),1) -> -351457.5105 | AA20: =+INDEX(TRM_Billing!$R$6:$R$149,IF($C20="HLH",MATCH(AA$4,TRM_Billing!$K$6:$K$149,0),MATCH(AA$4,TRM_Billing!$K$6:$K$149,0)+1),1) -> 181634.3951 | AB20: =+INDEX(TRM_Billing!$R$6:$R$149,IF($C20="HLH",MATCH(AB$4,TRM_Billing!$K$6:$K$149,0),MATCH(AB$4,TRM_Billing!$K$6:$K$149,0)+1),1) -> 231085.0266 | AC20: =+INDEX(TRM_Billing!$R$6:$R$149,IF($C20="HLH",MATCH(AC$4,TRM_Billing!$K$6:$K$149,0),MATCH(AC$4,TRM_Billing!$K$6:$K$149,0)+1),1) -> 54023.38526 | AD20: =+INDEX(TRM_Billing!$R$6:$R$149,IF($C20="HLH",MATCH(AD$4,TRM_Billing!$K$6:$K$149,0),MATCH(AD$4,TRM_Billing!$K$6:$K$149,0)+1),1) -> 85683.67067 | AE20: =+INDEX(TRM_Billing!$R$6:$R$149,IF($C20="HLH",MATCH(AE$4,TRM_Billing!$K$6:$K$149,0),MATCH(AE$4,TRM_Billing!$K$6:$K$149,0)+1),1) -> -102604.4265 | AF20: =+INDEX(TRM_Billing!$R$6:$R$149,IF($C20="HLH",MATCH(AF$4,TRM_Billing!$K$6:$K$149,0),MATCH(AF$4,TRM_Billing!$K$6:$K$149,0)+1),1) -> 132893.4575 | AG20: =+INDEX(TRM_Billing!$R$6:$R$149,IF($C20="HLH",MATCH(AG$4,TRM_Billing!$K$6:$K$149,0),MATCH(AG$4,TRM_Billing!$K$6:$K$149,0)+1),1) -> -72175.90708 | AH20: =+INDEX(TRM_Billing!$R$6:$R$149,IF($C20="HLH",MATCH(AH$4,TRM_Billing!$K$6:$K$149,0),MATCH(AH$4,TRM_Billing!$K$6:$K$149,0)+1),1) -> 115862.1525 | AI20: =+INDEX(TRM_Billing!$R$6:$R$149,IF($C20="HLH",MATCH(AI$4,TRM_Billing!$K$6:$K$149,0),MATCH(AI$4,TRM_Billing!$K$6:$K$149,0)+1),1) -> -592124.5842 | AJ20: =+INDEX(TRM_Billing!$R$6:$R$149,IF($C20="HLH",MATCH(AJ$4,TRM_Billing!$K$6:$K$149,0),MATCH(AJ$4,TRM_Billing!$K$6:$K$149,0)+1),1) -> -869719.3628 | AK20: =+INDEX(TRM_Billing!$R$6:$R$149,IF($C20="HLH",MATCH(AK$4,TRM_Billing!$K$6:$K$149,0),MATCH(AK$4,TRM_Billing!$K$6:$K$149,0)+1),1) -> -209220.8391 | AL20: =+INDEX(TRM_Billing!$R$6:$R$149,IF($C20="HLH",MATCH(AL$4,TRM_Billing!$K$6:$K$149,0),MATCH(AL$4,TRM_Billing!$K$6:$K$149,0)+1),1) -> -262391.7176 | AM20: =+INDEX(TRM_Billing!$R$6:$R$149,IF($C20="HLH",MATCH(AM$4,TRM_Billing!$K$6:$K$149,0),MATCH(AM$4,TRM_Billing!$K$6:$K$149,0)+1),1) -> 185489.7893 | AN20: =+INDEX(TRM_Billing!$R$6:$R$149,IF($C20="HLH",MATCH(AN$4,TRM_Billing!$K$6:$K$149,0),MATCH(AN$4,TRM_Billing!$K$6:$K$149,0)+1),1) -> 301810.8952 | AO20: =+INDEX(TRM_Billing!$R$6:$R$149,IF($C20="HLH",MATCH(AO$4,TRM_Billing!$K$6:$K$149,0),MATCH(AO$4,TRM_Billing!$K$6:$K$149,0)+1),1) -> -51491.01077 | AP20: =+INDEX(TRM_Billing!$R$6:$R$149,IF($C20="HLH",MATCH(AP$4,TRM_Billing!$K$6:$K$149,0),MATCH(AP$4,TRM_Billing!$K$6:$K$149,0)+1),1) -> 55249.52404 | AQ20: =+INDEX(TRM_Billing!$R$6:$R$149,IF($C20="HLH",MATCH(AQ$4,TRM_Billing!$K$6:$K$149,0),MATCH(AQ$4,TRM_Billing!$K$6:$K$149,0)+1),1) -> -25454.05708 | AR20: =+INDEX(TRM_Billing!$R$6:$R$149,IF($C20="HLH",MATCH(AR$4,TRM_Billing!$K$6:$K$149,0),MATCH(AR$4,TRM_Billing!$K$6:$K$149,0)+1),1) -> 149330.0145 | AS20: =+INDEX(TRM_Billing!$R$6:$R$149,IF($C20="HLH",MATCH(AS$4,TRM_Billing!$K$6:$K$149,0),MATCH(AS$4,TRM_Billing!$K$6:$K$149,0)+1),1) -> -171562.3315 | AT20: =+INDEX(TRM_Billing!$R$6:$R$149,IF($C20="HLH",MATCH(AT$4,TRM_Billing!$K$6:$K$149,0),MATCH(AT$4,TRM_Billing!$K$6:$K$149,0)+1),1) -> 210072.9883 | AU20: =+INDEX(TRM_Billing!$R$6:$R$149,IF($C20="HLH",MATCH(AU$4,TRM_Billing!$K$6:$K$149,0),MATCH(AU$4,TRM_Billing!$K$6:$K$149,0)+1),1) -> -669781.9091 | AV20: =+INDEX(TRM_Billing!$R$6:$R$149,IF($C20="HLH",MATCH(AV$4,TRM_Billing!$K$6:$K$149,0),MATCH(AV$4,TRM_Billing!$K$6:$K$149,0)+1),1) -> -860979.5012 | AW20: =+INDEX(TRM_Billing!$R$6:$R$149,IF($C20="HLH",MATCH(AW$4,TRM_Billing!$K$6:$K$149,0),MATCH(AW$4,TRM_Billing!$K$6:$K$149,0)+1),1) -> -117807.2402 | AX20: =+INDEX(TRM_Billing!$R$6:$R$149,IF($C20="HLH",MATCH(AX$4,TRM_Billing!$K$6:$K$149,0),MATCH(AX$4,TRM_Billing!$K$6:$K$149,0)+1),1) -> -348485.5898 | AY20: =+INDEX(TRM_Billing!$R$6:$R$149,IF($C20="HLH",MATCH(AY$4,TRM_Billing!$K$6:$K$149,0),MATCH(AY$4,TRM_Billing!$K$6:$K$149,0)+1),1) -> 171839.6089 | AZ20: =+INDEX(TRM_Billing!$R$6:$R$149,IF($C20="HLH",MATCH(AZ$4,TRM_Billing!$K$6:$K$149,0),MATCH(AZ$4,TRM_Billing!$K$6:$K$149,0)+1),1) -> 311575.8549 | BA20: =+INDEX(TRM_Billing!$R$6:$R$149,IF($C20="HLH",MATCH(BA$4,TRM_Billing!$K$6:$K$149,0),MATCH(BA$4,TRM_Billing!$K$6:$K$149,0)+1),1) -> -44689.63783 | BB20: =+INDEX(TRM_Billing!$R$6:$R$149,IF($C20="HLH",MATCH(BB$4,TRM_Billing!$K$6:$K$149,0),MATCH(BB$4,TRM_Billing!$K$6:$K$149,0)+1),1) -> 74690.33084 | BC20: =+INDEX(TRM_Billing!$R$6:$R$149,IF($C20="HLH",MATCH(BC$4,TRM_Billing!$K$6:$K$149,0),MATCH(BC$4,TRM_Billing!$K$6:$K$149,0)+1),1) -> -105543.287 | BD20: =+INDEX(TRM_Billing!$R$6:$R$149,IF($C20="HLH",MATCH(BD$4,TRM_Billing!$K$6:$K$149,0),MATCH(BD$4,TRM_Billing!$K$6:$K$149,0)+1),1) -> 160159.859 | BE20: =+INDEX(TRM_Billing!$R$6:$R$149,IF($C20="HLH",MATCH(BE$4,TRM_Billing!$K$6:$K$149,0),MATCH(BE$4,TRM_Billing!$K$6:$K$149,0)+1),1) -> -76076.62527 | BF20: =+INDEX(TRM_Billing!$R$6:$R$149,IF($C20="HLH",MATCH(BF$4,TRM_Billing!$K$6:$K$149,0),MATCH(BF$4,TRM_Billing!$K$6:$K$149,0)+1),1) -> 217531.4635 | BG20: =+INDEX(TRM_Billing!$R$6:$R$149,IF($C20="HLH",MATCH(BG$4,TRM_Billing!$K$6:$K$149,0),MATCH(BG$4,TRM_Billing!$K$6:$K$149,0)+1),1) -> -675756.8459 | BH20: =+INDEX(TRM_Billing!$R$6:$R$149,IF($C20="HLH",MATCH(BH$4,TRM_Billing!$K$6:$K$149,0),MATCH(BH$4,TRM_Billing!$K$6:$K$149,0)+1),1) -> -862558.0124 | BI20: =+INDEX(TRM_Billing!$R$6:$R$149,IF($C20="HLH",MATCH(BI$4,TRM_Billing!$K$6:$K$149,0),MATCH(BI$4,TRM_Billing!$K$6:$K$149,0)+1),1) -> -108820.5333 | BJ20: =+INDEX(TRM_Billing!$R$6:$R$149,IF($C20="HLH",MATCH(BJ$4,TRM_Billing!$K$6:$K$149,0),MATCH(BJ$4,TRM_Billing!$K$6:$K$149,0)+1),1) -> -351457.5105 | BK20: =+INDEX(TRM_Billing!$R$6:$R$149,IF($C20="HLH",MATCH(BK$4,TRM_Billing!$K$6:$K$149,0),MATCH(BK$4,TRM_Billing!$K$6:$K$149,0)+1),1) -> 181634.3951 | BL20: =+INDEX(TRM_Billing!$R$6:$R$149,IF($C20="HLH",MATCH(BL$4,TRM_Billing!$K$6:$K$149,0),MATCH(BL$4,TRM_Billing!$K$6:$K$149,0)+1),1) -> 231085.0266 | BM20: =+INDEX(TRM_Billing!$R$6:$R$149,IF($C20="HLH",MATCH(BM$4,TRM_Billing!$K$6:$K$149,0),MATCH(BM$4,TRM_Billing!$K$6:$K$149,0)+1),1) -> 54023.38526 | BN20: =+INDEX(TRM_Billing!$R$6:$R$149,IF($C20="HLH",MATCH(BN$4,TRM_Billing!$K$6:$K$149,0),MATCH(BN$4,TRM_Billing!$K$6:$K$149,0)+1),1) -> 85683.67067 | BO20: =+INDEX(TRM_Billing!$R$6:$R$149,IF($C20="HLH",MATCH(BO$4,TRM_Billing!$K$6:$K$149,0),MATCH(BO$4,TRM_Billing!$K$6:$K$149,0)+1),1) -> -102604.4265 | BP20: =+INDEX(TRM_Billing!$R$6:$R$149,IF($C20="HLH",MATCH(BP$4,TRM_Billing!$K$6:$K$149,0),MATCH(BP$4,TRM_Billing!$K$6:$K$149,0)+1),1) -> 132893.4575 | BQ20: =+INDEX(TRM_Billing!$R$6:$R$149,IF($C20="HLH",MATCH(BQ$4,TRM_Billing!$K$6:$K$149,0),MATCH(BQ$4,TRM_Billing!$K$6:$K$149,0)+1),1) -> -72175.90708 | BR20: =+INDEX(TRM_Billing!$R$6:$R$149,IF($C20="HLH",MATCH(BR$4,TRM_Billing!$K$6:$K$149,0),MATCH(BR$4,TRM_Billing!$K$6:$K$149,0)+1),1) -> 115862.1525 | BS20: =+INDEX(TRM_Billing!$R$6:$R$149,IF($C20="HLH",MATCH(BS$4,TRM_Billing!$K$6:$K$149,0),MATCH(BS$4,TRM_Billing!$K$6:$K$149,0)+1),1) -> -592124.5842 | BT20: =+INDEX(TRM_Billing!$R$6:$R$149,IF($C20="HLH",MATCH(BT$4,TRM_Billing!$K$6:$K$149,0),MATCH(BT$4,TRM_Billing!$K$6:$K$149,0)+1),1) -> -869719.3628 | BU20: =+INDEX(TRM_Billing!$R$6:$R$149,IF($C20="HLH",MATCH(BU$4,TRM_Billing!$K$6:$K$149,0),MATCH(BU$4,TRM_Billing!$K$6:$K$149,0)+1),1) -> -209220.8391 | BV20: =+INDEX(TRM_Billing!$R$6:$R$149,IF($C20="HLH",MATCH(BV$4,TRM_Billing!$K$6:$K$149,0),MATCH(BV$4,TRM_Billing!$K$6:$K$149,0)+1),1) -> -262391.7176 | BW20: =+INDEX(TRM_Billing!$R$6:$R$149,IF($C20="HLH",MATCH(BW$4,TRM_Billing!$K$6:$K$149,0),MATCH(BW$4,TRM_Billing!$K$6:$K$149,0)+1),1) -> 185489.7893
C21: LLH | D21: =+INDEX(TRM_Billing!$R$6:$R$149,IF($C21="HLH",MATCH(D$4,TRM_Billing!$K$6:$K$149,0),MATCH(D$4,TRM_Billing!$K$6:$K$149,0)+1),1) -> 158182.9335 | E21: =+INDEX(TRM_Billing!$R$6:$R$149,IF($C21="HLH",MATCH(E$4,TRM_Billing!$K$6:$K$149,0),MATCH(E$4,TRM_Billing!$K$6:$K$149,0)+1),1) -> 156660.2409 | F21: =+INDEX(TRM_Billing!$R$6:$R$149,IF($C21="HLH",MATCH(F$4,TRM_Billing!$K$6:$K$149,0),MATCH(F$4,TRM_Billing!$K$6:$K$149,0)+1),1) -> 389854.3794 | G21: =+INDEX(TRM_Billing!$R$6:$R$149,IF($C21="HLH",MATCH(G$4,TRM_Billing!$K$6:$K$149,0),MATCH(G$4,TRM_Billing!$K$6:$K$149,0)+1),1) -> 257586.9429 | H21: =+INDEX(TRM_Billing!$R$6:$R$149,IF($C21="HLH",MATCH(H$4,TRM_Billing!$K$6:$K$149,0),MATCH(H$4,TRM_Billing!$K$6:$K$149,0)+1),1) -> 313746.9653 | I21: =+INDEX(TRM_Billing!$R$6:$R$149,IF($C21="HLH",MATCH(I$4,TRM_Billing!$K$6:$K$149,0),MATCH(I$4,TRM_Billing!$K$6:$K$149,0)+1),1) -> 278770.4241 | J21: =+INDEX(TRM_Billing!$R$6:$R$149,IF($C21="HLH",MATCH(J$4,TRM_Billing!$K$6:$K$149,0),MATCH(J$4,TRM_Billing!$K$6:$K$149,0)+1),1) -> 100189.0351 | K21: =+INDEX(TRM_Billing!$R$6:$R$149,IF($C21="HLH",MATCH(K$4,TRM_Billing!$K$6:$K$149,0),MATCH(K$4,TRM_Billing!$K$6:$K$149,0)+1),1) -> -319842.1869 | L21: =+INDEX(TRM_Billing!$R$6:$R$149,IF($C21="HLH",MATCH(L$4,TRM_Billing!$K$6:$K$149,0),MATCH(L$4,TRM_Billing!$K$6:$K$149,0)+1),1) -> -333984.5315 | M21: =+INDEX(TRM_Billing!$R$6:$R$149,IF($C21="HLH",MATCH(M$4,TRM_Billing!$K$6:$K$149,0),MATCH(M$4,TRM_Billing!$K$6:$K$149,0)+1),1) -> 66863.00183 | N21: =+INDEX(TRM_Billing!$R$6:$R$149,IF($C21="HLH",MATCH(N$4,TRM_Billing!$K$6:$K$149,0),MATCH(N$4,TRM_Billing!$K$6:$K$149,0)+1),1) -> 132517.8494 | O21: =+INDEX(TRM_Billing!$R$6:$R$149,IF($C21="HLH",MATCH(O$4,TRM_Billing!$K$6:$K$149,0),MATCH(O$4,TRM_Billing!$K$6:$K$149,0)+1),1) -> 189784.5301 | P21: =+INDEX(TRM_Billing!$R$6:$R$149,IF($C21="HLH",MATCH(P$4,TRM_Billing!$K$6:$K$149,0),MATCH(P$4,TRM_Billing!$K$6:$K$149,0)+1),1) -> 153036.0754 | Q21: =+INDEX(TRM_Billing!$R$6:$R$149,IF($C21="HLH",MATCH(Q$4,TRM_Billing!$K$6:$K$149,0),MATCH(Q$4,TRM_Billing!$K$6:$K$149,0)+1),1) -> 172041.3995 | R21: =+INDEX(TRM_Billing!$R$6:$R$149,IF($C21="HLH",MATCH(R$4,TRM_Billing!$K$6:$K$149,0),MATCH(R$4,TRM_Billing!$K$6:$K$149,0)+1),1) -> 392573.4146 | S21: =+INDEX(TRM_Billing!$R$6:$R$149,IF($C21="HLH",MATCH(S$4,TRM_Billing!$K$6:$K$149,0),MATCH(S$4,TRM_Billing!$K$6:$K$149,0)+1),1) -> 356225.5442 | T21: =+INDEX(TRM_Billing!$R$6:$R$149,IF($C21="HLH",MATCH(T$4,TRM_Billing!$K$6:$K$149,0),MATCH(T$4,TRM_Billing!$K$6:$K$149,0)+1),1) -> 322028.3713 | U21: =+INDEX(TRM_Billing!$R$6:$R$149,IF($C21="HLH",MATCH(U$4,TRM_Billing!$K$6:$K$149,0),MATCH(U$4,TRM_Billing!$K$6:$K$149,0)+1),1) -> 198223.8231 | V21: =+INDEX(TRM_Billing!$R$6:$R$149,IF($C21="HLH",MATCH(V$4,TRM_Billing!$K$6:$K$149,0),MATCH(V$4,TRM_Billing!$K$6:$K$149,0)+1),1) -> 98622.143 | W21: =+INDEX(TRM_Billing!$R$6:$R$149,IF($C21="HLH",MATCH(W$4,TRM_Billing!$K$6:$K$149,0),MATCH(W$4,TRM_Billing!$K$6:$K$149,0)+1),1) -> -319146.6289 | X21: =+INDEX(TRM_Billing!$R$6:$R$149,IF($C21="HLH",MATCH(X$4,TRM_Billing!$K$6:$K$149,0),MATCH(X$4,TRM_Billing!$K$6:$K$149,0)+1),1) -> -340883.5911 | Y21: =+INDEX(TRM_Billing!$R$6:$R$149,IF($C21="HLH",MATCH(Y$4,TRM_Billing!$K$6:$K$149,0),MATCH(Y$4,TRM_Billing!$K$6:$K$149,0)+1),1) -> 60586.34532 | Z21: =+INDEX(TRM_Billing!$R$6:$R$149,IF($C21="HLH",MATCH(Z$4,TRM_Billing!$K$6:$K$149,0),MATCH(Z$4,TRM_Billing!$K$6:$K$149,0)+1),1) -> 138556.9911 | AA21: =+INDEX(TRM_Billing!$R$6:$R$149,IF($C21="HLH",MATCH(AA$4,TRM_Billing!$K$6:$K$149,0),MATCH(AA$4,TRM_Billing!$K$6:$K$149,0)+1),1) -> 188830.94 | AB21: =+INDEX(TRM_Billing!$R$6:$R$149,IF($C21="HLH",MATCH(AB$4,TRM_Billing!$K$6:$K$149,0),MATCH(AB$4,TRM_Billing!$K$6:$K$149,0)+1),1) -> 249006.0584 | AC21: =+INDEX(TRM_Billing!$R$6:$R$149,IF($C21="HLH",MATCH(AC$4,TRM_Billing!$K$6:$K$149,0),MATCH(AC$4,TRM_Billing!$K$6:$K$149,0)+1),1) -> 78355.5155 | AD21: =+INDEX(TRM_Billing!$R$6:$R$149,IF($C21="HLH",MATCH(AD$4,TRM_Billing!$K$6:$K$149,0),MATCH(AD$4,TRM_Billing!$K$6:$K$149,0)+1),1) -> 384143.8016 | AE21: =+INDEX(TRM_Billing!$R$6:$R$149,IF($C21="HLH",MATCH(AE$4,TRM_Billing!$K$6:$K$149,0),MATCH(AE$4,TRM_Billing!$K$6:$K$149,0)+1),1) -> 355662.1539 | AF21: =+INDEX(TRM_Billing!$R$6:$R$149,IF($C21="HLH",MATCH(AF$4,TRM_Billing!$K$6:$K$149,0),MATCH(AF$4,TRM_Billing!$K$6:$K$149,0)+1),1) -> 289974.1284 | AG21: =+INDEX(TRM_Billing!$R$6:$R$149,IF($C21="HLH",MATCH(AG$4,TRM_Billing!$K$6:$K$149,0),MATCH(AG$4,TRM_Billing!$K$6:$K$149,0)+1),1) -> 194121.814 | AH21: =+INDEX(TRM_Billing!$R$6:$R$149,IF($C21="HLH",MATCH(AH$4,TRM_Billing!$K$6:$K$149,0),MATCH(AH$4,TRM_Billing!$K$6:$K$149,0)+1),1) -> 193099.3048 | AI21: =+INDEX(TRM_Billing!$R$6:$R$149,IF($C21="HLH",MATCH(AI$4,TRM_Billing!$K$6:$K$149,0),MATCH(AI$4,TRM_Billing!$K$6:$K$149,0)+1),1) -> -422764.5489 | AJ21: =+INDEX(TRM_Billing!$R$6:$R$149,IF($C21="HLH",MATCH(AJ$4,TRM_Billing!$K$6:$K$149,0),MATCH(AJ$4,TRM_Billing!$K$6:$K$149,0)+1),1) -> -355013.0535 | AK21: =+INDEX(TRM_Billing!$R$6:$R$149,IF($C21="HLH",MATCH(AK$4,TRM_Billing!$K$6:$K$149,0),MATCH(AK$4,TRM_Billing!$K$6:$K$149,0)+1),1) -> 148676.5029 | AL21: =+INDEX(TRM_Billing!$R$6:$R$149,IF($C21="HLH",MATCH(AL$4,TRM_Billing!$K$6:$K$149,0),MATCH(AL$4,TRM_Billing!$K$6:$K$149,0)+1),1) -> 37679.86337 | AM21: =+INDEX(TRM_Billing!$R$6:$R$149,IF($C21="HLH",MATCH(AM$4,TRM_Billing!$K$6:$K$149,0),MATCH(AM$4,TRM_Billing!$K$6:$K$149,0)+1),1) -> 180289.384 | AN21: =+INDEX(TRM_Billing!$R$6:$R$149,IF($C21="HLH",MATCH(AN$4,TRM_Billing!$K$6:$K$149,0),MATCH(AN$4,TRM_Billing!$K$6:$K$149,0)+1),1) -> 158182.9335 | AO21: =+INDEX(TRM_Billing!$R$6:$R$149,IF($C21="HLH",MATCH(AO$4,TRM_Billing!$K$6:$K$149,0),MATCH(AO$4,TRM_Billing!$K$6:$K$149,0)+1),1) -> 156660.2409 | AP21: =+INDEX(TRM_Billing!$R$6:$R$149,IF($C21="HLH",MATCH(AP$4,TRM_Billing!$K$6:$K$149,0),MATCH(AP$4,TRM_Billing!$K$6:$K$149,0)+1),1) -> 389854.3794 | AQ21: =+INDEX(TRM_Billing!$R$6:$R$149,IF($C21="HLH",MATCH(AQ$4,TRM_Billing!$K$6:$K$149,0),MATCH(AQ$4,TRM_Billing!$K$6:$K$149,0)+1),1) -> 257586.9429 | AR21: =+INDEX(TRM_Billing!$R$6:$R$149,IF($C21="HLH",MATCH(AR$4,TRM_Billing!$K$6:$K$149,0),MATCH(AR$4,TRM_Billing!$K$6:$K$149,0)+1),1) -> 313746.9653 | AS21: =+INDEX(TRM_Billing!$R$6:$R$149,IF($C21="HLH",MATCH(AS$4,TRM_Billing!$K$6:$K$149,0),MATCH(AS$4,TRM_Billing!$K$6:$K$149,0)+1),1) -> 278770.4241 | AT21: =+INDEX(TRM_Billing!$R$6:$R$149,IF($C21="HLH",MATCH(AT$4,TRM_Billing!$K$6:$K$149,0),MATCH(AT$4,TRM_Billing!$K$6:$K$149,0)+1),1) -> 100189.0351 | AU21: =+INDEX(TRM_Billing!$R$6:$R$149,IF($C21="HLH",MATCH(AU$4,TRM_Billing!$K$6:$K$149,0),MATCH(AU$4,TRM_Billing!$K$6:$K$149,0)+1),1) -> -319842.1869 | AV21: =+INDEX(TRM_Billing!$R$6:$R$149,IF($C21="HLH",MATCH(AV$4,TRM_Billing!$K$6:$K$149,0),MATCH(AV$4,TRM_Billing!$K$6:$K$149,0)+1),1) -> -333984.5315 | AW21: =+INDEX(TRM_Billing!$R$6:$R$149,IF($C21="HLH",MATCH(AW$4,TRM_Billing!$K$6:$K$149,0),MATCH(AW$4,TRM_Billing!$K$6:$K$149,0)+1),1) -> 66863.00183 | AX21: =+INDEX(TRM_Billing!$R$6:$R$149,IF($C21="HLH",MATCH(AX$4,TRM_Billing!$K$6:$K$149,0),MATCH(AX$4,TRM_Billing!$K$6:$K$149,0)+1),1) -> 132517.8494 | AY21: =+INDEX(TRM_Billing!$R$6:$R$149,IF($C21="HLH",MATCH(AY$4,TRM_Billing!$K$6:$K$149,0),MATCH(AY$4,TRM_Billing!$K$6:$K$149,0)+1),1) -> 189784.5301 | AZ21: =+INDEX(TRM_Billing!$R$6:$R$149,IF($C21="HLH",MATCH(AZ$4,TRM_Billing!$K$6:$K$149,0),MATCH(AZ$4,TRM_Billing!$K$6:$K$149,0)+1),1) -> 153036.0754 | BA21: =+INDEX(TRM_Billing!$R$6:$R$149,IF($C21="HLH",MATCH(BA$4,TRM_Billing!$K$6:$K$149,0),MATCH(BA$4,TRM_Billing!$K$6:$K$149,0)+1),1) -> 172041.3995 | BB21: =+INDEX(TRM_Billing!$R$6:$R$149,IF($C21="HLH",MATCH(BB$4,TRM_Billing!$K$6:$K$149,0),MATCH(BB$4,TRM_Billing!$K$6:$K$149,0)+1),1) -> 392573.4146 | BC21: =+INDEX(TRM_Billing!$R$6:$R$149,IF($C21="HLH",MATCH(BC$4,TRM_Billing!$K$6:$K$149,0),MATCH(BC$4,TRM_Billing!$K$6:$K$149,0)+1),1) -> 356225.5442 | BD21: =+INDEX(TRM_Billing!$R$6:$R$149,IF($C21="HLH",MATCH(BD$4,TRM_Billing!$K$6:$K$149,0),MATCH(BD$4,TRM_Billing!$K$6:$K$149,0)+1),1) -> 322028.3713 | BE21: =+INDEX(TRM_Billing!$R$6:$R$149,IF($C21="HLH",MATCH(BE$4,TRM_Billing!$K$6:$K$149,0),MATCH(BE$4,TRM_Billing!$K$6:$K$149,0)+1),1) -> 198223.8231 | BF21: =+INDEX(TRM_Billing!$R$6:$R$149,IF($C21="HLH",MATCH(BF$4,TRM_Billing!$K$6:$K$149,0),MATCH(BF$4,TRM_Billing!$K$6:$K$149,0)+1),1) -> 98622.143 | BG21: =+INDEX(TRM_Billing!$R$6:$R$149,IF($C21="HLH",MATCH(BG$4,TRM_Billing!$K$6:$K$149,0),MATCH(BG$4,TRM_Billing!$K$6:$K$149,0)+1),1) -> -319146.6289 | BH21: =+INDEX(TRM_Billing!$R$6:$R$149,IF($C21="HLH",MATCH(BH$4,TRM_Billing!$K$6:$K$149,0),MATCH(BH$4,TRM_Billing!$K$6:$K$149,0)+1),1) -> -340883.5911 | BI21: =+INDEX(TRM_Billing!$R$6:$R$149,IF($C21="HLH",MATCH(BI$4,TRM_Billing!$K$6:$K$149,0),MATCH(BI$4,TRM_Billing!$K$6:$K$149,0)+1),1) -> 60586.34532 | BJ21: =+INDEX(TRM_Billing!$R$6:$R$149,IF($C21="HLH",MATCH(BJ$4,TRM_Billing!$K$6:$K$149,0),MATCH(BJ$4,TRM_Billing!$K$6:$K$149,0)+1),1) -> 138556.9911 | BK21: =+INDEX(TRM_Billing!$R$6:$R$149,IF($C21="HLH",MATCH(BK$4,TRM_Billing!$K$6:$K$149,0),MATCH(BK$4,TRM_Billing!$K$6:$K$149,0)+1),1) -> 188830.94 | BL21: =+INDEX(TRM_Billing!$R$6:$R$149,IF($C21="HLH",MATCH(BL$4,TRM_Billing!$K$6:$K$149,0),MATCH(BL$4,TRM_Billing!$K$6:$K$149,0)+1),1) -> 249006.0584 | BM21: =+INDEX(TRM_Billing!$R$6:$R$149,IF($C21="HLH",MATCH(BM$4,TRM_Billing!$K$6:$K$149,0),MATCH(BM$4,TRM_Billing!$K$6:$K$149,0)+1),1) -> 78355.5155 | BN21: =+INDEX(TRM_Billing!$R$6:$R$149,IF($C21="HLH",MATCH(BN$4,TRM_Billing!$K$6:$K$149,0),MATCH(BN$4,TRM_Billing!$K$6:$K$149,0)+1),1) -> 384143.8016 | BO21: =+INDEX(TRM_Billing!$R$6:$R$149,IF($C21="HLH",MATCH(BO$4,TRM_Billing!$K$6:$K$149,0),MATCH(BO$4,TRM_Billing!$K$6:$K$149,0)+1),1) -> 355662.1539 | BP21: =+INDEX(TRM_Billing!$R$6:$R$149,IF($C21="HLH",MATCH(BP$4,TRM_Billing!$K$6:$K$149,0),MATCH(BP$4,TRM_Billing!$K$6:$K$149,0)+1),1) -> 289974.1284 | BQ21: =+INDEX(TRM_Billing!$R$6:$R$149,IF($C21="HLH",MATCH(BQ$4,TRM_Billing!$K$6:$K$149,0),MATCH(BQ$4,TRM_Billing!$K$6:$K$149,0)+1),1) -> 194121.814 | BR21: =+INDEX(TRM_Billing!$R$6:$R$149,IF($C21="HLH",MATCH(BR$4,TRM_Billing!$K$6:$K$149,0),MATCH(BR$4,TRM_Billing!$K$6:$K$149,0)+1),1) -> 193099.3048 | BS21: =+INDEX(TRM_Billing!$R$6:$R$149,IF($C21="HLH",MATCH(BS$4,TRM_Billing!$K$6:$K$149,0),MATCH(BS$4,TRM_Billing!$K$6:$K$149,0)+1),1) -> -422764.5489 | BT21: =+INDEX(TRM_Billing!$R$6:$R$149,IF($C21="HLH",MATCH(BT$4,TRM_Billing!$K$6:$K$149,0),MATCH(BT$4,TRM_Billing!$K$6:$K$149,0)+1),1) -> -355013.0535 | BU21: =+INDEX(TRM_Billing!$R$6:$R$149,IF($C21="HLH",MATCH(BU$4,TRM_Billing!$K$6:$K$149,0),MATCH(BU$4,TRM_Billing!$K$6:$K$149,0)+1),1) -> 148676.5029 | BV21: =+INDEX(TRM_Billing!$R$6:$R$149,IF($C21="HLH",MATCH(BV$4,TRM_Billing!$K$6:$K$149,0),MATCH(BV$4,TRM_Billing!$K$6:$K$149,0)+1),1) -> 37679.86337 | BW21: =+INDEX(TRM_Billing!$R$6:$R$149,IF($C21="HLH",MATCH(BW$4,TRM_Billing!$K$6:$K$149,0),MATCH(BW$4,TRM_Billing!$K$6:$K$149,0)+1),1) -> 180289.384
D24: =RateSummary!$C$10 -> 2029 | E24: =RateSummary!$D$10 -> 2030 | F24: =RateSummary!$E$10 -> 2031 | G24: =RateSummary!$F$10 -> 2032 | H24: =RateSummary!$G$10 -> 2033 | I24: =RateSummary!$H$10 -> 2034
C25: Public Load (MWh) | D25: =SUM(D12:O13) -> 65201985.53 | E25: =SUM(P12:AA13) -> 65201985.53 | F25: =SUM(AB12:AM13) -> 65201985.53 | G25: =SUM(AN12:AY13) -> 65201985.53 | H25: =SUM(AZ12:BK13) -> 65201985.53 | I25: =SUM(BL12:BW13) -> 65201985.53
C26: Public Load (aMW) | D26: =D25/VLOOKUP(D24,Init!$N$5:$P$38,3) -> 7443.149033 | E26: =E25/VLOOKUP(E24,Init!$N$5:$P$38,3) -> 7443.149033 | F26: =F25/VLOOKUP(F24,Init!$N$5:$P$38,3) -> 7443.149033 | G26: =G25/VLOOKUP(G24,Init!$N$5:$P$38,3) -> 7422.81256 | H26: =H25/VLOOKUP(H24,Init!$N$5:$P$38,3) -> 7443.149033 | I26: =I25/VLOOKUP(I24,Init!$N$5:$P$38,3) -> 7443.149033
C27: Demand (MW) | D27: =SUM(D18:O18) -> 13020.83298 | E27: =SUM(P18:AA18) -> 13655.72827 | F27: =SUM(AB18:AM18) -> 14435.32287 | G27: =SUM(AN18:AY18) -> 13020.83298 | H27: =SUM(AZ18:BK18) -> 13655.72827 | I27: =SUM(BL18:BW18) -> 14435.32287
D29: =RateSummary!$C$10 -> 2029 | E29: =RateSummary!$D$10 -> 2030 | F29: =RateSummary!$E$10 -> 2031 | G29: =RateSummary!$F$10 -> 2032 | H29: =RateSummary!$G$10 -> 2033 | I29: =RateSummary!$H$10 -> 2034
C30: Base | D30: =D26 -> 7443.149033 | E30: 7443.149033 | F30: 7443.149033 | G30: 7422.81256 | H30: 7443.149033 | I30: 7443.149033
D34: DEMAND: | E34: ENERGY: | F34: (GWh) | AE34: Total
E35: Oct | G35: Nov | I35: Dec | K35: Jan | M35: Feb | O35: Mar | Q35: Apr | S35: May | U35: Jun | W35: Jul | Y35: Aug | AA35: Sep | AC35: Total | AE35: Energy
D36: Annual | E36: LLH | F36: HLH | G36: LLH | H36: HLH | I36: LLH | J36: HLH | K36: LLH | L36: HLH | M36: LLH | N36: HLH | O36: LLH | P36: HLH | Q36: LLH | R36: HLH | S36: LLH | T36: HLH | U36: LLH | V36: HLH | W36: LLH | X36: HLH | Y36: LLH | Z36: HLH | AA36: LLH | AB36: HLH | AC36: LLH | AD36: HLH
B38: =RateSummary!$C$10 -> 2029 | D38: =Q49 -> 13020.83298 | E38: =D48 -> 1954.494772 | F38: =D47 -> 2951.149277 | G38: =E48 -> 2274.856331 | H38: =E47 -> 3375.074475 | I38: =F48 -> 2659.230424 | J38: =F47 -> 4039.71125 | K38: =G48 -> 2823.742247 | L38: =G47 -> 3973.847338 | M38: =H48 -> 2292.025188 | N38: =H47 -> 3580.631978 | O38: =I48 -> 2230.762383 | P38: =I47 -> 3652.101892 | Q38: =J48 -> 1979.749172 | R38: =J47 -> 2872.617278 | S38: =K48 -> 1880.388743 | T38: =K47 -> 2914.904848 | U38: =L48 -> 1730.014247 | V38: =L47 -> 2931.609649 | W38: =M48 -> 2142.235557 | X38: =M47 -> 3090.057079 | Y38: =N48 -> 1883.43981 | Z38: =N47 -> 3310.064303 | AA38: =O48 -> 1832.052173 | AB38: =O47 -> 2827.225112 | AC38: =E38+G38+I38+K38+M38+O38+Q38+S38+U38+W38+Y38+AA38 -> 25682.99105 | AD38: =F38+H38+J38+L38+N38+P38+R38+T38+V38+X38+Z38+AB38 -> 39518.99448 | AE38: =AC38+AD38 -> 65201.98553
B39: =RateSummary!$D$10 -> 2030 | D39: =Q53 -> 13655.72827 | E39: =D52 -> 1954.494772 | F39: =D51 -> 2951.149277 | G39: =E52 -> 2274.856331 | H39: =E51 -> 3375.074475 | I39: =F52 -> 2659.230424 | J39: =F51 -> 4039.71125 | K39: =G52 -> 2823.742247 | L39: =G51 -> 3973.847338 | M39: =H52 -> 2292.025188 | N39: =H51 -> 3580.631978 | O39: =I52 -> 2230.762383 | P39: =I51 -> 3652.101892 | Q39: =J52 -> 1979.749172 | R39: =J51 -> 2872.617278 | S39: =K52 -> 1880.388743 | T39: =K51 -> 2914.904848 | U39: =L52 -> 1730.014247 | V39: =L51 -> 2931.609649 | W39: =M52 -> 2142.235557 | X39: =M51 -> 3090.057079 | Y39: =N52 -> 1883.43981 | Z39: =N51 -> 3310.064303 | AA39: =O52 -> 1832.052173 | AB39: =O51 -> 2827.225112 | AC39: 25682.99105 | AD39: 39518.99448 | AE39: 65201.98553
B40: =RateSummary!$E$10 -> 2031 | D40: =Q57 -> 14435.32287 | E40: =D56 -> 1954.494772 | F40: =D55 -> 2951.149277 | G40: =E56 -> 2274.856331 | H40: =E55 -> 3375.074475 | I40: =F56 -> 2659.230424 | J40: =F55 -> 4039.71125 | K40: =G56 -> 2823.742247 | L40: =G55 -> 3973.847338 | M40: =H56 -> 2292.025188 | N40: =H55 -> 3580.631978 | O40: =I56 -> 2230.762383 | P40: =I55 -> 3652.101892 | Q40: =J56 -> 1979.749172 | R40: =J55 -> 2872.617278 | S40: =K56 -> 1880.388743 | T40: =K55 -> 2914.904848 | U40: =L56 -> 1730.014247 | V40: =L55 -> 2931.609649 | W40: =M56 -> 2142.235557 | X40: =M55 -> 3090.057079 | Y40: =N56 -> 1883.43981 | Z40: =N55 -> 3310.064303 | AA40: =O56 -> 1832.052173 | AB40: =O55 -> 2827.225112 | AC40: 25682.99105 | AD40: 39518.99448 | AE40: 65201.98553
B41: =RateSummary!$F$10 -> 2032 | D41: =Q61 -> 13020.83298 | E41: =D60 -> 1954.494772 | F41: =D59 -> 2951.149277 | G41: =E60 -> 2274.856331 | H41: =E59 -> 3375.074475 | I41: =F60 -> 2659.230424 | J41: =F59 -> 4039.71125 | K41: =G60 -> 2823.742247 | L41: =G59 -> 3973.847338 | M41: =H60 -> 2292.025188 | N41: =H59 -> 3580.631978 | O41: =I60 -> 2230.762383 | P41: =I59 -> 3652.101892 | Q41: =J60 -> 1979.749172 | R41: =J59 -> 2872.617278 | S41: =K60 -> 1880.388743 | T41: =K59 -> 2914.904848 | U41: =L60 -> 1730.014247 | V41: =L59 -> 2931.609649 | W41: =M60 -> 2142.235557 | X41: =M59 -> 3090.057079 | Y41: =N60 -> 1883.43981 | Z41: =N59 -> 3310.064303 | AA41: =O60 -> 1832.052173 | AB41: =O59 -> 2827.225112 | AC41: 25682.99105 | AD41: 39518.99448 | AE41: 65201.98553
B42: =RateSummary!$G$10 -> 2033 | D42: =Q65 -> 13655.72827 | E42: =D64 -> 1954.494772 | F42: =D63 -> 2951.149277 | G42: =E64 -> 2274.856331 | H42: =E63 -> 3375.074475 | I42: =F64 -> 2659.230424 | J42: =F63 -> 4039.71125 | K42: =G64 -> 2823.742247 | L42: =G63 -> 3973.847338 | M42: =H64 -> 2292.025188 | N42: =H63 -> 3580.631978 | O42: =I64 -> 2230.762383 | P42: =I63 -> 3652.101892 | Q42: =J64 -> 1979.749172 | R42: =J63 -> 2872.617278 | S42: =K64 -> 1880.388743 | T42: =K63 -> 2914.904848 | U42: =L64 -> 1730.014247 | V42: =L63 -> 2931.609649 | W42: =M64 -> 2142.235557 | X42: =M63 -> 3090.057079 | Y42: =N64 -> 1883.43981 | Z42: =N63 -> 3310.064303 | AA42: =O64 -> 1832.052173 | AB42: =O63 -> 2827.225112 | AC42: 25682.99105 | AD42: 39518.99448 | AE42: 65201.98553
B43: =RateSummary!$H$10 -> 2034 | D43: =Q69 -> 14435.32287 | E43: =D68 -> 1954.494772 | F43: =D67 -> 2951.149277 | G43: =E68 -> 2274.856331 | H43: =E67 -> 3375.074475 | I43: =F68 -> 2659.230424 | J43: =F67 -> 4039.71125 | K43: =G68 -> 2823.742247 | L43: =G67 -> 3973.847338 | M43: =H68 -> 2292.025188 | N43: =H67 -> 3580.631978 | O43: =I68 -> 2230.762383 | P43: =I67 -> 3652.101892 | Q43: =J68 -> 1979.749172 | R43: =J67 -> 2872.617278 | S43: =K68 -> 1880.388743 | T43: =K67 -> 2914.904848 | U43: =L68 -> 1730.014247 | V43: =L67 -> 2931.609649 | W43: =M68 -> 2142.235557 | X43: =M67 -> 3090.057079 | Y43: =N68 -> 1883.43981 | Z43: =N67 -> 3310.064303 | AA43: =O68 -> 1832.052173 | AB43: =O67 -> 2827.225112 | AC43: 25682.99105 | AD43: 39518.99448 | AE43: 65201.98553
D46: =E35 -> Oct | E46: =G35 -> Nov | F46: =I35 -> Dec | G46: =K35 -> Jan | H46: =M35 -> Feb | I46: =O35 -> Mar | J46: =Q35 -> Apr | K46: =S35 -> May | L46: =U35 -> Jun | M46: =W35 -> Jul | N46: =Y35 -> Aug | O46: =AA35 -> Sep | U46: =D26 -> 7443.149033
B47: =B38 -> 2029 | C47: HLH | D47: =(D12)/1000*$V$48 -> 2951.149277 | E47: 3375.074475 | F47: 4039.71125 | G47: 3973.847338 | H47: 3580.631978 | I47: 3652.101892 | J47: 2872.617278 | K47: 2914.904848 | L47: 2931.609649 | M47: 3090.057079 | N47: 3310.064303 | O47: 2827.225112 | R47: HLH | S47: =B47 -> 2029 | T47: =SUM(D47:O48) -> 65201.98553 | U47: =T47/(VLOOKUP(S47,Init!$N$5:$P$38,3)/1000) -> 7443.149033
C48: LLH | D48: =(D13)/1000*$V$48 -> 1954.494772 | E48: 2274.856331 | F48: 2659.230424 | G48: 2823.742247 | H48: 2292.025188 | I48: 2230.762383 | J48: 1979.749172 | K48: 1880.388743 | L48: 1730.014247 | M48: 2142.235557 | N48: 1883.43981 | O48: 1832.052173 | R48: LLH | U48: =D30 -> 7443.149033 | V48: =U48/U46 -> 1
C49: Demand | D49: =D18*$V$48 -> 753.8674329 | E49: 706.9162682 | F49: 1322.782238 | G49: 1370.293413 | H49: 1094.310437 | I49: 1242.029637 | J49: 1123.925094 | K49: 652.754555 | L49: 1157.403959 | M49: 1221.946793 | N49: 1447.093719 | O49: 927.5094325 | P49: Annual = | Q49: =SUM(D49:P49) -> 13020.83298 | R49: Demand
D50: =D46 -> Oct | E50: Nov | F50: Dec | G50: Jan | H50: Feb | I50: Mar | J50: Apr | K50: May | L50: Jun | M50: Jul | N50: Aug | O50: Sep | U50: =E26 -> 7443.149033
B51: =B47+1 -> 2030 | C51: HLH | D51: =(P12)/1000*$V$52 -> 2951.149277 | E51: 3375.074475 | F51: 4039.71125 | G51: 3973.847338 | H51: 3580.631978 | I51: 3652.101892 | J51: 2872.617278 | K51: 2914.904848 | L51: 2931.609649 | M51: 3090.057079 | N51: 3310.064303 | O51: 2827.225112 | R51: HLH | S51: =B51 -> 2030 | T51: =SUM(D51:O52) -> 65201.98553 | U51: =T51/(VLOOKUP(S51,Init!$N$5:$P$38,3)/1000) -> 7443.149033
C52: LLH | D52: 1954.494772 | E52: 2274.856331 | F52: 2659.230424 | G52: 2823.742247 | H52: 2292.025188 | I52: 2230.762383 | J52: 1979.749172 | K52: 1880.388743 | L52: 1730.014247 | M52: 2142.235557 | N52: 1883.43981 | O52: 1832.052173 | R52: LLH | U52: =E30 -> 7443.149033 | V52: =U52/U50 -> 1
C53: Demand | D53: =P18*$V$52 -> 785.3655023 | E53: 777.2650599 | F53: 1361.648834 | G53: 1407.518107 | H53: 1152.968956 | I53: 1337.722322 | J53: 1189.464341 | K53: 707.3903525 | L53: 1188.706387 | M53: 1246.35413 | N53: 1525.150534 | O53: 976.173745 | P53: Annual = | Q53: =SUM(D53:P53) -> 13655.72827 | R53: Demand
D54: =D50 -> Oct | E54: Nov | F54: Dec | G54: Jan | H54: Feb | I54: Mar | J54: Apr | K54: May | L54: Jun | M54: Jul | N54: Aug | O54: Sep | U54: =F26 -> 7443.149033
B55: =B51+1 -> 2031 | C55: HLH | D55: =(AB12)/1000*$V$56 -> 2951.149277 | E55: 3375.074475 | F55: 4039.71125 | G55: 3973.847338 | H55: 3580.631978 | I55: 3652.101892 | J55: 2872.617278 | K55: 2914.904848 | L55: 2931.609649 | M55: 3090.057079 | N55: 3310.064303 | O55: 2827.225112 | R55: HLH | S55: =B55 -> 2031 | T55: =SUM(D55:O56) -> 65201.98553 | U55: =T55/(VLOOKUP(S55,Init!$N$5:$P$38,3)/1000) -> 7443.149033
C56: LLH | D56: 1954.494772 | E56: 2274.856331 | F56: 2659.230424 | G56: 2823.742247 | H56: 2292.025188 | I56: 2230.762383 | J56: 1979.749172 | K56: 1880.388743 | L56: 1730.014247 | M56: 2142.235557 | N56: 1883.43981 | O56: 1832.052173 | R56: LLH | U56: =F30 -> 7443.149033 | V56: =U56/U54 -> 1
C57: Demand | D57: =AB18*$V$56 -> 861.7903077 | E57: 829.6234475 | F57: 1398.10912 | G57: 1520.31793 | H57: 1227.185535 | I57: 1434.378644 | J57: 1316.168992 | K57: 732.5634183 | L57: 1230.683502 | M57: 1245.48986 | N57: 1597.272498 | O57: 1041.739618 | P57: Annual = | Q57: =SUM(D57:P57) -> 14435.32287 | R57: Demand
D58: =D54 -> Oct | E58: Nov | F58: Dec | G58: Jan | H58: Feb | I58: Mar | J58: Apr | K58: May | L58: Jun | M58: Jul | N58: Aug | O58: Sep | U58: =G26 -> 7422.81256
B59: =B55+1 -> 2032 | C59: HLH | D59: =(AN12)/1000*$V$60 -> 2951.149277 | E59: 3375.074475 | F59: 4039.71125 | G59: 3973.847338 | H59: 3580.631978 | I59: 3652.101892 | J59: 2872.617278 | K59: 2914.904848 | L59: 2931.609649 | M59: 3090.057079 | N59: 3310.064303 | O59: 2827.225112 | R59: HLH | S59: =B59 -> 2032 | T59: =SUM(D59:O60) -> 65201.98553 | U59: =T59/(VLOOKUP(S59,Init!$N$5:$P$38,3)/1000) -> 7422.81256
C60: LLH | D60: 1954.494772 | E60: 2274.856331 | F60: 2659.230424 | G60: 2823.742247 | H60: 2292.025188 | I60: 2230.762383 | J60: 1979.749172 | K60: 1880.388743 | L60: 1730.014247 | M60: 2142.235557 | N60: 1883.43981 | O60: 1832.052173 | R60: LLH | U60: =G30 -> 7422.81256 | V60: =U60/U58 -> 1
C61: Demand | D61: =AN18*$V$60 -> 753.8674329 | E61: =AO18*$V$60 -> 706.9162682 | F61: 1322.782238 | G61: 1370.293413 | H61: 1094.310437 | I61: 1242.029637 | J61: 1123.925094 | K61: 652.754555 | L61: 1157.403959 | M61: 1221.946793 | N61: 1447.093719 | O61: 927.5094325 | P61: Annual = | Q61: =SUM(D61:P61) -> 13020.83298 | R61: Demand
D62: =D58 -> Oct | E62: Nov | F62: Dec | G62: Jan | H62: Feb | I62: Mar | J62: Apr | K62: May | L62: Jun | M62: Jul | N62: Aug | O62: Sep | U62: =H26 -> 7443.149033
B63: =B59+1 -> 2033 | C63: HLH | D63: =(AZ12)/1000*$V$64 -> 2951.149277 | E63: 3375.074475 | F63: 4039.71125 | G63: 3973.847338 | H63: 3580.631978 | I63: 3652.101892 | J63: 2872.617278 | K63: 2914.904848 | L63: 2931.609649 | M63: 3090.057079 | N63: 3310.064303 | O63: 2827.225112 | R63: HLH | S63: =B63 -> 2033 | T63: =SUM(D63:O64) -> 65201.98553 | U63: =T63/(VLOOKUP(S63,Init!$N$5:$P$38,3)/1000) -> 7443.149033
C64: LLH | D64: 1954.494772 | E64: 2274.856331 | F64: 2659.230424 | G64: 2823.742247 | H64: 2292.025188 | I64: 2230.762383 | J64: 1979.749172 | K64: 1880.388743 | L64: 1730.014247 | M64: 2142.235557 | N64: 1883.43981 | O64: 1832.052173 | R64: LLH | U64: =H30 -> 7443.149033 | V64: =U64/U62 -> 1
C65: Demand | D65: =AZ18*$V$64 -> 785.3655023 | E65: =BA18*$V$64 -> 777.2650599 | F65: 1361.648834 | G65: 1407.518107 | H65: 1152.968956 | I65: 1337.722322 | J65: 1189.464341 | K65: 707.3903525 | L65: 1188.706387 | M65: 1246.35413 | N65: 1525.150534 | O65: 976.173745 | P65: Annual = | Q65: =SUM(D65:P65) -> 13655.72827 | R65: Demand
D66: =D62 -> Oct | E66: Nov | F66: Dec | G66: Jan | H66: Feb | I66: Mar | J66: Apr | K66: May | L66: Jun | M66: Jul | N66: Aug | O66: Sep | U66: =I26 -> 7443.149033
B67: =B63+1 -> 2034 | C67: HLH | D67: =(BL12)/1000*$V$68 -> 2951.149277 | E67: 3375.074475 | F67: 4039.71125 | G67: 3973.847338 | H67: 3580.631978 | I67: 3652.101892 | J67: 2872.617278 | K67: 2914.904848 | L67: 2931.609649 | M67: 3090.057079 | N67: 3310.064303 | O67: 2827.225112 | R67: HLH | S67: =B67 -> 2034 | T67: =SUM(D67:O68) -> 65201.98553 | U67: =T67/(VLOOKUP(S67,Init!$N$5:$P$38,3)/1000) -> 7443.149033
C68: LLH | D68: 1954.494772 | E68: 2274.856331 | F68: 2659.230424 | G68: 2823.742247 | H68: 2292.025188 | I68: 2230.762383 | J68: 1979.749172 | K68: 1880.388743 | L68: 1730.014247 | M68: 2142.235557 | N68: 1883.43981 | O68: 1832.052173 | R68: LLH | U68: =I30 -> 7443.149033 | V68: =U68/U66 -> 1
C69: Demand | D69: =BL18*$V$68 -> 861.7903077 | E69: 829.6234475 | F69: 1398.10912 | G69: 1520.31793 | H69: 1227.185535 | I69: 1434.378644 | J69: 1316.168992 | K69: 732.5634183 | L69: 1230.683502 | M69: 1245.48986 | N69: 1597.272498 | O69: 1041.739618 | P69: Annual = | Q69: =SUM(D69:P69) -> 14435.32287 | R69: Demand
B72: Final PF Load Billing Determinants
D73: =RateSummary!$C$10 -> 2029 | E73: =RateSummary!$D$10 -> 2030 | F73: =RateSummary!$E$10 -> 2031 | G73: =RateSummary!$F$10 -> 2032 | H73: =RateSummary!$G$10 -> 2033 | I73: =RateSummary!$H$10 -> 2034
C75: Load forecast | D75: =U47 -> 7443.149033 | E75: =U51 -> 7443.149033 | F75: =U55 -> 7443.149033 | G75: =U59 -> 7422.81256 | H75: =U63 -> 7443.149033 | I75: =U67 -> 7443.149033
C77: Loads (GWh) | D77: =T47 -> 65201.98553 | E77: =T51 -> 65201.98553 | F77: =T55 -> 65201.98553 | G77: =T59 -> 65201.98553 | H77: =T63 -> 65201.98553 | I77: =T67 -> 65201.98553

Sheet PF Exchange
B1: Billing Determinants Needed for Rates Analysis Model | P1: Not printed in documentation.
A2: TOC | B2: =Cover!$C$14 -> Public Release_ RAMmodel_RAM2029_Reference Case Updated 11/5/2025
A3: é
D4: =+DATE(Init!$C$9-1,10,1) -> 2028-10-01 | E4: =+EOMONTH(D4,0)+1 -> 2028-11-01 | F4: 2028-12-01 | G4: 2029-01-01 | H4: 2029-02-01 | I4: 2029-03-01 | J4: 2029-04-01 | K4: 2029-05-01 | L4: 2029-06-01 | M4: 2029-07-01 | N4: 2029-08-01 | O4: 2029-09-01 | P4: 2029-10-01 | Q4: 2029-11-01 | R4: 2029-12-01 | S4: 2030-01-01 | T4: 2030-02-01 | U4: 2030-03-01 | V4: 2030-04-01 | W4: 2030-05-01 | X4: 2030-06-01 | Y4: 2030-07-01 | Z4: 2030-08-01 | AA4: 2030-09-01 | AB4: 2030-10-01 | AC4: 2030-11-01 | AD4: 2030-12-01 | AE4: 2031-01-01 | AF4: 2031-02-01 | AG4: 2031-03-01 | AH4: 2031-04-01 | AI4: 2031-05-01 | AJ4: 2031-06-01 | AK4: =+EOMONTH(AJ4,0)+1 -> 2031-07-01 | AL4: 2031-08-01 | AM4: 2031-09-01 | AN4: 2031-10-01 | AO4: 2031-11-01 | AP4: 2031-12-01 | AQ4: 2032-01-01 | AR4: 2032-02-01 | AS4: 2032-03-01 | AT4: 2032-04-01 | AU4: 2032-05-01 | AV4: 2032-06-01 | AW4: 2032-07-01 | AX4: 2032-08-01 | AY4: 2032-09-01 | AZ4: 2032-10-01 | BA4: 2032-11-01 | BB4: 2032-12-01 | BC4: 2033-01-01 | BD4: 2033-02-01 | BE4: 2033-03-01 | BF4: 2033-04-01 | BG4: 2033-05-01 | BH4: 2033-06-01 | BI4: 2033-07-01 | BJ4: 2033-08-01 | BK4: 2033-09-01 | BL4: 2033-10-01 | BM4: 2033-11-01 | BN4: 2033-12-01 | BO4: 2034-01-01 | BP4: 2034-02-01 | BQ4: =+EOMONTH(BP4,0)+1 -> 2034-03-01 | BR4: 2034-04-01 | BS4: 2034-05-01 | BT4: 2034-06-01 | BU4: 2034-07-01 | BV4: 2034-08-01 | BW4: 2034-09-01
B5: Public Load
C6: HLH | D6: ='PF Public'!D12 -> 2951149.277 | E6: ='PF Public'!E12 -> 3375074.475 | F6: ='PF Public'!F12 -> 4039711.25 | G6: ='PF Public'!G12 -> 3973847.338 | H6: ='PF Public'!H12 -> 3580631.978 | I6: ='PF Public'!I12 -> 3652101.892 | J6: ='PF Public'!J12 -> 2872617.278 | K6: ='PF Public'!K12 -> 2914904.848 | L6: ='PF Public'!L12 -> 2931609.649 | M6: ='PF Public'!M12 -> 3090057.079 | N6: ='PF Public'!N12 -> 3310064.303 | O6: ='PF Public'!O12 -> 2827225.112 | P6: ='PF Public'!P12 -> 2951149.277 | Q6: ='PF Public'!Q12 -> 3375074.475 | R6: ='PF Public'!R12 -> 4039711.25 | S6: ='PF Public'!S12 -> 3973847.338 | T6: ='PF Public'!T12 -> 3580631.978 | U6: ='PF Public'!U12 -> 3652101.892 | V6: ='PF Public'!V12 -> 2872617.278 | W6: ='PF Public'!W12 -> 2914904.848 | X6: ='PF Public'!X12 -> 2931609.649 | Y6: ='PF Public'!Y12 -> 3090057.079 | Z6: ='PF Public'!Z12 -> 3310064.303 | AA6: ='PF Public'!AA12 -> 2827225.112 | AB6: ='PF Public'!AB12 -> 2951149.277 | AC6: ='PF Public'!AC12 -> 3375074.475 | AD6: ='PF Public'!AD12 -> 4039711.25 | AE6: ='PF Public'!AE12 -> 3973847.338 | AF6: ='PF Public'!AF12 -> 3580631.978 | AG6: ='PF Public'!AG12 -> 3652101.892 | AH6: ='PF Public'!AH12 -> 2872617.278 | AI6: ='PF Public'!AI12 -> 2914904.848 | AJ6: ='PF Public'!AJ12 -> 2931609.649 | AK6: ='PF Public'!AK12 -> 3090057.079 | AL6: ='PF Public'!AL12 -> 3310064.303 | AM6: ='PF Public'!AM12 -> 2827225.112 | AN6: ='PF Public'!AN12 -> 2951149.277 | AO6: ='PF Public'!AO12 -> 3375074.475 | AP6: ='PF Public'!AP12 -> 4039711.25 | AQ6: ='PF Public'!AQ12 -> 3973847.338 | AR6: ='PF Public'!AR12 -> 3580631.978 | AS6: ='PF Public'!AS12 -> 3652101.892 | AT6: ='PF Public'!AT12 -> 2872617.278 | AU6: ='PF Public'!AU12 -> 2914904.848 | AV6: ='PF Public'!AV12 -> 2931609.649 | AW6: ='PF Public'!AW12 -> 3090057.079 | AX6: ='PF Public'!AX12 -> 3310064.303 | AY6: ='PF Public'!AY12 -> 2827225.112 | AZ6: ='PF Public'!AZ12 -> 2951149.277 | BA6: ='PF Public'!BA12 -> 3375074.475 | BB6: ='PF Public'!BB12 -> 4039711.25 | BC6: ='PF Public'!BC12 -> 3973847.338 | BD6: ='PF Public'!BD12 -> 3580631.978 | BE6: ='PF Public'!BE12 -> 3652101.892 | BF6: ='PF Public'!BF12 -> 2872617.278 | BG6: ='PF Public'!BG12 -> 2914904.848 | BH6: ='PF Public'!BH12 -> 2931609.649 | BI6: ='PF Public'!BI12 -> 3090057.079 | BJ6: ='PF Public'!BJ12 -> 3310064.303 | BK6: ='PF Public'!BK12 -> 2827225.112 | BL6: ='PF Public'!BL12 -> 2951149.277 | BM6: ='PF Public'!BM12 -> 3375074.475 | BN6: ='PF Public'!BN12 -> 4039711.25 | BO6: ='PF Public'!BO12 -> 3973847.338 | BP6: ='PF Public'!BP12 -> 3580631.978 | BQ6: ='PF Public'!BQ12 -> 3652101.892 | BR6: ='PF Public'!BR12 -> 2872617.278 | BS6: ='PF Public'!BS12 -> 2914904.848 | BT6: ='PF Public'!BT12 -> 2931609.649 | BU6: ='PF Public'!BU12 -> 3090057.079 | BV6: ='PF Public'!BV12 -> 3310064.303 | BW6: ='PF Public'!BW12 -> 2827225.112
C7: LLH | D7: ='PF Public'!D13 -> 1954494.772 | E7: ='PF Public'!E13 -> 2274856.331 | F7: ='PF Public'!F13 -> 2659230.424 | G7: ='PF Public'!G13 -> 2823742.247 | H7: ='PF Public'!H13 -> 2292025.188 | I7: ='PF Public'!I13 -> 2230762.383 | J7: ='PF Public'!J13 -> 1979749.172 | K7: ='PF Public'!K13 -> 1880388.743 | L7: ='PF Public'!L13 -> 1730014.247 | M7: ='PF Public'!M13 -> 2142235.557 | N7: ='PF Public'!N13 -> 1883439.81 | O7: ='PF Public'!O13 -> 1832052.173 | P7: ='PF Public'!P13 -> 1954494.772 | Q7: ='PF Public'!Q13 -> 2274856.331 | R7: ='PF Public'!R13 -> 2659230.424 | S7: ='PF Public'!S13 -> 2823742.247 | T7: ='PF Public'!T13 -> 2292025.188 | U7: ='PF Public'!U13 -> 2230762.383 | V7: ='PF Public'!V13 -> 1979749.172 | W7: ='PF Public'!W13 -> 1880388.743 | X7: ='PF Public'!X13 -> 1730014.247 | Y7: ='PF Public'!Y13 -> 2142235.557 | Z7: ='PF Public'!Z13 -> 1883439.81 | AA7: ='PF Public'!AA13 -> 1832052.173 | AB7: ='PF Public'!AB13 -> 1954494.772 | AC7: ='PF Public'!AC13 -> 2274856.331 | AD7: ='PF Public'!AD13 -> 2659230.424 | AE7: ='PF Public'!AE13 -> 2823742.247 | AF7: ='PF Public'!AF13 -> 2292025.188 | AG7: ='PF Public'!AG13 -> 2230762.383 | AH7: ='PF Public'!AH13 -> 1979749.172 | AI7: ='PF Public'!AI13 -> 1880388.743 | AJ7: ='PF Public'!AJ13 -> 1730014.247 | AK7: ='PF Public'!AK13 -> 2142235.557 | AL7: ='PF Public'!AL13 -> 1883439.81 | AM7: ='PF Public'!AM13 -> 1832052.173 | AN7: ='PF Public'!AN13 -> 1954494.772 | AO7: ='PF Public'!AO13 -> 2274856.331 | AP7: ='PF Public'!AP13 -> 2659230.424 | AQ7: ='PF Public'!AQ13 -> 2823742.247 | AR7: ='PF Public'!AR13 -> 2292025.188 | AS7: ='PF Public'!AS13 -> 2230762.383 | AT7: ='PF Public'!AT13 -> 1979749.172 | AU7: ='PF Public'!AU13 -> 1880388.743 | AV7: ='PF Public'!AV13 -> 1730014.247 | AW7: ='PF Public'!AW13 -> 2142235.557 | AX7: ='PF Public'!AX13 -> 1883439.81 | AY7: ='PF Public'!AY13 -> 1832052.173 | AZ7: ='PF Public'!AZ13 -> 1954494.772 | BA7: ='PF Public'!BA13 -> 2274856.331 | BB7: ='PF Public'!BB13 -> 2659230.424 | BC7: ='PF Public'!BC13 -> 2823742.247 | BD7: ='PF Public'!BD13 -> 2292025.188 | BE7: ='PF Public'!BE13 -> 2230762.383 | BF7: ='PF Public'!BF13 -> 1979749.172 | BG7: ='PF Public'!BG13 -> 1880388.743 | BH7: ='PF Public'!BH13 -> 1730014.247 | BI7: ='PF Public'!BI13 -> 2142235.557 | BJ7: ='PF Public'!BJ13 -> 1883439.81 | BK7: ='PF Public'!BK13 -> 1832052.173 | BL7: ='PF Public'!BL13 -> 1954494.772 | BM7: ='PF Public'!BM13 -> 2274856.331 | BN7: ='PF Public'!BN13 -> 2659230.424 | BO7: ='PF Public'!BO13 -> 2823742.247 | BP7: ='PF Public'!BP13 -> 2292025.188 | BQ7: ='PF Public'!BQ13 -> 2230762.383 | BR7: ='PF Public'!BR13 -> 1979749.172 | BS7: ='PF Public'!BS13 -> 1880388.743 | BT7: ='PF Public'!BT13 -> 1730014.247 | BU7: ='PF Public'!BU13 -> 2142235.557 | BV7: ='PF Public'!BV13 -> 1883439.81 | BW7: ='PF Public'!BW13 -> 1832052.173
B9: Demand | D9: ='PF Public'!D18 -> 753.8674329 | E9: ='PF Public'!E18 -> 706.9162682 | F9: ='PF Public'!F18 -> 1322.782238 | G9: ='PF Public'!G18 -> 1370.293413 | H9: ='PF Public'!H18 -> 1094.310437 | I9: ='PF Public'!I18 -> 1242.029637 | J9: ='PF Public'!J18 -> 1123.925094 | K9: ='PF Public'!K18 -> 652.754555 | L9: ='PF Public'!L18 -> 1157.403959 | M9: ='PF Public'!M18 -> 1221.946793 | N9: ='PF Public'!N18 -> 1447.093719 | O9: ='PF Public'!O18 -> 927.5094325 | P9: ='PF Public'!P18 -> 785.3655023 | Q9: ='PF Public'!Q18 -> 777.2650599 | R9: ='PF Public'!R18 -> 1361.648834 | S9: ='PF Public'!S18 -> 1407.518107 | T9: ='PF Public'!T18 -> 1152.968956 | U9: ='PF Public'!U18 -> 1337.722322 | V9: ='PF Public'!V18 -> 1189.464341 | W9: ='PF Public'!W18 -> 707.3903525 | X9: ='PF Public'!X18 -> 1188.706387 | Y9: ='PF Public'!Y18 -> 1246.35413 | Z9: ='PF Public'!Z18 -> 1525.150534 | AA9: ='PF Public'!AA18 -> 976.173745 | AB9: ='PF Public'!AB18 -> 861.7903077 | AC9: ='PF Public'!AC18 -> 829.6234475 | AD9: ='PF Public'!AD18 -> 1398.10912 | AE9: ='PF Public'!AE18 -> 1520.31793 | AF9: ='PF Public'!AF18 -> 1227.185535 | AG9: ='PF Public'!AG18 -> 1434.378644 | AH9: ='PF Public'!AH18 -> 1316.168992 | AI9: ='PF Public'!AI18 -> 732.5634183 | AJ9: ='PF Public'!AJ18 -> 1230.683502 | AK9: ='PF Public'!AK18 -> 1245.48986 | AL9: ='PF Public'!AL18 -> 1597.272498 | AM9: ='PF Public'!AM18 -> 1041.739618 | AN9: ='PF Public'!AN18 -> 753.8674329 | AO9: ='PF Public'!AO18 -> 706.9162682 | AP9: ='PF Public'!AP18 -> 1322.782238 | AQ9: ='PF Public'!AQ18 -> 1370.293413 | AR9: ='PF Public'!AR18 -> 1094.310437 | AS9: ='PF Public'!AS18 -> 1242.029637 | AT9: ='PF Public'!AT18 -> 1123.925094 | AU9: ='PF Public'!AU18 -> 652.754555 | AV9: ='PF Public'!AV18 -> 1157.403959 | AW9: ='PF Public'!AW18 -> 1221.946793 | AX9: ='PF Public'!AX18 -> 1447.093719 | AY9: ='PF Public'!AY18 -> 927.5094325 | AZ9: ='PF Public'!AZ18 -> 785.3655023 | BA9: ='PF Public'!BA18 -> 777.2650599 | BB9: ='PF Public'!BB18 -> 1361.648834 | BC9: ='PF Public'!BC18 -> 1407.518107 | BD9: ='PF Public'!BD18 -> 1152.968956 | BE9: ='PF Public'!BE18 -> 1337.722322 | BF9: ='PF Public'!BF18 -> 1189.464341 | BG9: ='PF Public'!BG18 -> 707.3903525 | BH9: ='PF Public'!BH18 -> 1188.706387 | BI9: ='PF Public'!BI18 -> 1246.35413 | BJ9: ='PF Public'!BJ18 -> 1525.150534 | BK9: ='PF Public'!BK18 -> 976.173745 | BL9: ='PF Public'!BL18 -> 861.7903077 | BM9: ='PF Public'!BM18 -> 829.6234475 | BN9: ='PF Public'!BN18 -> 1398.10912 | BO9: ='PF Public'!BO18 -> 1520.31793 | BP9: ='PF Public'!BP18 -> 1227.185535 | BQ9: ='PF Public'!BQ18 -> 1434.378644 | BR9: ='PF Public'!BR18 -> 1316.168992 | BS9: ='PF Public'!BS18 -> 732.5634183 | BT9: ='PF Public'!BT18 -> 1230.683502 | BU9: ='PF Public'!BU18 -> 1245.48986 | BV9: ='PF Public'!BV18 -> 1597.272498 | BW9: ='PF Public'!BW18 -> 1041.739618
D11: =RateSummary!$C$10 -> 2029 | E11: =RateSummary!$D$10 -> 2030 | F11: =RateSummary!$E$10 -> 2031 | G11: =RateSummary!$F$10 -> 2032 | H11: =RateSummary!$G$10 -> 2033 | I11: =RateSummary!$H$10 -> 2034
C12: Public Load (MWh) | D12: =SUM(D6:O7) -> 65201985.53 | E12: =SUM(P6:AA7) -> 65201985.53 | F12: =SUM(AB6:AM7) -> 65201985.53 | G12: =SUM(AN6:AY7) -> 65201985.53 | H12: =SUM(AZ6:BK7) -> 65201985.53 | I12: =SUM(BL6:BW7) -> 65201985.53
C13: Public Load (aMW) | D13: =D12/VLOOKUP(D11,Init!$N$5:$P$38,3) -> 7443.149033 | E13: =E12/VLOOKUP(E11,Init!$N$5:$P$38,3) -> 7443.149033 | F13: =F12/VLOOKUP(F11,Init!$N$5:$P$38,3) -> 7443.149033 | G13: =G12/VLOOKUP(G11,Init!$N$5:$P$38,3) -> 7422.81256 | H13: =H12/VLOOKUP(H11,Init!$N$5:$P$38,3) -> 7443.149033 | I13: =I12/VLOOKUP(I11,Init!$N$5:$P$38,3) -> 7443.149033
C14: Demand (MW) | D14: =SUM(D9:O9) -> 13020.83298 | E14: =SUM(P9:AA9) -> 13655.72827 | F14: =SUM(AB9:AM9) -> 14435.32287 | G14: =SUM(AN9:AY9) -> 13020.83298 | H14: =SUM(AZ9:BK9) -> 13655.72827 | I14: =SUM(BL9:BW9) -> 14435.32287
D16: DEMAND: | E16: ENERGY: | F16: (GWh) | AE16: Total
E17: Oct | G17: Nov | I17: Dec | K17: Jan | M17: Feb | O17: Mar | Q17: Apr | S17: May | U17: Jun | W17: Jul | Y17: Aug | AA17: Sep | AC17: Total | AE17: Energy
D18: Annual | E18: LLH | F18: HLH | G18: LLH | H18: HLH | I18: LLH | J18: HLH | K18: LLH | L18: HLH | M18: LLH | N18: HLH | O18: LLH | P18: HLH | Q18: LLH | R18: HLH | S18: LLH | T18: HLH | U18: LLH | V18: HLH | W18: LLH | X18: HLH | Y18: LLH | Z18: HLH | AA18: LLH | AB18: HLH | AC18: LLH | AD18: HLH | AG18: check
B20: =RateSummary!$C$10 -> 2029 | D20: =Q31 -> 7165.654661 | E20: =D30 -> 1075.602044 | F20: =D29 -> 1624.083237 | G20: =E30 -> 1251.904152 | H20: =E29 -> 1857.378724 | I20: =F30 -> 1463.433784 | J20: =F29 -> 2223.143158 | K20: =G30 -> 1553.968308 | L20: =G29 -> 2186.896779 | M20: =H30 -> 1261.352557 | N20: =H29 -> 1970.5016 | O20: =I30 -> 1227.638269 | P20: =I29 -> 2009.833088 | Q20: =J30 -> 1089.500104 | R20: =J29 -> 1580.865327 | S20: =K30 -> 1034.819845 | T20: =K29 -> 1604.13712 | U20: =L30 -> 952.0654075 | V20: =L29 -> 1613.330144 | W20: =M30 -> 1178.919984 | X20: =M29 -> 1700.527297 | Y20: =N30 -> 1036.498915 | Z20: =N29 -> 1821.602177 | AA20: =O30 -> 1008.219153 | AB20: =O29 -> 1555.885006 | AC20: =E20+G20+I20+K20+M20+O20+Q20+S20+U20+W20+Y20+AA20 -> 14133.92252 | AD20: =F20+H20+J20+L20+N20+P20+R20+T20+V20+X20+Z20+AB20 -> 21748.18366 | AE20: =AC20+AD20 -> 35882.10618 | AG20: =T29 -> 35882.10618 | AH20: =AG20/(VLOOKUP($B20,Init!$N:$P,3,FALSE)/1000) -> 4096.130842
B21: =RateSummary!$D$10 -> 2030 | D21: =Q35 -> 7515.051694 | E21: =D34 -> 1075.602044 | F21: =D33 -> 1624.083237 | G21: =E34 -> 1251.904152 | H21: =E33 -> 1857.378724 | I21: =F34 -> 1463.433784 | J21: =F33 -> 2223.143158 | K21: =G34 -> 1553.968308 | L21: =G33 -> 2186.896779 | M21: =H34 -> 1261.352557 | N21: =H33 -> 1970.5016 | O21: =I34 -> 1227.638269 | P21: =I33 -> 2009.833088 | Q21: =J34 -> 1089.500104 | R21: =J33 -> 1580.865327 | S21: =K34 -> 1034.819845 | T21: =K33 -> 1604.13712 | U21: =L34 -> 952.0654075 | V21: =L33 -> 1613.330144 | W21: =M34 -> 1178.919984 | X21: =M33 -> 1700.527297 | Y21: =N34 -> 1036.498915 | Z21: =N33 -> 1821.602177 | AA21: =O34 -> 1008.219153 | AB21: =O33 -> 1555.885006 | AC21: 14133.92252 | AD21: 21748.18366 | AE21: 35882.10618 | AG21: =T33 -> 35882.10618 | AH21: =AG21/(VLOOKUP($B21,Init!$N:$P,3,FALSE)/1000) -> 4096.130842
B22: =RateSummary!$E$10 -> 2031 | D22: =Q39 -> 8028.334508 | E22: =D38 -> 1087.009827 | F22: =D37 -> 1641.308185 | G22: =E38 -> 1265.181786 | H22: =E37 -> 1877.077992 | I22: =F38 -> 1478.954892 | J22: =F37 -> 2246.721706 | K22: =G38 -> 1570.44962 | L22: =G37 -> 2210.0909 | M22: =H38 -> 1274.730401 | N22: =H37 -> 1991.400644 | O22: =I38 -> 1240.658541 | P22: =I37 -> 2031.149279 | Q22: =J38 -> 1101.055289 | R22: =J37 -> 1597.631908 | S22: =K38 -> 1045.795094 | T22: =K37 -> 1621.15052 | U22: =L38 -> 962.1629668 | V22: =L37 -> 1630.441045 | W22: =M38 -> 1191.423552 | X22: =M37 -> 1718.563007 | Y22: =N38 -> 1047.491972 | Z22: =N37 -> 1840.922001 | AA22: =O38 -> 1018.912276 | AB22: =O37 -> 1572.386647 | AC22: 14283.82622 | AD22: 21978.84383 | AE22: 36262.67005 | AG22: =T37 -> 36262.67005 | AH22: =AG22/(VLOOKUP($B22,Init!$N:$P,3,FALSE)/1000) -> 4139.574207
B23: =RateSummary!$F$10 -> 2032 | D23: =Q43 -> 7241.653246 | E23: =D42 -> 1087.009827 | F23: =D41 -> 1641.308185 | G23: =E42 -> 1265.181786 | H23: =E41 -> 1877.077992 | I23: =F42 -> 1478.954892 | J23: =F41 -> 2246.721706 | K23: =G42 -> 1570.44962 | L23: =G41 -> 2210.0909 | M23: =H42 -> 1274.730401 | N23: =H41 -> 1991.400644 | O23: =I42 -> 1240.658541 | P23: =I41 -> 2031.149279 | Q23: =J42 -> 1101.055289 | R23: =J41 -> 1597.631908 | S23: =K42 -> 1045.795094 | T23: =K41 -> 1621.15052 | U23: =L42 -> 962.1629668 | V23: =L41 -> 1630.441045 | W23: =M42 -> 1191.423552 | X23: =M41 -> 1718.563007 | Y23: =N42 -> 1047.491972 | Z23: =N41 -> 1840.922001 | AA23: =O42 -> 1018.912276 | AB23: =O41 -> 1572.386647 | AC23: 14283.82622 | AD23: 21978.84383 | AE23: 36262.67005 | AG23: =T41 -> 36262.67005 | AH23: =AG23/(VLOOKUP($B23,Init!$N:$P,3,FALSE)/1000) -> 4128.263895
B24: =RateSummary!$G$10 -> 2033 | D24: =Q47 -> 7675.668444 | E24: =D46 -> 1098.590536 | F24: =D45 -> 1658.794239 | G24: =E46 -> 1278.660691 | H24: =E45 -> 1897.075874 | I24: =F46 -> 1494.711278 | J24: =F45 -> 2270.657672 | K24: =G46 -> 1587.180766 | L24: =G45 -> 2233.636611 | M24: =H46 -> 1288.311034 | N24: =H45 -> 2012.616489 | O24: =I46 -> 1253.876182 | P24: =I45 -> 2052.788595 | Q24: =J46 -> 1112.785634 | R24: =J45 -> 1614.652646 | S24: =K46 -> 1056.936712 | T24: =K45 -> 1638.42182 | U24: =L46 -> 972.4135911 | V24: =L45 -> 1647.811324 | W24: =M46 -> 1204.116656 | X24: =M45 -> 1736.872113 | Y24: =N46 -> 1058.651668 | Z24: =N45 -> 1860.534687 | AA24: =O46 -> 1029.767492 | AB24: =O45 -> 1589.138429 | AC24: 14436.00224 | AD24: 22213.0005 | AE24: 36649.00274 | AG24: =T45 -> 36649.00274 | AH24: =AG24/(VLOOKUP($B24,Init!$N:$P,3,FALSE)/1000) -> 4183.676112
B25: =RateSummary!$H$10 -> 2034 | D25: =Q51 -> 8113.866215 | E25: =D50 -> 1098.590536 | F25: =D49 -> 1658.794239 | G25: =E50 -> 1278.660691 | H25: =E49 -> 1897.075874 | I25: =F50 -> 1494.711278 | J25: =F49 -> 2270.657672 | K25: =G50 -> 1587.180766 | L25: =G49 -> 2233.636611 | M25: =H50 -> 1288.311034 | N25: =H49 -> 2012.616489 | O25: =I50 -> 1253.876182 | P25: =I49 -> 2052.788595 | Q25: =J50 -> 1112.785634 | R25: =J49 -> 1614.652646 | S25: =K50 -> 1056.936712 | T25: =K49 -> 1638.42182 | U25: =L50 -> 972.4135911 | V25: =L49 -> 1647.811324 | W25: =M50 -> 1204.116656 | X25: =M49 -> 1736.872113 | Y25: =N50 -> 1058.651668 | Z25: =N49 -> 1860.534687 | AA25: =O50 -> 1029.767492 | AB25: =O49 -> 1589.138429 | AC25: 14436.00224 | AD25: 22213.0005 | AE25: 36649.00274 | AG25: =T49 -> 36649.00274 | AH25: =AG25/(VLOOKUP($B25,Init!$N:$P,3,FALSE)/1000) -> 4183.676112
D28: =E17 -> Oct | E28: =G17 -> Nov | F28: =I17 -> Dec | G28: =K17 -> Jan | H28: =M17 -> Feb | I28: =O17 -> Mar | J28: =Q17 -> Apr | K28: =S17 -> May | L28: =U17 -> Jun | M28: =W17 -> Jul | N28: =Y17 -> Aug | O28: =AA17 -> Sep
B29: =B20 -> 2029 | C29: HLH | D29: =D6/1000*$V$30 -> 1624.083237 | E29: 1857.378724 | F29: 2223.143158 | G29: 2186.896779 | H29: 1970.5016 | I29: 2009.833088 | J29: 1580.865327 | K29: 1604.13712 | L29: 1613.330144 | M29: 1700.527297 | N29: 1821.602177 | O29: 1555.885006 | R29: HLH | S29: =B29 -> 2029 | T29: =SUM(D29:O30) -> 35882.10618 | U29: =T29/(VLOOKUP(S29,Init!$N$5:$P$38,3)/1000) -> 4096.130842 | V29: =D13 -> 7443.149033
